Workbook

Sheet CHAlea (hidden)
A1: # | B1: LEA | C1: Charter School | D1: Location | E1: Type | F1: Year Opened (Fall)
A2: 0 | B2: 0 | C2: Please Select a Charter School | E2: NA | F2: NA | H2: Please Select a Charter School
A3: 1 | B3: 445 | C3: Abby Kelley Foster Charter Public School | D3: =VLOOKUP(B3, FACTS, 3, FALSE) -> Worcester | E3: =VLOOKUP(B3, FACTS, 4, FALSE) -> C | F3: =VLOOKUP(B3, FACTS, 5, FALSE) -> 1998 | H3: =B3&" - "&C3&" "&"-"&" "&D3&" - Est. "&F3 -> 445 - Abby Kelley Foster Charter Public School - Worcester - Est. 1998
A4: 2 | B4: 412 | C4: Academy of the Pacific Rim Charter Public School | D4: Boston | E4: C | F4: 1997 | H4: 412 - Academy of the Pacific Rim Charter Public School - Boston - Est. 1997
A5: 3 | B5: 430 | C5: Advanced Math and Science Academy Charter School | D5: Marlborough | E5: C | F5: 2005 | H5: 430 - Advanced Math and Science Academy Charter School - Marlborough - Est. 2005
A6: 4 | B6: 409 | C6: Alma del Mar Charter School | D6: New Bedford | E6: C | F6: 2011 | H6: 409 - Alma del Mar Charter School - New Bedford - Est. 2011
A7: 5 | B7: 3509 | C7: Argosy Collegiate Charter School | D7: Fall River | E7: C | F7: 2014 | H7: 3509 - Argosy Collegiate Charter School - Fall River - Est. 2014
A8: 6 | B8: 491 | C8: Atlantis Charter School | D8: Fall River | E8: C | F8: 1995 | H8: 491 - Atlantis Charter School - Fall River - Est. 1995
A9: 7 | B9: 427 | C9: Barnstable Community Horace Mann Charter Public School | D9: Barnstable | E9: HMI | F9: 2004 | H9: 427 - Barnstable Community Horace Mann Charter Public School - Barnstable - Est. 2004
A10: 8 | B10: 3502 | C10: Baystate Academy Charter Public School | D10: Springfield | E10: C | F10: 2013 | H10: 3502 - Baystate Academy Charter Public School - Springfield - Est. 2013
A11: 9 | B11: 420 | C11: Benjamin Banneker Charter Public School | D11: Cambridge | E11: C | F11: 1996 | H11: 420 - Benjamin Banneker Charter Public School - Cambridge - Est. 1996
A12: 10 | B12: 447 | C12: Benjamin Franklin Classical Charter Public School | D12: Franklin | E12: C | F12: 1995 | H12: 447 - Benjamin Franklin Classical Charter Public School - Franklin - Est. 1995
A13: 11 | B13: 3511 | C13: Bentley Academy Charter School | D13: Salem | E13: HMIII | F13: 2015 | H13: 3511 - Bentley Academy Charter School - Salem - Est. 2015
A14: 12 | B14: 414 | C14: Berkshire Arts and Technology Charter Public School | D14: Adams | E14: C | F14: 2004 | H14: 414 - Berkshire Arts and Technology Charter Public School - Adams - Est. 2004
A15: 13 | B15: 449 | C15: Boston Collegiate Charter School | D15: Boston | E15: C | F15: 1998 | H15: 449 - Boston Collegiate Charter School - Boston - Est. 1998
A16: 14 | B16: 424 | C16: Boston Day and Evening Academy Charter School | D16: Boston | E16: HMI | F16: 1998 | H16: 424 - Boston Day and Evening Academy Charter School - Boston - Est. 1998
A17: 15 | B17: 411 | C17: Boston Green Academy Horace Mann Charter School | D17: Boston | E17: HMIII | F17: 2011 | H17: 411 - Boston Green Academy Horace Mann Charter School - Boston - Est. 2011
A18: 16 | B18: 416 | C18: Boston Preparatory Charter Public School | D18: Boston | E18: C | F18: 2004 | H18: 416 - Boston Preparatory Charter Public School - Boston - Est. 2004
A19: 17 | B19: 481 | C19: Boston Renaissance Charter Public School | D19: Boston | E19: C | F19: 1995 | H19: 481 - Boston Renaissance Charter Public School - Boston - Est. 1995
A20: 18 | B20: 417 | C20: Bridge Boston Charter School | D20: Boston | E20: C | F20: 2011 | H20: 417 - Bridge Boston Charter School - Boston - Est. 2011
A21: 19 | B21: 428 | C21: Brooke Charter School | D21: Boston | E21: C | F21: 2002 | H21: 428 - Brooke Charter School - Boston - Est. 2002
A22: 20 | B22: 432 | C22: Cape Cod Lighthouse Charter School | D22: Harwich | E22: C | F22: 1995 | H22: 432 - Cape Cod Lighthouse Charter School - Harwich - Est. 1995
A23: 21 | B23: 418 | C23: Christa McAuliffe Charter School | D23: Framingham | E23: C | F23: 2002 | H23: 418 - Christa McAuliffe Charter School - Framingham - Est. 2002
A24: 22 | B24: 437 | C24: City On A Hill Charter Public School | D24: Boston | E24: C | F24: 1995 | H24: 437 - City On A Hill Charter Public School - Boston - Est. 1995
A25: 23 | B25: 3504 | C25: City On A Hill Charter Public School II | D25: Boston | E25: C | F25: 2013 | H25: 3504 - City On A Hill Charter Public School II - Boston - Est. 2013
A26: 24 | B26: 3507 | C26: City On A Hill Charter Public School New Bedford | D26: New Bedford | E26: C | F26: 2014 | H26: 3507 - City On A Hill Charter Public School New Bedford - New Bedford - Est. 2014
A27: 25 | B27: 438 | C27: Codman Academy Charter Public School | D27: Boston | E27: C | F27: 2001 | H27: 438 - Codman Academy Charter Public School - Boston - Est. 2001
A28: 26 | B28: 3503 | C28: Collegiate Charter School of Lowell | D28: Lowell | E28: C | F28: 2013 | H28: 3503 - Collegiate Charter School of Lowell - Lowell - Est. 2013
A29: 27 | B29: 436 | C29: Community Charter School of Cambridge | D29: Cambridge | E29: C | F29: 2005 | H29: 436 - Community Charter School of Cambridge - Cambridge - Est. 2005
A30: 28 | B30: 426 | C30: Community Day Charter Public School - Gateway | D30: Lawrence | E30: C | F30: 2012 | H30: 426 - Community Day Charter Public School - Gateway - Lawrence - Est. 2012
A31: 29 | B31: 440 | C31: Community Day Charter Public School - Prospect | D31: Lawrence | E31: C | F31: 1995 | H31: 440 - Community Day Charter Public School - Prospect - Lawrence - Est. 1995
A32: 30 | B32: 431 | C32: Community Day Charter Public School - R. Kingman Webster | D32: Lawrence | E32: C | F32: 2012 | H32: 431 - Community Day Charter Public School - R. Kingman Webster - Lawrence - Est. 2012
A33: 31 | B33: 439 | C33: Conservatory Lab Charter School | D33: Boston | E33: C | F33: 1999 | H33: 439 - Conservatory Lab Charter School - Boston - Est. 1999
A34: 32 | B34: 407 | C34: Dudley Street Neighborhood Charter School | D34: Boston | E34: HMIII | F34: 2012 | H34: 407 - Dudley Street Neighborhood Charter School - Boston - Est. 2012
A35: 33 | B35: 452 | C35: Edward M. Kennedy Academy for Health Careers: A HMCPS | D35: =VLOOKUP(B35, FACTS, 3, FALSE) -> Boston | E35: =VLOOKUP(B35, FACTS, 4, FALSE) -> HMI | F35: =VLOOKUP(B35, FACTS, 5, FALSE) -> 1998 | H35: 452 - Edward M. Kennedy Academy for Health Careers: A HMCPS - Boston - Est. 1998
A36: 34 | B36: 410 | C36: Excel Academy Charter School | D36: Boston/Chelsea | E36: C | F36: 2003 | H36: 410 - Excel Academy Charter School - Boston/Chelsea - Est. 2003
A37: 35 | B37: 413 | C37: Four Rivers Charter Public School | D37: Greenfield | E37: C | F37: 2003 | H37: 413 - Four Rivers Charter Public School - Greenfield - Est. 2003
A38: 36 | B38: 446 | C38: Foxborough Regional Charter School | D38: Foxborough | E38: C | F38: 1998 | H38: 446 - Foxborough Regional Charter School - Foxborough - Est. 1998
A39: 37 | B39: 478 | C39: Francis W. Parker Charter Essential School | D39: Devens | E39: C | F39: 1995 | H39: 478 - Francis W. Parker Charter Essential School - Devens - Est. 1995
A40: 38 | B40: 496 | C40: Global Learning Charter Public School | D40: New Bedford | E40: C | F40: 2007 | H40: 496 - Global Learning Charter Public School - New Bedford - Est. 2007
A41: 39 | B41: 499 | C41: Hampden Charter School of Science - East | D41: Chicopee | E41: C | F41: 2009 | H41: 499 - Hampden Charter School of Science - East - Chicopee - Est. 2009
A42: 40 | B42: 3516 | C42: Hampden Charter School of Science -West | D42: West Springfield | E42: C | F42: 2018 | H42: 3516 - Hampden Charter School of Science -West - West Springfield - Est. 2018
A43: 41 | B43: 419 | C43: Helen Y Davis Leadership Academy Charter Public School | D43: Boston | E43: C | F43: 2003 | H43: 419 - Helen Y Davis Leadership Academy Charter Public School - Boston - Est. 2003
A44: 42 | B44: 455 | C44: Hill View Montessori Charter Public School | D44: Haverhill | E44: C | F44: 2004 | H44: 455 - Hill View Montessori Charter Public School - Haverhill - Est. 2004
A45: 43 | B45: 450 | C45: Hilltown Cooperative Charter Public School | D45: East Hampton | E45: C | F45: 1995 | H45: 450 - Hilltown Cooperative Charter Public School - East Hampton - Est. 1995
A46: 44 | B46: 453 | C46: Holyoke Community Charter School | D46: Holyoke | E46: C | F46: 2005 | H46: 453 - Holyoke Community Charter School - Holyoke - Est. 2005
A47: 45 | B47: 435 | C47: Innovation Academy Charter School | D47: Tyngsborough | E47: C | F47: 1996 | H47: 435 - Innovation Academy Charter School - Tyngsborough - Est. 1996
A48: 46 | B48: 463 | C48: KIPP Academy Boston Charter School | D48: Boston | E48: C | F48: 2012 | H48: 463 - KIPP Academy Boston Charter School - Boston - Est. 2012
A49: 47 | B49: 429 | C49: KIPP Academy Lynn Charter School | D49: Lynn | E49: C | F49: 2004 | H49: 429 - KIPP Academy Lynn Charter School - Lynn - Est. 2004
A50: 48 | B50: 454 | C50: Lawrence Family Development Charter School | D50: Lawrence | E50: C | F50: 1995 | H50: 454 - Lawrence Family Development Charter School - Lawrence - Est. 1995
A51: 49 | B51: 3514 | C51: Libertas | D51: Springfield | E51: C | F51: 2017 | H51: 3514 - Libertas - Springfield - Est. 2017
A52: 50 | B52: 456 | C52: Lowell Community Charter Public School | D52: Lowell | E52: C | F52: 2000 | H52: 456 - Lowell Community Charter Public School - Lowell - Est. 2000
A53: 51 | B53: 458 | C53: Lowell Middlesex Academy Charter School | D53: Lowell | E53: C | F53: 1995 | H53: 458 - Lowell Middlesex Academy Charter School - Lowell - Est. 1995
A54: 52 | B54: 3517 | C54: MAP Academy Charter School | D54: Plymouth | E54: C | F54: 2018 | H54: 3517 - MAP Academy Charter School - Plymouth - Est. 2018
A55: 53 | B55: 464 | C55: Marblehead Community Charter Public School | D55: Marblehead | E55: C | F55: 1995 | H55: 464 - Marblehead Community Charter Public School - Marblehead - Est. 1995
A56: 54 | B56: 466 | C56: Martha's Vineyard Public Charter School | D56: West Tisbury | E56: C | F56: 1996 | H56: 466 - Martha's Vineyard Public Charter School - West Tisbury - Est. 1996
A57: 55 | B57: 492 | C57: Martin Luther King, Jr. Charter School of Excellence | D57: Springfield | E57: C | F57: 2006 | H57: 492 - Martin Luther King, Jr. Charter School of Excellence - Springfield - Est. 2006
A58: 56 | B58: 469 | C58: Match Charter Public School | D58: Boston | E58: C | F58: 2000 | H58: 469 - Match Charter Public School - Boston - Est. 2000
A59: 57 | B59: 470 | C59: Mystic Valley Regional Charter School | D59: Malden | E59: C | F59: 1998 | H59: 470 - Mystic Valley Regional Charter School - Malden - Est. 1998
A60: 58 | B60: 444 | C60: Neighborhood House Charter School | D60: Boston | E60: C | F60: 1995 | H60: 444 - Neighborhood House Charter School - Boston - Est. 1995
A61: 59 | B61: 3513 | C61: New Heights Charter School of Brockton | D61: Brockton | E61: C | F61: 2016 | H61: 3513 - New Heights Charter School of Brockton - Brockton - Est. 2016
A62: 60 | B62: 3515 | C62: Old Sturbridge Academy | D62: Sturbridge | E62: C | F62: 2017 | H62: 3515 - Old Sturbridge Academy - Sturbridge - Est. 2017
A63: 61 | B63: 3501 | C63: Paulo Freire Social Justice Charter School | D63: Chicopee | E63: C | F63: 2013 | H63: 3501 - Paulo Freire Social Justice Charter School - Chicopee - Est. 2013
A64: 62 | B64: 493 | C64: Phoenix Academy Charter Public High School, Chelsea | D64: Chelsea | E64: C | F64: 2006 | H64: 493 - Phoenix Academy Charter Public High School, Chelsea - Chelsea - Est. 2006
A65: 63 | B65: 3518 | C65: Phoenix Academy Charter Public High School, Lawrence | D65: Lawrence | E65: C | F65: 2018 | H65: =B65&" - "&C65&" "&"-"&" "&D65&" - Est. "&F65 -> 3518 - Phoenix Academy Charter Public High School, Lawrence - Lawrence - Est. 2018
A66: 64 | B66: 3508 | C66: Phoenix Academy Public Charter High School, Springfield | D66: Springfield | E66: C | F66: 2014 | H66: 3508 - Phoenix Academy Public Charter High School, Springfield - Springfield - Est. 2014
A67: 65 | B67: 494 | C67: Pioneer Charter School of Science | D67: =VLOOKUP(B67, FACTS, 3, FALSE) -> Everett | E67: =VLOOKUP(B67, FACTS, 4, FALSE) -> C | F67: =VLOOKUP(B67, FACTS, 5, FALSE) -> 2007 | H67: 494 - Pioneer Charter School of Science - Everett - Est. 2007
A68: 66 | B68: 3506 | C68: Pioneer Charter School of Science II | D68: Saugus | E68: C | F68: 2013 | H68: 3506 - Pioneer Charter School of Science II - Saugus - Est. 2013
A69: 67 | B69: 497 | C69: Pioneer Valley Chinese Immersion Charter School | D69: Hadley | E69: C | F69: 2007 | H69: 497 - Pioneer Valley Chinese Immersion Charter School - Hadley - Est. 2007
A70: 68 | B70: 479 | C70: Pioneer Valley Performing Arts Charter Public School | D70: South Hadley | E70: C | F70: 1996 | H70: 479 - Pioneer Valley Performing Arts Charter Public School - South Hadley - Est. 1996
A71: 69 | B71: 487 | C71: Prospect Hill Academy Charter School | D71: Somerville (K-6); Cambridge (7-12) | E71: C | F71: 1996 | H71: 487 - Prospect Hill Academy Charter School - Somerville (K-6); Cambridge (7-12) - Est. 1996
A72: 70 | B72: 483 | C72: Rising Tide Charter Public School | D72: Plymouth | E72: C | F72: 1998 | H72: 483 - Rising Tide Charter Public School - Plymouth - Est. 1998
A73: 71 | B73: 482 | C73: River Valley Charter School | D73: Newburyport | E73: C | F73: 1999 | H73: 482 - River Valley Charter School - Newburyport - Est. 1999
A74: 72 | B74: 484 | C74: Roxbury Preparatory Charter School | D74: Boston | E74: C | F74: 1999 | H74: 484 - Roxbury Preparatory Charter School - Boston - Est. 1999
A75: 73 | B75: 441 | C75: Sabis International Charter School | D75: Springfield | E75: C | F75: 1995 | H75: 441 - Sabis International Charter School - Springfield - Est. 1995
A76: 74 | B76: 485 | C76: Salem Academy Charter School | D76: Salem | E76: C | F76: 2004 | H76: =B76&" - "&C76&" "&"-"&" "&D76&" - Est. "&F76 -> 485 - Salem Academy Charter School - Salem - Est. 2004
A77: 75 | B77: 486 | C77: Seven Hills Charter Public School | D77: Worcester | E77: C | F77: 1996 | H77: 486 - Seven Hills Charter Public School - Worcester - Est. 1996
A78: 76 | B78: 474 | C78: Sizer School, A North Central Charter Essential School | D78: Fitchburg | E78: C | F78: 2002 | H78: 474 - Sizer School, A North Central Charter Essential School - Fitchburg - Est. 2002
A79: 77 | B79: 488 | C79: South Shore Charter Public School | D79: Norwell | E79: C | F79: 1995 | H79: 488 - South Shore Charter Public School - Norwell - Est. 1995
A80: 78 | B80: 3510 | C80: Springfield Preparatory Charter School | D80: Springfield | E80: C | F80: 2015 | H80: 3510 - Springfield Preparatory Charter School - Springfield - Est. 2015
A81: 79 | B81: 489 | C81: Sturgis Charter Public School | D81: Hyannis | E81: C | F81: 1998 | H81: 489 - Sturgis Charter Public School - Hyannis - Est. 1998
A82: 80 | B82: 480 | C82: UP Academy Charter School of Boston | D82: Boston | E82: HMIII | F82: 2011 | H82: 480 - UP Academy Charter School of Boston - Boston - Est. 2011
A83: 81 | B83: 3505 | C83: UP Academy Charter School of Dorchester | D83: Boston | E83: HMIII | F83: 2013 | H83: 3505 - UP Academy Charter School of Dorchester - Boston - Est. 2013
A84: 82 | B84: 498 | C84: Veritas Preparatory Charter School | D84: Springfield | E84: C | F84: 2012 | H84: 498 - Veritas Preparatory Charter School - Springfield - Est. 2012

Sheet Facts (hidden)
A1: LEA | B1: Charter School | C1: Location | D1: Type | E1: Year Opened (Fall)
A2: 445 | B2: Abby Kelley Foster Charter Public School | C2: Worcester | D2: C | E2: 1998
A3: 412 | B3: Academy of the Pacific Rim Charter Public School | C3: Boston | D3: C | E3: 1997
A4: 430 | B4: Advanced Math and Science Academy Charter School | C4: Marlborough | D4: C | E4: 2005
A5: 409 | B5: Alma del Mar Charter School | C5: New Bedford | D5: C | E5: 2011
A6: 3509 | B6: Argosy Collegiate Charter School | C6: Fall River | D6: C | E6: 2014
A7: 491 | B7: Atlantis Charter School | C7: Fall River | D7: C | E7: 1995
A8: 3502 | B8: Baystate Academy Charter Public School | C8: Springfield | D8: C | E8: 2013
A9: 420 | B9: Benjamin Banneker Charter Public School | C9: Cambridge | D9: C | E9: 1996
A10: 447 | B10: Benjamin Franklin Classical Charter Public School | C10: Franklin | D10: C | E10: 1995
A11: 3511 | B11: Bentley Academy Charter School-Closed move down | C11: Salem | D11: HMIII | E11: 2015
A12: 414 | B12: Berkshire Arts and Technology Charter Public School | C12: Adams | D12: C | E12: 2004
A13: 449 | B13: Boston Collegiate Charter School | C13: Boston | D13: C | E13: 1998
A14: 424 | B14: Boston Day and Evening Academy Charter School | C14: Boston | D14: HMI | E14: 1998
A15: 411 | B15: Boston Green Academy Horace Mann Charter School | C15: Boston | D15: HMIII | E15: 2011
A16: 416 | B16: Boston Preparatory Charter Public School | C16: Boston | D16: C | E16: 2004
A17: 481 | B17: Boston Renaissance Charter Public School | C17: Boston | D17: C | E17: 1995
A18: 417 | B18: Bridge Boston Charter School | C18: Boston | D18: C | E18: 2011
A19: 428 | B19: Brooke Charter School | C19: Boston | D19: C | E19: 2002
A20: 432 | B20: Cape Cod Lighthouse Charter School | C20: Harwich | D20: C | E20: 1995
A21: 418 | B21: Christa McAuliffe Charter School | C21: Framingham | D21: C | E21: 2002
A22: 437 | B22: City on a Hill Charter Public School Circuit Street | C22: Boston | D22: C | E22: 1995
A23: 3504 | B23: City on a Hill Charter Public School Dudley Square | C23: Boston | D23: C | E23: 2013
A24: 3507 | B24: City On A Hill Charter Public School New Bedford-Closed-move down | C24: New Bedford | D24: C | E24: 2014
A25: 438 | B25: Codman Academy Charter Public School | C25: Boston | D25: C | E25: 2001
A26: 3503 | B26: Collegiate Charter School of Lowell | C26: Lowell | D26: C | E26: 2013
A27: 436 | B27: Community Charter School of Cambridge | C27: Cambridge | D27: C | E27: 2005
A28: 426 | B28: Community Day Charter Public School - Gateway | C28: Lawrence | D28: C | E28: 2012
A29: 440 | B29: Community Day Charter Public School - Prospect | C29: Lawrence | D29: C | E29: 1995
A30: 431 | B30: Community Day Charter Public School - R. Kingman Webster | C30: Lawrence | D30: C | E30: 2012
A31: 439 | B31: Conservatory Lab Charter School | C31: Boston | D31: C | E31: 1999
A32: 407 | B32: Dudley Street Neighborhood Charter School | C32: Boston | D32: HMIII | E32: 2012
A33: 452 | B33: Edward M. Kennedy Academy for Health Careers: A Horace Mann Charter Public School | C33: Boston | D33: HMI | E33: 1998
A34: 410 | B34: Excel Academy Charter School | C34: Boston/Chelsea | D34: C | E34: 2003
A35: 413 | B35: Four Rivers Charter Public School | C35: Greenfield | D35: C | E35: 2003
A36: 446 | B36: Foxborough Regional Charter School | C36: Foxborough | D36: C | E36: 1998
A37: 478 | B37: Francis W. Parker Charter Essential School | C37: Devens | D37: C | E37: 1995
A38: 496 | B38: Global Learning Charter Public School | C38: New Bedford | D38: C | E38: 2007
A39: 499 | B39: Hampden Charter School of Science East | C39: Chicopee | D39: C | E39: 2009
A40: 3516 | B40: Hampden Charter School of Science West | C40: West Springfield | D40: C | E40: 2018
A41: 419 | B41: Helen Y Davis Leadership Academy Charter Public School | C41: Boston | D41: C | E41: 2003
A42: 455 | B42: Hill View Montessori Charter Public School | C42: Haverhill | D42: C | E42: 2004
A43: 450 | B43: Hilltown Cooperative Charter Public School | C43: East Hampton | D43: C | E43: 1995
A44: 453 | B44: Holyoke Community Charter School | C44: Holyoke | D44: C | E44: 2005
A45: 435 | B45: Innovation Academy Charter School | C45: Tyngsborough | D45: C | E45: 1996
A46: 463 | B46: KIPP Academy Boston Charter School | C46: Boston | D46: C | E46: 2012
A47: 429 | B47: KIPP Academy Lynn Charter School | C47: Lynn | D47: C | E47: 2004
A48: 454 | B48: Lawrence Family Development Charter School | C48: Lawrence | D48: C | E48: 1995
A49: 3514 | B49: Libertas Academy Charter School | C49: Springfield | D49: C | E49: 2017
A50: 456 | B50: Lowell Community Charter Public School | C50: Lowell | D50: C | E50: 2000
A51: 458 | B51: Lowell Middlesex Academy Charter School | C51: Lowell | D51: C | E51: 1995
A52: 3517 | B52: Map Academy Charter School | C52: Plymouth | D52: C | E52: 2018
A53: 464 | B53: Marblehead Community Charter Public School | C53: Marblehead | D53: C | E53: 1995
A54: 466 | B54: Martha's Vineyard Public Charter School | C54: West Tisbury | D54: C | E54: 1996
A55: 492 | B55: Martin Luther King, Jr. Charter School of Excellence | C55: Springfield | D55: C | E55: 2006
A56: 469 | B56: Match Charter Public School | C56: Boston | D56: C | E56: 2000
A57: 470 | B57: Mystic Valley Regional Charter School | C57: Malden | D57: C | E57: 1998
A58: 444 | B58: Neighborhood House Charter School | C58: Boston | D58: C | E58: 1995
A59: 3513 | B59: New Heights Charter School of Brockton | C59: Brockton | D59: C | E59: 2016
A60: 3515 | B60: Old Sturbridge Academy Charter Public School | C60: Sturbridge | D60: C | E60: 2017
A61: 3501 | B61: Paulo Freire Social Justice Charter School | C61: Chicopee | D61: C | E61: 2013
A62: 493 | B62: Phoenix Academy Charter Public High School, Chelsea | C62: Chelsea | D62: C | E62: 2006
A63: 3518 | B63: Phoenix Academy Public Charter High School, Lawrence | C63: Lawrence | D63: C | E63: 2018
A64: 3508 | B64: Phoenix Academy Public Charter High School, Springfield | C64: Springfield | D64: C | E64: 2014
A65: 494 | B65: Pioneer Charter School of Science | C65: Everett | D65: C | E65: 2007
A66: 3506 | B66: Pioneer Charter School of Science II | C66: Saugus | D66: C | E66: 2013
A67: 497 | B67: Pioneer Valley Chinese Immersion Charter School | C67: Hadley | D67: C | E67: 2007
A68: 479 | B68: Pioneer Valley Performing Arts Charter Public School | C68: South Hadley | D68: C | E68: 1996
A69: 487 | B69: Prospect Hill Academy Charter School | C69: Somerville (K-6); Cambridge (7-12) | D69: C | E69: 1996
A70: 483 | B70: Rising Tide Charter Public School | C70: Plymouth | D70: C | E70: 1998
A71: 482 | B71: River Valley Charter School | C71: Newburyport | D71: C | E71: 1999
A72: 484 | B72: Roxbury Preparatory Charter School | C72: Boston | D72: C | E72: 1999
A73: 441 | B73: Sabis International Charter School | C73: Springfield | D73: C | E73: 1995
A74: 485 | B74: Salem Academy Charter School | C74: Salem | D74: C | E74: 2004
A75: 486 | B75: Learning First Charter Public School | C75: Worcester | D75: C | E75: 1996
A76: 474 | B76: Sizer School, A North Central Charter Essential School | C76: Fitchburg | D76: C | E76: 2002
A77: 488 | B77: South Shore Charter Public School | C77: Norwell | D77: C | E77: 1995
A78: 3510 | B78: Springfield Preparatory Charter School | C78: Springfield | D78: C | E78: 2015
A79: 489 | B79: Sturgis Charter Public School | C79: Hyannis | D79: C | E79: 1998
A80: 480 | B80: UP Academy Charter School of Boston | C80: Boston | D80: HMIII | E80: 2011
A81: 3505 | B81: UP Academy Charter School of Dorchester | C81: Boston | D81: HMIII | E81: 2013
A82: 498 | B82: Veritas Preparatory Charter School | C82: Springfield | D82: C | E82: 2012
A83: Closed Schools
A84: 415 | B84: Amesbury Academy Charter Public School | C84: Amesbury | D84: HMI | E84: 2001
A85: 423 | B85: Barnstable Horace Mann Charter School | C85: Barnstable | D85: HMI | E85: 1999
A86: 427 | B86: Barnstable Community Horace Mann Charter Public School | C86: Barnstable | D86: HMI | E86: 2004
A87: 425 | B87: Boston University Residential Charter School | C87: Granby | D87: C | E87: 1997
A88: 457 | B88: Brooke Charter School East Boston (FY17-will merge with 0428 and 0457 as Brooke Charter School LEA, 428 K-12) | C88: Boston | D88: C | E88: 2012
A89: 443 | B89: Brooke Charter School Mattapan (FY17-will merge with 0428 and 0457 as Brooke Charter School LEA 428, K-12) | C89: Boston | D89: C | E89: 2011
A90: 434 | B90: Champion Charter Public School | C90: Brockton | D90: HMI | E90: 1998
A91: 433 | B91: Dorchester Prep | C91: Boston | D91: C | E91: NA
A92: 475 | B92: Dorchester Collegiate Academy Charter School | C92: Boston | D92: C | E92: 2009
A93: 459 | B93: Excel Academy Charter School - Boston II | C93: Boston | D93: C | E93: 2012
A94: 461 | B94: Excel Academy Charter School - Chelsea | C94: Chelsea | D94: C | E94: 2011
A95: 495 | B95: Fall River Maritime Charter Public School | C95: Fall River | D95: C | E95: NA
A96: 442 | B96: Frederick Douglass Charter School | C96: Boston | D96: C | E96: 2000
A97: 448 | B97: Gloucester Community Arts Charter School | C97: Gloucester | D97: C | E97: 2010
A98: 462 | B98: Grove Hall Prep | C98: Boston | D98: C | E98: 2011
A99: 448 | B99: Horace Mann Charter School of Essential Studies | C99: Springfield | D99: HMI | E99: NA
A100: 460 | B100: Lynn Community Charter School | C100: Lynn | D100: C | E100: 1997
A101: 465 | B101: MATCH Community Day Charter Public School | C101: Boston | D101: C | E101: 2011
A102: 472 | B102: New Bedford Global Learning Charter School | C102: New Bedford | D102: HMI | E102: 2002
A103: 471 | B103: New Leadership Charter School | C103: Springfield | D103: HMI | E103: 1998
A104: 467 | B104: New Liberty Charter School of Salem | C104: Salem | D104: HMIII | E104: 2011
A105: 473 | B105: North Star Academy Charter School | C105: Springfield | D105: C | E105: 1996
A106: 476 | B106: Northern Bristol County Charter School | C106: Bristol County | D106: C | E106: NA
A107: 451 | B107: Robert M. Hughes Academy Charter Public School | C107: Springfield | D107: C | E107: 1999
A108: 422 | B108: Roxbury Charter High Public School | C108: Boston | D108: C | E108: 2003
A109: 477 | B109: Silver Hill Horace Mann Charter School | C109: Haverhill | D109: HMI | E109: 2008
A110: 421 | B110: South End College Preparatory Charter School | C110: Boston | D110: C | E110: NA
A111: 476 | B111: Spirit of Knowledge Charter School | C111: Worcester | D111: C | E111: 2010
A112: 3512 | B112: UP Academy Charter School of Springfield | C112: Springfield | D112: HMIII | E112: NA
A113: 490 | B113: Uphams Corner Charter School | C113: Boston | D113: C | E113: 2002
A114: 498 | B114: Youth Build Boston Charter School | C114: Boston | D114: C | E114: 1995
B115: Total Currently Operating Commonwealths: | D115: 74
B116: Total Currently Operating Horace Manns (I): | D116: 2
B117: Total Currently Operating Horace Manns (II): | D117: 0
B118: Total Currently Operating Horace Manns (III): | D118: 5
B119: Total Charters Approved but not yet open: | D119: 0
B120: Total Charters Closed or Never Opened Since 1994: | D120: 31
B121: Total Charters Granted by BOE Since 1994: | D121: 112
A122: Updated August 2019

Sheet Summary
D2: Choose Charter School:
N3: Last Updated: May 2020
N4: Updated with first amendment collection (12/3/20 - 5/1/20)
D7: 3
D9: ='Financial Statements'!C1&" - "&VLOOKUP(LEA, DistrictLocation, 3, FALSE)&" - Est. "&VLOOKUP(LEA, CHARTERS, 5, FALSE) -> Academy of the Pacific Rim Charter Public School - Boston - Est. 1997
D11: 5-Year Financial Summary
D15: Financial Metric | G15: FY09 | H15: FY10 | I15: FY11 | J15: FY12 | K15: FY13 | L15: FY14 | M15: FY15 | N15: FY16 | O15: FY17 | P15: FY18 | Q15: FY19 | S15: 5 year AVG | T15: FY19 MA AVG
D16: 1. Current Ratio is a measure of operational efficiency and short-term financial health. CR is calculated as current assets divided by current liabilities. | G16: =IF(Metrics!C12="X","p", IF(Metrics!C15="X","t", IF(Metrics!C18="X","q", " "))) -> p | H16: =IF(Metrics!D12="X","p", IF(Metrics!D15="X","t", IF(Metrics!D18="X","q", " "))) -> p | I16: =IF(Metrics!E12="X","p", IF(Metrics!E15="X","t", IF(Metrics!E18="X","q", " "))) -> p | J16: =IF(Metrics!F12="X","p", IF(Metrics!F15="X","t", IF(Metrics!F18="X","q", " "))) -> p | K16: =IF(Metrics!G12="X","p", IF(Metrics!G15="X","t", IF(Metrics!G18="X","q", " "))) -> p | L16: =IF(Metrics!H12="X","p", IF(Metrics!H15="X","t", IF(Metrics!H18="X","q", " "))) ->  | M16: =IF(Metrics!I12="X","p", IF(Metrics!I15="X","t", IF(Metrics!I18="X","q", " "))) -> p | N16: =IF(Metrics!J12="X","p", IF(Metrics!J15="X","t", IF(Metrics!J18="X","q", " "))) -> p | O16: =IF(Metrics!K12="X","p", IF(Metrics!K15="X","t", IF(Metrics!K18="X","q", " "))) -> p | P16: =IF(Metrics!L12="X","p", IF(Metrics!L15="X","t", IF(Metrics!L18="X","q", " "))) -> p | Q16: =IF(Metrics!M12="X","p", IF(Metrics!M15="X","t", IF(Metrics!M18="X","q", " "))) -> p | S16: =IF(Metrics!N12="X","p", IF(Metrics!N15="X","t", IF(Metrics!N18="X","q", " "))) -> p | T16: =IF(Metrics!O12="X","p", IF(Metrics!O15="X","t", IF(Metrics!O18="X","q", " "))) -> p
G17: =Metrics!$U$7 -> 5.062348248 | H17: =Metrics!$V$7 -> 3.33290347 | I17: =Metrics!$W$7 -> 3.653426766 | J17: =Metrics!$X$7 -> 3.835767123 | K17: =Metrics!$Y$7 -> 4.111373434 | L17: =Metrics!$Z$7 ->  | M17: =Metrics!$AA$7 -> 3.625929631 | N17: =Metrics!$AB$7 -> 3.690695152 | O17: =Metrics!$AC$7 -> 4.76486026 | P17: =Metrics!$AD$7 -> 4.43413655 | Q17: =Metrics!$AE$7 -> 4.937038536 | S17: =Metrics!$AF$7 -> 4.290532026 | T17: =Metrics!$AG$7 -> 3.609948376
D18: 2. Unrestricted Days Cash indicates how many days a school can pay its expenses without another inflow of cash. Calculated as Cash and Cash Equivalents divided by ([Total Expenses-Depreciated Expenses]/365). *Important Note: This is based on the current monthly tuition payment schedule. | G18: =IF(Metrics!C26="X","p", IF(Metrics!C29="X","t", IF(Metrics!C32="X","q", " "))) ->  | H18: =IF(Metrics!D26="X","p", IF(Metrics!D29="X","t", IF(Metrics!D32="X","q", " "))) ->  | I18: =IF(Metrics!E26="X","p", IF(Metrics!E29="X","t", IF(Metrics!E32="X","q", " "))) ->  | J18: =IF(Metrics!F26="X","p", IF(Metrics!F29="X","t", IF(Metrics!F32="X","q", " "))) ->  | K18: =IF(Metrics!G26="X","p", IF(Metrics!G29="X","t", IF(Metrics!G32="X","q", " "))) ->  | L18: =IF(Metrics!H26="X","p", IF(Metrics!H29="X","t", IF(Metrics!H32="X","q", " "))) ->  | M18: =IF(Metrics!I26="X","p", IF(Metrics!I29="X","t", IF(Metrics!I32="X","q", " "))) -> p | N18: =IF(Metrics!J26="X","p", IF(Metrics!J29="X","t", IF(Metrics!J32="X","q", " "))) -> p | O18: =IF(Metrics!K26="X","p", IF(Metrics!K29="X","t", IF(Metrics!K32="X","q", " "))) -> p | P18: =IF(Metrics!L26="X","p", IF(Metrics!L29="X","t", IF(Metrics!L32="X","q", " "))) -> p | Q18: * | S18: =IF(Metrics!N26="X","p", IF(Metrics!N29="X","t", IF(Metrics!N32="X","q", " "))) -> p | T18: =IF(Metrics!O26="X","p", IF(Metrics!O29="X","t", IF(Metrics!O32="X","q", " "))) -> p
G19: =Metrics!$U$21 ->  | H19: =Metrics!$V$21 ->  | I19: =Metrics!$W$21 ->  | J19: =Metrics!$X$21 ->  | K19: =Metrics!$Y$21 ->  | L19: =Metrics!$Z$21 ->  | M19: =Metrics!$AA$21 -> 140.1322585 | N19: =Metrics!$AB$21 -> 134.7470703 | O19: =Metrics!$AC$21 -> 111.0744495 | P19: =Metrics!$AD$21 -> 134.1298661 | Q19: =Metrics!$AE$21 -> 117.4659779 | S19: =Metrics!$AF$21 -> 130.0209111 | T19: =Metrics!AG21 -> 66.94362819
D20: 3. Percentage of Program Paid by Tuition measures the percentage of the school's total expenses that are funded entirely by tuition. Calculated as (Tuition + In-Kind Contributions) divided by Total Expenses. | G20: =IF(Metrics!C40="X","p", IF(Metrics!C43="X","t", IF(Metrics!C46="X","q", " "))) -> p | H20: =IF(Metrics!D40="X","p", IF(Metrics!D43="X","t", IF(Metrics!D46="X","q", " "))) -> p | I20: =IF(Metrics!E40="X","p", IF(Metrics!E43="X","t", IF(Metrics!E46="X","q", " "))) -> p | J20: =IF(Metrics!F40="X","p", IF(Metrics!F43="X","t", IF(Metrics!F46="X","q", " "))) -> p | K20: =IF(Metrics!G40="X","p", IF(Metrics!G43="X","t", IF(Metrics!G46="X","q", " "))) -> p | L20: =IF(Metrics!H40="X","p", IF(Metrics!H43="X","t", IF(Metrics!H46="X","q", " "))) ->  | M20: =IF(Metrics!I40="X","p", IF(Metrics!I43="X","t", IF(Metrics!I46="X","q", " "))) -> p | N20: =IF(Metrics!J40="X","p", IF(Metrics!J43="X","t", IF(Metrics!J46="X","q", " "))) -> p | O20: =IF(Metrics!K40="X","p", IF(Metrics!K43="X","t", IF(Metrics!K46="X","q", " "))) -> t | P20: =IF(Metrics!L40="X","p", IF(Metrics!L43="X","t", IF(Metrics!L46="X","q", " "))) -> p | Q20: =IF(Metrics!M40="X","p", IF(Metrics!M43="X","t", IF(Metrics!M46="X","q", " "))) -> p | S20: =IF(Metrics!N40="X","p", IF(Metrics!N43="X","t", IF(Metrics!N46="X","q", " "))) -> p | T20: =IF(Metrics!O40="X","p", IF(Metrics!O43="X","t", IF(Metrics!O46="X","q", " "))) -> p
G21: =IF(Metrics!U35>100%, 100%, Metrics!U35) -> 0.9327176772 | H21: =IF(Metrics!V35>100%, 100%, Metrics!V35) -> 0.968001701 | I21: =IF(Metrics!W35>100%, 100%, Metrics!W35) -> 0.9753032516 | J21: =IF(Metrics!X35>100%, 100%, Metrics!X35) -> 0.9387595289 | K21: =IF(Metrics!Y35>100%, 100%, Metrics!Y35) -> 0.9569967917 | L21: =IF(Metrics!Z35>100%, 100%, Metrics!Z35) ->  | M21: =IF(Metrics!AA35>100%, 100%, Metrics!AA35) -> 0.9595013329 | N21: =IF(Metrics!AB35>100%, 100%, Metrics!AB35) -> 0.9637592406 | O21: =IF(Metrics!AC35>100%, 100%, Metrics!AC35) -> 0.8693279988 | P21: =IF(Metrics!AD35>100%, 100%, Metrics!AD35) -> 0.9290970022 | Q21: =IF(Metrics!AE35>100%, 100%, Metrics!AE35) -> 0.93590208 | S21: =IF(Metrics!AF35>100%, 100%, Metrics!AF35) -> 0.9315175309 | T21: =IF(Metrics!AG35>100%, 100%, Metrics!AG35) -> 0.9134790953
D22: 4. Percentage of Program Paid by Tuition & Federal Grants measures the percentage of the school's total expenses that are funded by tuition and federal grants. Calculated as (Tuition + In-Kind Contributions + Federal Grants) divided by Total Expenses. | G22: =IF(Metrics!C97="X","p", IF(Metrics!C100="X","t", IF(Metrics!C103="X","q", " "))) -> p | H22: =IF(Metrics!D97="X","p", IF(Metrics!D100="X","t", IF(Metrics!D103="X","q", " "))) -> p | I22: =IF(Metrics!E97="X","p", IF(Metrics!E100="X","t", IF(Metrics!E103="X","q", " "))) -> p | J22: =IF(Metrics!F97="X","p", IF(Metrics!F100="X","t", IF(Metrics!F103="X","q", " "))) -> p | K22: =IF(Metrics!G97="X","p", IF(Metrics!G100="X","t", IF(Metrics!G103="X","q", " "))) -> p | L22: =IF(Metrics!H97="X","p", IF(Metrics!H100="X","t", IF(Metrics!H103="X","q", " "))) ->  | M22: =IF(Metrics!I97="X","p", IF(Metrics!I100="X","t", IF(Metrics!I103="X","q", " "))) -> p | N22: =IF(Metrics!J97="X","p", IF(Metrics!J100="X","t", IF(Metrics!J103="X","q", " "))) -> p | O22: =IF(Metrics!K97="X","p", IF(Metrics!K100="X","t", IF(Metrics!K103="X","q", " "))) -> p | P22: =IF(Metrics!L97="X","p", IF(Metrics!L100="X","t", IF(Metrics!L103="X","q", " "))) -> p | Q22: =IF(Metrics!M97="X","p", IF(Metrics!M100="X","t", IF(Metrics!M103="X","q", " "))) -> p | S22: =IF(Metrics!N97="X","p", IF(Metrics!N100="X","t", IF(Metrics!N103="X","q", " "))) -> p | T22: =IF(Metrics!O97="X","p", IF(Metrics!O100="X","t", IF(Metrics!O103="X","q", " "))) -> p
G23: =IF(Metrics!$U$92>100%, 100%, Metrics!$U$92) -> 0.9945448913 | H23: =IF(Metrics!V92>100%, 100%, Metrics!V92) -> 1 | I23: =IF(Metrics!W92>100%, 100%, Metrics!W92) -> 1 | J23: =IF(Metrics!X92>100%, 100%, Metrics!X92) -> 0.9937772068 | K23: =IF(Metrics!Y92>100%, 100%, Metrics!Y92) -> 1 | L23: =IF(Metrics!Z92>100%, 100%, Metrics!Z92) ->  | M23: =IF(Metrics!AA92>100%, 100%, Metrics!AA92) -> 0.9958483692 | N23: =IF(Metrics!AB92>100%, 100%, Metrics!AB92) -> 0.9969976261 | O23: =IF(Metrics!AC92>100%, 100%, Metrics!AC92) -> 0.9000729842 | P23: =IF(Metrics!AD92>100%, 100%, Metrics!AD92) -> 0.9641430771 | Q23: =IF(Metrics!AE92>100%, 100%, Metrics!AE92) -> 0.971988813 | S23: =IF(Metrics!AF92>100%, 100%, Metrics!AF92) -> 0.9658101739 | T23: =IF(Metrics!AG92>100%, 100%, Metrics!AG92) -> 0.9583617243
D24: 5. Percentage of Total Revenue Expended on Facilities measures the percentage of Total Revenue spent on Operation & Maintenance and Non-Operating Financing Expenses of Plant. Calculated as Operation & Maintenance plus Non-Operating Financing Expenses of Plant divided by Total Revenues. | G24: =IF(Metrics!C53="X","p", IF(Metrics!C56="X","t", IF(Metrics!C59="X","q", " "))) -> t | H24: =IF(Metrics!D53="X","p", IF(Metrics!D56="X","t", IF(Metrics!D59="X","q", " "))) -> t | I24: =IF(Metrics!E53="X","p", IF(Metrics!E56="X","t", IF(Metrics!E59="X","q", " "))) -> t | J24: =IF(Metrics!F53="X","p", IF(Metrics!F56="X","t", IF(Metrics!F59="X","q", " "))) -> t | K24: =IF(Metrics!G53="X","p", IF(Metrics!G56="X","t", IF(Metrics!G59="X","q", " "))) -> t | L24: =IF(Metrics!H53="X","p", IF(Metrics!H56="X","t", IF(Metrics!H59="X","q", " "))) ->  | M24: =IF(Metrics!I53="X","p", IF(Metrics!I56="X","t", IF(Metrics!I59="X","q", " "))) -> t | N24: =IF(Metrics!J53="X","p", IF(Metrics!J56="X","t", IF(Metrics!J59="X","q", " "))) -> t | O24: =IF(Metrics!K53="X","p", IF(Metrics!K56="X","t", IF(Metrics!K59="X","q", " "))) -> t | P24: =IF(Metrics!L53="X","p", IF(Metrics!L56="X","t", IF(Metrics!L59="X","q", " "))) -> p | Q24: =IF(Metrics!M53="X","p", IF(Metrics!M56="X","t", IF(Metrics!M59="X","q", " "))) -> p | S24: =IF(Metrics!N53="X","p", IF(Metrics!N56="X","t", IF(Metrics!N59="X","q", " "))) -> t | T24: =IF(Metrics!O53="X","p", IF(Metrics!O56="X","t", IF(Metrics!O59="X","q", " "))) -> p
G25: =Metrics!$U$49 -> 0.2616891167 | H25: =Metrics!$V$49 -> 0.2492349143 | I25: =Metrics!$W$49 -> 0.2310031064 | J25: =Metrics!$X$49 -> 0.2092392603 | K25: =Metrics!$Y$49 -> 0.1958499879 | L25: =Metrics!$Z$49 ->  | M25: =Metrics!$AA$49 -> 0.1947946677 | N25: =Metrics!$AB$49 -> 0.1788247226 | O25: =Metrics!$AC$49 -> 0.221947689 | P25: =Metrics!AD49 -> 0.1385891134 | Q25: =Metrics!AE49 -> 0.1375177578 | S25: =Metrics!$AF$49 -> 0.1743347901 | T25: =Metrics!AG49 -> 0.1390657405
D26: 6. Change in Net Assets Percentage measures a school's cash management efficiency. Calculated as Change in Net Assets divided by Total Revenue. | G26: =IF(Metrics!C67="X","p", IF(Metrics!C70="X","t", IF(Metrics!C73="X","q", " "))) -> p | H26: =IF(Metrics!D67="X","p", IF(Metrics!D70="X","t", IF(Metrics!D73="X","q", " "))) -> p | I26: =IF(Metrics!E67="X","p", IF(Metrics!E70="X","t", IF(Metrics!E73="X","q", " "))) -> p | J26: =IF(Metrics!F67="X","p", IF(Metrics!F70="X","t", IF(Metrics!F73="X","q", " "))) -> p | K26: =IF(Metrics!G67="X","p", IF(Metrics!G70="X","t", IF(Metrics!G73="X","q", " "))) -> p | L26: =IF(Metrics!H67="X","p", IF(Metrics!H70="X","t", IF(Metrics!H73="X","q", " "))) ->  | M26: =IF(Metrics!I67="X","p", IF(Metrics!I70="X","t", IF(Metrics!I73="X","q", " "))) -> p | N26: =IF(Metrics!J67="X","p", IF(Metrics!J70="X","t", IF(Metrics!J73="X","q", " "))) -> p | O26: =IF(Metrics!K67="X","p", IF(Metrics!K70="X","t", IF(Metrics!K73="X","q", " "))) -> q | P26: =IF(Metrics!L67="X","p", IF(Metrics!L70="X","t", IF(Metrics!L73="X","q", " "))) -> p | Q26: =IF(Metrics!M67="X","p", IF(Metrics!M70="X","t", IF(Metrics!M73="X","q", " "))) -> q | S26: =IF(Metrics!N67="X","p", IF(Metrics!N70="X","t", IF(Metrics!N73="X","q", " "))) -> t | T26: =IF(Metrics!O67="X","p", IF(Metrics!O70="X","t", IF(Metrics!O73="X","q", " "))) -> p
G27: =Metrics!$U$62 -> 0.03224910288 | H27: =Metrics!$V$62 -> 0.08513206345 | I27: =Metrics!$W$62 -> 0.08553559099 | J27: =Metrics!$X$62 -> 0.03771463736 | K27: =Metrics!$Y$62 -> 0.04852346399 | L27: =Metrics!$Z$62 ->  | M27: =Metrics!$AA$62 -> 0.01824820597 | N27: =Metrics!$AB$62 -> 0.02908747242 | O27: =Metrics!$AC$62 -> -0.06393562069 | P27: =Metrics!AD62 -> 0.04051594583 | Q27: =Metrics!AE62 -> -0.02524826349 | S27: =Metrics!$AF$62 -> -0.0002664519918 | T27: =Metrics!AG62 -> 0.00390427247
D28: 7. Debt to Asset Ratio measures the extent to which the school relies on borrowed funds to finance its operations. Calculated as Total Liabilities divided by Total Assets. | G28: =IF(Metrics!C81="X","p", IF(Metrics!C84="X","t", IF(Metrics!C87="X","q", " "))) -> p | H28: =IF(Metrics!D81="X","p", IF(Metrics!D84="X","t", IF(Metrics!D87="X","q", " "))) -> p | I28: =IF(Metrics!E81="X","p", IF(Metrics!E84="X","t", IF(Metrics!E87="X","q", " "))) -> p | J28: =IF(Metrics!F81="X","p", IF(Metrics!F84="X","t", IF(Metrics!F87="X","q", " "))) -> p | K28: =IF(Metrics!G81="X","p", IF(Metrics!G84="X","t", IF(Metrics!G87="X","q", " "))) -> p | L28: =IF(Metrics!H81="X","p", IF(Metrics!H84="X","t", IF(Metrics!H87="X","q", " "))) ->  | M28: =IF(Metrics!I81="X","p", IF(Metrics!I84="X","t", IF(Metrics!I87="X","q", " "))) -> p | N28: =IF(Metrics!J81="X","p", IF(Metrics!J84="X","t", IF(Metrics!J87="X","q", " "))) -> p | O28: =IF(Metrics!K81="X","p", IF(Metrics!K84="X","t", IF(Metrics!K87="X","q", " "))) -> p | P28: =IF(Metrics!L81="X","p", IF(Metrics!L84="X","t", IF(Metrics!L87="X","q", " "))) -> p | Q28: =IF(Metrics!M81="X","p", IF(Metrics!M84="X","t", IF(Metrics!M87="X","q", " "))) -> p | S28: =IF(Metrics!N81="X","p", IF(Metrics!N84="X","t", IF(Metrics!N87="X","q", " "))) -> p | T28: =IF(Metrics!O81="X","p", IF(Metrics!O84="X","t", IF(Metrics!O87="X","q", " "))) -> p
G29: =Metrics!$U$76 -> 0.8033452031 | H29: =Metrics!$V$76 -> 0.780786845 | I29: =Metrics!$W$76 -> 0.7582112849 | J29: =Metrics!$X$76 -> 0.7456333499 | K29: =Metrics!$Y$76 -> 0.7306524556 | L29: =Metrics!$Z$76 ->  | M29: =Metrics!$AA$76 -> 0.693882779 | N29: =Metrics!$AB$76 -> 0.6810861349 | O29: =Metrics!$AC$76 -> 0.7046408584 | P29: =Metrics!AD76 -> 0.6921941678 | Q29: =Metrics!AE76 -> 0.7009776936 | S29: =Metrics!$AF$76 -> 0.6945563267 | T29: =Metrics!AG76 -> 0.5519898253
D31: Enrollment | G31: =VLOOKUP(LEA, SIMS08_09, 19, FALSE) -> 474 | H31: =VLOOKUP(LEA, SIMS09_10, 19, FALSE) -> 482 | I31: =VLOOKUP(LEA, SIMS10_11, 19, FALSE) -> 484 | J31: =VLOOKUP(LEA, SIMS11_12, 19, FALSE) -> 500 | K31: =VLOOKUP(LEA, SIMS12_13, 5, FALSE) -> 503 | L31: =VLOOKUP(LEA, SIMS13_14, 5, FALSE) -> 498 | M31: =VLOOKUP(LEA, SIMS14_15, 3, FALSE) -> 519 | N31: =VLOOKUP(LEA, SIMS15_16, 3, FALSE) -> 524 | O31: =VLOOKUP(LEA, SIMS16_17, 3, FALSE) -> 527 | P31: =VLOOKUP(LEA, SIMS17_18, 3, FALSE) -> 524 | Q31: =VLOOKUP(LEA, SIMS18_19, 3, FALSE) -> 526 | S31: =AVERAGE(IF(ISNUMBER(M31:Q31),M31:Q31)) -> 523.5 | T31: =AVERAGE(TOTALENROLL18) -> 565.575
D32: Total Revenues | G32: ='Financial Statements'!G85 -> 6371247 | H32: ='Financial Statements'!H85 -> 6528680 | I32: ='Financial Statements'!I85 -> 6995170 | J32: ='Financial Statements'!J85 -> 7367776 | K32: ='Financial Statements'!K85 -> 7594532 | L32: ='Financial Statements'!L85 -> 0 | M32: ='Financial Statements'!M85 -> 9247594 | N32: ='Financial Statements'!N85 -> 9975841 | O32: ='Financial Statements'!O85 -> 10683184 | P32: ='Financial Statements'!P85 -> 11394452 | Q32: ='Financial Statements'!Q85 -> 12206030.53 | S32: =AVERAGE(IF(ISNUMBER(M32:Q32),M32:Q32)) -> 10701420.31 | T32: =AVERAGEIF(INC19_RAW!F3:F3485, "TOTAL REVENUES",INC19_RAW!G3:G3485) -> 11237872.05
D33: Total Expenditures | G33: ='Financial Statements'!G97 -> 6165780 | H33: ='Financial Statements'!H97 -> 5972880 | I33: ='Financial Statements'!I97 -> 6396834 | J33: ='Financial Statements'!J97 -> 7089903 | K33: ='Financial Statements'!K97 -> 7226019 | L33: ='Financial Statements'!L97 -> 0 | M33: ='Financial Statements'!M97 -> 9078842 | N33: ='Financial Statements'!N97 -> 9685669 | O33: ='Financial Statements'!O97 -> 11439459 | P33: ='Financial Statements'!P97 -> 11341213 | Q33: ='Financial Statements'!Q97 -> 11897696.6 | S33: =AVERAGE(IF(ISNUMBER(M33:Q33),M33:Q33)) -> 10688575.92 | T33: =AVERAGEIF(INC19_RAW!F3:F3485, "TOTAL EXPENSES",INC19_RAW!G3:G3485) -> 10855657.98
D34: Total Net Assets | G34: ='Financial Statements'!G52 -> 4290271 | H34: ='Financial Statements'!H52 -> 4846072 | I34: ='Financial Statements'!I52 -> 5444408 | J34: ='Financial Statements'!J52 -> 5722281 | K34: ='Financial Statements'!K52 -> 6090794 | L34: ='Financial Statements'!L52 -> 0 | M34: ='Financial Statements'!M52 -> 7089823 | N34: ='Financial Statements'!N52 -> 7379995 | O34: ='Financial Statements'!O52 -> 6696959 | P34: ='Financial Statements'!P52 -> 7083740 | Q34: ='Financial Statements'!Q52 -> 6775559 | S34: =AVERAGE(IF(ISNUMBER(M34:Q34),M34:Q34)) -> 7005215.2 | T34: =AVERAGEIF(BAL19_RAW!F3:F3323, "TOTAL NET ASSETS",BAL19_RAW!G3:G3323) -> 4468957.938
D36: Financial Metrics Comments from School (optional):
D37: =VLOOKUP(LEA, COMMENTS, 9, FALSE) -> FY17 Comment - FY2017 Financial Metric No. 6, Change in Net Assets Percentage: during the fiscal year, the School refinanced existing long-term debt ($9.8 MM) with favorable terms and lower interest rates. Auditing standards required that loan acquisition costs and bond discounts from the original FY2006 bond financing (which had not previously been amortized) be fully expensed during the then current fiscal year. This one time, extraordinary expense item in the amount of ($835,545) resulted in a reported decrease in Net Assets (net loss) for the fiscal year. If this expense item were excluded from the calculation, the School's Change in Net Assets for FY17 would be positive $40,367 (and the Metric would categorized as Low Risk).
D39: Audit Indicator | G39: FY09 | H39: FY10 | I39: FY11 | J39: FY12 | K39: FY13 | L39: FY14 | M39: FY15 | N39: FY16 | O39: FY17 | P39: FY18 | Q39: FY19 | S39: Repeat Finding from FY19
D40: A. Did the audit include an unqualified opinion? | I40: =VLOOKUP(LEA&"A", AUDIT, 4, FALSE) -> Y | J40: =VLOOKUP(LEA, FY12Audit, 5, FALSE) -> Y | K40: =VLOOKUP(LEA&"A", AUDIT, 5, FALSE) -> Y | L40: =VLOOKUP(LEA&"A", AUDIT14, 2, FALSE) -> Y | M40: =VLOOKUP(LEA, AUDIT15, 18, FALSE) -> Y | N40: =VLOOKUP(LEA, AUDIT16, 3, FALSE) -> Y | O40: =VLOOKUP(LEA, AUDIT17, 3, FALSE) -> Y | P40: =VLOOKUP(LEA, AUDIT18, 3, FALSE) -> Y | Q40: =VLOOKUP(LEA, AUDIT19, 3, FALSE) -> Y | S40: =IF(P40&Q40="NN", "Same/Similar Finding in FY18", IF(P40&Q40="NY", "Finding Resolved", IF(P40&Q40="YY", "N/A", "New Finding in FY19"))) -> N/A
D41: B. Is the audit free of findings of Material Weakness? | I41: =VLOOKUP(LEA&"B", AUDIT, 4, FALSE) -> Y | J41: =VLOOKUP(LEA, FY12Audit, 10, FALSE) -> Y | K41: =VLOOKUP(LEA&"B", AUDIT, 5, FALSE) -> Y | L41: =VLOOKUP(LEA&"B", AUDIT14, 2, FALSE) -> Y | M41: =VLOOKUP(LEA, AUDIT15, 19, FALSE) -> Y | N41: =VLOOKUP(LEA, AUDIT16, 4, FALSE) -> Y | O41: =VLOOKUP(LEA, AUDIT17, 4, FALSE) -> Y | P41: =VLOOKUP(LEA, AUDIT18, 4, FALSE) -> Y | Q41: =VLOOKUP(LEA, AUDIT19, 4, FALSE) -> Y | S41: =IF(P41&Q41="NN", "Same/Similar Finding in FY18", IF(P41&Q41="NY", "Finding Resolved", IF(P41&Q41="YY", "N/A", "New Finding in FY19"))) -> N/A
D42: C. Is the audit free of findings of Significant Deficiency? | I42: =VLOOKUP(LEA&"C", AUDIT, 4, FALSE) -> Y | J42: =VLOOKUP(LEA, FY12Audit, 11, FALSE) -> Y | K42: =VLOOKUP(LEA&"C", AUDIT, 5, FALSE) -> Y | L42: =VLOOKUP(LEA&"C", AUDIT14, 2, FALSE) -> Y | M42: =VLOOKUP(LEA, AUDIT15, 21, FALSE) -> Y | N42: =VLOOKUP(LEA, AUDIT16, 5, FALSE) -> Y | O42: =VLOOKUP(LEA, AUDIT17, 5, FALSE) -> Y | P42: =VLOOKUP(LEA, AUDIT18, 5, FALSE) -> Y | Q42: =VLOOKUP(LEA, AUDIT19, 5, FALSE) -> Y | S42: N/A
D43: D. Is the audit free of Instances of Noncompliance under GAAS? | I43: =VLOOKUP(LEA&"D", AUDIT, 4, FALSE) -> Y | J43: =VLOOKUP(LEA, FY12Audit, 12, FALSE) -> Y | K43: =VLOOKUP(LEA&"D", AUDIT, 5, FALSE) -> Y | L43: =VLOOKUP(LEA&"D", AUDIT14, 2, FALSE) -> Y | M43: =VLOOKUP(LEA, AUDIT15, 23, FALSE) -> Y | N43: =VLOOKUP(LEA, AUDIT16, 6, FALSE) -> Y | O43: =VLOOKUP(LEA, AUDIT17, 6, FALSE) -> Y | P43: =VLOOKUP(LEA, AUDIT18, 6, FALSE) -> Y | Q43: =VLOOKUP(LEA, AUDIT19, 6, FALSE) -> Y | S43: N/A
D44: E. Is the audit free of Questioned Costs? | I44: =VLOOKUP(LEA&"E", AUDIT, 4, FALSE) -> Y | J44: =VLOOKUP(LEA, FY12Audit, 14, FALSE) -> Y | K44: =VLOOKUP(LEA&"E", AUDIT, 5, FALSE) -> Y | L44: =VLOOKUP(LEA&"E", AUDIT14, 2, FALSE) -> Y | M44: =VLOOKUP(LEA, AUDIT15, 25, FALSE) -> Y | N44: =VLOOKUP(LEA, AUDIT16, 7, FALSE) -> Y | O44: =VLOOKUP(LEA, AUDIT17, 7, FALSE) -> Y | P44: =VLOOKUP(LEA, AUDIT18, 7, FALSE) -> Y | Q44: =VLOOKUP(LEA, AUDIT19, 7, FALSE) -> Y | S44: N/A
D46: Audit Comments from School (optional):
D47: =VLOOKUP(LEA, COMMENTS, 10, FALSE) -> 0

Sheet Financial Statements
A1: LEA: | B1: =VLOOKUP(Summary!D7-1,ORDER, 2, FALSE) -> 412 | C1: =VLOOKUP(B1,CHAlea!B:C,2,FALSE) -> Academy of the Pacific Rim Charter Public School | J1: 5-Year Financial Statements Details
C2: =IF(C1="Greenfield Commonwealth Virtual School", "Virtual schools did not adopt an end of year financial report template (CSEOYFR) until FY15, therefore FY14 will appear incomplete.", "") ->  | F2: FY2008 | G2: FY2009 | H2: FY2010 | I2: FY2011 | J2: FY2012 | K2: FY2013 | M2: FY2015 | N2: FY2016 | O2: FY2017 | P2: FY2018 | Q2: FY2019
C3: ASSETS
C4: Current Assets
A5: 01 | C5: Cash and Cash Equivalents | F5: =VLOOKUP($B$1&$A5,BALANCE08,6,FALSE) -> 1953662 | G5: =VLOOKUP($B$1&$A5,BALANCE09,6,FALSE) -> 2240578 | H5: =VLOOKUP($B$1&$A5,BALANCE10,6,FALSE) -> 1932627 | I5: =VLOOKUP($B$1&$A5,BALANCE11,6,FALSE) -> 2444164 | J5: =VLOOKUP($B$1&$A5,BALANCE12,6,FALSE) -> 2570564 | K5: =VLOOKUP($B$1&A5,BALANCE13,6,FALSE) -> 2939202 | M5: =VLOOKUP($B$1&A5,BALANCE15,6,FALSE) -> 3258978 | N5: =VLOOKUP($B$1&A5,BALANCE16,6,FALSE) -> 3331467 | O5: =VLOOKUP($B$1&A5,BALANCE17,6,FALSE) -> 3303324 | P5: =VLOOKUP($B$1&A5,BALANCE18,6,FALSE) -> 3919974 | Q5: =VLOOKUP($B$1&A5,BALANCE19,6,FALSE) -> 3597119
A6: 02 | C6: Accounts Receivable net of doubtful accounts | F6: 0 | G6: 0 | H6: 9400 | I6: 0 | J6: 0 | K6: 0 | M6: 0 | N6: 0 | O6: 0 | P6: 0 | Q6: 821491
A7: 03 | C7: Grants Receivable - State | F7: 0 | G7: 0 | H7: 0 | I7: 0 | J7: 0 | K7: 30739 | M7: 0 | N7: 0 | O7: 0 | P7: 0 | Q7: 0
A8: 04 | C8: Grants Receivable - Federal | F8: 74871 | G8: 33015 | H8: 198253 | I8: 150544 | J8: 57633 | K8: 0 | M8: 39679 | N8: 184044 | O8: 345822 | P8: 92973 | Q8: 64068
A9: 05 | C9: Grants Receivable - Private | F9: 0 | G9: 0 | H9: 0 | I9: 0 | J9: 0 | K9: 0 | M9: 0 | N9: 0 | O9: 0 | P9: 0 | Q9: 0
A10: 06 | C10: Contributions Receivable | F10: 0 | G10: 0 | H10: 0 | I10: 0 | J10: 0 | K10: 0 | M10: 0 | N10: 0 | O10: 0 | P10: 0 | Q10: 0
A11: 07 | C11: Due from related parties | F11: 0 | G11: 0 | H11: 0 | I11: 0 | J11: 0 | K11: 0 | M11: 0 | N11: 0 | O11: 66688 | P11: 167225 | Q11: 0
A12: 08 | C12: Prepaid Expenses / Inventory | F12: 6861 | G12: 9440 | H12: 9087 | I12: 8740 | J12: 14484 | K12: 22011 | M12: 20595 | N12: 27796 | O12: 23440 | P12: 20268 | Q12: 13105
A13: 09 | C13: Short-Term Investments | F13: 0 | G13: 0 | H13: 0 | I13: 0 | J13: 0 | K13: 0 | M13: 0 | N13: 0 | O13: 0 | P13: 0 | Q13: 0
A14: 10 | C14: Deposit (Security, Other) | F14: 0 | G14: 0 | H14: 19000 | I14: 19000 | J14: 19000 | K14: 19000 | M14: 19000 | N14: 22030 | O14: 19000 | P14: 19040 | Q14: 19040
A15: 11 | C15: Restricted Current Assets | F15: 0 | G15: 0 | H15: 0 | I15: 0 | J15: 0 | K15: 0 | M15: 0 | N15: 0 | O15: 0 | P15: 0 | Q15: 0
A16: 12 | C16: Total Current Assets | F16: 2035394 | G16: 2283033 | H16: 2168367 | I16: 2622448 | J16: 2661681 | K16: 3010952 | M16: 3338252 | N16: 3565337 | O16: 3758274 | P16: 4219480 | Q16: 4514823
C18: Capital Assets
A19: 13 | C19: - Land and Buildings | F19: =VLOOKUP($B$1&$A19,BALANCE08,6,FALSE) -> 5000000 | G19: =VLOOKUP($B$1&$A19,BALANCE09,6,FALSE) -> 5000000 | H19: =VLOOKUP($B$1&$A19,BALANCE10,6,FALSE) -> 5000000 | I19: =VLOOKUP($B$1&$A19,BALANCE11,6,FALSE) -> 12363300 | J19: =VLOOKUP($B$1&$A19,BALANCE12,6,FALSE) -> 13585875 | K19: =VLOOKUP($B$1&A19,BALANCE13,6,FALSE) -> 5000000 | M19: 5000000 | N19: =VLOOKUP($B$1&A19,BALANCE16,6,FALSE) -> 5000000 | O19: =VLOOKUP($B$1&A19,BALANCE17,6,FALSE) -> 5000000 | P19: =VLOOKUP($B$1&A19,BALANCE18,6,FALSE) -> 5000000 | Q19: =VLOOKUP($B$1&A19,BALANCE19,6,FALSE) -> 5000000
A20: 14 | C20: - Building/Leasehold Improvement | F20: 7102561 | G20: 7214942 | H20: 7244430 | I20: 0 | J20: 0 | K20: 8765575 | M20: 10149957 | N20: 10360446 | O20: 10670827 | P20: 11923113 | Q20: 12030295
A21: 15 | C21: - Furniture and Equipment | F21: 670268 | G21: 745551 | H21: 916126 | I21: 1070284 | J21: 1186293 | K21: 1270649 | M21: 1623514 | N21: 1790246 | O21: 1994916 | P21: 2149706 | Q21: 2010697
A22: 16 | C22: - Less Accumulated Depreciation | F22: -1630557 | G22: -2057672 | H22: -2553300 | I22: -3045403 | J22: -3495925 | K22: -3930869 | M22: -5078747 | N22: -5740209 | O22: -6410020 | P22: -7084030 | Q22: -7495480
A23: 17 | C23: Net Capital Assets | F23: 11142272 | G23: 10902821 | H23: 10607256 | I23: 10388181 | J23: 11276243 | K23: 11105355 | M23: 11694724 | N23: 11410483 | O23: 11255723 | P23: 11988789 | Q23: 11545512
A24: 18 | C24: Restricted Noncurrent Assets | F24: 6429801 | G24: 6532241 | H24: 7374020 | I24: 7690697 | J24: 6883517 | K24: 6963219 | M24: 6876165 | N24: 7055002 | O24: 7306676 | P24: 6223173 | Q24: 6508221
A25: 19 | C25: Long-Term Investments | F25: 0 | G25: 0 | H25: 0 | I25: 0 | J25: 0 | K25: 0 | M25: 0 | N25: 0 | O25: 0 | P25: 408418 | Q25: 0
A26: 20 | C26: Building Acquisition / Financing Costs / Deferred Expenses | F26: 2239297 | G26: 2098159 | H26: 1957023 | I26: 1815887 | J26: 1674751 | K26: 1533615 | M26: 1251343 | N26: 1110207 | O26: 353279 | P26: 0 | Q26: 90486
A27: 21 | C27: Long-Term Grants / Contributions Receivable | F27: 0 | G27: 0 | H27: 0 | I27: 0 | J27: 0 | K27: 0 | M27: 0 | N27: 0 | O27: 0 | P27: 173804 | Q27: 0
A28: 22 | C28: Total Noncurrent Assets | F28: 19811370 | G28: 19533221 | H28: 19938299 | I28: 19894765 | J28: 19834511 | K28: 19602189 | M28: 19822232 | N28: 19575692 | O28: 18915678 | P28: 18794184 | Q28: 18144219
A29: 23 | C29: Total Assets | F29: 21846764 | G29: 21816254 | H29: 22106666 | I29: 22517213 | J29: 22496192 | K29: 22613141 | M29: 23160484 | N29: 23141029 | O29: 22673952 | P29: 23013664 | Q29: 22659042
C31: LIABILITIES AND NET ASSETS
C32: Current Liabilities
A33: 24 | C33: Accounts Payable | F33: =VLOOKUP($B$1&$A33,BALANCE08,6,FALSE) -> 67684 | G33: =VLOOKUP($B$1&$A33,BALANCE09,6,FALSE) -> 34499 | H33: =VLOOKUP($B$1&$A33,BALANCE10,6,FALSE) -> 36355 | I33: =VLOOKUP($B$1&$A33,BALANCE11,6,FALSE) -> 31231 | J33: =VLOOKUP($B$1&$A33,BALANCE12,6,FALSE) -> 12428 | K33: =VLOOKUP($B$1&A33,BALANCE13,6,FALSE) -> 24995 | M33: =VLOOKUP($B$1&A33,BALANCE15,6,FALSE) -> 86300 | N33: =VLOOKUP($B$1&A33,BALANCE16,6,FALSE) -> 60701 | O33: =VLOOKUP($B$1&A33,BALANCE17,6,FALSE) -> 103734 | P33: =VLOOKUP($B$1&A33,BALANCE18,6,FALSE) -> 186868 | Q33: =VLOOKUP($B$1&A33,BALANCE19,6,FALSE) -> 71664
A34: 25 | C34: Accrued Expenses / Accrued Payroll | F34: 352565 | G34: 360910 | H34: 374239 | I34: 431574 | J34: 406483 | K34: 417352 | M34: 504361 | N34: 550333 | O34: 481632 | P34: 554764 | Q34: 626158
A35: 26 | C35: Deferred Revenue | F35: 0 | G35: 0 | H35: 0 | I35: 0 | J35: 0 | K35: 0 | M35: 0 | N35: 0 | O35: 0 | P35: 0 | Q35: 0
A36: 27 | C36: Due to related parties | F36: 0 | G36: 0 | H36: 0 | I36: 0 | J36: 0 | K36: 0 | M36: 0 | N36: 0 | O36: 0 | P36: 0 | Q36: 0
A37: 28 | C37: Current Debt Payable | F37: 56711 | G37: 55574 | H37: 240000 | I37: 255000 | J37: 275000 | K37: 290000 | M37: 330000 | N37: 355000 | O37: 203382 | P37: 209958 | Q37: 216658
A38: 29 | C38: Current Lease Obligations Payable | F38: 0 | G38: 0 | H38: 0 | I38: 0 | J38: 0 | K38: 0 | M38: 0 | N38: 0 | O38: 0 | P38: 0 | Q38: 0
A39: 30 | C39: Total Current Liabilities | F39: 476960 | G39: 450983 | H39: 650594 | I39: 717805 | J39: 693911 | K39: 732347 | M39: 920661 | N39: 966034 | O39: 788748 | P39: 951590 | Q39: 914480
C40: Noncurrent Liabilities
A41: 31 | C41: Noncurrent Lease Obligations | F41: =VLOOKUP($B$1&$A41,BALANCE08,6,FALSE) -> 0 | G41: =VLOOKUP($B$1&$A41,BALANCE09,6,FALSE) -> 0 | H41: =VLOOKUP($B$1&$A41,BALANCE10,6,FALSE) -> 0 | I41: =VLOOKUP($B$1&$A41,BALANCE11,6,FALSE) -> 0 | J41: =VLOOKUP($B$1&$A41,BALANCE12,6,FALSE) -> 0 | K41: =VLOOKUP($B$1&A41,BALANCE13,6,FALSE) -> 0 | M41: 0 | N41: =VLOOKUP($B$1&A41,BALANCE16,6,FALSE) -> 0 | O41: =VLOOKUP($B$1&A41,BALANCE17,6,FALSE) -> 0 | P41: 0 | Q41: =VLOOKUP($B$1&A41,BALANCE19,6,FALSE) -> 0
A42: 32 | C42: Long-Term Debt | F42: =VLOOKUP($B$1&$A42,BALANCE08,6,FALSE) -> 17285000 | G42: =VLOOKUP($B$1&$A42,BALANCE09,6,FALSE) -> 17075000 | H42: =VLOOKUP($B$1&$A42,BALANCE10,6,FALSE) -> 16610000 | I42: =VLOOKUP($B$1&$A42,BALANCE11,6,FALSE) -> 16355000 | J42: =VLOOKUP($B$1&$A42,BALANCE12,6,FALSE) -> 16080000 | K42: =VLOOKUP($B$1&A42,BALANCE13,6,FALSE) -> 15790000 | M42: 15150000 | N42: =VLOOKUP($B$1&A42,BALANCE16,6,FALSE) -> 14795000 | O42: =VLOOKUP($B$1&A42,BALANCE17,6,FALSE) -> 15188245 | P42: 14978334 | Q42: =VLOOKUP($B$1&A42,BALANCE19,6,FALSE) -> 14969003
A43: 33 | C43: Deferred Revenue | F43: =VLOOKUP($B$1&$A43,BALANCE08,6,FALSE) -> 0 | G43: =VLOOKUP($B$1&$A43,BALANCE09,6,FALSE) -> 0 | H43: =VLOOKUP($B$1&$A43,BALANCE10,6,FALSE) -> 0 | I43: =VLOOKUP($B$1&$A43,BALANCE11,6,FALSE) -> 0 | J43: =VLOOKUP($B$1&$A43,BALANCE12,6,FALSE) -> 0 | K43: =VLOOKUP($B$1&A43,BALANCE13,6,FALSE) -> 0 | M43: 0 | N43: =VLOOKUP($B$1&A43,BALANCE16,6,FALSE) -> 0 | O43: =VLOOKUP($B$1&A43,BALANCE17,6,FALSE) -> 0 | P43: 0 | Q43: =VLOOKUP($B$1&A43,BALANCE19,6,FALSE) -> 0
A44: 34 | C44: Total Noncurrent Liabilities | F44: =VLOOKUP($B$1&$A44,BALANCE08,6,FALSE) -> 17285000 | G44: =VLOOKUP($B$1&$A44,BALANCE09,6,FALSE) -> 17075000 | H44: =VLOOKUP($B$1&$A44,BALANCE10,6,FALSE) -> 16610000 | I44: =VLOOKUP($B$1&$A44,BALANCE11,6,FALSE) -> 16355000 | J44: =VLOOKUP($B$1&$A44,BALANCE12,6,FALSE) -> 16080000 | K44: =VLOOKUP($B$1&A44,BALANCE13,6,FALSE) -> 15790000 | M44: 15150000 | N44: =VLOOKUP($B$1&A44,BALANCE16,6,FALSE) -> 14795000 | O44: =VLOOKUP($B$1&A44,BALANCE17,6,FALSE) -> 15188245 | P44: 14978334 | Q44: =VLOOKUP($B$1&A44,BALANCE19,6,FALSE) -> 14969003
A45: 35 | C45: Total Liabilities | F45: =VLOOKUP($B$1&$A45,BALANCE08,6,FALSE) -> 17761960 | G45: =VLOOKUP($B$1&$A45,BALANCE09,6,FALSE) -> 17525983 | H45: =VLOOKUP($B$1&$A45,BALANCE10,6,FALSE) -> 17260594 | I45: =VLOOKUP($B$1&$A45,BALANCE11,6,FALSE) -> 17072805 | J45: =VLOOKUP($B$1&$A45,BALANCE12,6,FALSE) -> 16773911 | K45: =VLOOKUP($B$1&A45,BALANCE13,6,FALSE) -> 16522347 | M45: 16070661 | N45: =VLOOKUP($B$1&A45,BALANCE16,6,FALSE) -> 15761034 | O45: =VLOOKUP($B$1&A45,BALANCE17,6,FALSE) -> 15976993 | P45: 15929924 | Q45: =VLOOKUP($B$1&A45,BALANCE19,6,FALSE) -> 15883483
C47: NET ASSETS
A48: 36 | C48: Investment in capital assets (net of related debt) | F48: =VLOOKUP($B$1&$A48,BALANCE08,6,FALSE) -> 1978881 | G48: =VLOOKUP($B$1&$A48,BALANCE09,6,FALSE) -> 1742182 | H48: =VLOOKUP($B$1&$A48,BALANCE10,6,FALSE) -> 1734676 | I48: =VLOOKUP($B$1&$A48,BALANCE11,6,FALSE) -> 1440244 | J48: =VLOOKUP($B$1&$A48,BALANCE12,6,FALSE) -> 2905642 | K48: =VLOOKUP($B$1&A48,BALANCE13,6,FALSE) -> 2663410 | M48: =VLOOKUP($B$1&A48,BALANCE15,6,FALSE) -> 2872158 | N48: =VLOOKUP($B$1&A48,BALANCE16,6,FALSE) -> 2967971 | O48: =VLOOKUP($B$1&A48,BALANCE17,6,FALSE) -> 1599287 | P48: =VLOOKUP($B$1&A48,BALANCE18,6,FALSE) -> 1301810 | Q48: =VLOOKUP($B$1&A48,BALANCE19,6,FALSE) -> 1121363
A49: 37 | C49: Temporarily Restricted | F49: 0 | G49: 0 | H49: 750000 | I49: 1257971 | J49: 350056 | K49: 320355 | M49: 0 | N49: 0 | O49: 1310000 | P49: 150000 | Q49: 300000
A50: 38 | C50: Permanently Restricted | F50: 0 | G50: 0 | H50: 0 | I50: 0 | J50: 0 | K50: 0 | M50: 0 | N50: 0 | O50: 3787672 | P50: 5631930 | Q50: 0
A51: 39 | C51: Unrestricted (non-capital) | F51: 2105923 | G51: 2548089 | H51: 2361396 | I51: 2746193 | J51: 2466583 | K51: 3107029 | M51: 4217665 | N51: 4412024 | O51: 0 | P51: 0 | Q51: 5354196
A52: 40 | C52: Total Net Assets | F52: 4084804 | G52: 4290271 | H52: 4846072 | I52: 5444408 | J52: 5722281 | K52: 6090794 | M52: 7089823 | N52: 7379995 | O52: 6696959 | P52: 7083740 | Q52: 6775559
A53: 41 | C53: Total Liabilities and Net Assets | F53: 21846764 | G53: 21816254 | H53: 22106666 | I53: 22517213 | J53: 22496192 | K53: 22613141 | M53: 23160484 | N53: 23141029 | O53: 22673952 | P53: 23013664 | Q53: 22659042
C55: REVENUES
A56: 01 | C56: Tuition | F56: =VLOOKUP($B$1&$A56,INCOME08,6,FALSE) -> 5409345 | G56: =VLOOKUP($B$1&$A56,INCOME09,6,FALSE) -> 5750932 | H56: =VLOOKUP($B$1&$A56,INCOME10,6,FALSE) -> 5781758 | I56: =VLOOKUP($B$1&$A56,INCOME11,6,FALSE) -> 6238853 | J56: =VLOOKUP($B$1&$A56,INCOME12,6,FALSE) -> 6243328 | K56: =VLOOKUP($B$1&A56,INCOME13,6,FALSE) -> 6503277 | M56: =VLOOKUP($B$1&A56,INCOME15,6,FALSE) -> 7504957 | N56: =VLOOKUP($B$1&A56,INCOME16,6,FALSE) -> 7822414 | O56: =VLOOKUP($B$1&A56,INCOME17,6,FALSE) -> 7969166 | P56: =VLOOKUP($B$1&A56,INCOME18,6,FALSE) -> 8589311 | Q56: =VLOOKUP($B$1&A56,INCOME19,6,FALSE) -> 9076335
A57: 02a | C57: Grants - State - passed through ESE | F57: 1000 | G57: 0 | H57: 0 | I57: 0 | J57: 0 | K57: 0 | M57: 0 | N57: 0 | O57: 0 | P57: =VLOOKUP($B$1&A57,INCOME18,6,FALSE) -> 0 | Q57: 0
A58: 02b | C58: Grants - State - other non-ESE pass-through | G58: 0 | H58: 0 | I58: 0 | J58: 0 | K58: 0 | M58: 0 | N58: 0 | O58: 0 | P58: 0 | Q58: 0
A59: 03 | C59: Grants - Federal - Passed through ESE | F59: 305082 | G59: 361213 | H59: 577741 | I59: 592898 | J59: 390070 | K59: 417891 | M59: 329989 | N59: 321936 | O59: 351706 | P59: 397465 | Q59: 429349
A60: 04 | C60: Grants - Federal - Direct or other pass-through | F60: 18950 | G60: 20000 | H60: 4300 | I60: 0 | J60: 0 | K60: 0 | M60: 0 | N60: 0 | O60: 0 | P60: 0 | Q60: 0
A61: 05a | C61: Grants - Private - Designated | F61: 0 | G61: 0 | H61: 0 | I61: 200 | J61: 0 | K61: 0 | M61: 0 | N61: 0 | O61: 0 | P61: 0 | Q61: 0
A62: 05b | C62: Grants - Private - Undesignated | F62: 0 | G62: 0 | H62: 0 | I62: 0 | J62: 0 | K62: 0 | M62: 0 | N62: 0 | O62: 0 | P62: 2700 | Q62: 0
A63: 06 | C63: Nutrition Funding - State | F63: 3115 | G63: 3184 | H63: 2530 | I63: 3531 | J63: 2868 | K63: 3416 | M63: 2640 | N63: 3718 | O63: 2647 | P63: 2428 | Q63: 0
A64: 07 | C64: Nutrition Funding - Federal | F64: 102171 | G64: 117746 | H64: 122929 | I64: 125459 | J64: 131549 | K64: 141713 | M64: 169707 | N64: 178322 | O64: 189805 | P64: 192843 | Q64: 187687.84
A65: 08 | C65: Nutrition Funding - Fees | F65: 0 | G65: 0 | H65: 0 | I65: 0 | J65: 0 | K65: 0 | M65: 0 | N65: 4986 | O65: 2908 | P65: 0 | Q65: 0
A66: 09 | C66: Other Program / Student Activity Fees | F66: 0 | G66: 0 | H66: 0 | I66: 0 | J66: 0 | K66: 0 | M66: 0 | N66: 0 | O66: 0 | P66: 0 | Q66: 0
A67: 10 | C67: Regional Transportation Aid | F67: 0 | G67: 0 | H67: 0 | I67: 0 | J67: 0 | K67: 0 | M67: 0 | N67: 0 | O67: 0 | P67: 0 | Q67: 0
A68: 11 | C68: Medicaid Reimbursements | F68: 39160 | G68: 29805 | H68: 29306 | I68: 23103 | J68: 28709 | K68: 19111 | M68: 28372 | N68: 45699 | O68: 50590 | P68: 17167 | Q68: 10857.14
A69: 12 | C69: Circuit Breaker Reimbursements | F69: 0 | G69: 0 | H69: 0 | I69: 0 | J69: 0 | K69: 0 | M69: 0 | N69: 0 | O69: 0 | P69: 0 | Q69: 0
A70: 13a | C70: Contributions, in-kind, host district | F70: 0 | G70: 0 | H70: 0 | I70: 0 | J70: 412386 | K70: 412000 | M70: 632880 | N70: 631800 | O70: 725874 | P70: 592074 | Q70: 0
A71: 13b | C71: Contributions, in-kind, other | F71: 0 | G71: 0 | H71: 0 | I71: 0 | J71: 0 | K71: 0 | M71: 573324 | N71: 880439 | O71: 0 | P71: 0 | Q71: 639352
A72: 13c | C72: Contributions, on-behalf, pension (FY16 and forward) | N72: 0 | O72: 1249602 | P72: 1355702 | Q72: 1419392
A73: 14 | C73: Contributions, from Component Unit | F73: 355800 | G73: 0 | H73: 0 | I73: 0 | J73: 150000 | K73: 91500
A74: 15 | C74: Contributions / Fundraising | F74: 459 | G74: 0 | H74: 0 | I74: 0 | J74: 0 | K74: 0
A75: 16 | C75: Interest / Investment Income | F75: 324678 | G75: 88105 | H75: 9927 | I75: 10126 | J75: 7147 | K75: 5109
A76: 14 | C76: Contributions, from Component Unit (restricted) | M76: =VLOOKUP($B$1&A76,INCOME15,6,FALSE) -> 0 | N76: =VLOOKUP($B$1&A76,INCOME16,6,FALSE) -> 0 | O76: =VLOOKUP($B$1&A76,INCOME17,6,FALSE) -> 0 | P76: =VLOOKUP($B$1&A76,INCOME18,6,FALSE) -> 0 | Q76: =VLOOKUP($B$1&A76,INCOME19,6,FALSE) -> 0
A77: 14b | C77: Contributions, from Component Unit (unrestricted) | M77: 0 | N77: 75000 | O77: 106437 | P77: 167225 | Q77: 295376
A78: 15 | C78: Contributions / Fundraising (restricted) | M78: 0 | N78: 0 | O78: 0 | P78: 0 | Q78: 0
A79: 15b | C79: Contributions / Fundraising (unrestricted) | M79: 0 | N79: 0 | O79: 0 | P79: 0 | Q79: 250
A80: 16 | C80: Interest / Investment Income (restricted) | M80: 0 | N80: 0 | O80: 0 | P80: 0 | Q80: 0
A81: 16a | C81: Interest / Investment Income (unrestricted) | M81: 3694 | N81: 11216 | O81: 34449 | P81: 77537 | Q81: 147406.55
A82: 17 | C82: Rental Income | F82: 0 | G82: 0 | H82: 0 | I82: 0 | J82: 0 | K82: 0 | M82: 0 | N82: 0 | O82: 0 | P82: 0 | Q82: 0
A83: 18 | C83: Loan Forgiveness or Other Reimbursement | F83: 0 | G83: 0 | H83: 0 | I83: 0 | J83: 0 | K83: 0 | M83: 0 | N83: 0 | O83: 0 | P83: 0 | Q83: 0
A84: 19 | C84: Miscellaneous Income | F84: 4728 | G84: 262 | H84: 189 | I84: 1000 | J84: 1719 | K84: 515 | M84: 2031 | N84: 311 | O84: 0 | P84: 0 | Q84: 25
A85: 20 | C85: Total Revenues | F85: 6564488 | G85: 6371247 | H85: 6528680 | I85: 6995170 | J85: 7367776 | K85: 7594532 | M85: 9247594 | N85: 9975841 | O85: 10683184 | P85: 11394452 | Q85: 12206030.53
C86: Non-"General Fund" revenue sources
C87: EXPENSES
A88: 21 | C88: Administration | F88: =VLOOKUP($B$1&$A88,INCOME08,6,FALSE) -> 421575 | G88: =VLOOKUP($B$1&$A88,INCOME09,6,FALSE) -> 387429 | H88: =VLOOKUP($B$1&$A88,INCOME10,6,FALSE) -> 431130 | I88: =VLOOKUP($B$1&$A88,INCOME11,6,FALSE) -> 606336 | J88: =VLOOKUP($B$1&$A88,INCOME12,6,FALSE) -> 583417 | K88: =VLOOKUP($B$1&A88,INCOME13,6,FALSE) -> 659849 | M88: =VLOOKUP($B$1&A88,INCOME15,6,FALSE) -> 753268 | N88: =VLOOKUP($B$1&A88,INCOME16,6,FALSE) -> 720254 | O88: =VLOOKUP($B$1&A88,INCOME17,6,FALSE) -> 852677 | P88: =VLOOKUP($B$1&A88,INCOME18,6,FALSE) -> 970257 | Q88: =VLOOKUP($B$1&A88,INCOME19,6,FALSE) -> 1391206.36
A89: 22 | C89: Instructional Services | F89: 3171036 | G89: 3277650 | H89: 3060041 | I89: 3264755 | J89: 3550577 | K89: 3605307 | M89: 4104642 | N89: 4359563 | O89: 4775327 | P89: 5313464 | Q89: 5118154.708
A90: 23 | C90: Pupil Services | F90: 275643 | G90: 273657 | H90: 256052 | I90: 261891 | J90: 739920 | K90: 791766 | M90: 1097495 | N90: 1143895 | O90: 1312650 | P90: 1198348 | Q90: 1313723.947
A91: 24 | C91: Operation & Maintenance of Plant | F91: 446413 | G91: 481547 | H91: 388395 | I91: 426189 | J91: 469577 | K91: 417704 | M91: 620708 | N91: 504702 | O91: 519775 | P91: 520948 | Q91: 619946.29
A92: 25 | C92: Benefits and Other Fixed Charges | F92: 503965 | G92: 559758 | H92: 597911 | I92: 647946 | J92: 674361 | K92: 681508 | M92: 1322055 | N92: 1678030 | O92: 2127697 | P92: 2279997 | Q92: 2395879.64
A93: 26 | C93: Community Services | F93: 0 | G93: 0 | H93: 571 | I93: 0 | J93: 0 | K93: 200 | M93: 0 | N93: 0 | O93: 0 | P93: 0 | Q93: 186
A94: 27 | C94: Non-Operating Financing Expenses | F94: 1195928 | G94: 1185739 | H94: 1238780 | I94: 1189717 | J94: 1072051 | K94: 1069685 | M94: 1180674 | N94: 1279225 | O94: 1851333 | P94: 1058199 | Q94: 1058599.66
A95: 28 | C95: Component Unit Expenses | F95: 0 | G95: 0 | H95: 0 | I95: 0 | J95: 0 | K95: 0 | M95: 0 | N95: 0 | O95: 0 | P95: 0 | Q95: 0
A96: 29 | C96: Contributions to School | F96: 0 | G96: 0 | H96: 0 | I96: 0 | J96: 0 | K96: 0 | M96: 0 | N96: 0 | O96: 0 | P96: 0 | Q96: 0
A97: 30 | C97: Total Expenses | F97: 6014560 | G97: =VLOOKUP($B$1&$A97,INCOME09,6,FALSE) -> 6165780 | H97: 5972880 | I97: 6396834 | J97: 7089903 | K97: 7226019 | M97: 9078842 | N97: 9685669 | O97: 11439459 | P97: 11341213 | Q97: 11897696.6
A99: 31 | C99: Total Gain/(Loss) | F99: =VLOOKUP($B$1&$A99,INCOME08,6,FALSE) -> 549928 | G99: =VLOOKUP($B$1&$A99,INCOME09,6,FALSE) -> 205467 | H99: =VLOOKUP($B$1&$A99,INCOME10,6,FALSE) -> 555800 | I99: =VLOOKUP($B$1&$A99,INCOME11,6,FALSE) -> 598336 | J99: =VLOOKUP($B$1&$A99,INCOME12,6,FALSE) -> 277873 | K99: =VLOOKUP($B$1&A99,INCOME13,6,FALSE) -> 368513 | M99: 168752 | N99: =VLOOKUP($B$1&A99,INCOME16,6,FALSE) -> 290172 | O99: =VLOOKUP($B$1&A99,INCOME17,6,FALSE) -> -756275 | P99: =VLOOKUP($B$1&A99,INCOME18,6,FALSE) -> 53239 | Q99: =VLOOKUP($B$1&A99,INCOME19,6,FALSE) -> 308333.925
A100: 32 | C100: Gain/Loss on Sale of Asset or Lease Transaction | F100: =VLOOKUP($B$1&$A100,INCOME08,6,FALSE) -> 0 | G100: =VLOOKUP($B$1&$A100,INCOME09,6,FALSE) -> 0 | H100: =VLOOKUP($B$1&$A100,INCOME10,6,FALSE) -> 0 | I100: =VLOOKUP($B$1&$A100,INCOME11,6,FALSE) -> 0 | J100: =VLOOKUP($B$1&$A100,INCOME12,6,FALSE) -> 0 | K100: =VLOOKUP($B$1&A100,INCOME13,6,FALSE) -> 0 | M100: 0 | N100: =VLOOKUP($B$1&A100,INCOME16,6,FALSE) -> 0 | O100: 0 | P100: =VLOOKUP($B$1&A100,INCOME18,6,FALSE) -> 0 | Q100: =VLOOKUP($B$1&A100,INCOME19,6,FALSE) -> -615259
A101: 33 | C101: Other Gain/Loss | F101: =VLOOKUP($B$1&$A101,INCOME08,6,FALSE) -> 0 | G101: =VLOOKUP($B$1&$A101,INCOME09,6,FALSE) -> 0 | H101: =VLOOKUP($B$1&$A101,INCOME10,6,FALSE) -> 0 | I101: =VLOOKUP($B$1&$A101,INCOME11,6,FALSE) -> 0 | J101: =VLOOKUP($B$1&$A101,INCOME12,6,FALSE) -> 0 | K101: =VLOOKUP($B$1&A101,INCOME13,6,FALSE) -> 0 | M101: 0 | N101: =VLOOKUP($B$1&A101,INCOME16,6,FALSE) -> 0 | O101: 73239 | P101: =VLOOKUP($B$1&A101,INCOME18,6,FALSE) -> 408418 | Q101: =VLOOKUP($B$1&A101,INCOME19,6,FALSE) -> -1256
A102: 34 | C102: Total Changes in Net Assets: | F102: =VLOOKUP($B$1&$A102,INCOME08,6,FALSE) -> 549928 | G102: =VLOOKUP($B$1&$A102,INCOME09,6,FALSE) -> 205467 | H102: =VLOOKUP($B$1&$A102,INCOME10,6,FALSE) -> 555800 | I102: =VLOOKUP($B$1&$A102,INCOME11,6,FALSE) -> 598336 | J102: =VLOOKUP($B$1&$A102,INCOME12,6,FALSE) -> 277873 | K102: =VLOOKUP($B$1&A102,INCOME13,6,FALSE) -> 368513 | M102: 168752 | N102: =VLOOKUP($B$1&A102,INCOME16,6,FALSE) -> 290172 | O102: -683036 | P102: =VLOOKUP($B$1&A102,INCOME18,6,FALSE) -> 461657 | Q102: =VLOOKUP($B$1&A102,INCOME19,6,FALSE) -> -308181.075
A104: 35 | C104: Net Assets at Beginning of Year | F104: =VLOOKUP($B$1&$A104,INCOME08,6,FALSE) -> 3534876 | G104: =VLOOKUP($B$1&$A104,INCOME09,6,FALSE) -> 4084804 | H104: =VLOOKUP($B$1&$A104,INCOME10,6,FALSE) -> 4290272 | I104: =VLOOKUP($B$1&$A104,INCOME11,6,FALSE) -> 4846072 | J104: =VLOOKUP($B$1&$A104,INCOME12,6,FALSE) -> 5444408 | K104: =VLOOKUP($B$1&A104,INCOME13,6,FALSE) -> 5722281 | M104: 6921071 | N104: =VLOOKUP($B$1&A104,INCOME16,6,FALSE) -> 7089823 | O104: 7379995 | P104: =VLOOKUP($B$1&A104,INCOME18,6,FALSE) -> 6622083 | Q104: =VLOOKUP($B$1&A104,INCOME19,6,FALSE) -> 7083740
A105: 36 | C105: Net Assets At End of Year | F105: =VLOOKUP($B$1&$A105,INCOME08,6,FALSE) -> 4084804 | G105: =VLOOKUP($B$1&$A105,INCOME09,6,FALSE) -> 4290271 | H105: =VLOOKUP($B$1&$A105,INCOME10,6,FALSE) -> 4846072 | I105: =VLOOKUP($B$1&$A105,INCOME11,6,FALSE) -> 5444408 | J105: =VLOOKUP($B$1&$A105,INCOME12,6,FALSE) -> 5722281 | K105: =VLOOKUP($B$1&A105,INCOME13,6,FALSE) -> 6090794 | M105: 7089823 | N105: =VLOOKUP($B$1&A105,INCOME16,6,FALSE) -> 7379995 | O105: 6696959 | P105: =VLOOKUP($B$1&A105,INCOME18,6,FALSE) -> 7083740 | Q105: =VLOOKUP($B$1&A105,INCOME19,6,FALSE) -> 6775559
C107: ADMINISTRATION | E107: Line Items for FY19 and forward
A108: 100 | C108: Administration | D108: 100 | E108: Administration | F108: =VLOOKUP($B$1&#REF!,FUNC08,12,FALSE) ->  | G108: =VLOOKUP($B$1&#REF!,FUNC09,12,FALSE) ->  | H108: =VLOOKUP($B$1&#REF!,FUNC10,12,FALSE) ->  | I108: =VLOOKUP($B$1&#REF!,FUNC11,12,FALSE) ->  | J108: =VLOOKUP($B$1&#REF!,FUNC12,12,FALSE) ->  | K108: =VLOOKUP($B$1&#REF!,FUNC13,12,FALSE) ->  | M108: =VLOOKUP($B$1&A108,FUNC15,12,FALSE) -> 753268 | N108: =VLOOKUP($B$1&A108,FUNC16,12,FALSE) -> 720254 | O108: =VLOOKUP($B$1&A108,FUNC17,12,FALSE) -> 852677 | P108: =VLOOKUP($B$1&A108,FUNC18,12,FALSE) -> 970257 | Q108: =VLOOKUP($B$1&D108,FUNC19,12,FALSE) -> 1391206.36
A109: 110 | C109: Subtotal - Board of Trustees | D109: 110 | E109: Subtotal - Board of Trustees | F109: =VLOOKUP($B$1&#REF!,FUNC08,12,FALSE) ->  | G109: =VLOOKUP($B$1&#REF!,FUNC09,12,FALSE) ->  | H109: =VLOOKUP($B$1&#REF!,FUNC10,12,FALSE) ->  | I109: =VLOOKUP($B$1&#REF!,FUNC11,12,FALSE) ->  | J109: =VLOOKUP($B$1&#REF!,FUNC12,12,FALSE) ->  | K109: =VLOOKUP($B$1&#REF!,FUNC13,12,FALSE) ->  | M109: 29100 | N109: 6175 | O109: 9754 | P109: 47508 | Q109: 13299.86
A110: 111 | C110: Contracted Services | D110: 111 | E110: Contracted Services | F110: =VLOOKUP($B$1&#REF!,FUNC08,12,FALSE) ->  | G110: =VLOOKUP($B$1&#REF!,FUNC09,12,FALSE) ->  | H110: =VLOOKUP($B$1&#REF!,FUNC10,12,FALSE) ->  | I110: =VLOOKUP($B$1&#REF!,FUNC11,12,FALSE) ->  | J110: =VLOOKUP($B$1&#REF!,FUNC12,12,FALSE) ->  | K110: =VLOOKUP($B$1&#REF!,FUNC13,12,FALSE) ->  | M110: 29100 | N110: 0 | O110: 8500 | P110: 45748 | Q110: 12500
A111: 112 | C111: Travel and other expenses | D111: 112 | E111: Travel and other expenses | F111: =VLOOKUP($B$1&#REF!,FUNC08,12,FALSE) ->  | G111: =VLOOKUP($B$1&#REF!,FUNC09,12,FALSE) ->  | H111: =VLOOKUP($B$1&#REF!,FUNC10,12,FALSE) ->  | I111: =VLOOKUP($B$1&#REF!,FUNC11,12,FALSE) ->  | J111: =VLOOKUP($B$1&#REF!,FUNC12,12,FALSE) ->  | K111: =VLOOKUP($B$1&#REF!,FUNC13,12,FALSE) ->  | M111: 0 | N111: 6175 | O111: 1254 | P111: 1760 | Q111: 799.86
A112: 120 | C112: Subtotal - School Leaders | D112: 120a | E112: Subtotal - Non-Instructional Administration and Support Staff | F112: =VLOOKUP($B$1&#REF!,FUNC08,12,FALSE) ->  | G112: =VLOOKUP($B$1&#REF!,FUNC09,12,FALSE) ->  | H112: =VLOOKUP($B$1&#REF!,FUNC10,12,FALSE) ->  | I112: =VLOOKUP($B$1&#REF!,FUNC11,12,FALSE) ->  | J112: =VLOOKUP($B$1&#REF!,FUNC12,12,FALSE) ->  | K112: =VLOOKUP($B$1&#REF!,FUNC13,12,FALSE) ->  | M112: 183838 | N112: 142548 | O112: 185100 | P112: 165000 | Q112: 1275585.577
A113: 121 | C113: Salaries - Professional | D113: 121a | E113: Salaries - Professional and Support Staff | F113: =VLOOKUP($B$1&#REF!,FUNC08,12,FALSE) ->  | G113: =VLOOKUP($B$1&#REF!,FUNC09,12,FALSE) ->  | H113: =VLOOKUP($B$1&#REF!,FUNC10,12,FALSE) ->  | I113: =VLOOKUP($B$1&#REF!,FUNC11,12,FALSE) ->  | J113: =VLOOKUP($B$1&#REF!,FUNC12,12,FALSE) ->  | K113: =VLOOKUP($B$1&#REF!,FUNC13,12,FALSE) ->  | M113: 183838 | N113: 142548 | O113: 185100 | P113: 165000 | Q113: 1122327.677
A114: 122 | C114: Contracted Services | D114: 122a | E114: Contracted Services - Professional and Support Staff | F114: =VLOOKUP($B$1&#REF!,FUNC08,12,FALSE) ->  | G114: =VLOOKUP($B$1&#REF!,FUNC09,12,FALSE) ->  | H114: =VLOOKUP($B$1&#REF!,FUNC10,12,FALSE) ->  | I114: =VLOOKUP($B$1&#REF!,FUNC11,12,FALSE) ->  | J114: =VLOOKUP($B$1&#REF!,FUNC12,12,FALSE) ->  | K114: =VLOOKUP($B$1&#REF!,FUNC13,12,FALSE) ->  | M114: 0 | N114: 0 | O114: 0 | P114: 0 | Q114: 19533.27
A115: 130 | C115: Subtotal - Business and Finance | D115: 123 | E115: Recruitment/Advertising | F115: =VLOOKUP($B$1&#REF!,FUNC08,12,FALSE) ->  | G115: =VLOOKUP($B$1&#REF!,FUNC09,12,FALSE) ->  | H115: =VLOOKUP($B$1&#REF!,FUNC10,12,FALSE) ->  | I115: =VLOOKUP($B$1&#REF!,FUNC11,12,FALSE) ->  | J115: =VLOOKUP($B$1&#REF!,FUNC12,12,FALSE) ->  | K115: =VLOOKUP($B$1&#REF!,FUNC13,12,FALSE) ->  | M115: 157352 | N115: 155607 | O115: 224028 | P115: 228696 | Q115: 102784.53
A116: 131 | C116: Salaries - Professional | D116: 124 | E116: Travel, Dues, and other expenses | F116: =VLOOKUP($B$1&#REF!,FUNC08,12,FALSE) ->  | G116: =VLOOKUP($B$1&#REF!,FUNC09,12,FALSE) ->  | H116: =VLOOKUP($B$1&#REF!,FUNC10,12,FALSE) ->  | I116: =VLOOKUP($B$1&#REF!,FUNC11,12,FALSE) ->  | J116: =VLOOKUP($B$1&#REF!,FUNC12,12,FALSE) ->  | K116: =VLOOKUP($B$1&#REF!,FUNC13,12,FALSE) ->  | M116: 125835 | N116: 125040 | O116: 193968 | P116: 194138 | Q116: 30940.1
A117: 132 | C117: Contracted Services | D117: 125 | E117: Supplies and Materials | F117: =VLOOKUP($B$1&#REF!,FUNC08,12,FALSE) ->  | G117: =VLOOKUP($B$1&#REF!,FUNC09,12,FALSE) ->  | H117: =VLOOKUP($B$1&#REF!,FUNC10,12,FALSE) ->  | I117: =VLOOKUP($B$1&#REF!,FUNC11,12,FALSE) ->  | J117: =VLOOKUP($B$1&#REF!,FUNC12,12,FALSE) ->  | K117: =VLOOKUP($B$1&#REF!,FUNC13,12,FALSE) ->  | M117: 31517 | N117: 30567 | O117: 30060 | P117: 34558 | Q117: 0
A118: 140 | C118: Subtotal - Human Resources | D118: 126 | E118: Depreciation - non instructional | F118: =VLOOKUP($B$1&#REF!,FUNC08,12,FALSE) ->  | G118: =VLOOKUP($B$1&#REF!,FUNC09,12,FALSE) ->  | H118: =VLOOKUP($B$1&#REF!,FUNC10,12,FALSE) ->  | I118: =VLOOKUP($B$1&#REF!,FUNC11,12,FALSE) ->  | J118: =VLOOKUP($B$1&#REF!,FUNC12,12,FALSE) ->  | K118: =VLOOKUP($B$1&#REF!,FUNC13,12,FALSE) ->  | M118: 61964 | N118: 54570 | O118: 68891 | P118: 86659 | Q118: =VLOOKUP($B$1&D118,FUNC19,12,FALSE) -> 0
A119: 141 | C119: Salaries - Professional | F119: =VLOOKUP($B$1&#REF!,FUNC08,12,FALSE) ->  | G119: =VLOOKUP($B$1&#REF!,FUNC09,12,FALSE) ->  | H119: =VLOOKUP($B$1&#REF!,FUNC10,12,FALSE) ->  | I119: =VLOOKUP($B$1&#REF!,FUNC11,12,FALSE) ->  | J119: =VLOOKUP($B$1&#REF!,FUNC12,12,FALSE) ->  | K119: =VLOOKUP($B$1&#REF!,FUNC13,12,FALSE) ->  | M119: 19433 | N119: 6760 | O119: 20772 | P119: 24231
A120: 142 | C120: Contracted Services | F120: =VLOOKUP($B$1&#REF!,FUNC08,12,FALSE) ->  | G120: =VLOOKUP($B$1&#REF!,FUNC09,12,FALSE) ->  | H120: =VLOOKUP($B$1&#REF!,FUNC10,12,FALSE) ->  | I120: =VLOOKUP($B$1&#REF!,FUNC11,12,FALSE) ->  | J120: =VLOOKUP($B$1&#REF!,FUNC12,12,FALSE) ->  | K120: =VLOOKUP($B$1&#REF!,FUNC13,12,FALSE) ->  | M120: 42531 | N120: 47810 | O120: 48119 | P120: 62428
A121: 150 | C121: Subtotal - Legal Services | F121: =VLOOKUP($B$1&#REF!,FUNC08,12,FALSE) ->  | G121: =VLOOKUP($B$1&#REF!,FUNC09,12,FALSE) ->  | H121: =VLOOKUP($B$1&#REF!,FUNC10,12,FALSE) ->  | I121: =VLOOKUP($B$1&#REF!,FUNC11,12,FALSE) ->  | J121: =VLOOKUP($B$1&#REF!,FUNC12,12,FALSE) ->  | K121: =VLOOKUP($B$1&#REF!,FUNC13,12,FALSE) ->  | M121: 16215 | N121: 8787 | O121: 8822 | P121: 9970
A122: 151 | C122: Salaries - Professional | F122: =VLOOKUP($B$1&#REF!,FUNC08,12,FALSE) ->  | G122: =VLOOKUP($B$1&#REF!,FUNC09,12,FALSE) ->  | H122: =VLOOKUP($B$1&#REF!,FUNC10,12,FALSE) ->  | I122: =VLOOKUP($B$1&#REF!,FUNC11,12,FALSE) ->  | J122: =VLOOKUP($B$1&#REF!,FUNC12,12,FALSE) ->  | K122: =VLOOKUP($B$1&#REF!,FUNC13,12,FALSE) ->  | M122: 0 | N122: 0 | O122: 0 | P122: 0
A123: 152 | C123: Contracted Services | F123: =VLOOKUP($B$1&#REF!,FUNC08,12,FALSE) ->  | G123: =VLOOKUP($B$1&#REF!,FUNC09,12,FALSE) ->  | H123: =VLOOKUP($B$1&#REF!,FUNC10,12,FALSE) ->  | I123: =VLOOKUP($B$1&#REF!,FUNC11,12,FALSE) ->  | J123: =VLOOKUP($B$1&#REF!,FUNC12,12,FALSE) ->  | K123: =VLOOKUP($B$1&#REF!,FUNC13,12,FALSE) ->  | M123: 16215 | N123: 8787 | O123: 8822 | P123: 9970
A124: 160 | C124: Subtotal - Info. Management & Technology | F124: =VLOOKUP($B$1&#REF!,FUNC08,12,FALSE) ->  | G124: =VLOOKUP($B$1&#REF!,FUNC09,12,FALSE) ->  | H124: =VLOOKUP($B$1&#REF!,FUNC10,12,FALSE) ->  | I124: =VLOOKUP($B$1&#REF!,FUNC11,12,FALSE) ->  | J124: =VLOOKUP($B$1&#REF!,FUNC12,12,FALSE) ->  | K124: =VLOOKUP($B$1&#REF!,FUNC13,12,FALSE) ->  | M124: 164799 | N124: 175573 | O124: 210079 | P124: 164956
A125: 161 | C125: Salaries - Professional | F125: =VLOOKUP($B$1&#REF!,FUNC08,12,FALSE) ->  | G125: =VLOOKUP($B$1&#REF!,FUNC09,12,FALSE) ->  | H125: =VLOOKUP($B$1&#REF!,FUNC10,12,FALSE) ->  | I125: =VLOOKUP($B$1&#REF!,FUNC11,12,FALSE) ->  | J125: =VLOOKUP($B$1&#REF!,FUNC12,12,FALSE) ->  | K125: =VLOOKUP($B$1&#REF!,FUNC13,12,FALSE) ->  | M125: 127950 | N125: 154338 | O125: 157724 | P125: 140591
A126: 162 | C126: Contracted Services | F126: =VLOOKUP($B$1&#REF!,FUNC08,12,FALSE) ->  | G126: =VLOOKUP($B$1&#REF!,FUNC09,12,FALSE) ->  | H126: =VLOOKUP($B$1&#REF!,FUNC10,12,FALSE) ->  | I126: =VLOOKUP($B$1&#REF!,FUNC11,12,FALSE) ->  | J126: =VLOOKUP($B$1&#REF!,FUNC12,12,FALSE) ->  | K126: =VLOOKUP($B$1&#REF!,FUNC13,12,FALSE) ->  | M126: 36849 | N126: 21235 | O126: 27051 | P126: 8835
A127: 163 | C127: Supplies and Materials | F127: =VLOOKUP($B$1&#REF!,FUNC08,12,FALSE) ->  | G127: =VLOOKUP($B$1&#REF!,FUNC09,12,FALSE) ->  | H127: =VLOOKUP($B$1&#REF!,FUNC10,12,FALSE) ->  | I127: =VLOOKUP($B$1&#REF!,FUNC11,12,FALSE) ->  | J127: =VLOOKUP($B$1&#REF!,FUNC12,12,FALSE) ->  | K127: =VLOOKUP($B$1&#REF!,FUNC13,12,FALSE) ->  | M127: 0 | N127: 0 | O127: 25304 | P127: 15530
A128: 164 | C128: Depreciation for Information Technology | F128: =VLOOKUP($B$1&#REF!,FUNC08,12,FALSE) ->  | G128: =VLOOKUP($B$1&#REF!,FUNC09,12,FALSE) ->  | H128: =VLOOKUP($B$1&#REF!,FUNC10,12,FALSE) ->  | I128: =VLOOKUP($B$1&#REF!,FUNC11,12,FALSE) ->  | J128: =VLOOKUP($B$1&#REF!,FUNC12,12,FALSE) ->  | K128: =VLOOKUP($B$1&#REF!,FUNC13,12,FALSE) ->  | M128: 0 | N128: 0 | O128: 0 | P128: 0
F129: =VLOOKUP($B$1&#REF!,FUNC08,12,FALSE) ->  | G129: =VLOOKUP($B$1&#REF!,FUNC09,12,FALSE) ->  | H129: =VLOOKUP($B$1&#REF!,FUNC10,12,FALSE) ->  | I129: =VLOOKUP($B$1&#REF!,FUNC11,12,FALSE) ->  | J129: =VLOOKUP($B$1&#REF!,FUNC12,12,FALSE) ->  | K129: =VLOOKUP($B$1&#REF!,FUNC13,12,FALSE) -> 
F130: =VLOOKUP($B$1&#REF!,FUNC08,12,FALSE) ->  | G130: =VLOOKUP($B$1&#REF!,FUNC09,12,FALSE) ->  | H130: =VLOOKUP($B$1&#REF!,FUNC10,12,FALSE) ->  | I130: =VLOOKUP($B$1&#REF!,FUNC11,12,FALSE) ->  | J130: =VLOOKUP($B$1&#REF!,FUNC12,12,FALSE) ->  | K130: =VLOOKUP($B$1&#REF!,FUNC13,12,FALSE) -> 
F131: =VLOOKUP($B$1&#REF!,FUNC08,12,FALSE) ->  | G131: =VLOOKUP($B$1&#REF!,FUNC09,12,FALSE) ->  | H131: =VLOOKUP($B$1&#REF!,FUNC10,12,FALSE) ->  | I131: =VLOOKUP($B$1&#REF!,FUNC11,12,FALSE) ->  | J131: =VLOOKUP($B$1&#REF!,FUNC12,12,FALSE) ->  | K131: =VLOOKUP($B$1&#REF!,FUNC13,12,FALSE) -> 
F132: =VLOOKUP($B$1&#REF!,FUNC08,12,FALSE) ->  | G132: =VLOOKUP($B$1&#REF!,FUNC09,12,FALSE) ->  | H132: =VLOOKUP($B$1&#REF!,FUNC10,12,FALSE) ->  | I132: =VLOOKUP($B$1&#REF!,FUNC11,12,FALSE) ->  | J132: =VLOOKUP($B$1&#REF!,FUNC12,12,FALSE) ->  | K132: =VLOOKUP($B$1&#REF!,FUNC13,12,FALSE) -> 
A133: 170 | C133: Subtotal - Development (Private) | D133: 170 | E133: Subtotal - Development (Private) | M133: =VLOOKUP($B$1&A133,FUNC15,12,FALSE) -> 30498 | N133: =VLOOKUP($B$1&A133,FUNC16,12,FALSE) -> 16636 | O133: =VLOOKUP($B$1&A133,FUNC17,12,FALSE) -> 11785 | P133: =VLOOKUP($B$1&A133,FUNC18,12,FALSE) -> 31060 | Q133: =VLOOKUP($B$1&D133,FUNC19,12,FALSE) -> 102320.9224
A134: 170a | C134: Salaries - Professional - Private | D134: 170a | E134: Salaries - Professional - Private | L134: =VLOOKUP($B$1&#REF!,FUNC14,12,FALSE) ->  | M134: 17657 | N134: 9650 | O134: 9396 | P134: 28000 | Q134: 93988.12245
A135: 170b | C135: Contracted Services - Private | D135: 170b | E135: Contracted Services - Private | L135: =VLOOKUP($B$1&#REF!,FUNC14,12,FALSE) ->  | M135: 0 | N135: 0 | O135: 0 | P135: 0 | Q135: 0
A136: 170c | C136: Fundraising - Private | D136: 170c | E136: Fundraising - Private | L136: =VLOOKUP($B$1&#REF!,FUNC14,12,FALSE) ->  | M136: 12841 | N136: 6986 | O136: 2389 | P136: 3060 | Q136: 8332.8
A137: 171 | C137: Subtotal - Development (Public) | D137: 171 | E137: Subtotal - Development (Public) | L137: =VLOOKUP($B$1&#REF!,FUNC14,12,FALSE) ->  | M137: 21657 | N137: 16843 | O137: 9396 | P137: 28000 | Q137: 0
A138: 171a | C138: Salaries - Professional - Public | D138: 171a | E138: Salaries - Professional - Public | L138: =VLOOKUP($B$1&#REF!,FUNC14,12,FALSE) ->  | M138: 17657 | N138: 16843 | O138: 9396 | P138: 28000 | Q138: 0
A139: 171b | C139: Contracted Services - Public | D139: 171b | E139: Contracted Services - Public | L139: =VLOOKUP($B$1&#REF!,FUNC14,12,FALSE) ->  | M139: 4000 | N139: 0 | O139: 0 | P139: 0 | Q139: 0
A140: 180 | C140: Subtotal - Other Administration | F140: =VLOOKUP($B$1&#REF!,FUNC08,12,FALSE) ->  | G140: =VLOOKUP($B$1&#REF!,FUNC09,12,FALSE) ->  | H140: =VLOOKUP($B$1&#REF!,FUNC10,12,FALSE) ->  | I140: =VLOOKUP($B$1&#REF!,FUNC11,12,FALSE) ->  | J140: =VLOOKUP($B$1&#REF!,FUNC12,12,FALSE) ->  | K140: =VLOOKUP($B$1&#REF!,FUNC13,12,FALSE) ->  | M140: 87845 | N140: 143515 | O140: 124822 | P140: 208408
A141: 181 | C141: Salaries | F141: =VLOOKUP($B$1&#REF!,FUNC08,12,FALSE) ->  | G141: =VLOOKUP($B$1&#REF!,FUNC09,12,FALSE) ->  | H141: =VLOOKUP($B$1&#REF!,FUNC10,12,FALSE) ->  | I141: =VLOOKUP($B$1&#REF!,FUNC11,12,FALSE) ->  | J141: =VLOOKUP($B$1&#REF!,FUNC12,12,FALSE) ->  | K141: =VLOOKUP($B$1&#REF!,FUNC13,12,FALSE) ->  | M141: 29250 | N141: 30183 | O141: 30610 | P141: 64180
A142: 182 | C142: Contracted Services | F142: =VLOOKUP($B$1&#REF!,FUNC08,12,FALSE) ->  | G142: =VLOOKUP($B$1&#REF!,FUNC09,12,FALSE) ->  | H142: =VLOOKUP($B$1&#REF!,FUNC10,12,FALSE) ->  | I142: =VLOOKUP($B$1&#REF!,FUNC11,12,FALSE) ->  | J142: =VLOOKUP($B$1&#REF!,FUNC12,12,FALSE) ->  | K142: =VLOOKUP($B$1&#REF!,FUNC13,12,FALSE) ->  | M142: 0 | N142: 0 | O142: 0 | P142: 0
A143: 183 | C143: Recruitment/Advertising | F143: =VLOOKUP($B$1&#REF!,FUNC08,12,FALSE) ->  | G143: =VLOOKUP($B$1&#REF!,FUNC09,12,FALSE) ->  | H143: =VLOOKUP($B$1&#REF!,FUNC10,12,FALSE) ->  | I143: =VLOOKUP($B$1&#REF!,FUNC11,12,FALSE) ->  | J143: =VLOOKUP($B$1&#REF!,FUNC12,12,FALSE) ->  | K143: =VLOOKUP($B$1&#REF!,FUNC13,12,FALSE) ->  | M143: 21004 | N143: 75705 | O143: 40206 | P143: 95763
A144: 184 | C144: Travel, Dues, and other expenses | F144: =VLOOKUP($B$1&#REF!,FUNC08,12,FALSE) ->  | G144: =VLOOKUP($B$1&#REF!,FUNC09,12,FALSE) ->  | H144: =VLOOKUP($B$1&#REF!,FUNC10,12,FALSE) ->  | I144: =VLOOKUP($B$1&#REF!,FUNC11,12,FALSE) ->  | J144: =VLOOKUP($B$1&#REF!,FUNC12,12,FALSE) ->  | K144: =VLOOKUP($B$1&#REF!,FUNC13,12,FALSE) ->  | M144: 26846 | N144: 21665 | O144: 33839 | P144: 24774
A145: 185 | C145: Supplies and Materials | M145: 10745 | N145: 15962 | O145: 20167 | P145: 23691
A147: 200 | C147: Instructional Services | D147: 200 | E147: Instructional Services | F147: =VLOOKUP($B$1&#REF!,FUNC08,12,FALSE) ->  | G147: =VLOOKUP($B$1&#REF!,FUNC09,12,FALSE) ->  | H147: =VLOOKUP($B$1&#REF!,FUNC10,12,FALSE) ->  | I147: =VLOOKUP($B$1&#REF!,FUNC11,12,FALSE) ->  | J147: =VLOOKUP($B$1&#REF!,FUNC12,12,FALSE) ->  | K147: =VLOOKUP($B$1&#REF!,FUNC13,12,FALSE) ->  | L147: =VLOOKUP($B$1&#REF!,FUNC14,12,FALSE) ->  | M147: =VLOOKUP($B$1&A147,FUNC15,12,FALSE) -> 4104642 | N147: =VLOOKUP($B$1&A147,FUNC16,12,FALSE) -> 4359563 | O147: =VLOOKUP($B$1&A147,FUNC17,12,FALSE) -> 4775327 | P147: =VLOOKUP($B$1&A147,FUNC18,12,FALSE) -> 5313464 | Q147: =VLOOKUP($B$1&D147,FUNC19,12,FALSE) -> 5118154.708
A148: 210 | C148: Subtotal - Instructional Leadership | D148: 210 | E148: Instructional Subtotal - Instructional Leadership | F148: =VLOOKUP($B$1&#REF!,FUNC08,12,FALSE) ->  | G148: =VLOOKUP($B$1&#REF!,FUNC09,12,FALSE) ->  | H148: =VLOOKUP($B$1&#REF!,FUNC10,12,FALSE) ->  | I148: =VLOOKUP($B$1&#REF!,FUNC11,12,FALSE) ->  | J148: =VLOOKUP($B$1&#REF!,FUNC12,12,FALSE) ->  | K148: =VLOOKUP($B$1&#REF!,FUNC13,12,FALSE) ->  | L148: =VLOOKUP($B$1&#REF!,FUNC14,12,FALSE) ->  | M148: 649152 | N148: 648428 | O148: 695447 | P148: 727466 | Q148: 880076.9547
A149: 211 | C149: Salaries - Professional | D149: 211 | E149: Salaries - Professional | F149: =VLOOKUP($B$1&#REF!,FUNC08,12,FALSE) ->  | G149: =VLOOKUP($B$1&#REF!,FUNC09,12,FALSE) ->  | H149: =VLOOKUP($B$1&#REF!,FUNC10,12,FALSE) ->  | I149: =VLOOKUP($B$1&#REF!,FUNC11,12,FALSE) ->  | J149: =VLOOKUP($B$1&#REF!,FUNC12,12,FALSE) ->  | K149: =VLOOKUP($B$1&#REF!,FUNC13,12,FALSE) ->  | L149: =VLOOKUP($B$1&#REF!,FUNC14,12,FALSE) ->  | M149: 572614 | N149: 560477 | O149: 585366 | P149: 611588 | Q149: 880076.9547
A150: 212 | C150: Salaries - Clerical | D150: 212 | E150: Salaries - Clerical | F150: =VLOOKUP($B$1&#REF!,FUNC08,12,FALSE) ->  | G150: =VLOOKUP($B$1&#REF!,FUNC09,12,FALSE) ->  | H150: =VLOOKUP($B$1&#REF!,FUNC10,12,FALSE) ->  | I150: =VLOOKUP($B$1&#REF!,FUNC11,12,FALSE) ->  | J150: =VLOOKUP($B$1&#REF!,FUNC12,12,FALSE) ->  | K150: =VLOOKUP($B$1&#REF!,FUNC13,12,FALSE) ->  | L150: =VLOOKUP($B$1&#REF!,FUNC14,12,FALSE) ->  | M150: 46179 | N150: 76889 | O150: 103716 | P150: 96463 | Q150: 0
A151: 213 | C151: Contracted Services | D151: 213 | E151: Contracted Services | F151: =VLOOKUP($B$1&#REF!,FUNC08,12,FALSE) ->  | G151: =VLOOKUP($B$1&#REF!,FUNC09,12,FALSE) ->  | H151: =VLOOKUP($B$1&#REF!,FUNC10,12,FALSE) ->  | I151: =VLOOKUP($B$1&#REF!,FUNC11,12,FALSE) ->  | J151: =VLOOKUP($B$1&#REF!,FUNC12,12,FALSE) ->  | K151: =VLOOKUP($B$1&#REF!,FUNC13,12,FALSE) ->  | L151: =VLOOKUP($B$1&#REF!,FUNC14,12,FALSE) ->  | M151: 17584 | N151: 0 | O151: 0 | P151: 0 | Q151: 0
A152: 214 | C152: Supplies and Materials | D152: 214 | E152: Supplies and Materials | F152: =VLOOKUP($B$1&#REF!,FUNC08,12,FALSE) ->  | G152: =VLOOKUP($B$1&#REF!,FUNC09,12,FALSE) ->  | H152: =VLOOKUP($B$1&#REF!,FUNC10,12,FALSE) ->  | I152: =VLOOKUP($B$1&#REF!,FUNC11,12,FALSE) ->  | J152: =VLOOKUP($B$1&#REF!,FUNC12,12,FALSE) ->  | K152: =VLOOKUP($B$1&#REF!,FUNC13,12,FALSE) ->  | L152: =VLOOKUP($B$1&#REF!,FUNC14,12,FALSE) ->  | M152: 12775 | N152: 11062 | O152: 6365 | P152: 19415 | Q152: 0
A153: 215 | C153: Travel and other expenses | D153: 215 | E153: Travel and other expenses | F153: =VLOOKUP($B$1&#REF!,FUNC08,12,FALSE) ->  | G153: =VLOOKUP($B$1&#REF!,FUNC09,12,FALSE) ->  | H153: =VLOOKUP($B$1&#REF!,FUNC10,12,FALSE) ->  | I153: =VLOOKUP($B$1&#REF!,FUNC11,12,FALSE) ->  | J153: =VLOOKUP($B$1&#REF!,FUNC12,12,FALSE) ->  | K153: =VLOOKUP($B$1&#REF!,FUNC13,12,FALSE) ->  | L153: =VLOOKUP($B$1&#REF!,FUNC14,12,FALSE) ->  | M153: 0 | N153: 0 | O153: 0 | P153: 0 | Q153: 0
A154: 220 | C154: Subtotal - Classroom and Specialist Teachers | D154: 220 | E154: Instructional Subtotal - Classroom and Specialist Teachers | F154: =VLOOKUP($B$1&#REF!,FUNC08,12,FALSE) ->  | G154: =VLOOKUP($B$1&#REF!,FUNC09,12,FALSE) ->  | H154: =VLOOKUP($B$1&#REF!,FUNC10,12,FALSE) ->  | I154: =VLOOKUP($B$1&#REF!,FUNC11,12,FALSE) ->  | J154: =VLOOKUP($B$1&#REF!,FUNC12,12,FALSE) ->  | K154: =VLOOKUP($B$1&#REF!,FUNC13,12,FALSE) ->  | L154: =VLOOKUP($B$1&#REF!,FUNC14,12,FALSE) ->  | M154: 2562085 | N154: 2723837 | O154: 2835824 | P154: 3186790 | Q154: 2755969.326
A155: 221 | C155: Salaries - Teachers, Classroom | D155: 221 | E155: Salaries - Teachers, Classroom | F155: =VLOOKUP($B$1&#REF!,FUNC08,12,FALSE) ->  | G155: =VLOOKUP($B$1&#REF!,FUNC09,12,FALSE) ->  | H155: =VLOOKUP($B$1&#REF!,FUNC10,12,FALSE) ->  | I155: =VLOOKUP($B$1&#REF!,FUNC11,12,FALSE) ->  | J155: =VLOOKUP($B$1&#REF!,FUNC12,12,FALSE) ->  | K155: =VLOOKUP($B$1&#REF!,FUNC13,12,FALSE) ->  | L155: =VLOOKUP($B$1&#REF!,FUNC14,12,FALSE) ->  | M155: 2094334 | N155: 2133910 | O155: 2203070 | P155: 2448602 | Q155: 2146103.305
A156: 222 | C156: Salaries - Teachers, Specialists | D156: 222 | E156: Salaries - Teachers, Specialists | F156: =VLOOKUP($B$1&#REF!,FUNC08,12,FALSE) ->  | G156: =VLOOKUP($B$1&#REF!,FUNC09,12,FALSE) ->  | H156: =VLOOKUP($B$1&#REF!,FUNC10,12,FALSE) ->  | I156: =VLOOKUP($B$1&#REF!,FUNC11,12,FALSE) ->  | J156: =VLOOKUP($B$1&#REF!,FUNC12,12,FALSE) ->  | K156: =VLOOKUP($B$1&#REF!,FUNC13,12,FALSE) ->  | L156: =VLOOKUP($B$1&#REF!,FUNC14,12,FALSE) ->  | M156: 467751 | N156: 589927 | O156: 632754 | P156: 738188 | Q156: 609866.0206
A157: 230 | C157: Subtotal - Other Teaching Services | D157: 230 | E157: Instructional Subtotal - Other Teaching Services | F157: =VLOOKUP($B$1&#REF!,FUNC08,12,FALSE) ->  | G157: =VLOOKUP($B$1&#REF!,FUNC09,12,FALSE) ->  | H157: =VLOOKUP($B$1&#REF!,FUNC10,12,FALSE) ->  | I157: =VLOOKUP($B$1&#REF!,FUNC11,12,FALSE) ->  | J157: =VLOOKUP($B$1&#REF!,FUNC12,12,FALSE) ->  | K157: =VLOOKUP($B$1&#REF!,FUNC13,12,FALSE) ->  | L157: =VLOOKUP($B$1&#REF!,FUNC14,12,FALSE) ->  | M157: 218539 | N157: 247738 | O157: 258983 | P157: 376829 | Q157: 422054.9071
A158: 231 | C158: Salaries - Professional | D158: 231 | E158: Salaries - Professional | F158: =VLOOKUP($B$1&#REF!,FUNC08,12,FALSE) ->  | G158: =VLOOKUP($B$1&#REF!,FUNC09,12,FALSE) ->  | H158: =VLOOKUP($B$1&#REF!,FUNC10,12,FALSE) ->  | I158: =VLOOKUP($B$1&#REF!,FUNC11,12,FALSE) ->  | J158: =VLOOKUP($B$1&#REF!,FUNC12,12,FALSE) ->  | K158: =VLOOKUP($B$1&#REF!,FUNC13,12,FALSE) ->  | L158: =VLOOKUP($B$1&#REF!,FUNC14,12,FALSE) ->  | M158: 200288 | N158: 236133 | O158: 258983 | P158: 376829 | Q158: 313514.6514
A159: 232 | C159: Salaries - Nonclerical Paraprofessionals | D159: 232 | E159: Salaries - Non-clerical Paraprofessionals | F159: =VLOOKUP($B$1&#REF!,FUNC08,12,FALSE) ->  | G159: =VLOOKUP($B$1&#REF!,FUNC09,12,FALSE) ->  | H159: =VLOOKUP($B$1&#REF!,FUNC10,12,FALSE) ->  | I159: =VLOOKUP($B$1&#REF!,FUNC11,12,FALSE) ->  | J159: =VLOOKUP($B$1&#REF!,FUNC12,12,FALSE) ->  | K159: =VLOOKUP($B$1&#REF!,FUNC13,12,FALSE) ->  | L159: =VLOOKUP($B$1&#REF!,FUNC14,12,FALSE) ->  | M159: 0 | N159: 0 | O159: 0 | P159: 0 | Q159: 86018.01568
A160: 233 | C160: Salaries - Clerical | D160: 233 | E160: Salaries - Clerical | F160: =VLOOKUP($B$1&#REF!,FUNC08,12,FALSE) ->  | G160: =VLOOKUP($B$1&#REF!,FUNC09,12,FALSE) ->  | H160: =VLOOKUP($B$1&#REF!,FUNC10,12,FALSE) ->  | I160: =VLOOKUP($B$1&#REF!,FUNC11,12,FALSE) ->  | J160: =VLOOKUP($B$1&#REF!,FUNC12,12,FALSE) ->  | K160: =VLOOKUP($B$1&#REF!,FUNC13,12,FALSE) ->  | L160: =VLOOKUP($B$1&#REF!,FUNC14,12,FALSE) ->  | M160: 5644 | N160: 0 | O160: 0 | P160: 0 | Q160: 0
A161: 234 | C161: Contracted Services | D161: 234 | E161: Contracted Services | F161: =VLOOKUP($B$1&#REF!,FUNC08,12,FALSE) ->  | G161: =VLOOKUP($B$1&#REF!,FUNC09,12,FALSE) ->  | H161: =VLOOKUP($B$1&#REF!,FUNC10,12,FALSE) ->  | I161: =VLOOKUP($B$1&#REF!,FUNC11,12,FALSE) ->  | J161: =VLOOKUP($B$1&#REF!,FUNC12,12,FALSE) ->  | K161: =VLOOKUP($B$1&#REF!,FUNC13,12,FALSE) ->  | L161: =VLOOKUP($B$1&#REF!,FUNC14,12,FALSE) ->  | M161: 12607 | N161: 11605 | O161: 0 | P161: 0 | Q161: 22522.24
A162: 240 | C162: Subtotal - Professional Development | D162: 240 | E162: Instructional Subtotal - Professional Development | F162: =VLOOKUP($B$1&#REF!,FUNC08,12,FALSE) ->  | G162: =VLOOKUP($B$1&#REF!,FUNC09,12,FALSE) ->  | H162: =VLOOKUP($B$1&#REF!,FUNC10,12,FALSE) ->  | I162: =VLOOKUP($B$1&#REF!,FUNC11,12,FALSE) ->  | J162: =VLOOKUP($B$1&#REF!,FUNC12,12,FALSE) ->  | K162: =VLOOKUP($B$1&#REF!,FUNC13,12,FALSE) ->  | L162: =VLOOKUP($B$1&#REF!,FUNC14,12,FALSE) ->  | M162: 48010 | N162: 94992 | O162: 200455 | P162: 200690 | Q162: 117303.6718
A163: 241 | C163: Salaries - Professional | D163: 241 | E163: Salaries - Professional | F163: =VLOOKUP($B$1&#REF!,FUNC08,12,FALSE) ->  | G163: =VLOOKUP($B$1&#REF!,FUNC09,12,FALSE) ->  | H163: =VLOOKUP($B$1&#REF!,FUNC10,12,FALSE) ->  | I163: =VLOOKUP($B$1&#REF!,FUNC11,12,FALSE) ->  | J163: =VLOOKUP($B$1&#REF!,FUNC12,12,FALSE) ->  | K163: =VLOOKUP($B$1&#REF!,FUNC13,12,FALSE) ->  | L163: =VLOOKUP($B$1&#REF!,FUNC14,12,FALSE) ->  | M163: 0 | N163: 69333 | O163: 127329 | P163: 121968 | Q163: 64513.51176
A164: 242 | C164: Contracted Services | D164: 242 | E164: Contracted Services | F164: =VLOOKUP($B$1&#REF!,FUNC08,12,FALSE) ->  | G164: =VLOOKUP($B$1&#REF!,FUNC09,12,FALSE) ->  | H164: =VLOOKUP($B$1&#REF!,FUNC10,12,FALSE) ->  | I164: =VLOOKUP($B$1&#REF!,FUNC11,12,FALSE) ->  | J164: =VLOOKUP($B$1&#REF!,FUNC12,12,FALSE) ->  | K164: =VLOOKUP($B$1&#REF!,FUNC13,12,FALSE) ->  | L164: =VLOOKUP($B$1&#REF!,FUNC14,12,FALSE) ->  | M164: 0 | N164: 0 | O164: 41195 | P164: 53642 | Q164: 47434.56
A165: 243 | C165: Supplies and Materials | D165: 243 | E165: Supplies and Materials | F165: =VLOOKUP($B$1&#REF!,FUNC08,12,FALSE) ->  | G165: =VLOOKUP($B$1&#REF!,FUNC09,12,FALSE) ->  | H165: =VLOOKUP($B$1&#REF!,FUNC10,12,FALSE) ->  | I165: =VLOOKUP($B$1&#REF!,FUNC11,12,FALSE) ->  | J165: =VLOOKUP($B$1&#REF!,FUNC12,12,FALSE) ->  | K165: =VLOOKUP($B$1&#REF!,FUNC13,12,FALSE) ->  | L165: =VLOOKUP($B$1&#REF!,FUNC14,12,FALSE) ->  | M165: 0 | N165: 0 | O165: 21983 | P165: 20405 | Q165: 5355.6
A166: 244 | C166: Travel and other expenses | D166: 244 | E166: Travel and other expenses | F166: =VLOOKUP($B$1&#REF!,FUNC08,12,FALSE) ->  | G166: =VLOOKUP($B$1&#REF!,FUNC09,12,FALSE) ->  | H166: =VLOOKUP($B$1&#REF!,FUNC10,12,FALSE) ->  | I166: =VLOOKUP($B$1&#REF!,FUNC11,12,FALSE) ->  | J166: =VLOOKUP($B$1&#REF!,FUNC12,12,FALSE) ->  | K166: =VLOOKUP($B$1&#REF!,FUNC13,12,FALSE) ->  | L166: =VLOOKUP($B$1&#REF!,FUNC14,12,FALSE) ->  | M166: 48010 | N166: 25659 | O166: 9948 | P166: 4675 | Q166: 0
A167: 250 | C167: Subtotal - Guidance, Psychological & Testing | D167: 250 | E167: Instructional Subtotal - Guidance, Psychological & Testing | F167: =VLOOKUP($B$1&#REF!,FUNC08,12,FALSE) ->  | G167: =VLOOKUP($B$1&#REF!,FUNC09,12,FALSE) ->  | H167: =VLOOKUP($B$1&#REF!,FUNC10,12,FALSE) ->  | I167: =VLOOKUP($B$1&#REF!,FUNC11,12,FALSE) ->  | J167: =VLOOKUP($B$1&#REF!,FUNC12,12,FALSE) ->  | K167: =VLOOKUP($B$1&#REF!,FUNC13,12,FALSE) ->  | L167: =VLOOKUP($B$1&#REF!,FUNC14,12,FALSE) ->  | M167: 296229 | N167: 308527 | O167: 327385 | P167: 422245 | Q167: 482154.4882
A168: 251 | C168: Salaries - Professional | D168: 251 | E168: Salaries - Professional | F168: =VLOOKUP($B$1&#REF!,FUNC08,12,FALSE) ->  | G168: =VLOOKUP($B$1&#REF!,FUNC09,12,FALSE) ->  | H168: =VLOOKUP($B$1&#REF!,FUNC10,12,FALSE) ->  | I168: =VLOOKUP($B$1&#REF!,FUNC11,12,FALSE) ->  | J168: =VLOOKUP($B$1&#REF!,FUNC12,12,FALSE) ->  | K168: =VLOOKUP($B$1&#REF!,FUNC13,12,FALSE) ->  | L168: =VLOOKUP($B$1&#REF!,FUNC14,12,FALSE) ->  | M168: 204574 | N168: 221062 | O168: 254934 | P168: 329675 | Q168: 455050.6982
A169: 252 | C169: Salaries - Clerical | D169: 252 | E169: Salaries - Clerical | F169: =VLOOKUP($B$1&#REF!,FUNC08,12,FALSE) ->  | G169: =VLOOKUP($B$1&#REF!,FUNC09,12,FALSE) ->  | H169: =VLOOKUP($B$1&#REF!,FUNC10,12,FALSE) ->  | I169: =VLOOKUP($B$1&#REF!,FUNC11,12,FALSE) ->  | J169: =VLOOKUP($B$1&#REF!,FUNC12,12,FALSE) ->  | K169: =VLOOKUP($B$1&#REF!,FUNC13,12,FALSE) ->  | L169: =VLOOKUP($B$1&#REF!,FUNC14,12,FALSE) ->  | M169: 0 | N169: 0 | O169: 0 | P169: 0 | Q169: 0
A170: 253 | C170: Contracted Services | D170: 253 | E170: Contracted Services | F170: =VLOOKUP($B$1&#REF!,FUNC08,12,FALSE) ->  | G170: =VLOOKUP($B$1&#REF!,FUNC09,12,FALSE) ->  | H170: =VLOOKUP($B$1&#REF!,FUNC10,12,FALSE) ->  | I170: =VLOOKUP($B$1&#REF!,FUNC11,12,FALSE) ->  | J170: =VLOOKUP($B$1&#REF!,FUNC12,12,FALSE) ->  | K170: =VLOOKUP($B$1&#REF!,FUNC13,12,FALSE) ->  | L170: =VLOOKUP($B$1&#REF!,FUNC14,12,FALSE) ->  | M170: 47132 | N170: 38580 | O170: 39941 | P170: 48359 | Q170: 27103.79
A171: 254 | C171: Supplies and Materials | D171: 254 | E171: Supplies and Materials | F171: =VLOOKUP($B$1&#REF!,FUNC08,12,FALSE) ->  | G171: =VLOOKUP($B$1&#REF!,FUNC09,12,FALSE) ->  | H171: =VLOOKUP($B$1&#REF!,FUNC10,12,FALSE) ->  | I171: =VLOOKUP($B$1&#REF!,FUNC11,12,FALSE) ->  | J171: =VLOOKUP($B$1&#REF!,FUNC12,12,FALSE) ->  | K171: =VLOOKUP($B$1&#REF!,FUNC13,12,FALSE) ->  | L171: =VLOOKUP($B$1&#REF!,FUNC14,12,FALSE) ->  | M171: 44523 | N171: 48885 | O171: 32510 | P171: 44211 | Q171: 0
A172: 260 | C172: Subtotal - Materials, Equipment & Technology | D172: 260 | E172: Instructional Subtotal - Materials, Equipment & Technology | F172: =VLOOKUP($B$1&#REF!,FUNC08,12,FALSE) ->  | G172: =VLOOKUP($B$1&#REF!,FUNC09,12,FALSE) ->  | H172: =VLOOKUP($B$1&#REF!,FUNC10,12,FALSE) ->  | I172: =VLOOKUP($B$1&#REF!,FUNC11,12,FALSE) ->  | J172: =VLOOKUP($B$1&#REF!,FUNC12,12,FALSE) ->  | K172: =VLOOKUP($B$1&#REF!,FUNC13,12,FALSE) ->  | L172: =VLOOKUP($B$1&#REF!,FUNC14,12,FALSE) ->  | M172: 330627 | N172: 336041 | O172: 457233 | P172: 399444 | Q172: 460595.36
A173: 261 | C173: Textbooks & Related Media/Materials | D173: 261 | E173: Textbooks & Related Media/Materials | F173: =VLOOKUP($B$1&#REF!,FUNC08,12,FALSE) ->  | G173: =VLOOKUP($B$1&#REF!,FUNC09,12,FALSE) ->  | H173: =VLOOKUP($B$1&#REF!,FUNC10,12,FALSE) ->  | I173: =VLOOKUP($B$1&#REF!,FUNC11,12,FALSE) ->  | J173: =VLOOKUP($B$1&#REF!,FUNC12,12,FALSE) ->  | K173: =VLOOKUP($B$1&#REF!,FUNC13,12,FALSE) ->  | L173: =VLOOKUP($B$1&#REF!,FUNC14,12,FALSE) ->  | M173: 37220 | N173: 61414 | O173: 66892 | P173: 40522 | Q173: 33802.22
A174: 262 | C174: Other Instructional Materials | D174: 262 | E174: Other Instructional Materials | F174: =VLOOKUP($B$1&#REF!,FUNC08,12,FALSE) ->  | G174: =VLOOKUP($B$1&#REF!,FUNC09,12,FALSE) ->  | H174: =VLOOKUP($B$1&#REF!,FUNC10,12,FALSE) ->  | I174: =VLOOKUP($B$1&#REF!,FUNC11,12,FALSE) ->  | J174: =VLOOKUP($B$1&#REF!,FUNC12,12,FALSE) ->  | K174: =VLOOKUP($B$1&#REF!,FUNC13,12,FALSE) ->  | L174: =VLOOKUP($B$1&#REF!,FUNC14,12,FALSE) ->  | M174: 6241 | N174: 0 | O174: 22541 | P174: 42541 | Q174: 40162.61
A175: 263 | C175: Instructional Equipment | D175: 263 | E175: Instructional Equipment | F175: =VLOOKUP($B$1&#REF!,FUNC08,12,FALSE) ->  | G175: =VLOOKUP($B$1&#REF!,FUNC09,12,FALSE) ->  | H175: =VLOOKUP($B$1&#REF!,FUNC10,12,FALSE) ->  | I175: =VLOOKUP($B$1&#REF!,FUNC11,12,FALSE) ->  | J175: =VLOOKUP($B$1&#REF!,FUNC12,12,FALSE) ->  | K175: =VLOOKUP($B$1&#REF!,FUNC13,12,FALSE) ->  | L175: =VLOOKUP($B$1&#REF!,FUNC14,12,FALSE) ->  | M175: 29225 | N175: 24507 | O175: 25849 | P175: 23249 | Q175: 0
A176: 264 | C176: General Supplies | D176: 264 | E176: General Supplies | F176: =VLOOKUP($B$1&#REF!,FUNC08,12,FALSE) ->  | G176: =VLOOKUP($B$1&#REF!,FUNC09,12,FALSE) ->  | H176: =VLOOKUP($B$1&#REF!,FUNC10,12,FALSE) ->  | I176: =VLOOKUP($B$1&#REF!,FUNC11,12,FALSE) ->  | J176: =VLOOKUP($B$1&#REF!,FUNC12,12,FALSE) ->  | K176: =VLOOKUP($B$1&#REF!,FUNC13,12,FALSE) ->  | L176: =VLOOKUP($B$1&#REF!,FUNC14,12,FALSE) ->  | M176: 52068 | N176: 72424 | O176: 152814 | P176: 115678 | Q176: 83910.45
A177: 265 | C177: Other Instructional Services | D177: 265 | E177: Other Instructional Services | F177: =VLOOKUP($B$1&#REF!,FUNC08,12,FALSE) ->  | G177: =VLOOKUP($B$1&#REF!,FUNC09,12,FALSE) ->  | H177: =VLOOKUP($B$1&#REF!,FUNC10,12,FALSE) ->  | I177: =VLOOKUP($B$1&#REF!,FUNC11,12,FALSE) ->  | J177: =VLOOKUP($B$1&#REF!,FUNC12,12,FALSE) ->  | K177: =VLOOKUP($B$1&#REF!,FUNC13,12,FALSE) ->  | L177: =VLOOKUP($B$1&#REF!,FUNC14,12,FALSE) ->  | M177: 41824 | N177: 59646 | O177: 123399 | P177: 99763 | Q177: 77821.87
A178: 266 | C178: Classroom Instructional Technology | D178: 266 | E178: Classroom Instructional Technology Hardware | F178: =VLOOKUP($B$1&#REF!,FUNC08,12,FALSE) ->  | G178: =VLOOKUP($B$1&#REF!,FUNC09,12,FALSE) ->  | H178: =VLOOKUP($B$1&#REF!,FUNC10,12,FALSE) ->  | I178: =VLOOKUP($B$1&#REF!,FUNC11,12,FALSE) ->  | J178: =VLOOKUP($B$1&#REF!,FUNC12,12,FALSE) ->  | K178: =VLOOKUP($B$1&#REF!,FUNC13,12,FALSE) ->  | L178: =VLOOKUP($B$1&#REF!,FUNC14,12,FALSE) ->  | M178: 27304 | N178: 19973 | O178: 0 | P178: 0 | Q178: 4504.09
A179: 267 | C179: Other Instructional Hardware | D179: 267 | E179: Other Instructional Technology Hardware | F179: =VLOOKUP($B$1&#REF!,FUNC08,12,FALSE) ->  | G179: =VLOOKUP($B$1&#REF!,FUNC09,12,FALSE) ->  | H179: =VLOOKUP($B$1&#REF!,FUNC10,12,FALSE) ->  | I179: =VLOOKUP($B$1&#REF!,FUNC11,12,FALSE) ->  | J179: =VLOOKUP($B$1&#REF!,FUNC12,12,FALSE) ->  | K179: =VLOOKUP($B$1&#REF!,FUNC13,12,FALSE) ->  | L179: =VLOOKUP($B$1&#REF!,FUNC14,12,FALSE) ->  | M179: 0 | N179: 0 | O179: 8176 | P179: 0 | Q179: 0
A180: 268 | C180: Instructional Software | D180: 268a | E180: Classroom Instructional Software | F180: =VLOOKUP($B$1&#REF!,FUNC08,12,FALSE) ->  | G180: =VLOOKUP($B$1&#REF!,FUNC09,12,FALSE) ->  | H180: =VLOOKUP($B$1&#REF!,FUNC10,12,FALSE) ->  | I180: =VLOOKUP($B$1&#REF!,FUNC11,12,FALSE) ->  | J180: =VLOOKUP($B$1&#REF!,FUNC12,12,FALSE) ->  | K180: =VLOOKUP($B$1&#REF!,FUNC13,12,FALSE) ->  | L180: =VLOOKUP($B$1&#REF!,FUNC14,12,FALSE) ->  | M180: 6892 | N180: 17680 | O180: 6083 | P180: 23444 | Q180: 110344.12
A181: 269 | C181: Depreciation for Instructional Equipment | D181: 268b | E181: Other Instructional Software | F181: =VLOOKUP($B$1&#REF!,FUNC08,12,FALSE) ->  | G181: =VLOOKUP($B$1&#REF!,FUNC09,12,FALSE) ->  | H181: =VLOOKUP($B$1&#REF!,FUNC10,12,FALSE) ->  | I181: =VLOOKUP($B$1&#REF!,FUNC11,12,FALSE) ->  | J181: =VLOOKUP($B$1&#REF!,FUNC12,12,FALSE) ->  | K181: =VLOOKUP($B$1&#REF!,FUNC13,12,FALSE) ->  | L181: =VLOOKUP($B$1&#REF!,FUNC14,12,FALSE) ->  | M181: 129853 | N181: 80397 | O181: 51479 | P181: 54247 | Q181: 0
D182: 269 | E182: Depreciation for Furniture, Equipment & Technology | Q182: 110050
A184: 300 | C184: Pupil Services | D184: 300 | E184: Pupil Services | F184: =VLOOKUP($B$1&#REF!,FUNC08,12,FALSE) ->  | G184: =VLOOKUP($B$1&#REF!,FUNC09,12,FALSE) ->  | H184: =VLOOKUP($B$1&#REF!,FUNC10,12,FALSE) ->  | I184: =VLOOKUP($B$1&#REF!,FUNC11,12,FALSE) ->  | J184: =VLOOKUP($B$1&#REF!,FUNC12,12,FALSE) ->  | K184: =VLOOKUP($B$1&#REF!,FUNC13,12,FALSE) ->  | M184: =VLOOKUP($B$1&A184,FUNC15,12,FALSE) -> 1097495 | N184: =VLOOKUP($B$1&A184,FUNC16,12,FALSE) -> 1143895 | O184: =VLOOKUP($B$1&A184,FUNC17,12,FALSE) -> 1312650 | P184: =VLOOKUP($B$1&A184,FUNC18,12,FALSE) -> 1198348 | Q184: =VLOOKUP($B$1&D184,FUNC19,12,FALSE) -> 1313723.947
A185: 310 | C185: Health Services | D185: 310 | E185: Health Services | F185: =VLOOKUP($B$1&#REF!,FUNC08,12,FALSE) ->  | G185: =VLOOKUP($B$1&#REF!,FUNC09,12,FALSE) ->  | H185: =VLOOKUP($B$1&#REF!,FUNC10,12,FALSE) ->  | I185: =VLOOKUP($B$1&#REF!,FUNC11,12,FALSE) ->  | J185: =VLOOKUP($B$1&#REF!,FUNC12,12,FALSE) ->  | K185: =VLOOKUP($B$1&#REF!,FUNC13,12,FALSE) ->  | M185: 61011 | N185: 61840 | O185: 103510 | P185: 93237 | Q185: 144707.32
A186: 315 | C186: Health Services - Contracted | D186: 315 | E186: Health Services - Contracted | F186: =VLOOKUP($B$1&#REF!,FUNC08,12,FALSE) ->  | G186: =VLOOKUP($B$1&#REF!,FUNC09,12,FALSE) ->  | H186: =VLOOKUP($B$1&#REF!,FUNC10,12,FALSE) ->  | I186: =VLOOKUP($B$1&#REF!,FUNC11,12,FALSE) ->  | J186: =VLOOKUP($B$1&#REF!,FUNC12,12,FALSE) ->  | K186: =VLOOKUP($B$1&#REF!,FUNC13,12,FALSE) ->  | M186: 0 | N186: 2695 | O186: 0 | P186: 0 | Q186: 0
A187: 320 | C187: Athletic Services | D187: 320 | E187: Athletic Services (including Transportation) | F187: =VLOOKUP($B$1&#REF!,FUNC08,12,FALSE) ->  | G187: =VLOOKUP($B$1&#REF!,FUNC09,12,FALSE) ->  | H187: =VLOOKUP($B$1&#REF!,FUNC10,12,FALSE) ->  | I187: =VLOOKUP($B$1&#REF!,FUNC11,12,FALSE) ->  | J187: =VLOOKUP($B$1&#REF!,FUNC12,12,FALSE) ->  | K187: =VLOOKUP($B$1&#REF!,FUNC13,12,FALSE) ->  | M187: 21870 | N187: 22480 | O187: 35985 | P187: 29150 | Q187: 16330.4714
A188: 325 | C188: Athletic Services - Contracted | D188: 325 | E188: Athletic Services (including Transportation) - Contracted | F188: =VLOOKUP($B$1&#REF!,FUNC08,12,FALSE) ->  | G188: =VLOOKUP($B$1&#REF!,FUNC09,12,FALSE) ->  | H188: =VLOOKUP($B$1&#REF!,FUNC10,12,FALSE) ->  | I188: =VLOOKUP($B$1&#REF!,FUNC11,12,FALSE) ->  | J188: =VLOOKUP($B$1&#REF!,FUNC12,12,FALSE) ->  | K188: =VLOOKUP($B$1&#REF!,FUNC13,12,FALSE) ->  | M188: 49388 | N188: 46522 | O188: 73794 | P188: 110276 | Q188: 81603.69
A189: 330 | C189: Food Services | D189: 330 | E189: Food Services | F189: =VLOOKUP($B$1&#REF!,FUNC08,12,FALSE) ->  | G189: =VLOOKUP($B$1&#REF!,FUNC09,12,FALSE) ->  | H189: =VLOOKUP($B$1&#REF!,FUNC10,12,FALSE) ->  | I189: =VLOOKUP($B$1&#REF!,FUNC11,12,FALSE) ->  | J189: =VLOOKUP($B$1&#REF!,FUNC12,12,FALSE) ->  | K189: =VLOOKUP($B$1&#REF!,FUNC13,12,FALSE) ->  | M189: 26591 | N189: 28765 | O189: 46639 | P189: 47192 | Q189: 82108.10588
A190: 335 | C190: Food Services - Contracted | D190: 335 | E190: Food Services - Contracted | F190: =VLOOKUP($B$1&#REF!,FUNC08,12,FALSE) ->  | G190: =VLOOKUP($B$1&#REF!,FUNC09,12,FALSE) ->  | H190: =VLOOKUP($B$1&#REF!,FUNC10,12,FALSE) ->  | I190: =VLOOKUP($B$1&#REF!,FUNC11,12,FALSE) ->  | J190: =VLOOKUP($B$1&#REF!,FUNC12,12,FALSE) ->  | K190: =VLOOKUP($B$1&#REF!,FUNC13,12,FALSE) ->  | M190: 188037 | N190: 187026 | O190: 209472 | P190: 209980 | Q190: 201975
A191: 340 | C191: Student Transportation (to and from school) | D191: 340 | E191: Student Transportation (to and from school) | F191: =VLOOKUP($B$1&#REF!,FUNC08,12,FALSE) ->  | G191: =VLOOKUP($B$1&#REF!,FUNC09,12,FALSE) ->  | H191: =VLOOKUP($B$1&#REF!,FUNC10,12,FALSE) ->  | I191: =VLOOKUP($B$1&#REF!,FUNC11,12,FALSE) ->  | J191: =VLOOKUP($B$1&#REF!,FUNC12,12,FALSE) ->  | K191: =VLOOKUP($B$1&#REF!,FUNC13,12,FALSE) ->  | M191: 0 | N191: 0 | O191: 732685 | P191: 592074 | Q191: 0
A192: 345 | C192: Student Transportation (to and from school) | D192: 345 | E192: Student Transportation (to and from school) - Contracted | F192: =VLOOKUP($B$1&#REF!,FUNC08,12,FALSE) ->  | G192: =VLOOKUP($B$1&#REF!,FUNC09,12,FALSE) ->  | H192: =VLOOKUP($B$1&#REF!,FUNC10,12,FALSE) ->  | I192: =VLOOKUP($B$1&#REF!,FUNC11,12,FALSE) ->  | J192: =VLOOKUP($B$1&#REF!,FUNC12,12,FALSE) ->  | K192: =VLOOKUP($B$1&#REF!,FUNC13,12,FALSE) ->  | M192: 687460 | N192: 661079 | O192: 37954 | P192: 34380 | Q192: 664042
A193: 350 | C193: Depreciation of Transportation Vehicles | D193: 350 | E193: Depreciation of Transportation Vehicles | M193: 0 | N193: 0 | O193: 0 | P193: 0 | Q193: 0
A194: 360 | C194: Other Student Activities | D194: 360 | E194: Other Student Activities | M194: 63138 | N194: 133488 | O194: 72611 | P194: 82059 | Q194: 122957.36
A196: 400 | C196: Operation & Maintenance of Plant | D196: 400 | E196: Operation & Maintenance of Plant | F196: =VLOOKUP($B$1&#REF!,FUNC08,12,FALSE) ->  | G196: =VLOOKUP($B$1&#REF!,FUNC09,12,FALSE) ->  | H196: =VLOOKUP($B$1&#REF!,FUNC10,12,FALSE) ->  | I196: =VLOOKUP($B$1&#REF!,FUNC11,12,FALSE) ->  | J196: =VLOOKUP($B$1&#REF!,FUNC12,12,FALSE) ->  | K196: =VLOOKUP($B$1&#REF!,FUNC13,12,FALSE) ->  | M196: =VLOOKUP($B$1&A196,FUNC15,12,FALSE) -> 620708 | N196: =VLOOKUP($B$1&A196,FUNC16,12,FALSE) -> 504702 | O196: =VLOOKUP($B$1&A196,FUNC17,12,FALSE) -> 519775 | P196: =VLOOKUP($B$1&A196,FUNC18,12,FALSE) -> 520948 | Q196: =VLOOKUP($B$1&D196,FUNC19,12,FALSE) -> 619946.29
A197: 410 | C197: Operation & Maintenance of Buildings and Grounds | D197: 410 | E197: Operation & Maintenance of Buildings and Grounds | F197: =VLOOKUP($B$1&#REF!,FUNC08,12,FALSE) ->  | G197: =VLOOKUP($B$1&#REF!,FUNC09,12,FALSE) ->  | H197: =VLOOKUP($B$1&#REF!,FUNC10,12,FALSE) ->  | I197: =VLOOKUP($B$1&#REF!,FUNC11,12,FALSE) ->  | J197: =VLOOKUP($B$1&#REF!,FUNC12,12,FALSE) ->  | K197: =VLOOKUP($B$1&#REF!,FUNC13,12,FALSE) ->  | M197: =VLOOKUP($B$1&A197,FUNC15,12,FALSE) -> 337640 | N197: =VLOOKUP($B$1&A197,FUNC16,12,FALSE) -> 307930 | O197: =VLOOKUP($B$1&A197,FUNC17,12,FALSE) -> 344961 | P197: 346243 | Q197: =VLOOKUP($B$1&D197,FUNC19,12,FALSE) -> 411412.51
A198: 420 | C198: Utilities | D198: 420 | E198: Utilities | F198: =VLOOKUP($B$1&#REF!,FUNC08,12,FALSE) ->  | G198: =VLOOKUP($B$1&#REF!,FUNC09,12,FALSE) ->  | H198: =VLOOKUP($B$1&#REF!,FUNC10,12,FALSE) ->  | I198: =VLOOKUP($B$1&#REF!,FUNC11,12,FALSE) ->  | J198: =VLOOKUP($B$1&#REF!,FUNC12,12,FALSE) ->  | K198: =VLOOKUP($B$1&#REF!,FUNC13,12,FALSE) ->  | M198: =VLOOKUP($B$1&A198,FUNC15,12,FALSE) -> 224789 | N198: =VLOOKUP($B$1&A198,FUNC16,12,FALSE) -> 188456 | O198: =VLOOKUP($B$1&A198,FUNC17,12,FALSE) -> 173914 | P198: 174705 | Q198: =VLOOKUP($B$1&D198,FUNC19,12,FALSE) -> 186200.29
A199: 430 | C199: Maintenance of Equipment | D199: 430 | E199: Maintenance of Equipment | F199: =VLOOKUP($B$1&#REF!,FUNC08,12,FALSE) ->  | G199: =VLOOKUP($B$1&#REF!,FUNC09,12,FALSE) ->  | H199: =VLOOKUP($B$1&#REF!,FUNC10,12,FALSE) ->  | I199: =VLOOKUP($B$1&#REF!,FUNC11,12,FALSE) ->  | J199: =VLOOKUP($B$1&#REF!,FUNC12,12,FALSE) ->  | K199: =VLOOKUP($B$1&#REF!,FUNC13,12,FALSE) ->  | M199: =VLOOKUP($B$1&A199,FUNC15,12,FALSE) -> 5359 | N199: =VLOOKUP($B$1&A199,FUNC16,12,FALSE) -> 8316 | O199: =VLOOKUP($B$1&A199,FUNC17,12,FALSE) -> 900 | P199: 0 | Q199: =VLOOKUP($B$1&D199,FUNC19,12,FALSE) -> 0
A200: 440 | C200: Networking and Telecommunications | D200: 440 | E200: Networking and Telecommunications | F200: =VLOOKUP($B$1&#REF!,FUNC08,12,FALSE) ->  | G200: =VLOOKUP($B$1&#REF!,FUNC09,12,FALSE) ->  | H200: =VLOOKUP($B$1&#REF!,FUNC10,12,FALSE) ->  | I200: =VLOOKUP($B$1&#REF!,FUNC11,12,FALSE) ->  | J200: =VLOOKUP($B$1&#REF!,FUNC12,12,FALSE) ->  | K200: =VLOOKUP($B$1&#REF!,FUNC13,12,FALSE) ->  | M200: =VLOOKUP($B$1&A200,FUNC15,12,FALSE) -> 52920 | N200: =VLOOKUP($B$1&A200,FUNC16,12,FALSE) -> 0 | O200: =VLOOKUP($B$1&A200,FUNC17,12,FALSE) -> 0 | P200: 0 | Q200: =VLOOKUP($B$1&D200,FUNC19,12,FALSE) -> 22333.49
F201: =VLOOKUP($B$1&#REF!,FUNC08,12,FALSE) ->  | G201: =VLOOKUP($B$1&#REF!,FUNC09,12,FALSE) ->  | H201: =VLOOKUP($B$1&#REF!,FUNC10,12,FALSE) ->  | I201: =VLOOKUP($B$1&#REF!,FUNC11,12,FALSE) ->  | J201: =VLOOKUP($B$1&#REF!,FUNC12,12,FALSE) ->  | K201: =VLOOKUP($B$1&#REF!,FUNC13,12,FALSE) -> 
A204: 500 | C204: Fixed Charges | D204: 500 | E204: Fixed Charges | F204: =VLOOKUP($B$1&#REF!,FUNC08,12,FALSE) ->  | G204: =VLOOKUP($B$1&#REF!,FUNC09,12,FALSE) ->  | H204: =VLOOKUP($B$1&#REF!,FUNC10,12,FALSE) ->  | I204: =VLOOKUP($B$1&#REF!,FUNC11,12,FALSE) ->  | J204: =VLOOKUP($B$1&#REF!,FUNC12,12,FALSE) ->  | K204: =VLOOKUP($B$1&#REF!,FUNC13,12,FALSE) ->  | M204: =VLOOKUP($B$1&A204,FUNC15,12,FALSE) -> 1322055 | N204: =VLOOKUP($B$1&A204,FUNC16,12,FALSE) -> 1678030 | O204: =VLOOKUP($B$1&A204,FUNC17,12,FALSE) -> 2127697 | P204: =VLOOKUP($B$1&A204,FUNC18,12,FALSE) -> 2279997 | Q204: =VLOOKUP($B$1&D204,FUNC19,12,FALSE) -> 2395879.64
A205: 510 | C205: Employee Retirement | D205: 510 | E205: Employee Retirement & Taxes | F205: =VLOOKUP($B$1&#REF!,FUNC08,12,FALSE) ->  | G205: =VLOOKUP($B$1&#REF!,FUNC09,12,FALSE) ->  | H205: =VLOOKUP($B$1&#REF!,FUNC10,12,FALSE) ->  | I205: =VLOOKUP($B$1&#REF!,FUNC11,12,FALSE) ->  | J205: =VLOOKUP($B$1&#REF!,FUNC12,12,FALSE) ->  | K205: =VLOOKUP($B$1&#REF!,FUNC13,12,FALSE) ->  | M205: 680867 | N205: 1010988 | O205: 1404051 | P205: 1537985 | Q205: 1670252.9
A206: 520 | C206: Fringe Benefits | D206: 520 | E206: Fringe Benefits | F206: =VLOOKUP($B$1&#REF!,FUNC08,12,FALSE) ->  | G206: =VLOOKUP($B$1&#REF!,FUNC09,12,FALSE) ->  | H206: =VLOOKUP($B$1&#REF!,FUNC10,12,FALSE) ->  | I206: =VLOOKUP($B$1&#REF!,FUNC11,12,FALSE) ->  | J206: =VLOOKUP($B$1&#REF!,FUNC12,12,FALSE) ->  | K206: =VLOOKUP($B$1&#REF!,FUNC13,12,FALSE) ->  | M206: 594149 | N206: 615115 | O206: 652489 | P206: 692890 | Q206: 630452.96
A207: 530 | C207: Insurance (non-employee) | D207: 530 | E207: Insurance (non-employee) | F207: =VLOOKUP($B$1&#REF!,FUNC08,12,FALSE) ->  | G207: =VLOOKUP($B$1&#REF!,FUNC09,12,FALSE) ->  | H207: =VLOOKUP($B$1&#REF!,FUNC10,12,FALSE) ->  | I207: =VLOOKUP($B$1&#REF!,FUNC11,12,FALSE) ->  | J207: =VLOOKUP($B$1&#REF!,FUNC12,12,FALSE) ->  | K207: =VLOOKUP($B$1&#REF!,FUNC13,12,FALSE) ->  | M207: 47039 | N207: 51927 | O207: 71157 | P207: 49122 | Q207: 95173.78
A208: 550 | C208: Rental/Lease of Equipment | D208: 550 | E208: Rental/Lease of Equipment | F208: =VLOOKUP($B$1&#REF!,FUNC08,12,FALSE) ->  | G208: =VLOOKUP($B$1&#REF!,FUNC09,12,FALSE) ->  | H208: =VLOOKUP($B$1&#REF!,FUNC10,12,FALSE) ->  | I208: =VLOOKUP($B$1&#REF!,FUNC11,12,FALSE) ->  | J208: =VLOOKUP($B$1&#REF!,FUNC12,12,FALSE) ->  | K208: =VLOOKUP($B$1&#REF!,FUNC13,12,FALSE) ->  | M208: 0 | N208: 0 | O208: 0 | P208: 0 | Q208: 0
A209: 560 | C209: Short-Term Interest | D209: 560 | E209: Short-Term Interest | F209: =VLOOKUP($B$1&#REF!,FUNC08,12,FALSE) ->  | G209: =VLOOKUP($B$1&#REF!,FUNC09,12,FALSE) ->  | H209: =VLOOKUP($B$1&#REF!,FUNC10,12,FALSE) ->  | I209: =VLOOKUP($B$1&#REF!,FUNC11,12,FALSE) ->  | J209: =VLOOKUP($B$1&#REF!,FUNC12,12,FALSE) ->  | K209: =VLOOKUP($B$1&#REF!,FUNC13,12,FALSE) ->  | M209: 0 | N209: 0 | O209: 0 | P209: 0 | Q209: 0
A212: 600 | C212: Community Services | D212: 600 | E212: Community Services | F212: =VLOOKUP($B$1&#REF!,FUNC08,12,FALSE) ->  | G212: =VLOOKUP($B$1&#REF!,FUNC09,12,FALSE) ->  | H212: =VLOOKUP($B$1&#REF!,FUNC10,12,FALSE) ->  | I212: =VLOOKUP($B$1&#REF!,FUNC11,12,FALSE) ->  | J212: =VLOOKUP($B$1&#REF!,FUNC12,12,FALSE) ->  | K212: =VLOOKUP($B$1&#REF!,FUNC13,12,FALSE) ->  | M212: =VLOOKUP($B$1&A212,FUNC15,12,FALSE) -> 0 | N212: =VLOOKUP($B$1&A212,FUNC16,12,FALSE) -> 0 | O212: =VLOOKUP($B$1&A212,FUNC17,12,FALSE) -> 0 | P212: =VLOOKUP($B$1&A212,FUNC18,12,FALSE) -> 0 | Q212: =VLOOKUP($B$1&D212,FUNC19,12,FALSE) -> 186
A213: 610 | C213: Dissemination Activities | D213: 610 | E213: Dissemination Activities | F213: =VLOOKUP($B$1&#REF!,FUNC08,12,FALSE) ->  | G213: =VLOOKUP($B$1&#REF!,FUNC09,12,FALSE) ->  | H213: =VLOOKUP($B$1&#REF!,FUNC10,12,FALSE) ->  | I213: =VLOOKUP($B$1&#REF!,FUNC11,12,FALSE) ->  | J213: =VLOOKUP($B$1&#REF!,FUNC12,12,FALSE) ->  | K213: =VLOOKUP($B$1&#REF!,FUNC13,12,FALSE) ->  | M213: =VLOOKUP($B$1&A213,FUNC15,12,FALSE) -> 0 | N213: =VLOOKUP($B$1&A213,FUNC16,12,FALSE) -> 0 | O213: =VLOOKUP($B$1&A213,FUNC17,12,FALSE) -> 0 | P213: =VLOOKUP($B$1&A213,FUNC18,12,FALSE) -> 0 | Q213: =VLOOKUP($B$1&D213,FUNC19,12,FALSE) -> 0
A214: 620 | C214: Civic Activities | D214: 620 | E214: Civic Activities | F214: =VLOOKUP($B$1&#REF!,FUNC08,12,FALSE) ->  | G214: =VLOOKUP($B$1&#REF!,FUNC09,12,FALSE) ->  | H214: =VLOOKUP($B$1&#REF!,FUNC10,12,FALSE) ->  | I214: =VLOOKUP($B$1&#REF!,FUNC11,12,FALSE) ->  | J214: =VLOOKUP($B$1&#REF!,FUNC12,12,FALSE) ->  | K214: =VLOOKUP($B$1&#REF!,FUNC13,12,FALSE) ->  | M214: =VLOOKUP($B$1&A214,FUNC15,12,FALSE) -> 0 | N214: =VLOOKUP($B$1&A214,FUNC16,12,FALSE) -> 0 | O214: =VLOOKUP($B$1&A214,FUNC17,12,FALSE) -> 0 | P214: =VLOOKUP($B$1&A214,FUNC18,12,FALSE) -> 0 | Q214: =VLOOKUP($B$1&D214,FUNC19,12,FALSE) -> 186
... 11 more rows

Sheet Metric Parameters & Definitions
B2: Financial Metric Definitions | D2: Low Risk | E2: Moderate Risk | F2: Potentially High Risk
B3: 1. Current Ratio | C3: Current Ratio is a measure of operational efficiency and short-term financial health. CR is calculated as current assets divided by current liabilities. | D3: >= 1.5 | E3: Between 1.0 (inclusive) and 1.5 | F3: < 1.0
B4: 2. Unrestricted Days Cash | C4: The unrestricted days cash on hand ratio indicates how many days a school can pay its expenses without another inflow of cash. Calculated as Cash and Cash Equivalents divided by ([Total Expenses-Depreciated Expenses])/365). Please note that the Department of Revenue was late making June, 2019 tuition payments to many charter schools. | D4: >= 60 days | E4: Between 30 (inclusive) and 60 days | F4: < 30 days
B5: 3. Percentage of Program Paid by Tuition | C5: This measures the percentage of the schools total expenses that are funded entirely by tuition. Calculated as (Tuition + In-Kind Contributions) divided by Total Expenses (expressed as a percentage). Note: In-Kind Contribution are added to the numerator in this ratio to balance out In-Kind Expenditures which will be captured in the Total Expenses in the denominator, and ratios over 100% are set to 100%. | D5: >= 90% | E5: Between 75% (inclusive) and 90% | F5: < 75%
B6: 4. Percentage of Program Paid by Tuition & Federal Grants | C6: This measures the percentage of the schools total expenses that are funded by tuition and federal grants. Calculated as (Tuition + In-Kind Contributions + Federal Grants) divided by Total Expenses (expressed as a percentage). Note: In-Kind Contribution are added to the numerator in this ratio to balance out In-Kind Expenditures which will be captured in the Total Expenses in the denominator, and ratios over 100% are set to 100%. | D6: >= 90% | E6: Between 75% (inclusive) and 90% | F6: < 75%
B7: 5. Percentage of Total Revenue Expended on Facilities | C7: This measures the percentage of Total Revenue that is spent on Operation & Maintenance and Non-Operating Financing Expenses of Plant. Calculated as Operation & Maintenance plus Non-Operating Financing Expenses of Plant divided by Total Revenues (expressed as a percentage). | D7: <= 15% | E7: Between 15% and 30% (inclusive) | F7: > 30%
B8: 6. Change in Net Assets Percentage | C8: This measures a school's cash management efficiency. Calculated as Change in Net Assets divided by Total Revenue (Expressed as a percentage). | D8: Positive % | E8: Between -2% (inclusive) and 0% | F8: < -2%
B9: 7. Debt to Asset Ratio | C9: Measures the extent to which the school relies on borrowed funds to finance its operations. Calculated as Total Liabilities divided by Total Assets. | D9: <= .9 | E9: Between .9 and 1 (inclusive) | F9: > 1
B10: FY18 MA AVG Column | C10: All financial metrics indicated in this column are a result of each ratio calculated using statewide totals. For Enrollment, Total Net Assets and Total Expenditures rows, these numbers are averages calculated using the statewide totals of all charter schools’ data.

Sheet Metrics (hidden)
B2: ='Financial Statements'!C1 -> Academy of the Pacific Rim Charter Public School
B4: 5-Year Financial Metric Detail
T6: FY08 | U6: FY09 | V6: FY10 | W6: FY11 | X6: FY12 | Y6: FY13 | Z6: FY14 | AA6: FY15 | AB6: FY16 | AC6: FY17 | AD6: FY18 | AE6: FY19 | AF6: Average | AG6: FY19 State Avg
B7: 1 | G7: Current Ratio | T7: ='Financial Statements'!$F$16/'Financial Statements'!$F$39 -> 4.267431231 | U7: ='Financial Statements'!$G$16/'Financial Statements'!$G$39 -> 5.062348248 | V7: ='Financial Statements'!$H$16/'Financial Statements'!$H$39 -> 3.33290347 | W7: ='Financial Statements'!$I$16/'Financial Statements'!$I$39 -> 3.653426766 | X7: ='Financial Statements'!$J$16/'Financial Statements'!$J$39 -> 3.835767123 | Y7: ='Financial Statements'!$K$16/'Financial Statements'!$K$39 -> 4.111373434 | Z7: ='Financial Statements'!$L$16/'Financial Statements'!$L$39 ->  | AA7: ='Financial Statements'!$M$16/'Financial Statements'!$M$39 -> 3.625929631 | AB7: ='Financial Statements'!$N$16/'Financial Statements'!$N$39 -> 3.690695152 | AC7: ='Financial Statements'!$O$16/'Financial Statements'!$O$39 -> 4.76486026 | AD7: ='Financial Statements'!$P$16/'Financial Statements'!$P$39 -> 4.43413655 | AE7: ='Financial Statements'!$Q$16/'Financial Statements'!$Q$39 -> 4.937038536 | AF7: =AVERAGE(IF(ISNUMBER(AA7:AE7),AA7:AE7)) -> 4.290532026 | AG7: =BAL19_RAW!G3376/BAL19_RAW!G3394 -> 3.609948376
B8: Explanation: Current Ratio (CR) is a measure of operational efficiency and short-term financial health. CR is calculated as current assets divided by current liabilities.
B10: FY8 | C10: FY9 | D10: FY10 | E10: FY11 | F10: FY12 | G10: FY13 | H10: FY14 | I10: FY15 | J10: FY16 | K10: FY17 | L10: FY18 | M10: FY19 | N10: Avg | O10: FY19 State Avg
B11: p | C11: p | D11: p | E11: p | F11: p | G11: p | H11: p | I11: p | J11: p | K11: p | L11: p | M11: p | Q11: Low Risk:
B12: =IF($T$7>=1.5,"X"," ") -> X | C12: =IF($U$7>=1.5,"X"," ") -> X | D12: =IF($V$7>=1.5,"X"," ") -> X | E12: =IF($W$7>=1.5,"X"," ") -> X | F12: =IF($X$7>=1.5,"X"," ") -> X | G12: =IF($Y$7>=1.5,"X"," ") -> X | H12: =IF($Z$7>=1.5,"X"," ") ->  | I12: =IF($AA$7>=1.5,"X"," ") -> X | J12: =IF($AB$7>=1.5,"X"," ") -> X | K12: =IF($AC$7>=1.5,"X"," ") -> X | L12: =IF($AD$7>=1.5,"X"," ") -> X | M12: =IF($AE$7>=1.5,"X"," ") -> X | N12: =IF($AF$7>=1.5,"X"," ") -> X | O12: =IF($AG$7>=1.5,"X"," ") -> X | Q12: CR is greater than or equal to 1.5
B14: t | C14: t | D14: t | E14: t | F14: t | G14: t | H14: t | I14: t | J14: t | K14: t | L14: t | M14: t | Q14: Moderate Risk:
B15: =(IF($T$7<1," ",IF($T$7>=1.5," ","X"))) ->  | C15: =(IF($U$7<1," ",IF($U$7>=1.5," ","X"))) ->  | D15: =(IF($V$7<1," ",IF($V$7>=1.5," ","X"))) ->  | E15: =(IF($W$7<1," ",IF($W$7>=1.5," ","X"))) ->  | F15: =(IF($X$7<1," ",IF($X$7>=1.5," ","X"))) ->  | G15: =(IF($Y$7<1," ",IF($Y$7>=1.5," ","X"))) ->  | H15: =(IF($Z$7<1," ",IF($Z$7>=1.5," ","X"))) ->  | I15: =(IF($AA$7<1," ",IF($AA$7>=1.5," ","X"))) ->  | J15: =(IF($AB$7<1," ",IF($AB$7>=1.5," ","X"))) ->  | K15: =(IF($AC$7<1," ",IF($AC$7>=1.5," ","X"))) ->  | L15: =(IF($AD$7<1," ",IF($AD$7>=1.5," ","X"))) ->  | M15: =(IF($AE$7<1," ",IF($AE$7>=1.5," ","X"))) ->  | N15: =(IF($AF$7<1," ",IF($AF$7>=1.5," ","X"))) ->  | O15: =(IF($AG$7<1," ",IF($AG$7>=1.5," ","X"))) ->  | Q15: Current Ratio is between 1 (inclusive) and 1.5
B17: q | C17: q | D17: q | E17: q | F17: q | G17: q | H17: q | I17: q | J17: q | K17: q | L17: q | M17: q | Q17: Potentially High Risk:
B18: =(IF($T$7<1,"X"," ")) ->  | C18: =(IF($U$7<1,"X"," ")) ->  | D18: =(IF($V$7<1,"X"," ")) ->  | E18: =(IF($W$7<1,"X"," ")) ->  | F18: =(IF($X$7<1,"X"," ")) ->  | G18: =(IF($Y$7<1,"X"," ")) ->  | H18: =(IF($Z$7<1,"X"," ")) ->  | I18: =(IF($AA$7<1,"X"," ")) ->  | J18: =(IF($AB$7<1,"X"," ")) ->  | K18: =(IF($AC$7<1,"X"," ")) ->  | L18: =(IF($AD$7<1,"X"," ")) ->  | M18: =(IF($AE$7<1,"X"," ")) ->  | N18: =(IF($AF$7<1,"X"," ")) ->  | O18: =(IF($AG$7<1,"X"," ")) ->  | Q18: Current ratio is less than 1
T20: FY08 | U20: FY09 | V20: FY10 | W20: FY11 | X20: FY12 | Y20: FY13 | Z20: FY14 | AA20: FY15 | AB20: FY16 | AC20: FY17 | AD20: FY18 | AE20: FY19 | AF20: Average | AG20: FY19 State Avg
B21: 2 | G21: Unrestricted Days Cash | T21: ='Financial Statements'!F5/(('Financial Statements'!F97-'Financial Statements'!F128-'Financial Statements'!F181-'Financial Statements'!F189-'Financial Statements'!F222)/365) ->  | U21: ='Financial Statements'!G5/(('Financial Statements'!G97-'Financial Statements'!G128-'Financial Statements'!G181-'Financial Statements'!G189-'Financial Statements'!G222)/365) ->  | V21: ='Financial Statements'!H5/(('Financial Statements'!H97-'Financial Statements'!H128-'Financial Statements'!H181-'Financial Statements'!H189-'Financial Statements'!H222)/365) ->  | W21: ='Financial Statements'!I5/(('Financial Statements'!I97-'Financial Statements'!I128-'Financial Statements'!I181-'Financial Statements'!I189-'Financial Statements'!I222)/365) ->  | X21: ='Financial Statements'!J5/(('Financial Statements'!J97-'Financial Statements'!J128-'Financial Statements'!J181-'Financial Statements'!J189-'Financial Statements'!J222)/365) ->  | Y21: ='Financial Statements'!K5/(('Financial Statements'!K97-'Financial Statements'!K128-'Financial Statements'!K181-'Financial Statements'!K189-'Financial Statements'!K222)/365) ->  | Z21: ='Financial Statements'!L5/(('Financial Statements'!L97-'Financial Statements'!L128-'Financial Statements'!L181-'Financial Statements'!L189-'Financial Statements'!L222)/365) ->  | AA21: ='Financial Statements'!M5/(('Financial Statements'!M97-'Financial Statements'!M128-'Financial Statements'!M181-'Financial Statements'!M193-'Financial Statements'!M222)/365) -> 140.1322585 | AB21: ='Financial Statements'!N5/(('Financial Statements'!N97-'Financial Statements'!N128-'Financial Statements'!N181-'Financial Statements'!N193-'Financial Statements'!N222)/365) -> 134.7470703 | AC21: ='Financial Statements'!O5/(('Financial Statements'!O97-'Financial Statements'!O128-'Financial Statements'!O181-'Financial Statements'!O193-'Financial Statements'!O222)/365) -> 111.0744495 | AD21: ='Financial Statements'!P5/(('Financial Statements'!P97-'Financial Statements'!P128-'Financial Statements'!P181-'Financial Statements'!P193-'Financial Statements'!P222)/365) -> 134.1298661 | AE21: ='Financial Statements'!Q5/(('Financial Statements'!Q97-'Financial Statements'!Q118-'Financial Statements'!Q182-'Financial Statements'!Q193-'Financial Statements'!Q222)/365) -> 117.4659779 | AF21: =AVERAGE(IF(ISNUMBER(AA21:AD21),AA21:AD21)) -> 130.0209111 | AG21: =BAL19_RAW!G3365/((INC19_RAW!G3565-FE19_RAW!M7393-FE19_RAW!M7436-FE19_RAW!M7446-FE19_RAW!M7467)/365) -> 66.94362819
B22: Explanation: The unrestricted days cash on hand ratio indicates how many days a school can pay its expenses without another inflow of cash. Calculated as Cash and Cash Equivalents divided by (Total Expenses/365).
B24: FY8 | C24: FY9 | D24: FY10 | E24: FY11 | F24: FY12 | G24: FY13 | H24: FY14 | I24: FY15 | J24: FY16 | K24: FY17 | L24: FY18 | M24: FY19 | N24: Avg | O24: FY19 State Avg | W24: FY14 and Forward
B25: p | C25: p | D25: p | E25: p | F25: p | G25: p | H25: p | I25: p | J25: p | K25: p | L25: p | M25: p | Q25: Low Risk: | W25: Low Risk:
B26: =IF($T$21>=75,"X"," ") ->  | C26: =IF($U$21>=75,"X"," ") ->  | D26: =IF($V$21>=75,"X"," ") ->  | E26: =IF($W$21>=75,"X"," ") ->  | F26: =IF($X$21>=75,"X"," ") ->  | G26: =IF($Y$21>=75,"X"," ") ->  | H26: =IF($Z$21>=60,"X"," ") ->  | I26: =IF($AA$21>=60,"X"," ") -> X | J26: =IF($AB$21>=60,"X"," ") -> X | K26: =IF($AC$21>=60,"X"," ") -> X | L26: =IF($AD$21>=60,"X"," ") -> X | M26: =IF($AE$21>=60,"X"," ") -> X | N26: =IF($AF$21>=75,"X"," ") -> X | O26: =IF(AG21>=60,"X"," ") -> X | Q26: 75 days or more of cash | W26: 60 days or more of cash
B28: t | C28: t | D28: t | E28: t | F28: t | G28: t | H28: t | I28: t | J28: t | K28: t | L28: t | M28: t | Q28: Moderate Risk: | W28: Moderate Risk:
B29: =IF($T$21<45," ",IF($T$21>=75," ","X")) ->  | C29: =IF($U$21<45," ",IF($U$21>=75," ","X")) ->  | D29: =IF($V$21<45," ",IF($V$21>=75," ","X")) ->  | E29: =IF($W$21<45," ",IF($W$21>=75," ","X")) ->  | F29: =IF($X$21<45," ",IF($X$21>=75," ","X")) ->  | G29: =IF($Y$21<45," ",IF($Y$21>=75," ","X")) ->  | H29: =IF($Z$21<30," ",IF($Z$21>=60," ","X")) ->  | I29: =IF($AA$21<30," ",IF($AA$21>=60," ","X")) ->  | J29: =IF($AB$21<30," ",IF($AB$21>=60," ","X")) ->  | K29: =IF($AC$21<30," ",IF($AC$21>=60," ","X")) ->  | L29: =IF($AD$21<30," ",IF($AD$21>=60," ","X")) ->  | M29: =IF($AE$21<30," ",IF($AE$21>=60," ","X")) ->  | N29: =IF($AF$21<45," ",IF($AF$21>=75," ","X")) ->  | O29: =IF(AG21<30," ",IF(AG21>=60," ","X")) ->  | Q29: Days Cash is between 45 (inclusive) and 75 | W29: Days Cash is between 30 (inclusive) and 60
B31: q | C31: q | D31: q | E31: q | F31: q | G31: q | H31: q | I31: q | J31: q | K31: q | L31: q | M31: q | Q31: Potentially High Risk: | W31: Potentially High Risk:
B32: =(IF($T$21<45,"X"," ")) ->  | C32: =(IF($U$21<45,"X"," ")) ->  | D32: =(IF($V$21<45,"X"," ")) ->  | E32: =(IF($W$21<45,"X"," ")) ->  | F32: =(IF($X$21<45,"X"," ")) ->  | G32: =(IF($Y$21<45,"X"," ")) ->  | H32: =(IF($Z$21<30,"X"," ")) ->  | I32: =(IF($AA$21<30,"X"," ")) ->  | J32: =(IF($AB$21<30,"X"," ")) ->  | K32: =(IF($AC$21<30,"X"," ")) ->  | L32: =(IF($AD$21<30,"X"," ")) ->  | M32: =(IF($AE$21<30,"X"," ")) ->  | N32: =(IF($AF$21<45,"X"," ")) ->  | O32: =(IF(AG21<30,"X"," ")) ->  | Q32: Less than 45 Days Cash | W32: Less than 30 Days Cash
T34: FY08 | U34: FY09 | V34: FY10 | W34: FY11 | X34: FY12 | Y34: FY13 | Z34: FY14 | AA34: FY15 | AB34: FY16 | AC34: FY17 | AD34: FY18 | AE34: FY19 | AF34: Average | AG34: FY19 State Avg
B35: 3 | G35: Percentage of Program Paid by Tuition | T35: =('Financial Statements'!$F$56+'Financial Statements'!$F$70+'Financial Statements'!$F$71)/'Financial Statements'!$F$97 -> 0.8993750166 | U35: =('Financial Statements'!$G$56+'Financial Statements'!$G$70+'Financial Statements'!$G$71)/'Financial Statements'!$G$97 -> 0.9327176772 | V35: =('Financial Statements'!$H$56+'Financial Statements'!$H$70+'Financial Statements'!$H$71)/'Financial Statements'!$H$97 -> 0.968001701 | W35: =('Financial Statements'!$I$56+'Financial Statements'!$I$70+'Financial Statements'!$I$71)/'Financial Statements'!$I$97 -> 0.9753032516 | X35: =('Financial Statements'!$J$56+'Financial Statements'!$J$70+'Financial Statements'!$J$71)/'Financial Statements'!$J$97 -> 0.9387595289 | Y35: =('Financial Statements'!$K$56+'Financial Statements'!$K$70+'Financial Statements'!$K$71)/'Financial Statements'!$K$97 -> 0.9569967917 | Z35: =('Financial Statements'!L56+'Financial Statements'!L70+'Financial Statements'!L71)/'Financial Statements'!L97 ->  | AA35: =('Financial Statements'!M56+'Financial Statements'!M70+'Financial Statements'!M71)/'Financial Statements'!M97 -> 0.9595013329 | AB35: =('Financial Statements'!N56+'Financial Statements'!N70+'Financial Statements'!N71+'Financial Statements'!N72)/'Financial Statements'!N97 -> 0.9637592406 | AC35: =('Financial Statements'!O56+'Financial Statements'!O70+'Financial Statements'!O71+'Financial Statements'!O72)/'Financial Statements'!O97 -> 0.8693279988 | AD35: =('Financial Statements'!P56+'Financial Statements'!P70+'Financial Statements'!P71+'Financial Statements'!P72)/'Financial Statements'!P97 -> 0.9290970022 | AE35: =('Financial Statements'!Q56+'Financial Statements'!Q70+'Financial Statements'!Q71+'Financial Statements'!Q72)/'Financial Statements'!Q97 -> 0.93590208 | AF35: =AVERAGE(IF(ISNUMBER(AA35:AE35),AA35:AE35)) -> 0.9315175309 | AG35: =(INC19_RAW!G3529+INC19_RAW!G3543+INC19_RAW!G3544+INC19_RAW!G3545)/INC19_RAW!G3565 -> 0.9134790953
B36: Explanation: measures the percentage of the schools total expenses that are funded entirely by tuition. Calculated as (Tuition + In-Kind Contributions) divided by Total Expenses.
B37: *Informational only
B38: FY8 | C38: FY9 | D38: FY10 | E38: FY11 | F38: FY12 | G38: FY13 | H38: FY14 | I38: FY15 | J38: FY16 | K38: FY17 | L38: FY18 | M38: FY19 | N38: Avg | O38: FY19 State Avg
B39: p | C39: p | D39: p | E39: p | F39: p | G39: p | H39: p | I39: p | J39: p | K39: p | L39: p | M39: p | Q39: Low Risk:
B40: =IF($T$35>=90%, "X", " ") ->  | C40: =IF($U$35>=90%, "X", " ") -> X | D40: =IF($V$35>=90%, "X", " ") -> X | E40: =IF($W$35>=90%, "X", " ") -> X | F40: =IF($X$35>=90%, "X", " ") -> X | G40: =IF($Y$35>=90%, "X", " ") -> X | H40: =IF($Z$35>=90%, "X", " ") ->  | I40: =IF($AA$35>=90%, "X", " ") -> X | J40: =IF($AB$35>=90%, "X", " ") -> X | K40: =IF($AC$35>=90%, "X", " ") ->  | L40: =IF($AD$35>=90%, "X", " ") -> X | M40: =IF($AE$35>=90%, "X", " ") -> X | N40: =IF($AF$35>=90%, "X", " ") -> X | O40: =IF(AG35>=90%, "X", " ") -> X | Q40: 90% or more of total expenses means the school can fund entire program with tuition funds
B42: t | C42: t | D42: t | E42: t | F42: t | G42: t | H42: t | I42: t | J42: t | K42: t | L42: t | M42: t | Q42: Moderate Risk:
B43: =(IF($T$35<75%," ",IF($T$35>=90%," ","X"))) -> X | C43: =(IF($U$35<75%," ",IF($U$35>=90%," ","X"))) ->  | D43: =(IF($V$35<75%," ",IF($V$35>=90%," ","X"))) ->  | E43: =(IF($W$35<75%," ",IF($W$35>=90%," ","X"))) ->  | F43: =(IF($X$35<75%," ",IF($X$35>=90%," ","X"))) ->  | G43: =(IF($Y$35<75%," ",IF($Y$35>=90%," ","X"))) ->  | H43: =(IF($Z$35<75%," ",IF($Z$35>=90%," ","X"))) ->  | I43: =(IF($AA$35<75%," ",IF($AA$35>=90%," ","X"))) ->  | J43: =(IF($AB$35<75%," ",IF($AB$35>=90%," ","X"))) ->  | K43: =(IF($AC$35<75%," ",IF($AC$35>=90%," ","X"))) -> X | L43: =(IF($AD$35<75%," ",IF($AD$35>=90%," ","X"))) ->  | M43: =(IF($AE$35<75%," ",IF($AE$35>=90%," ","X"))) ->  | N43: =(IF($AF$35<75%," ",IF($AF$35>=90%," ","X"))) ->  | O43: =(IF(AG35<75%," ",IF(AG35>=90%," ","X"))) ->  | Q43: Between 75% (inclusive) and 90% of total expenses can be funded by tuition revenue
B45: q | C45: q | D45: q | E45: q | F45: q | G45: q | H45: q | I45: q | J45: q | K45: q | L45: q | M45: q | Q45: Potentially High Risk:
B46: =IF($T$35<75%, "X", " ") ->  | C46: =IF($U$35<75%, "X", " ") ->  | D46: =IF($V$35<75%, "X", " ") ->  | E46: =IF($W$35<75%, "X", " ") ->  | F46: =IF($X$35<75%, "X", " ") ->  | G46: =IF($Y$35<75%, "X", " ") ->  | H46: =IF($Z$35<75%, "X", " ") ->  | I46: =IF($AA$35<75%, "X", " ") ->  | J46: =IF($AB$35<75%, "X", " ") ->  | K46: =IF($AC$35<75%, "X", " ") ->  | L46: =IF($AD$35<75%, "X", " ") ->  | M46: =IF($AE$35<75%, "X", " ") ->  | N46: =IF($AF$35<75%, "X", " ") ->  | O46: =IF(AG35<75%, "X", " ") ->  | Q46: Below 75% of total expenses can be funded by tuition revenue
T48: FY08 | U48: FY09 | V48: FY10 | W48: FY11 | X48: FY12 | Y48: FY13 | Z48: FY14 | AA48: FY15 | AB48: FY16 | AC48: FY17 | AD48: FY18 | AE48: FY19 | AF48: Average | AG48: FY19 State Avg
B49: 5 | G49: Percentage of Total Revenue Expended on Facilities | T49: =('Financial Statements'!$F$91+'Financial Statements'!$F$94)/'Financial Statements'!$F$85 -> 0.2501856961 | U49: =('Financial Statements'!$G$91+'Financial Statements'!$G$94)/'Financial Statements'!$G$85 -> 0.2616891167 | V49: =('Financial Statements'!$H$91+'Financial Statements'!$H$94)/'Financial Statements'!$H$85 -> 0.2492349143 | W49: =('Financial Statements'!$I$91+'Financial Statements'!$I$94)/'Financial Statements'!$I$85 -> 0.2310031064 | X49: =('Financial Statements'!$J$91+'Financial Statements'!$J$94)/'Financial Statements'!$J$85 -> 0.2092392603 | Y49: =('Financial Statements'!$K$91+'Financial Statements'!$K$94)/'Financial Statements'!$K$85 -> 0.1958499879 | Z49: =('Financial Statements'!L91+'Financial Statements'!L94)/'Financial Statements'!L85 ->  | AA49: =('Financial Statements'!M91+'Financial Statements'!M94)/'Financial Statements'!M85 -> 0.1947946677 | AB49: =('Financial Statements'!N91+'Financial Statements'!N94)/'Financial Statements'!N85 -> 0.1788247226 | AC49: =('Financial Statements'!O91+'Financial Statements'!O94)/'Financial Statements'!O85 -> 0.221947689 | AD49: =('Financial Statements'!P91+'Financial Statements'!P94)/'Financial Statements'!P85 -> 0.1385891134 | AE49: =('Financial Statements'!Q91+'Financial Statements'!Q94)/'Financial Statements'!Q85 -> 0.1375177578 | AF49: =AVERAGE(IF(ISNUMBER(AA49:AE49),AA49:AE49)) -> 0.1743347901 | AG49: =(INC19_RAW!G3559+INC19_RAW!G3562)/INC19_RAW!G3555 -> 0.1390657405
B50: Explanation: This measures the percentage of Total Revenue that is spent on Operation & Maintenance and Non-Operating Financing Expenses of Plant. Calculated as Operation & Maintenance plus Non-Operating Financing Expenses of Plant divided by Total Revenues (expressed as a percentage).
B51: FY8 | C51: FY9 | D51: FY10 | E51: FY11 | F51: FY12 | G51: FY13 | H51: FY14 | I51: FY15 | J51: FY16 | K51: FY17 | L51: FY18 | M51: FY19 | N51: Avg | O51: FY19 State Avg
B52: p | C52: p | D52: p | E52: p | F52: p | G52: p | H52: p | I52: p | J52: p | K52: p | L52: p | M52: p | Q52: Low Risk:
B53: =IF($T$49<=15%, "X", " ") ->  | C53: =IF($U$49<=15%, "X", " ") ->  | D53: =IF($V$49<=15%, "X", " ") ->  | E53: =IF($W$49<=15%, "X", " ") ->  | F53: =IF($X$49<=15%, "X", " ") ->  | G53: =IF($Y$49<=15%, "X", " ") ->  | H53: =IF($Z$49<=15%, "X", " ") ->  | I53: =IF($AA$49<=15%, "X", " ") ->  | J53: =IF($AB$49<=15%, "X", " ") ->  | K53: =IF($AC$49<=15%, "X", " ") ->  | L53: =IF($AD$49<=15%, "X", " ") -> X | M53: =IF($AE$49<=15%, "X", " ") -> X | N53: =IF($AF$49<=15%, "X", " ") ->  | O53: =IF(AG49<=15%, "X", " ") -> X | Q53: 15% or less
B55: t | C55: t | D55: t | E55: t | F55: t | G55: t | H55: t | I55: t | J55: t | K55: t | L55: t | M55: t | Q55: Moderate Risk:
B56: =IF($T$49<=15%," ",IF($T$49>30%," ","X")) -> X | C56: =IF($U$49<=15%," ",IF($U$49>30%," ","X")) -> X | D56: =IF($V$49<=15%," ",IF($V$49>30%," ","X")) -> X | E56: =IF($W$49<=15%," ",IF($W$49>30%," ","X")) -> X | F56: =IF($X$49<=15%," ",IF($X$49>30%," ","X")) -> X | G56: =IF($Y$49<=15%," ",IF($Y$49>30%," ","X")) -> X | H56: =IF($Z$49<=15%," ",IF($Z$49>30%," ","X")) ->  | I56: =IF($AA$49<=15%," ",IF($AA$49>30%," ","X")) -> X | J56: =IF($AB$49<=15%," ",IF($AB$49>30%," ","X")) -> X | K56: =IF($AC$49<=15%," ",IF($AC$49>30%," ","X")) -> X | L56: =IF($AD$49<=15%," ",IF($AD$49>30%," ","X")) ->  | M56: =IF($AE$49<=15%," ",IF($AE$49>30%," ","X")) ->  | N56: =IF($AF$49<=15%," ",IF($AF$49>30%," ","X")) -> X | O56: =IF(AG49<=15%," ",IF(AG49>30%," ","X")) ->  | Q56: Between 15% and 30% (inclusive)
B58: q | C58: q | D58: q | E58: q | F58: q | G58: q | H58: q | I58: q | J58: q | K58: q | L58: q | M58: q | Q58: Potentially High Risk:
B59: =IF($T$49>30%, "X", " ") ->  | C59: =IF($U$49>30%, "X", " ") ->  | D59: =IF($V$49>30%, "X", " ") ->  | E59: =IF($W$49>30%, "X", " ") ->  | F59: =IF($X$49>30%, "X", " ") ->  | G59: =IF($Y$49>30%, "X", " ") ->  | H59: =IF($Z$49>30%, "X", " ") ->  | I59: =IF($AA$49>30%, "X", " ") ->  | J59: =IF($AB$49>30%, "X", " ") ->  | K59: =IF($AC$49>30%, "X", " ") ->  | L59: =IF($AD$49>30%, "X", " ") ->  | M59: =IF($AE$49>30%, "X", " ") ->  | N59: =IF($AF$49>30%, "X", " ") ->  | O59: =IF(AG49>30%, "X", " ") ->  | Q59: More than 30%
T61: FY08 | U61: FY09 | V61: FY10 | W61: FY11 | X61: FY12 | Y61: FY13 | Z61: FY14 | AA61: FY15 | AB61: FY16 | AC61: FY17 | AD61: FY18 | AE61: FY19 | AF61: Average | AG61: FY19 State Avg
B62: 6 | G62: Change in Net Assets Percentage | T62: ='Financial Statements'!$F$102/'Financial Statements'!$F$85 -> 0.08377317469 | U62: ='Financial Statements'!$G$102/'Financial Statements'!$G$85 -> 0.03224910288 | V62: ='Financial Statements'!$H$102/'Financial Statements'!$H$85 -> 0.08513206345 | W62: ='Financial Statements'!$I$102/'Financial Statements'!$I$85 -> 0.08553559099 | X62: ='Financial Statements'!$J$102/'Financial Statements'!$J$85 -> 0.03771463736 | Y62: ='Financial Statements'!$K$102/'Financial Statements'!$K$85 -> 0.04852346399 | Z62: ='Financial Statements'!L102/'Financial Statements'!L85 ->  | AA62: ='Financial Statements'!M102/'Financial Statements'!M85 -> 0.01824820597 | AB62: ='Financial Statements'!N102/'Financial Statements'!N85 -> 0.02908747242 | AC62: ='Financial Statements'!O102/'Financial Statements'!O85 -> -0.06393562069 | AD62: ='Financial Statements'!P102/'Financial Statements'!P85 -> 0.04051594583 | AE62: ='Financial Statements'!Q102/'Financial Statements'!Q85 -> -0.02524826349 | AF62: =AVERAGE(IF(ISNUMBER(AA62:AE62),AA62:AE62)) -> -0.0002664519918 | AG62: =INC19_RAW!G3569/INC19_RAW!G3555 -> 0.00390427247
B63: Explanation: This measures a school's cash management efficiency. Calculated as Change in Net Assets divided by Total Revenue (Expressed as both a percentage and a ratio).
B65: FY8 | C65: FY9 | D65: FY10 | E65: FY11 | F65: FY12 | G65: FY13 | H65: FY14 | I65: FY15 | J65: FY16 | K65: FY17 | L65: FY18 | M65: FY19 | N65: Avg | O65: FY19 State Avg
B66: p | C66: p | D66: p | E66: p | F66: p | G66: p | H66: p | I66: p | J66: p | K66: p | L66: p | M66: p | Q66: Low Risk:
B67: =IF($T$62>0, "X", " ") -> X | C67: =IF($U$62>0, "X", " ") -> X | D67: =IF($V$62>0, "X", " ") -> X | E67: =IF($W$62>0, "X", " ") -> X | F67: =IF($X$62>0, "X", " ") -> X | G67: =IF($Y$62>0, "X", " ") -> X | H67: =IF($Z$62>0, "X", " ") ->  | I67: =IF($AA$62>0, "X", " ") -> X | J67: =IF($AB$62>0, "X", " ") -> X | K67: =IF($AC$62>0, "X", " ") ->  | L67: =IF($AD$62>0, "X", " ") -> X | M67: =IF($AE$62>0, "X", " ") ->  | N67: =IF($AF$62>0, "X", " ") ->  | O67: =IF(AG62>0, "X", " ") -> X | Q67: Change in Net Assests % is positive
B69: t | C69: t | D69: t | E69: t | F69: t | G69: t | H69: t | I69: t | J69: t | K69: t | L69: t | M69: t | Q69: Moderate Risk:
B70: =IF($T$62<-2%," ",IF($T$62>0%," ","X")) ->  | C70: =IF($U$62<-2%," ",IF($U$62>0%," ","X")) ->  | D70: =IF($V$62<-2%," ",IF($V$62>0%," ","X")) ->  | E70: =IF($W$62<-2%," ",IF($W$62>0%," ","X")) ->  | F70: =IF($X$62<-2%," ",IF($X$62>0%," ","X")) ->  | G70: =IF($Y$62<-2%," ",IF($Y$62>0%," ","X")) ->  | H70: =IF($Z$62<-2%," ",IF($Z$62>0%," ","X")) ->  | I70: =IF($AA$62<-2%," ",IF($AA$62>0%," ","X")) ->  | J70: =IF($AB$62<-2%," ",IF($AB$62>0%," ","X")) ->  | K70: =IF($AC$62<-2%," ",IF($AC$62>0%," ","X")) ->  | L70: =IF($AD$62<-2%," ",IF($AD$62>0%," ","X")) ->  | M70: =IF($AE$62<-2%," ",IF($AE$62>0%," ","X")) ->  | N70: =IF($AF$62<-2%," ",IF($AF$62>0%," ","X")) -> X | O70: =IF(AG62<-2%," ",IF(AG62>0%," ","X")) ->  | Q70: Change in Net Assests % between -2% (inclusive) and 0
B72: q | C72: q | D72: q | E72: q | F72: q | G72: q | H72: q | I72: q | J72: q | K72: q | L72: q | M72: q | Q72: Potentially High Risk:
B73: =IF($T$62<-2%,"X"," ") ->  | C73: =IF($U$62<-2%, "X", " ") ->  | D73: =IF($V$62<-2%, "X", " ") ->  | E73: =IF($W$62<-2%, "X", " ") ->  | F73: =IF($X$62<-2%, "X", " ") ->  | G73: =IF($Y$62<-2%, "X", " ") ->  | H73: =IF($Z$62<-2%, "X", " ") ->  | I73: =IF($AA$62<-2%, "X", " ") ->  | J73: =IF($AB$62<-2%, "X", " ") ->  | K73: =IF($AC$62<-2%, "X", " ") -> X | L73: =IF($AD$62<-2%, "X", " ") ->  | M73: =IF($AE$62<-2%, "X", " ") -> X | N73: =IF($AF$62<-2%, "X", " ") ->  | O73: =IF(AG62<-2%, "X", " ") ->  | Q73: Change in Net Assests % is less than -2%
T75: FY08 | U75: FY09 | V75: FY10 | W75: FY11 | X75: FY12 | Y75: FY13 | Z75: FY14 | AA75: FY15 | AB75: FY16 | AC75: FY17 | AD75: FY18 | AE75: FY19 | AF75: Average | AG75: FY19 State Avg
B76: 7 | G76: Debt to Asset Ratio | T76: ='Financial Statements'!$F$45/'Financial Statements'!$F$29 -> 0.8130247574 | U76: ='Financial Statements'!$G$45/'Financial Statements'!$G$29 -> 0.8033452031 | V76: ='Financial Statements'!$H$45/'Financial Statements'!$H$29 -> 0.780786845 | W76: ='Financial Statements'!$I$45/'Financial Statements'!$I$29 -> 0.7582112849 | X76: ='Financial Statements'!$J$45/'Financial Statements'!$J$29 -> 0.7456333499 | Y76: ='Financial Statements'!$K$45/'Financial Statements'!$K$29 -> 0.7306524556 | Z76: ='Financial Statements'!L45/'Financial Statements'!L29 ->  | AA76: ='Financial Statements'!M45/'Financial Statements'!M29 -> 0.693882779 | AB76: ='Financial Statements'!N45/'Financial Statements'!N29 -> 0.6810861349 | AC76: ='Financial Statements'!O45/'Financial Statements'!O29 -> 0.7046408584 | AD76: ='Financial Statements'!P45/'Financial Statements'!P29 -> 0.6921941678 | AE76: ='Financial Statements'!Q45/'Financial Statements'!Q29 -> 0.7009776936 | AF76: =AVERAGE(IF(ISNUMBER(AA76:AE76),AA76:AE76)) -> 0.6945563267 | AG76: =BAL19_RAW!G3399/BAL19_RAW!G3387 -> 0.5519898253
B77: Explanation: Measures the extent to which the school relies on borrowed funds to finance its operations. Calculated as Total Liabilities divided by Total Assets.
B79: FY8 | C79: FY9 | D79: FY10 | E79: FY11 | F79: FY12 | G79: FY13 | H79: FY14 | I79: FY15 | J79: FY16 | K79: FY17 | L79: FY18 | M79: FY19 | N79: Avg | O79: FY19 State Avg
B80: p | C80: p | D80: p | E80: p | F80: p | G80: p | H80: p | I80: p | J80: p | K80: p | L80: p | M80: p | Q80: Low Risk:
B81: =IF($T$76<=0.9, "X", " ") -> X | C81: =IF($U$76<=0.9, "X", " ") -> X | D81: =IF($V$76<=0.9, "X", " ") -> X | E81: =IF($W$76<=0.9, "X", " ") -> X | F81: =IF($X$76<=0.9, "X", " ") -> X | G81: =IF($Y$76<=0.9, "X", " ") -> X | H81: =IF($Z$76<=0.9, "X", " ") ->  | I81: =IF($AA$76<=0.9, "X", " ") -> X | J81: =IF($AB$76<=0.9, "X", " ") -> X | K81: =IF($AC$76<=0.9, "X", " ") -> X | L81: =IF($AD$76<=0.9, "X", " ") -> X | M81: =IF($AE$76<=0.9, "X", " ") -> X | N81: =IF($AF$76<=0.9, "X", " ") -> X | O81: =IF(AG76<=0.9, "X", " ") -> X | Q81: Debt to Asset Ratio is less than or equal to 0.90
B83: t | C83: t | D83: t | E83: t | F83: t | G83: t | H83: t | I83: t | J83: t | K83: t | L83: t | M83: t | Q83: Moderate Risk:
B84: =IF($T$76<=0.9," ",IF($T$76>1," ","X")) ->  | C84: =IF($U$76<=0.9," ",IF($U$76>1," ","X")) ->  | D84: =IF($V$76<=0.9," ",IF($V$76>1," ","X")) ->  | E84: =IF($W$76<=0.9," ",IF($W$76>1," ","X")) ->  | F84: =IF($X$76<=0.9," ",IF($X$76>1," ","X")) ->  | G84: =IF($Y$76<=0.9," ",IF($Y$76>1," ","X")) ->  | H84: =IF($Z$76<=0.9," ",IF($Z$76>1," ","X")) ->  | I84: =IF($AA$76<=0.9," ",IF($AA$76>1," ","X")) ->  | J84: =IF($AB$76<=0.9," ",IF($AB$76>1," ","X")) ->  | K84: =IF($AC$76<=0.9," ",IF($AC$76>1," ","X")) ->  | L84: =IF($AD$76<=0.9," ",IF($AD$76>1," ","X")) ->  | M84: =IF($AE$76<=0.9," ",IF($AE$76>1," ","X")) ->  | N84: =IF($AF$76<=0.9," ",IF($AF$76>1," ","X")) ->  | O84: =IF(AG76<=0.9," ",IF(AG76>1," ","X")) ->  | Q84: Debt to Asset Ratio is between 0.90 and 1.0 (inclusive)
B86: q | C86: q | D86: q | E86: q | F86: q | G86: q | H86: q | I86: q | J86: q | K86: q | L86: q | M86: q | Q86: Potentially High Risk:
B87: =IF($T$76>1, "X", " ") ->  | C87: =IF($U$76>1, "X", " ") ->  | D87: =IF($V$76>1, "X", " ") ->  | E87: =IF($W$76>1, "X", " ") ->  | F87: =IF($X$76>1, "X", " ") ->  | G87: =IF($Y$76>1, "X", " ") ->  | H87: =IF($Z$76>1, "X", " ") ->  | I87: =IF($AA$76>1, "X", " ") ->  | J87: =IF($AB$76>1, "X", " ") ->  | K87: =IF($AC$76>1, "X", " ") ->  | L87: =IF($AD$76>1, "X", " ") ->  | M87: =IF($AE$76>1, "X", " ") ->  | N87: =IF($AF$76>1, "X", " ") ->  | O87: =IF(AG76>1, "X", " ") ->  | Q87: Debt to Asset Ratio is greater than 1.0
T91: FY08 | U91: FY09 | V91: FY10 | W91: FY11 | X91: FY12 | Y91: FY13 | Z91: FY14 | AA91: FY15 | AB91: FY16 | AC91: FY17 | AD91: FY18 | AE91: FY19 | AF91: Average | AG91: FY19 State Avg
B92: 4 | G92: Percentage of Program Paid by Tuition & Federal Grants | T92: =('Financial Statements'!$F$56+'Financial Statements'!$F$70+'Financial Statements'!$F$71+'Financial Statements'!$F$59+'Financial Statements'!$F$60)/'Financial Statements'!$F$97 -> 0.9532496143 | U92: =('Financial Statements'!$G$56+'Financial Statements'!$G$70+'Financial Statements'!$G$71+'Financial Statements'!$G$59+'Financial Statements'!$G$60)/'Financial Statements'!$G$97 -> 0.9945448913 | V92: =('Financial Statements'!$H$56+'Financial Statements'!$H$70+'Financial Statements'!$H$71+'Financial Statements'!$H$59+'Financial Statements'!$H$60)/'Financial Statements'!$H$97 -> 1.065448996 | W92: =('Financial Statements'!$I$56+'Financial Statements'!$I$70+'Financial Statements'!$I$71+'Financial Statements'!$I$59+'Financial Statements'!$I$60)/'Financial Statements'!$I$97 -> 1.067989415 | X92: =('Financial Statements'!$J$56+'Financial Statements'!$J$70+'Financial Statements'!$J$71+'Financial Statements'!$J$59+'Financial Statements'!$J$60)/'Financial Statements'!$J$97 -> 0.9937772068 | Y92: =('Financial Statements'!$K$56+'Financial Statements'!$K$70+'Financial Statements'!$K$71+'Financial Statements'!$K$59+'Financial Statements'!$K$60)/'Financial Statements'!$K$97 -> 1.01482822 | Z92: =('Financial Statements'!L56+'Financial Statements'!L70+'Financial Statements'!L71+'Financial Statements'!L59+'Financial Statements'!L60)/'Financial Statements'!L97 ->  | AA92: =('Financial Statements'!M56+'Financial Statements'!M70+'Financial Statements'!M71+'Financial Statements'!M59+'Financial Statements'!M60)/'Financial Statements'!M97 -> 0.9958483692 | AB92: =('Financial Statements'!N56+'Financial Statements'!N70+'Financial Statements'!N71+'Financial Statements'!N59+'Financial Statements'!N60+'Financial Statements'!N72)/'Financial Statements'!N97 -> 0.9969976261 | AC92: =('Financial Statements'!O56+'Financial Statements'!O70+'Financial Statements'!O71+'Financial Statements'!O59+'Financial Statements'!O60+'Financial Statements'!O72)/'Financial Statements'!O97 -> 0.9000729842 | AD92: =('Financial Statements'!P56+'Financial Statements'!P70+'Financial Statements'!P71+'Financial Statements'!P59+'Financial Statements'!P60+'Financial Statements'!P72)/'Financial Statements'!P97 -> 0.9641430771 | AE92: =('Financial Statements'!Q56+'Financial Statements'!Q70+'Financial Statements'!Q71+'Financial Statements'!Q59+'Financial Statements'!Q60+'Financial Statements'!Q72)/'Financial Statements'!Q97 -> 0.971988813 | AF92: =AVERAGE(IF(ISNUMBER(AA92:AE92),AA92:AE92)) -> 0.9658101739 | AG92: =(INC19_RAW!G3529+INC19_RAW!G3543+INC19_RAW!G3544+INC19_RAW!G3545+INC19_RAW!G3532+INC19_RAW!G3533)/INC19_RAW!G3565 -> 0.9583617243
B93: Explanation: measures the percentage of the schools total expenses that are funded by tuition and federal grants. Calculated as (Tuition + In-Kind Contributions + Federal Grants) divided by Total Expenses.
B94: *Informational only
B95: FY8 | C95: FY9 | D95: FY10 | E95: FY11 | F95: FY12 | G95: FY13 | H95: FY14 | I95: FY15 | J95: FY16 | K95: FY17 | L95: FY18 | M95: FY19 | N95: Avg | O95: FY19 State Avg
B96: p | C96: p | D96: p | E96: p | F96: p | G96: p | H96: p | I96: p | J96: p | K96: p | L96: p | M96: p | Q96: Low Risk:
B97: =IF($T$92>=90%, "X", " ") -> X | C97: =IF($U$92>=90%, "X", " ") -> X | D97: =IF($V$92>=90%, "X", " ") -> X | E97: =IF($W$92>=90%, "X", " ") -> X | F97: =IF($X$92>=90%, "X", " ") -> X | G97: =IF($Y$92>=90%, "X", " ") -> X | H97: =IF($Z$92>=90%, "X", " ") ->  | I97: =IF($AA$92>=90%, "X", " ") -> X | J97: =IF($AB$92>=90%, "X", " ") -> X | K97: =IF($AC$92>=90%, "X", " ") -> X | L97: =IF($AD$92>=90%, "X", " ") -> X | M97: =IF($AE$92>=90%, "X", " ") -> X | N97: =IF($AF$92>=90%, "X", " ") -> X | O97: =IF(AG92>=90%, "X", " ") -> X | Q97: 90% or more of total expenses means the school can fund entire program with tuition funds
B99: t | C99: t | D99: t | E99: t | F99: t | G99: t | H99: t | I99: t | J99: t | K99: t | L99: t | M99: t | Q99: Moderate Risk:
B100: =(IF($T$92<75%," ",IF($T$92>=90%," ","X"))) ->  | C100: =(IF($U$92<75%," ",IF($U$92>=90%," ","X"))) ->  | D100: =(IF($V$92<75%," ",IF($V$92>=90%," ","X"))) ->  | E100: =(IF($W$92<75%," ",IF($W$92>=90%," ","X"))) ->  | F100: =(IF($X$92<75%," ",IF($X$92>=90%," ","X"))) ->  | G100: =(IF($Y$92<75%," ",IF($Y$92>=90%," ","X"))) ->  | H100: =(IF($Z$92<75%," ",IF($Z$92>=90%," ","X"))) ->  | I100: =(IF($AA$92<75%," ",IF($AA$92>=90%," ","X"))) ->  | J100: =(IF($AB$92<75%," ",IF($AB$92>=90%," ","X"))) ->  | K100: =(IF($AC$92<75%," ",IF($AC$92>=90%," ","X"))) ->  | L100: =(IF($AD$92<75%," ",IF($AD$92>=90%," ","X"))) ->  | M100: =(IF($AE$92<75%," ",IF($AE$92>=90%," ","X"))) ->  | N100: =(IF($AF$92<75%," ",IF($AF$92>=90%," ","X"))) ->  | O100: =(IF(AG92<75%," ",IF(AG92>=90%," ","X"))) ->  | Q100: Between 75% (inclusive) and 90% of total expenses can be funded by tuition revenue
B102: q | C102: q | D102: q | E102: q | F102: q | G102: q | H102: q | I102: q | J102: q | K102: q | L102: q | M102: q | Q102: Potentially High Risk:
B103: =IF($T$92<75%, "X", " ") ->  | C103: =IF($U$92<75%, "X", " ") ->  | D103: =IF($V$92<75%, "X", " ") ->  | E103: =IF($W$92<75%, "X", " ") ->  | F103: =IF($X$92<75%, "X", " ") ->  | G103: =IF($Y$92<75%, "X", " ") ->  | H103: =IF($Z$92<75%, "X", " ") ->  | I103: =IF($AA$92<75%, "X", " ") ->  | J103: =IF($AB$92<75%, "X", " ") ->  | K103: =IF($AC$92<75%, "X", " ") ->  | L103: =IF($AD$92<75%, "X", " ") ->  | M103: =IF($AE$92<75%, "X", " ") ->  | N103: =IF($AF$92<75%, "X", " ") ->  | O103: =IF(AG92<75%, "X", " ") ->  | Q103: Below 75% of total expenses can be funded by tuition revenue

Sheet BAL19_RAW (hidden)
B1: 1 | C1: 2 | D1: 3 | E1: 4 | F1: 5 | G1: 6 | H1: 7 | I1: 8
A2: FY | B2: vlookup | C2: cha_code | D2: cha_type | E2: balance_id | F2: Line_Desc | G2: balance_sch | H2: balance_found | I2: balance_total
A3: 2019 | B3: =C3&E3 -> 40701 | C3: 407 | E3: 01 | F3: Cash and Cash Equivalents | G3: 91374 | H3: 0 | I3: 91374
A4: 2019 | B4: =C4&E4 -> 40702 | C4: 407 | E4: 02 | F4: Accounts Receivable net of doubtful accounts | G4: 0 | H4: 0 | I4: 0
A5: 2019 | B5: 40703 | C5: 407 | E5: 03 | F5: Grants Receivable - State | G5: 0 | H5: 0 | I5: 0
A6: 2019 | B6: 40704 | C6: 407 | E6: 04 | F6: Grants Receivable - Federal | G6: 0 | H6: 0 | I6: 0
A7: 2019 | B7: 40705 | C7: 407 | E7: 05 | F7: Grants Receivable - Private | G7: 0 | H7: 0 | I7: 0
A8: 2019 | B8: 40706 | C8: 407 | E8: 06 | F8: Contributions Receivable | G8: 0 | H8: 0 | I8: 0
A9: 2019 | B9: 40707 | C9: 407 | E9: 07 | F9: Due from related parties | G9: 42030 | H9: 0 | I9: 42030
A10: 2019 | B10: 40708 | C10: 407 | E10: 08 | F10: Prepaid Expenses / Inventory | G10: 1191 | H10: 0 | I10: 1191
A11: 2019 | B11: 40709 | C11: 407 | E11: 09 | F11: Short-Term Investments | G11: 0 | H11: 0 | I11: 0
A12: 2019 | B12: 40710 | C12: 407 | E12: 10 | F12: Deposit (Security, Other) | G12: 0 | H12: 0 | I12: 0
A13: 2019 | B13: 40711 | C13: 407 | E13: 11 | F13: Restricted Current Assets | G13: 0 | H13: 0 | I13: 0
A14: 2019 | B14: 40712 | C14: 407 | E14: 12 | F14: TOTAL CURRENT ASSETS | G14: 134595 | H14: 0 | I14: 134595
A15: 2019 | B15: 40713 | C15: 407 | E15: 13 | F15: - Land and Buildings | G15: 0 | H15: 0 | I15: 0
A16: 2019 | B16: 40714 | C16: 407 | E16: 14 | F16: - Building/Leasehold Improvement | G16: 0 | H16: 0 | I16: 0
A17: 2019 | B17: 40715 | C17: 407 | E17: 15 | F17: - Furniture and Equipment | G17: 0 | H17: 0 | I17: 0
A18: 2019 | B18: 40716 | C18: 407 | E18: 16 | F18: - Less Accumulated Depreciation | G18: 0 | H18: 0 | I18: 0
A19: 2019 | B19: 40717 | C19: 407 | E19: 17 | F19: Net Capital Assets | G19: 0 | H19: 0 | I19: 0
A20: 2019 | B20: 40718 | C20: 407 | E20: 18 | F20: Restricted Noncurrent Assets | G20: 0 | H20: 0 | I20: 0
A21: 2019 | B21: 40719 | C21: 407 | E21: 19 | F21: Long-Term Investments | G21: 0 | H21: 0 | I21: 0
A22: 2019 | B22: 40720 | C22: 407 | E22: 20 | F22: Building Acquisition / Financing Costs / Deferred Expenses | G22: 0 | H22: 0 | I22: 0
A23: 2019 | B23: 40721 | C23: 407 | E23: 21 | F23: Long-Term Grants / Contributions Receivable | G23: 0 | H23: 0 | I23: 0
A24: 2019 | B24: 40722 | C24: 407 | E24: 22 | F24: TOTAL NONCURRENT ASSETS | G24: 0 | H24: 0 | I24: 0
A25: 2019 | B25: 40723 | C25: 407 | E25: 23 | F25: TOTAL ASSETS | G25: 134595 | H25: 0 | I25: 134595
A26: 2019 | B26: 40724 | C26: 407 | E26: 24 | F26: Accounts Payable | G26: 22455.04 | H26: 0 | I26: 22455.04
A27: 2019 | B27: 40725 | C27: 407 | E27: 25 | F27: Accrued Expenses / Accrued Payroll | G27: 9207.14 | H27: 0 | I27: 9207.14
A28: 2019 | B28: 40726 | C28: 407 | E28: 26 | F28: Deferred Revenue | G28: 0 | H28: 0 | I28: 0
A29: 2019 | B29: 40727 | C29: 407 | E29: 27 | F29: Due to related parties | G29: 0 | H29: 0 | I29: 0
A30: 2019 | B30: 40728 | C30: 407 | E30: 28 | F30: Current Debt Payable | G30: 0 | H30: 0 | I30: 0
A31: 2019 | B31: 40729 | C31: 407 | E31: 29 | F31: Current Lease Obligations Payable | G31: 0 | H31: 0 | I31: 0
A32: 2019 | B32: 40730 | C32: 407 | E32: 30 | F32: TOTAL CURRENT LIABILITIES | G32: 31662.18 | H32: 0 | I32: 31662.18
A33: 2019 | B33: 40731 | C33: 407 | E33: 31 | F33: Noncurrent Lease Obligations | G33: 0 | H33: 0 | I33: 0
A34: 2019 | B34: 40732 | C34: 407 | E34: 32 | F34: Long-Term Debt | G34: 0 | H34: 0 | I34: 0
A35: 2019 | B35: 40733 | C35: 407 | E35: 33 | F35: Deferred Revenue | G35: 0 | H35: 0 | I35: 0
A36: 2019 | B36: 40734 | C36: 407 | E36: 34 | F36: TOTAL NONCURRENT LIABILITIES | G36: 0 | H36: 0 | I36: 0
A37: 2019 | B37: 40735 | C37: 407 | E37: 35 | F37: TOTAL LIABILITIES | G37: 31662.18 | H37: 0 | I37: 31662.18
A38: 2019 | B38: 40736 | C38: 407 | E38: 36 | F38: Investment in capital assets (net of related debt) | G38: 0 | H38: 0 | I38: 0
A39: 2019 | B39: 40737 | C39: 407 | E39: 37 | F39: Temporarily Restricted | G39: 0 | H39: 0 | I39: 0
A40: 2019 | B40: 40738 | C40: 407 | E40: 38 | F40: Permanently Restricted | G40: 0 | H40: 0 | I40: 0
A41: 2019 | B41: 40739 | C41: 407 | E41: 39 | F41: Unrestricted (non-capital) | G41: 102933 | H41: 0 | I41: 102933
A42: 2019 | B42: 40740 | C42: 407 | E42: 40 | F42: TOTAL NET ASSETS | G42: 102933 | H42: 0 | I42: 102933
A43: 2019 | B43: 40741 | C43: 407 | E43: 41 | F43: TOTAL LIABILITIES AND NET ASSETS | G43: 134595 | H43: 0 | I43: 134595
A44: 2019 | B44: 40901 | C44: 409 | E44: 01 | F44: Cash and Cash Equivalents | G44: 1695400 | H44: 1597274 | I44: 3292674
A45: 2019 | B45: 40902 | C45: 409 | E45: 02 | F45: Accounts Receivable net of doubtful accounts | G45: 22267 | H45: 0 | I45: 22267
A46: 2019 | B46: 40903 | C46: 409 | E46: 03 | F46: Grants Receivable - State | G46: 463745.36 | H46: 0 | I46: 463745.36
A47: 2019 | B47: 40904 | C47: 409 | E47: 04 | F47: Grants Receivable - Federal | G47: 61090.4 | H47: 0 | I47: 61090.4
A48: 2019 | B48: 40905 | C48: 409 | E48: 05 | F48: Grants Receivable - Private | G48: 0 | H48: 0 | I48: 0
A49: 2019 | B49: 40906 | C49: 409 | E49: 06 | F49: Contributions Receivable | G49: 0 | H49: 20000 | I49: 20000
A50: 2019 | B50: 40907 | C50: 409 | E50: 07 | F50: Due from related parties | G50: 121862 | H50: -121862 | I50: 0
A51: 2019 | B51: 40908 | C51: 409 | E51: 08 | F51: Prepaid Expenses / Inventory | G51: 27314 | H51: 2951 | I51: 30265
A52: 2019 | B52: 40909 | C52: 409 | E52: 09 | F52: Short-Term Investments | G52: 0 | H52: 0 | I52: 0
A53: 2019 | B53: 40910 | C53: 409 | E53: 10 | F53: Deposit (Security, Other) | G53: 0 | H53: 25000 | I53: 25000
A54: 2019 | B54: 40911 | C54: 409 | E54: 11 | F54: Restricted Current Assets | G54: 0 | H54: 0 | I54: 0
A55: 2019 | B55: 40912 | C55: 409 | E55: 12 | F55: TOTAL CURRENT ASSETS | G55: 2391678.76 | H55: 1523363 | I55: 3915041.76
A56: 2019 | B56: 40913 | C56: 409 | E56: 13 | F56: - Land and Buildings | G56: 0 | H56: 14797425 | I56: 14797425
A57: 2019 | B57: 40914 | C57: 409 | E57: 14 | F57: - Building/Leasehold Improvement | G57: 0 | H57: 220769 | I57: 220769
A58: 2019 | B58: 40915 | C58: 409 | E58: 15 | F58: - Furniture and Equipment | G58: 82711 | H58: 435473 | I58: 518184
A59: 2019 | B59: 40916 | C59: 409 | E59: 16 | F59: - Less Accumulated Depreciation | G59: -49158 | H59: -1194168 | I59: -1243326
A60: 2019 | B60: 40917 | C60: 409 | E60: 17 | F60: Net Capital Assets | G60: 33553 | H60: 14259499 | I60: 14293052
A61: 2019 | B61: 40918 | C61: 409 | E61: 18 | F61: Restricted Noncurrent Assets | G61: 0 | H61: 861 | I61: 861
A62: 2019 | B62: 40919 | C62: 409 | E62: 19 | F62: Long-Term Investments | G62: 0 | H62: 0 | I62: 0
A63: 2019 | B63: 40920 | C63: 409 | E63: 20 | F63: Building Acquisition / Financing Costs / Deferred Expenses | G63: 0 | H63: 10042850 | I63: 10042850
A64: 2019 | B64: 40921 | C64: 409 | E64: 21 | F64: Long-Term Grants / Contributions Receivable | G64: 0 | H64: 0 | I64: 0
A65: 2019 | B65: 40922 | C65: 409 | E65: 22 | F65: TOTAL NONCURRENT ASSETS | G65: 33553 | H65: 24303210 | I65: 24336763
A66: 2019 | B66: 40923 | C66: 409 | E66: 23 | F66: TOTAL ASSETS | G66: 2425232 | H66: 25826573 | I66: 28251805
A67: 2019 | B67: 40924 | C67: 409 | E67: 24 | F67: Accounts Payable | G67: 131363 | H67: 39217 | I67: 170580
A68: 2019 | B68: =C68&E68 -> 40925 | C68: 409 | E68: 25 | F68: Accrued Expenses / Accrued Payroll | G68: 222903 | H68: 138627 | I68: 361530
A69: 2019 | B69: 40926 | C69: 409 | E69: 26 | F69: Deferred Revenue | G69: 0 | H69: 0 | I69: 0
A70: 2019 | B70: 40927 | C70: 409 | E70: 27 | F70: Due to related parties | G70: 0 | H70: 0 | I70: 0
A71: 2019 | B71: 40928 | C71: 409 | E71: 28 | F71: Current Debt Payable | G71: 0 | H71: 197546 | I71: 197546
A72: 2019 | B72: 40929 | C72: 409 | E72: 29 | F72: Current Lease Obligations Payable | G72: 0 | H72: 0 | I72: 0
A73: 2019 | B73: 40930 | C73: 409 | E73: 30 | F73: TOTAL CURRENT LIABILITIES | G73: 354266 | H73: 375390 | I73: 729656
A74: 2019 | B74: 40931 | C74: 409 | E74: 31 | F74: Noncurrent Lease Obligations | G74: 1217232 | H74: -1217232 | I74: 0
A75: 2019 | B75: 40932 | C75: 409 | E75: 32 | F75: Long-Term Debt | G75: 0 | H75: 23285334 | I75: 23285334
A76: 2019 | B76: 40933 | C76: 409 | E76: 33 | F76: Deferred Revenue | G76: 0 | H76: 0 | I76: 0
A77: 2019 | B77: 40934 | C77: 409 | E77: 34 | F77: TOTAL NONCURRENT LIABILITIES | G77: 1217232 | H77: 22068102 | I77: 23285334
A78: 2019 | B78: 40935 | C78: 409 | E78: 35 | F78: TOTAL LIABILITIES | G78: 1571498 | H78: 22443492 | I78: 24014990
A79: 2019 | B79: 40936 | C79: 409 | E79: 36 | F79: Investment in capital assets (net of related debt) | G79: 33553 | H79: 115371 | I79: 148924
A80: 2019 | B80: 40937 | C80: 409 | E80: 37 | F80: Temporarily Restricted | G80: 0 | H80: 1147391 | I80: 1147391
A81: 2019 | B81: 40938 | C81: 409 | E81: 38 | F81: Permanently Restricted | G81: 0 | H81: 0 | I81: 0
A82: 2019 | B82: 40939 | C82: 409 | E82: 39 | F82: Unrestricted (non-capital) | G82: 820181 | H82: 2120319 | I82: 2940500
A83: 2019 | B83: 40940 | C83: 409 | E83: 40 | F83: TOTAL NET ASSETS | G83: 853734 | H83: 3383081 | I83: 4236815
A84: 2019 | B84: 40941 | C84: 409 | E84: 41 | F84: TOTAL LIABILITIES AND NET ASSETS | G84: 2425232 | H84: 25826573 | I84: 28251805
A85: 2019 | B85: 41001 | C85: 410 | E85: 01 | F85: Cash and Cash Equivalents | G85: 244152 | H85: 3120168 | I85: 3364320
A86: 2019 | B86: 41002 | C86: 410 | E86: 02 | F86: Accounts Receivable net of doubtful accounts | G86: 32616 | H86: 0 | I86: 32616
A87: 2019 | B87: 41003 | C87: 410 | E87: 03 | F87: Grants Receivable - State | G87: 2003509 | H87: 0 | I87: 2003509
A88: 2019 | B88: 41004 | C88: 410 | E88: 04 | F88: Grants Receivable - Federal | G88: 554518 | H88: 0 | I88: 554518
A89: 2019 | B89: 41005 | C89: 410 | E89: 05 | F89: Grants Receivable - Private | G89: 0 | H89: 1349250 | I89: 1349250
A90: 2019 | B90: 41006 | C90: 410 | E90: 06 | F90: Contributions Receivable | G90: 0 | H90: 0 | I90: 0
A91: 2019 | B91: 41007 | C91: 410 | E91: 07 | F91: Due from related parties | G91: -2122205 | H91: 2122205 | I91: 0
A92: 2019 | B92: 41008 | C92: 410 | E92: 08 | F92: Prepaid Expenses / Inventory | G92: 139941 | H92: 12288 | I92: 152229
A93: 2019 | B93: 41009 | C93: 410 | E93: 09 | F93: Short-Term Investments | G93: 0 | H93: 0 | I93: 0
A94: 2019 | B94: 41010 | C94: 410 | E94: 10 | F94: Deposit (Security, Other) | G94: 0 | H94: 0 | I94: 0
A95: 2019 | B95: 41011 | C95: 410 | E95: 11 | F95: Restricted Current Assets | G95: 0 | H95: 0 | I95: 0
A96: 2019 | B96: 41012 | C96: 410 | E96: 12 | F96: TOTAL CURRENT ASSETS | G96: 852531 | H96: 6603911 | I96: 7456442
A97: 2019 | B97: 41013 | C97: 410 | E97: 13 | F97: - Land and Buildings | G97: 33318070 | H97: 481651 | I97: 33799721
A98: 2019 | B98: 41014 | C98: 410 | E98: 14 | F98: - Building/Leasehold Improvement | G98: 1056334 | H98: 0 | I98: 1056334
A99: 2019 | B99: 41015 | C99: 410 | E99: 15 | F99: - Furniture and Equipment | G99: 1309368 | H99: 0 | I99: 1309368
A100: 2019 | B100: 41016 | C100: 410 | E100: 16 | F100: - Less Accumulated Depreciation | G100: -3657214 | H100: 0 | I100: -3657214
A101: 2019 | B101: 41017 | C101: 410 | E101: 17 | F101: Net Capital Assets | G101: 32026558 | H101: 481651 | I101: 32508209
A102: 2019 | B102: 41018 | C102: 410 | E102: 18 | F102: Restricted Noncurrent Assets | G102: 1010867 | H102: 1115643 | I102: 2126510
A103: 2019 | B103: 41019 | C103: 410 | E103: 19 | F103: Long-Term Investments | G103: 0 | H103: 0 | I103: 0
A104: 2019 | B104: 41020 | C104: 410 | E104: 20 | F104: Building Acquisition / Financing Costs / Deferred Expenses | G104: -11735850 | H104: 11735850 | I104: 0
A105: 2019 | B105: 41021 | C105: 410 | E105: 21 | F105: Long-Term Grants / Contributions Receivable | G105: 0 | H105: 1006197 | I105: 1006197
A106: 2019 | B106: 41022 | C106: 410 | E106: 22 | F106: TOTAL NONCURRENT ASSETS | G106: 21301575 | H106: 14339341 | I106: 35640916
A107: 2019 | B107: 41023 | C107: 410 | E107: 23 | F107: TOTAL ASSETS | G107: 22154106 | H107: 20943252 | I107: 43097358
A108: 2019 | B108: 41024 | C108: 410 | E108: 24 | F108: Accounts Payable | G108: 510344 | H108: 151436 | I108: 661780
A109: 2019 | B109: 41025 | C109: 410 | E109: 25 | F109: Accrued Expenses / Accrued Payroll | G109: 947741 | H109: 2500 | I109: 950241
A110: 2019 | B110: 41026 | C110: 410 | E110: 26 | F110: Deferred Revenue | G110: 0 | H110: 0 | I110: 0
A111: 2019 | B111: 41027 | C111: 410 | E111: 27 | F111: Due to related parties | G111: 0 | H111: 0 | I111: 0
A112: 2019 | B112: 41028 | C112: 410 | E112: 28 | F112: Current Debt Payable | G112: 560595 | H112: 118001 | I112: 678596
A113: 2019 | B113: 41029 | C113: 410 | E113: 29 | F113: Current Lease Obligations Payable | G113: 0 | H113: 0 | I113: 0
A114: 2019 | B114: 41030 | C114: 410 | E114: 30 | F114: TOTAL CURRENT LIABILITIES | G114: 2018680 | H114: 271937 | I114: 2290617
A115: 2019 | B115: 41031 | C115: 410 | E115: 31 | F115: Noncurrent Lease Obligations | G115: 177884 | H115: 0 | I115: 177884
A116: 2019 | B116: 41032 | C116: 410 | E116: 32 | F116: Long-Term Debt | G116: 20559650 | H116: 3947795 | I116: 24507445
A117: 2019 | B117: 41033 | C117: 410 | E117: 33 | F117: Deferred Revenue | G117: 0 | H117: 295000 | I117: 295000
A118: 2019 | B118: 41034 | C118: 410 | E118: 34 | F118: TOTAL NONCURRENT LIABILITIES | G118: 20737534 | H118: 4242795 | I118: 24980329
A119: 2019 | B119: 41035 | C119: 410 | E119: 35 | F119: TOTAL LIABILITIES | G119: 22756214 | H119: 4514732 | I119: 27270946
A120: 2019 | B120: 41036 | C120: 410 | E120: 36 | F120: Investment in capital assets (net of related debt) | G120: -1190056 | H120: 10424364 | I120: 9234308
A121: 2019 | B121: 41037 | C121: 410 | E121: 37 | F121: Temporarily Restricted | G121: 2000 | H121: 3250980 | I121: 3252980
A122: 2019 | B122: 41038 | C122: 410 | E122: 38 | F122: Permanently Restricted | G122: 0 | H122: 0 | I122: 0
A123: 2019 | B123: 41039 | C123: 410 | E123: 39 | F123: Unrestricted (non-capital) | G123: 585948 | H123: 2753176 | I123: 3339124
A124: 2019 | B124: 41040 | C124: 410 | E124: 40 | F124: TOTAL NET ASSETS | G124: -602108 | H124: 16428520 | I124: 15826412
A125: 2019 | B125: 41041 | C125: 410 | E125: 41 | F125: TOTAL LIABILITIES AND NET ASSETS | G125: 22154106 | H125: 20943252 | I125: 43097358
A126: 2019 | B126: 41101 | C126: 411 | E126: 01 | F126: Cash and Cash Equivalents | G126: 258149 | H126: 252889 | I126: 511038
A127: 2019 | B127: 41102 | C127: 411 | E127: 02 | F127: Accounts Receivable net of doubtful accounts | G127: 0 | H127: 0 | I127: 0
A128: 2019 | B128: 41103 | C128: 411 | E128: 03 | F128: Grants Receivable - State | G128: 0 | H128: 0 | I128: 0
A129: 2019 | B129: 41104 | C129: 411 | E129: 04 | F129: Grants Receivable - Federal | G129: 0 | H129: 0 | I129: 0
A130: 2019 | B130: 41105 | C130: 411 | E130: 05 | F130: Grants Receivable - Private | G130: 0 | H130: 0 | I130: 0
A131: 2019 | B131: 41106 | C131: 411 | E131: 06 | F131: Contributions Receivable | G131: 0 | H131: 0 | I131: 0
A132: 2019 | B132: =C132&E132 -> 41107 | C132: 411 | E132: 07 | F132: Due from related parties | G132: -15000 | H132: 15000 | I132: 0
A133: 2019 | B133: 41108 | C133: 411 | E133: 08 | F133: Prepaid Expenses / Inventory | G133: 19214 | H133: 0 | I133: 19214
A134: 2019 | B134: 41109 | C134: 411 | E134: 09 | F134: Short-Term Investments | G134: 0 | H134: 0 | I134: 0
A135: 2019 | B135: 41110 | C135: 411 | E135: 10 | F135: Deposit (Security, Other) | G135: 0 | H135: 0 | I135: 0
A136: 2019 | B136: 41111 | C136: 411 | E136: 11 | F136: Restricted Current Assets | G136: 0 | H136: 0 | I136: 0
A137: 2019 | B137: 41112 | C137: 411 | E137: 12 | F137: TOTAL CURRENT ASSETS | G137: 262363 | H137: 267889 | I137: 530252
A138: 2019 | B138: 41113 | C138: 411 | E138: 13 | F138: - Land and Buildings | G138: 0 | H138: 0 | I138: 0
A139: 2019 | B139: 41114 | C139: 411 | E139: 14 | F139: - Building/Leasehold Improvement | G139: 0 | H139: 0 | I139: 0
A140: 2019 | B140: 41115 | C140: 411 | E140: 15 | F140: - Furniture and Equipment | G140: 168447 | H140: 0 | I140: 168447
A141: 2019 | B141: 41116 | C141: 411 | E141: 16 | F141: - Less Accumulated Depreciation | G141: -105285 | H141: 0 | I141: -105285
A142: 2019 | B142: 41117 | C142: 411 | E142: 17 | F142: Net Capital Assets | G142: 63162 | H142: 0 | I142: 63162
A143: 2019 | B143: 41118 | C143: 411 | E143: 18 | F143: Restricted Noncurrent Assets | G143: 0 | H143: 0 | I143: 0
A144: 2019 | B144: 41119 | C144: 411 | E144: 19 | F144: Long-Term Investments | G144: 0 | H144: 0 | I144: 0
A145: 2019 | B145: 41120 | C145: 411 | E145: 20 | F145: Building Acquisition / Financing Costs / Deferred Expenses | G145: 0 | H145: 0 | I145: 0
A146: 2019 | B146: 41121 | C146: 411 | E146: 21 | F146: Long-Term Grants / Contributions Receivable | G146: 0 | H146: 0 | I146: 0
A147: 2019 | B147: 41122 | C147: 411 | E147: 22 | F147: TOTAL NONCURRENT ASSETS | G147: 63162 | H147: 0 | I147: 63162
A148: 2019 | B148: 41123 | C148: 411 | E148: 23 | F148: TOTAL ASSETS | G148: 325525 | H148: 267889 | I148: 593414
A149: 2019 | B149: 41124 | C149: 411 | E149: 24 | F149: Accounts Payable | G149: 20497 | H149: 0 | I149: 20497
A150: 2019 | B150: 41125 | C150: 411 | E150: 25 | F150: Accrued Expenses / Accrued Payroll | G150: 0 | H150: 0 | I150: 0
A151: 2019 | B151: 41126 | C151: 411 | E151: 26 | F151: Deferred Revenue | G151: 0 | H151: 0 | I151: 0
A152: 2019 | B152: 41127 | C152: 411 | E152: 27 | F152: Due to related parties | G152: 0 | H152: 0 | I152: 0
A153: 2019 | B153: 41128 | C153: 411 | E153: 28 | F153: Current Debt Payable | G153: 0 | H153: 0 | I153: 0
A154: 2019 | B154: 41129 | C154: 411 | E154: 29 | F154: Current Lease Obligations Payable | G154: 0 | H154: 0 | I154: 0
A155: 2019 | B155: 41130 | C155: 411 | E155: 30 | F155: TOTAL CURRENT LIABILITIES | G155: 20497 | H155: 0 | I155: 20497
A156: 2019 | B156: 41131 | C156: 411 | E156: 31 | F156: Noncurrent Lease Obligations | G156: 0 | H156: 0 | I156: 0
A157: 2019 | B157: 41132 | C157: 411 | E157: 32 | F157: Long-Term Debt | G157: 0 | H157: 0 | I157: 0
A158: 2019 | B158: 41133 | C158: 411 | E158: 33 | F158: Deferred Revenue | G158: 0 | H158: 0 | I158: 0
A159: 2019 | B159: 41134 | C159: 411 | E159: 34 | F159: TOTAL NONCURRENT LIABILITIES | G159: 0 | H159: 0 | I159: 0
A160: 2019 | B160: 41135 | C160: 411 | E160: 35 | F160: TOTAL LIABILITIES | G160: 20497 | H160: 0 | I160: 20497
A161: 2019 | B161: 41136 | C161: 411 | E161: 36 | F161: Investment in capital assets (net of related debt) | G161: 63162 | H161: 0 | I161: 63162
A162: 2019 | B162: 41137 | C162: 411 | E162: 37 | F162: Temporarily Restricted | G162: 0 | H162: 4978 | I162: 4978
A163: 2019 | B163: 41138 | C163: 411 | E163: 38 | F163: Permanently Restricted | G163: 0 | H163: 0 | I163: 0
A164: 2019 | B164: 41139 | C164: 411 | E164: 39 | F164: Unrestricted (non-capital) | G164: 241866 | H164: 262911 | I164: 504777
A165: 2019 | B165: 41140 | C165: 411 | E165: 40 | F165: TOTAL NET ASSETS | G165: 305028 | H165: 267889 | I165: 572917
A166: 2019 | B166: 41141 | C166: 411 | E166: 41 | F166: TOTAL LIABILITIES AND NET ASSETS | G166: 325525 | H166: 267889 | I166: 593414
A167: 2019 | B167: 41201 | C167: 412 | E167: 01 | F167: Cash and Cash Equivalents | G167: 3597119 | H167: 138439 | I167: 3735558
A168: 2019 | B168: 41202 | C168: 412 | E168: 02 | F168: Accounts Receivable net of doubtful accounts | G168: 821491 | H168: 0 | I168: 821491
A169: 2019 | B169: 41203 | C169: 412 | E169: 03 | F169: Grants Receivable - State | G169: 0 | H169: 0 | I169: 0
A170: 2019 | B170: 41204 | C170: 412 | E170: 04 | F170: Grants Receivable - Federal | G170: 64068 | H170: 0 | I170: 64068
A171: 2019 | B171: 41205 | C171: 412 | E171: 05 | F171: Grants Receivable - Private | G171: 0 | H171: 0 | I171: 0
A172: 2019 | B172: 41206 | C172: 412 | E172: 06 | F172: Contributions Receivable | G172: 0 | H172: 0 | I172: 0
A173: 2019 | B173: 41207 | C173: 412 | E173: 07 | F173: Due from related parties | G173: 0 | H173: 0 | I173: 0
A174: 2019 | B174: 41208 | C174: 412 | E174: 08 | F174: Prepaid Expenses / Inventory | G174: 13105 | H174: 0 | I174: 13105
A175: 2019 | B175: 41209 | C175: 412 | E175: 09 | F175: Short-Term Investments | G175: 0 | H175: 14093 | I175: 14093
A176: 2019 | B176: 41210 | C176: 412 | E176: 10 | F176: Deposit (Security, Other) | G176: 19040 | H176: 0 | I176: 19040
A177: 2019 | B177: 41211 | C177: 412 | E177: 11 | F177: Restricted Current Assets | G177: 0 | H177: 0 | I177: 0
A178: 2019 | B178: 41212 | C178: 412 | E178: 12 | F178: TOTAL CURRENT ASSETS | G178: 4514823 | H178: 152532 | I178: 4667355
A179: 2019 | B179: 41213 | C179: 412 | E179: 13 | F179: - Land and Buildings | G179: 5000000 | H179: 0 | I179: 5000000
A180: 2019 | B180: 41214 | C180: 412 | E180: 14 | F180: - Building/Leasehold Improvement | G180: 12030295 | H180: 0 | I180: 12030295
A181: 2019 | B181: 41215 | C181: 412 | E181: 15 | F181: - Furniture and Equipment | G181: 2010697 | H181: 0 | I181: 2010697
A182: 2019 | B182: 41216 | C182: 412 | E182: 16 | F182: - Less Accumulated Depreciation | G182: -7495480 | H182: 0 | I182: -7495480
A183: 2019 | B183: 41217 | C183: 412 | E183: 17 | F183: Net Capital Assets | G183: 11545512 | H183: 0 | I183: 11545512
A184: 2019 | B184: 41218 | C184: 412 | E184: 18 | F184: Restricted Noncurrent Assets | G184: 6508221 | H184: 0 | I184: 6508221
A185: 2019 | B185: 41219 | C185: 412 | E185: 19 | F185: Long-Term Investments | G185: 0 | H185: 0 | I185: 0
A186: 2019 | B186: 41220 | C186: 412 | E186: 20 | F186: Building Acquisition / Financing Costs / Deferred Expenses | G186: 90486 | H186: 0 | I186: 90486
A187: 2019 | B187: 41221 | C187: 412 | E187: 21 | F187: Long-Term Grants / Contributions Receivable | G187: 0 | H187: 0 | I187: 0
A188: 2019 | B188: 41222 | C188: 412 | E188: 22 | F188: TOTAL NONCURRENT ASSETS | G188: 18144219 | H188: 0 | I188: 18144219
A189: 2019 | B189: 41223 | C189: 412 | E189: 23 | F189: TOTAL ASSETS | G189: 22659042 | H189: 152532 | I189: 22811574
A190: 2019 | B190: 41224 | C190: 412 | E190: 24 | F190: Accounts Payable | G190: 71664 | H190: 0 | I190: 71664
A191: 2019 | B191: 41225 | C191: 412 | E191: 25 | F191: Accrued Expenses / Accrued Payroll | G191: 626158 | H191: 0 | I191: 626158
A192: 2019 | B192: 41226 | C192: 412 | E192: 26 | F192: Deferred Revenue | G192: 0 | H192: 0 | I192: 0
A193: 2019 | B193: 41227 | C193: 412 | E193: 27 | F193: Due to related parties | G193: 0 | H193: 0 | I193: 0
A194: 2019 | B194: 41228 | C194: 412 | E194: 28 | F194: Current Debt Payable | G194: 216658 | H194: 0 | I194: 216658
A195: 2019 | B195: 41229 | C195: 412 | E195: 29 | F195: Current Lease Obligations Payable | G195: 0 | H195: 0 | I195: 0
A196: 2019 | B196: =C196&E196 -> 41230 | C196: 412 | E196: 30 | F196: TOTAL CURRENT LIABILITIES | G196: 914480 | H196: 0 | I196: 914480
A197: 2019 | B197: 41231 | C197: 412 | E197: 31 | F197: Noncurrent Lease Obligations | G197: 0 | H197: 0 | I197: 0
A198: 2019 | B198: 41232 | C198: 412 | E198: 32 | F198: Long-Term Debt | G198: 14969003 | H198: 0 | I198: 14969003
A199: 2019 | B199: 41233 | C199: 412 | E199: 33 | F199: Deferred Revenue | G199: 0 | H199: 0 | I199: 0
A200: 2019 | B200: 41234 | C200: 412 | E200: 34 | F200: TOTAL NONCURRENT LIABILITIES | G200: 14969003 | H200: 0 | I200: 14969003
... 3205 more rows

Sheet BAL18_RAW (hidden)
B1: 1 | C1: 2 | D1: 3 | E1: 4 | F1: 5 | G1: 6 | H1: 7 | I1: 8
A2: FY | B2: vlookup | C2: cha_code | D2: cha_type | E2: balance_id | F2: Line_Desc | G2: balance_sch | H2: balance_found | I2: balance_total
A3: 2018 | B3: =C3&E3 -> 40701 | C3: 407 | E3: 01 | F3: Cash and Cash Equivalents | G3: 138919.54 | H3: 0 | I3: 138919.54
A4: 2018 | B4: =C4&E4 -> 40702 | C4: 407 | E4: 02 | F4: Accounts Receivable net of doubtful accounts | G4: 0 | H4: 0 | I4: 0
A5: 2018 | B5: 40703 | C5: 407 | E5: 03 | F5: Grants Receivable - State | G5: 292 | H5: 0 | I5: 292
A6: 2018 | B6: 40704 | C6: 407 | E6: 04 | F6: Grants Receivable - Federal | G6: 0 | H6: 0 | I6: 0
A7: 2018 | B7: 40705 | C7: 407 | E7: 05 | F7: Grants Receivable - Private | G7: 0 | H7: 0 | I7: 0
A8: 2018 | B8: 40706 | C8: 407 | E8: 06 | F8: Contributions Receivable | G8: 0 | H8: 0 | I8: 0
A9: 2018 | B9: 40707 | C9: 407 | E9: 07 | F9: Due from related parties | G9: 58699.09 | H9: 0 | I9: 58699.09
A10: 2018 | B10: 40708 | C10: 407 | E10: 08 | F10: Prepaid Expenses / Inventory | G10: 2258.44 | H10: 0 | I10: 2258.44
A11: 2018 | B11: 40709 | C11: 407 | E11: 09 | F11: Short-Term Investments | G11: 0 | H11: 0 | I11: 0
A12: 2018 | B12: 40710 | C12: 407 | E12: 10 | F12: Deposit (Security, Other) | G12: 0 | H12: 0 | I12: 0
A13: 2018 | B13: 40711 | C13: 407 | E13: 11 | F13: Restricted Current Assets | G13: 0 | H13: 0 | I13: 0
A14: 2018 | B14: 40712 | C14: 407 | E14: 12 | F14: TOTAL CURRENT ASSETS | G14: 200169.07 | H14: 0 | I14: 200169.07
A15: 2018 | B15: 40713 | C15: 407 | E15: 13 | F15: - Land and Buildings | G15: 0 | H15: 0 | I15: 0
A16: 2018 | B16: 40714 | C16: 407 | E16: 14 | F16: - Building/Leasehold Improvement | G16: 0 | H16: 0 | I16: 0
A17: 2018 | B17: 40715 | C17: 407 | E17: 15 | F17: - Furniture and Equipment | G17: 79774.3 | H17: 0 | I17: 79774.3
A18: 2018 | B18: 40716 | C18: 407 | E18: 16 | F18: - Less Accumulated Depreciation | G18: -79774.3 | H18: 0 | I18: -79774.3
A19: 2018 | B19: 40717 | C19: 407 | E19: 17 | F19: Net Capital Assets | G19: 0 | H19: 0 | I19: 0
A20: 2018 | B20: 40718 | C20: 407 | E20: 18 | F20: Restricted Noncurrent Assets | G20: 0 | H20: 0 | I20: 0
A21: 2018 | B21: 40719 | C21: 407 | E21: 19 | F21: Long-Term Investments | G21: 0 | H21: 0 | I21: 0
A22: 2018 | B22: 40720 | C22: 407 | E22: 20 | F22: Building Acquisition / Financing Costs / Deferred Expenses | G22: 0 | H22: 0 | I22: 0
A23: 2018 | B23: 40721 | C23: 407 | E23: 21 | F23: Long-Term Grants / Contributions Receivable | G23: 0 | H23: 0 | I23: 0
A24: 2018 | B24: 40722 | C24: 407 | E24: 22 | F24: TOTAL NONCURRENT ASSETS | G24: 0 | H24: 0 | I24: 0
A25: 2018 | B25: 40723 | C25: 407 | E25: 23 | F25: TOTAL ASSETS | G25: 200169 | H25: 0 | I25: 200169
A26: 2018 | B26: 40724 | C26: 407 | E26: 24 | F26: Accounts Payable | G26: 0 | H26: 0 | I26: 0
A27: 2018 | B27: 40725 | C27: 407 | E27: 25 | F27: Accrued Expenses / Accrued Payroll | G27: 39805 | H27: 0 | I27: 39805
A28: 2018 | B28: 40726 | C28: 407 | E28: 26 | F28: Deferred Revenue | G28: 0 | H28: 0 | I28: 0
A29: 2018 | B29: 40727 | C29: 407 | E29: 27 | F29: Due to related parties | G29: 0 | H29: 0 | I29: 0
A30: 2018 | B30: 40728 | C30: 407 | E30: 28 | F30: Current Debt Payable | G30: 0 | H30: 0 | I30: 0
A31: 2018 | B31: 40729 | C31: 407 | E31: 29 | F31: Current Lease Obligations Payable | G31: 0 | H31: 0 | I31: 0
A32: 2018 | B32: 40730 | C32: 407 | E32: 30 | F32: TOTAL CURRENT LIABILITIES | G32: 39805 | H32: 0 | I32: 39805
A33: 2018 | B33: 40731 | C33: 407 | E33: 31 | F33: Noncurrent Lease Obligations | G33: 0 | H33: 0 | I33: 0
A34: 2018 | B34: 40732 | C34: 407 | E34: 32 | F34: Long-Term Debt | G34: 0 | H34: 0 | I34: 0
A35: 2018 | B35: 40733 | C35: 407 | E35: 33 | F35: Deferred Revenue | G35: 0 | H35: 0 | I35: 0
A36: 2018 | B36: 40734 | C36: 407 | E36: 34 | F36: TOTAL NONCURRENT LIABILITIES | G36: 0 | H36: 0 | I36: 0
A37: 2018 | B37: 40735 | C37: 407 | E37: 35 | F37: TOTAL LIABILITIES | G37: 39805 | H37: 0 | I37: 39805
A38: 2018 | B38: 40736 | C38: 407 | E38: 36 | F38: Investment in capital assets (net of related debt) | G38: 0 | H38: 0 | I38: 0
A39: 2018 | B39: 40737 | C39: 407 | E39: 37 | F39: Temporarily Restricted | G39: 0 | H39: 0 | I39: 0
A40: 2018 | B40: 40738 | C40: 407 | E40: 38 | F40: Permanently Restricted | G40: 0 | H40: 0 | I40: 0
A41: 2018 | B41: 40739 | C41: 407 | E41: 39 | F41: Unrestricted (non-capital) | G41: 160364.36 | H41: 0 | I41: 160364.36
A42: 2018 | B42: 40740 | C42: 407 | E42: 40 | F42: TOTAL NET ASSETS | G42: 160364 | H42: 0 | I42: 160364
A43: 2018 | B43: 40741 | C43: 407 | E43: 41 | F43: TOTAL LIABILITIES AND NET ASSETS | G43: 200169 | H43: 0 | I43: 200169
A44: 2018 | B44: 40901 | C44: 409 | E44: 01 | F44: Cash and Cash Equivalents | G44: 1965320 | H44: 1090615 | I44: 3055935
A45: 2018 | B45: 40902 | C45: 409 | E45: 02 | F45: Accounts Receivable net of doubtful accounts | G45: 14957.26 | H45: 0 | I45: 14957.26
A46: 2018 | B46: 40903 | C46: 409 | E46: 03 | F46: Grants Receivable - State | G46: 819.82 | H46: 0 | I46: 819.82
A47: 2018 | B47: 40904 | C47: 409 | E47: 04 | F47: Grants Receivable - Federal | G47: 43093.17 | H47: 0 | I47: 43093.17
A48: 2018 | B48: 40905 | C48: 409 | E48: 05 | F48: Grants Receivable - Private | G48: 0 | H48: 0 | I48: 0
A49: 2018 | B49: 40906 | C49: 409 | E49: 06 | F49: Contributions Receivable | G49: 0 | H49: 0 | I49: 0
A50: 2018 | B50: 40907 | C50: 409 | E50: 07 | F50: Due from related parties | G50: 27924 | H50: -27924 | I50: 0
A51: 2018 | B51: 40908 | C51: 409 | E51: 08 | F51: Prepaid Expenses / Inventory | G51: 61552 | H51: 3253 | I51: 64805
A52: 2018 | B52: 40909 | C52: 409 | E52: 09 | F52: Short-Term Investments | G52: 0 | H52: 0 | I52: 0
A53: 2018 | B53: 40910 | C53: 409 | E53: 10 | F53: Deposit (Security, Other) | G53: 0 | H53: 0 | I53: 0
A54: 2018 | B54: 40911 | C54: 409 | E54: 11 | F54: Restricted Current Assets | G54: 0 | H54: 130000 | I54: 130000
A55: 2018 | B55: 40912 | C55: 409 | E55: 12 | F55: TOTAL CURRENT ASSETS | G55: 2113666.25 | H55: 1195944 | I55: 3309610.25
A56: 2018 | B56: 40913 | C56: 409 | E56: 13 | F56: - Land and Buildings | G56: 0 | H56: 14752627 | I56: 14752627
A57: 2018 | B57: 40914 | C57: 409 | E57: 14 | F57: - Building/Leasehold Improvement | G57: 0 | H57: 0 | I57: 0
A58: 2018 | B58: 40915 | C58: 409 | E58: 15 | F58: - Furniture and Equipment | G58: 75846 | H58: 395165 | I58: 471011
A59: 2018 | B59: 40916 | C59: 409 | E59: 16 | F59: - Less Accumulated Depreciation | G59: -31610 | H59: -772883 | I59: -804493
A60: 2018 | B60: 40917 | C60: 409 | E60: 17 | F60: Net Capital Assets | G60: 44236 | H60: 14374909 | I60: 14419145
A61: 2018 | B61: 40918 | C61: 409 | E61: 18 | F61: Restricted Noncurrent Assets | G61: 0 | H61: 945 | I61: 945
A62: 2018 | B62: 40919 | C62: 409 | E62: 19 | F62: Long-Term Investments | G62: 0 | H62: 0 | I62: 0
A63: 2018 | B63: 40920 | C63: 409 | E63: 20 | F63: Building Acquisition / Financing Costs / Deferred Expenses | G63: 0 | H63: 0 | I63: 0
A64: 2018 | B64: 40921 | C64: 409 | E64: 21 | F64: Long-Term Grants / Contributions Receivable | G64: 0 | H64: 10042850 | I64: 10042850
A65: 2018 | B65: 40922 | C65: 409 | E65: 22 | F65: TOTAL NONCURRENT ASSETS | G65: 44236 | H65: 24418704 | I65: 24462940
A66: 2018 | B66: 40923 | C66: 409 | E66: 23 | F66: TOTAL ASSETS | G66: 2157902 | H66: 25614648 | I66: 27772550
A67: 2018 | B67: 40924 | C67: 409 | E67: 24 | F67: Accounts Payable | G67: 90871 | H67: 0 | I67: 90871
A68: 2018 | B68: =C68&E68 -> 40925 | C68: 409 | E68: 25 | F68: Accrued Expenses / Accrued Payroll | G68: 248816 | H68: 15000 | I68: 263816
A69: 2018 | B69: 40926 | C69: 409 | E69: 26 | F69: Deferred Revenue | G69: 0 | H69: 0 | I69: 0
A70: 2018 | B70: 40927 | C70: 409 | E70: 27 | F70: Due to related parties | G70: 0 | H70: 0 | I70: 0
A71: 2018 | B71: 40928 | C71: 409 | E71: 28 | F71: Current Debt Payable | G71: 0 | H71: 190482 | I71: 190482
A72: 2018 | B72: 40929 | C72: 409 | E72: 29 | F72: Current Lease Obligations Payable | G72: 0 | H72: 0 | I72: 0
A73: 2018 | B73: 40930 | C73: 409 | E73: 30 | F73: TOTAL CURRENT LIABILITIES | G73: 339687 | H73: 205482 | I73: 545169
A74: 2018 | B74: 40931 | C74: 409 | E74: 31 | F74: Noncurrent Lease Obligations | G74: 730339 | H74: -730339 | I74: 0
A75: 2018 | B75: 40932 | C75: 409 | E75: 32 | F75: Long-Term Debt | G75: 0 | H75: 23444557 | I75: 23444557
A76: 2018 | B76: 40933 | C76: 409 | E76: 33 | F76: Deferred Revenue | G76: 0 | H76: 0 | I76: 0
A77: 2018 | B77: 40934 | C77: 409 | E77: 34 | F77: TOTAL NONCURRENT LIABILITIES | G77: 730339 | H77: 22714218 | I77: 23444557
A78: 2018 | B78: 40935 | C78: 409 | E78: 35 | F78: TOTAL LIABILITIES | G78: 1070026 | H78: 22919700 | I78: 23989726
A79: 2018 | B79: 40936 | C79: 409 | E79: 36 | F79: Investment in capital assets (net of related debt) | G79: 44236 | H79: 251112 | I79: 295348
A80: 2018 | B80: 40937 | C80: 409 | E80: 37 | F80: Temporarily Restricted | G80: 0 | H80: 1002218 | I80: 1002218
A81: 2018 | B81: 40938 | C81: 409 | E81: 38 | F81: Permanently Restricted | G81: 0 | H81: 0 | I81: 0
A82: 2018 | B82: 40939 | C82: 409 | E82: 39 | F82: Unrestricted (non-capital) | G82: 1043640 | H82: 1441618 | I82: 2485258
A83: 2018 | B83: 40940 | C83: 409 | E83: 40 | F83: TOTAL NET ASSETS | G83: 1087876 | H83: 2694948 | I83: 3782824
A84: 2018 | B84: 40941 | C84: 409 | E84: 41 | F84: TOTAL LIABILITIES AND NET ASSETS | G84: 2157902 | H84: 25614648 | I84: 27772550
A85: 2018 | B85: 41001 | C85: 410 | E85: 01 | F85: Cash and Cash Equivalents | G85: 1983526 | H85: 2916952 | I85: 4900478
A86: 2018 | B86: 41002 | C86: 410 | E86: 02 | F86: Accounts Receivable net of doubtful accounts | G86: 35972 | H86: 35537 | I86: 71509
A87: 2018 | B87: 41003 | C87: 410 | E87: 03 | F87: Grants Receivable - State | G87: 195711 | H87: 0 | I87: 195711
A88: 2018 | B88: 41004 | C88: 410 | E88: 04 | F88: Grants Receivable - Federal | G88: 498900 | H88: 0 | I88: 498900
A89: 2018 | B89: 41005 | C89: 410 | E89: 05 | F89: Grants Receivable - Private | G89: 10000 | H89: 590858 | I89: 600858
A90: 2018 | B90: 41006 | C90: 410 | E90: 06 | F90: Contributions Receivable | G90: 0 | H90: 0 | I90: 0
A91: 2018 | B91: 41007 | C91: 410 | E91: 07 | F91: Due from related parties | G91: -2377286 | H91: 2377286 | I91: 0
A92: 2018 | B92: 41008 | C92: 410 | E92: 08 | F92: Prepaid Expenses / Inventory | G92: 326102 | H92: 0 | I92: 326102
A93: 2018 | B93: 41009 | C93: 410 | E93: 09 | F93: Short-Term Investments | G93: 0 | H93: 0 | I93: 0
A94: 2018 | B94: 41010 | C94: 410 | E94: 10 | F94: Deposit (Security, Other) | G94: 0 | H94: 37050 | I94: 37050
A95: 2018 | B95: 41011 | C95: 410 | E95: 11 | F95: Restricted Current Assets | G95: 0 | H95: 0 | I95: 0
A96: 2018 | B96: 41012 | C96: 410 | E96: 12 | F96: TOTAL CURRENT ASSETS | G96: 672925 | H96: 5957683 | I96: 6630608
A97: 2018 | B97: 41013 | C97: 410 | E97: 13 | F97: - Land and Buildings | G97: 30567361 | H97: 2208803 | I97: 32776164
A98: 2018 | B98: 41014 | C98: 410 | E98: 14 | F98: - Building/Leasehold Improvement | G98: 1031007 | H98: 0 | I98: 1031007
A99: 2018 | B99: 41015 | C99: 410 | E99: 15 | F99: - Furniture and Equipment | G99: 1109768 | H99: 0 | I99: 1109768
A100: 2018 | B100: 41016 | C100: 410 | E100: 16 | F100: - Less Accumulated Depreciation | G100: -2612925 | H100: 0 | I100: -2612925
A101: 2018 | B101: 41017 | C101: 410 | E101: 17 | F101: Net Capital Assets | G101: 30095211 | H101: 2208803 | I101: 32304014
A102: 2018 | B102: 41018 | C102: 410 | E102: 18 | F102: Restricted Noncurrent Assets | G102: 999878 | H102: 258105 | I102: 1257983
A103: 2018 | B103: 41019 | C103: 410 | E103: 19 | F103: Long-Term Investments | G103: 0 | H103: 0 | I103: 0
A104: 2018 | B104: 41020 | C104: 410 | E104: 20 | F104: Building Acquisition / Financing Costs / Deferred Expenses | G104: -9645524 | H104: 9645524 | I104: 0
A105: 2018 | B105: 41021 | C105: 410 | E105: 21 | F105: Long-Term Grants / Contributions Receivable | G105: 0 | H105: 6667775 | I105: 6667775
A106: 2018 | B106: 41022 | C106: 410 | E106: 22 | F106: TOTAL NONCURRENT ASSETS | G106: 21449565 | H106: 18780207 | I106: 40229772
A107: 2018 | B107: 41023 | C107: 410 | E107: 23 | F107: TOTAL ASSETS | G107: 22122490 | H107: 24737890 | I107: 46860380
A108: 2018 | B108: 41024 | C108: 410 | E108: 24 | F108: Accounts Payable | G108: 568942 | H108: 488528 | I108: 1057470
A109: 2018 | B109: 41025 | C109: 410 | E109: 25 | F109: Accrued Expenses / Accrued Payroll | G109: 845852 | H109: 10844 | I109: 856696
A110: 2018 | B110: 41026 | C110: 410 | E110: 26 | F110: Deferred Revenue | G110: 0 | H110: 0 | I110: 0
A111: 2018 | B111: 41027 | C111: 410 | E111: 27 | F111: Due to related parties | G111: 0 | H111: 0 | I111: 0
A112: 2018 | B112: 41028 | C112: 410 | E112: 28 | F112: Current Debt Payable | G112: 541424 | H112: 249097 | I112: 790521
A113: 2018 | B113: 41029 | C113: 410 | E113: 29 | F113: Current Lease Obligations Payable | G113: 0 | H113: 0 | I113: 0
A114: 2018 | B114: 41030 | C114: 410 | E114: 30 | F114: TOTAL CURRENT LIABILITIES | G114: 1956218 | H114: 748469 | I114: 2704687
A115: 2018 | B115: 41031 | C115: 410 | E115: 31 | F115: Noncurrent Lease Obligations | G115: 166974 | H115: 0 | I115: 166974
A116: 2018 | B116: 41032 | C116: 410 | E116: 32 | F116: Long-Term Debt | G116: 21120498 | H116: 12438605 | I116: 33559103
A117: 2018 | B117: 41033 | C117: 410 | E117: 33 | F117: Deferred Revenue | G117: 0 | H117: 320000 | I117: 320000
A118: 2018 | B118: 41034 | C118: 410 | E118: 34 | F118: TOTAL NONCURRENT LIABILITIES | G118: 21287472 | H118: 12758605 | I118: 34046077
A119: 2018 | B119: 41035 | C119: 410 | E119: 35 | F119: TOTAL LIABILITIES | G119: 23243690 | H119: 13507074 | I119: 36750764
A120: 2018 | B120: 41036 | C120: 410 | E120: 36 | F120: Investment in capital assets (net of related debt) | G120: -1173648 | H120: 6045292 | I120: 4871644
A121: 2018 | B121: 41037 | C121: 410 | E121: 37 | F121: Temporarily Restricted | G121: 12755 | H121: 874566 | I121: 887321
A122: 2018 | B122: 41038 | C122: 410 | E122: 38 | F122: Permanently Restricted | G122: 0 | H122: 0 | I122: 0
A123: 2018 | B123: 41039 | C123: 410 | E123: 39 | F123: Unrestricted (non-capital) | G123: 39693 | H123: 4310958 | I123: 4350651
A124: 2018 | B124: 41040 | C124: 410 | E124: 40 | F124: TOTAL NET ASSETS | G124: -1121200 | H124: 11230816 | I124: 10109616
A125: 2018 | B125: 41041 | C125: 410 | E125: 41 | F125: TOTAL LIABILITIES AND NET ASSETS | G125: 22122490 | H125: 24737890 | I125: 46860380
A126: 2018 | B126: 41101 | C126: 411 | E126: 01 | F126: Cash and Cash Equivalents | G126: 203143 | H126: 56845 | I126: 259988
A127: 2018 | B127: 41102 | C127: 411 | E127: 02 | F127: Accounts Receivable net of doubtful accounts | G127: 0 | H127: 0 | I127: 0
A128: 2018 | B128: 41103 | C128: 411 | E128: 03 | F128: Grants Receivable - State | G128: 1799 | H128: 0 | I128: 1799
A129: 2018 | B129: 41104 | C129: 411 | E129: 04 | F129: Grants Receivable - Federal | G129: 176355.27 | H129: 0 | I129: 176355.27
A130: 2018 | B130: 41105 | C130: 411 | E130: 05 | F130: Grants Receivable - Private | G130: 0 | H130: 0 | I130: 0
A131: 2018 | B131: 41106 | C131: 411 | E131: 06 | F131: Contributions Receivable | G131: 0 | H131: 0 | I131: 0
A132: 2018 | B132: =C132&E132 -> 41107 | C132: 411 | E132: 07 | F132: Due from related parties | G132: -210880 | H132: 210880 | I132: 0
A133: 2018 | B133: 41108 | C133: 411 | E133: 08 | F133: Prepaid Expenses / Inventory | G133: 21544 | H133: 0 | I133: 21544
A134: 2018 | B134: 41109 | C134: 411 | E134: 09 | F134: Short-Term Investments | G134: 0 | H134: 0 | I134: 0
A135: 2018 | B135: 41110 | C135: 411 | E135: 10 | F135: Deposit (Security, Other) | G135: 0 | H135: 0 | I135: 0
A136: 2018 | B136: 41111 | C136: 411 | E136: 11 | F136: Restricted Current Assets | G136: 0 | H136: 0 | I136: 0
A137: 2018 | B137: 41112 | C137: 411 | E137: 12 | F137: TOTAL CURRENT ASSETS | G137: 191961.27 | H137: 267725 | I137: 459686.27
A138: 2018 | B138: 41113 | C138: 411 | E138: 13 | F138: - Land and Buildings | G138: 0 | H138: 0 | I138: 0
A139: 2018 | B139: 41114 | C139: 411 | E139: 14 | F139: - Building/Leasehold Improvement | G139: 0 | H139: 0 | I139: 0
A140: 2018 | B140: 41115 | C140: 411 | E140: 15 | F140: - Furniture and Equipment | G140: 120997 | H140: 0 | I140: 120997
A141: 2018 | B141: 41116 | C141: 411 | E141: 16 | F141: - Less Accumulated Depreciation | G141: -62700 | H141: 0 | I141: -62700
A142: 2018 | B142: 41117 | C142: 411 | E142: 17 | F142: Net Capital Assets | G142: 58297 | H142: 0 | I142: 58297
A143: 2018 | B143: 41118 | C143: 411 | E143: 18 | F143: Restricted Noncurrent Assets | G143: 0 | H143: 0 | I143: 0
A144: 2018 | B144: 41119 | C144: 411 | E144: 19 | F144: Long-Term Investments | G144: 0 | H144: 0 | I144: 0
A145: 2018 | B145: 41120 | C145: 411 | E145: 20 | F145: Building Acquisition / Financing Costs / Deferred Expenses | G145: 0 | H145: 0 | I145: 0
A146: 2018 | B146: 41121 | C146: 411 | E146: 21 | F146: Long-Term Grants / Contributions Receivable | G146: 0 | H146: 0 | I146: 0
A147: 2018 | B147: 41122 | C147: 411 | E147: 22 | F147: TOTAL NONCURRENT ASSETS | G147: 58297 | H147: 0 | I147: 58297
A148: 2018 | B148: 41123 | C148: 411 | E148: 23 | F148: TOTAL ASSETS | G148: 250258 | H148: 267725 | I148: 517983
A149: 2018 | B149: 41124 | C149: 411 | E149: 24 | F149: Accounts Payable | G149: 11880 | H149: 0 | I149: 11880
A150: 2018 | B150: 41125 | C150: 411 | E150: 25 | F150: Accrued Expenses / Accrued Payroll | G150: 0 | H150: 0 | I150: 0
A151: 2018 | B151: 41126 | C151: 411 | E151: 26 | F151: Deferred Revenue | G151: 0 | H151: 0 | I151: 0
A152: 2018 | B152: 41127 | C152: 411 | E152: 27 | F152: Due to related parties | G152: 0 | H152: 0 | I152: 0
A153: 2018 | B153: 41128 | C153: 411 | E153: 28 | F153: Current Debt Payable | G153: 0 | H153: 0 | I153: 0
A154: 2018 | B154: 41129 | C154: 411 | E154: 29 | F154: Current Lease Obligations Payable | G154: 0 | H154: 0 | I154: 0
A155: 2018 | B155: 41130 | C155: 411 | E155: 30 | F155: TOTAL CURRENT LIABILITIES | G155: 11880 | H155: 0 | I155: 11880
A156: 2018 | B156: 41131 | C156: 411 | E156: 31 | F156: Noncurrent Lease Obligations | G156: 0 | H156: 0 | I156: 0
A157: 2018 | B157: 41132 | C157: 411 | E157: 32 | F157: Long-Term Debt | G157: 0 | H157: 0 | I157: 0
A158: 2018 | B158: 41133 | C158: 411 | E158: 33 | F158: Deferred Revenue | G158: 0 | H158: 0 | I158: 0
A159: 2018 | B159: 41134 | C159: 411 | E159: 34 | F159: TOTAL NONCURRENT LIABILITIES | G159: 0 | H159: 0 | I159: 0
A160: 2018 | B160: 41135 | C160: 411 | E160: 35 | F160: TOTAL LIABILITIES | G160: 11880 | H160: 0 | I160: 11880
A161: 2018 | B161: 41136 | C161: 411 | E161: 36 | F161: Investment in capital assets (net of related debt) | G161: 58297 | H161: 0 | I161: 58297
A162: 2018 | B162: 41137 | C162: 411 | E162: 37 | F162: Temporarily Restricted | G162: 0 | H162: 22978 | I162: 22978
A163: 2018 | B163: 41138 | C163: 411 | E163: 38 | F163: Permanently Restricted | G163: 0 | H163: 0 | I163: 0
A164: 2018 | B164: 41139 | C164: 411 | E164: 39 | F164: Unrestricted (non-capital) | G164: 180081 | H164: 244747 | I164: 424828
A165: 2018 | B165: 41140 | C165: 411 | E165: 40 | F165: TOTAL NET ASSETS | G165: 238378 | H165: 267725 | I165: 506103
A166: 2018 | B166: 41141 | C166: 411 | E166: 41 | F166: TOTAL LIABILITIES AND NET ASSETS | G166: 250258 | H166: 267725 | I166: 517983
A167: 2018 | B167: 41201 | C167: 412 | E167: 01 | F167: Cash and Cash Equivalents | G167: 3919974 | H167: 331410 | I167: 4251384
A168: 2018 | B168: 41202 | C168: 412 | E168: 02 | F168: Accounts Receivable net of doubtful accounts | G168: 0 | H168: 0 | I168: 0
A169: 2018 | B169: 41203 | C169: 412 | E169: 03 | F169: Grants Receivable - State | G169: 0 | H169: 0 | I169: 0
A170: 2018 | B170: 41204 | C170: 412 | E170: 04 | F170: Grants Receivable - Federal | G170: 92973 | H170: 0 | I170: 92973
A171: 2018 | B171: 41205 | C171: 412 | E171: 05 | F171: Grants Receivable - Private | G171: 0 | H171: 0 | I171: 0
A172: 2018 | B172: 41206 | C172: 412 | E172: 06 | F172: Contributions Receivable | G172: 0 | H172: 0 | I172: 0
A173: 2018 | B173: 41207 | C173: 412 | E173: 07 | F173: Due from related parties | G173: 167225 | H173: 0 | I173: 167225
A174: 2018 | B174: 41208 | C174: 412 | E174: 08 | F174: Prepaid Expenses / Inventory | G174: 20268 | H174: 0 | I174: 20268
A175: 2018 | B175: 41209 | C175: 412 | E175: 09 | F175: Short-Term Investments | G175: 0 | H175: 13831 | I175: 13831
A176: 2018 | B176: 41210 | C176: 412 | E176: 10 | F176: Deposit (Security, Other) | G176: 19040 | H176: 0 | I176: 19040
A177: 2018 | B177: 41211 | C177: 412 | E177: 11 | F177: Restricted Current Assets | G177: 0 | H177: 0 | I177: 0
A178: 2018 | B178: 41212 | C178: 412 | E178: 12 | F178: TOTAL CURRENT ASSETS | G178: 4219480 | H178: 345241 | I178: 4564721
A179: 2018 | B179: 41213 | C179: 412 | E179: 13 | F179: - Land and Buildings | G179: 5000000 | H179: 0 | I179: 5000000
A180: 2018 | B180: 41214 | C180: 412 | E180: 14 | F180: - Building/Leasehold Improvement | G180: 11923113 | H180: 0 | I180: 11923113
A181: 2018 | B181: 41215 | C181: 412 | E181: 15 | F181: - Furniture and Equipment | G181: 2149706 | H181: 0 | I181: 2149706
A182: 2018 | B182: 41216 | C182: 412 | E182: 16 | F182: - Less Accumulated Depreciation | G182: -7084030 | H182: 0 | I182: -7084030
A183: 2018 | B183: 41217 | C183: 412 | E183: 17 | F183: Net Capital Assets | G183: 11988789 | H183: 0 | I183: 11988789
A184: 2018 | B184: 41218 | C184: 412 | E184: 18 | F184: Restricted Noncurrent Assets | G184: 6223173 | H184: 0 | I184: 6223173
A185: 2018 | B185: 41219 | C185: 412 | E185: 19 | F185: Long-Term Investments | G185: 408418 | H185: 0 | I185: 408418
A186: 2018 | B186: 41220 | C186: 412 | E186: 20 | F186: Building Acquisition / Financing Costs / Deferred Expenses | G186: 0 | H186: 0 | I186: 0
A187: 2018 | B187: 41221 | C187: 412 | E187: 21 | F187: Long-Term Grants / Contributions Receivable | G187: 173804 | H187: 0 | I187: 173804
A188: 2018 | B188: 41222 | C188: 412 | E188: 22 | F188: TOTAL NONCURRENT ASSETS | G188: 18794184 | H188: 0 | I188: 18794184
A189: 2018 | B189: 41223 | C189: 412 | E189: 23 | F189: TOTAL ASSETS | G189: 23013664 | H189: 345241 | I189: 23358905
A190: 2018 | B190: 41224 | C190: 412 | E190: 24 | F190: Accounts Payable | G190: 186868 | H190: 0 | I190: 186868
A191: 2018 | B191: 41225 | C191: 412 | E191: 25 | F191: Accrued Expenses / Accrued Payroll | G191: 554764 | H191: 0 | I191: 554764
A192: 2018 | B192: 41226 | C192: 412 | E192: 26 | F192: Deferred Revenue | G192: 0 | H192: 0 | I192: 0
A193: 2018 | B193: 41227 | C193: 412 | E193: 27 | F193: Due to related parties | G193: 0 | H193: 167225 | I193: 167225
A194: 2018 | B194: 41228 | C194: 412 | E194: 28 | F194: Current Debt Payable | G194: 209958 | H194: 0 | I194: 209958
A195: 2018 | B195: 41229 | C195: 412 | E195: 29 | F195: Current Lease Obligations Payable | G195: 0 | H195: 0 | I195: 0
A196: 2018 | B196: =C196&E196 -> 41230 | C196: 412 | E196: 30 | F196: TOTAL CURRENT LIABILITIES | G196: 951590 | H196: 167225 | I196: 1118815
A197: 2018 | B197: 41231 | C197: 412 | E197: 31 | F197: Noncurrent Lease Obligations | G197: 0 | H197: 0 | I197: 0
A198: 2018 | B198: 41232 | C198: 412 | E198: 32 | F198: Long-Term Debt | G198: 14978334 | H198: 0 | I198: 14978334
A199: 2018 | B199: 41233 | C199: 412 | E199: 33 | F199: Deferred Revenue | G199: 0 | H199: 0 | I199: 0
A200: 2018 | B200: 41234 | C200: 412 | E200: 34 | F200: TOTAL NONCURRENT LIABILITIES | G200: 14978334 | H200: 0 | I200: 14978334
... 3123 more rows

Sheet BAL17_RAW (hidden)
B1: 1 | C1: 2 | D1: 3 | E1: 4 | F1: 5 | G1: 6 | H1: 7 | I1: 8
A2: FY | B2: vlookup | C2: cha_code | D2: cha_type | E2: balance_id | F2: Line_Desc | G2: balance_sch | H2: balance_found | I2: balance_total
A3: 2017 | B3: =C3&E3 -> 43601 | C3: 436 | E3: 01 | F3: Cash and Cash Equivalents | G3: 7075641 | H3: 0 | I3: 7075641
A4: 2017 | B4: =C4&E4 -> 43602 | C4: 436 | E4: 02 | F4: Accounts Receivable net of doubtful accounts | G4: 31350 | H4: 0 | I4: 31350
A5: 2017 | B5: 43603 | C5: 436 | E5: 03 | F5: Grants Receivable - State | G5: 542 | H5: 0 | I5: 542
A6: 2017 | B6: 43604 | C6: 436 | E6: 04 | F6: Grants Receivable - Federal | G6: 34321 | H6: 0 | I6: 34321
A7: 2017 | B7: 43605 | C7: 436 | E7: 05 | F7: Grants Receivable - Private | G7: 0 | H7: 0 | I7: 0
A8: 2017 | B8: 43606 | C8: 436 | E8: 06 | F8: Contributions Receivable | G8: 0 | H8: 0 | I8: 0
A9: 2017 | B9: 43607 | C9: 436 | E9: 07 | F9: Due from related parties | G9: 0 | H9: 0 | I9: 0
A10: 2017 | B10: 43608 | C10: 436 | E10: 08 | F10: Prepaid Expenses / Inventory | G10: 0 | H10: 0 | I10: 0
A11: 2017 | B11: 43609 | C11: 436 | E11: 09 | F11: Short-Term Investments | G11: 0 | H11: 0 | I11: 0
A12: 2017 | B12: 43610 | C12: 436 | E12: 10 | F12: Deposit (Security, Other) | G12: 162881 | H12: 0 | I12: 162881
A13: 2017 | B13: 43611 | C13: 436 | E13: 11 | F13: Restricted Current Assets | G13: 0 | H13: 0 | I13: 0
A14: 2017 | B14: 43612 | C14: 436 | E14: 12 | F14: TOTAL CURRENT ASSETS | G14: 7304735 | H14: 0 | I14: 7304735
A15: 2017 | B15: 43613 | C15: 436 | E15: 13 | F15: - Land and Buildings | G15: 0 | H15: 0 | I15: 0
A16: 2017 | B16: 43614 | C16: 436 | E16: 14 | F16: - Building/Leasehold Improvement | G16: 2669662 | H16: 0 | I16: 2669662
A17: 2017 | B17: 43615 | C17: 436 | E17: 15 | F17: - Furniture and Equipment | G17: 531883 | H17: 0 | I17: 531883
A18: 2017 | B18: 43616 | C18: 436 | E18: 16 | F18: - Less Accumulated Depreciation | G18: -2573308 | H18: 0 | I18: -2573308
A19: 2017 | B19: 43617 | C19: 436 | E19: 17 | F19: Net Capital Assets | G19: 628237 | H19: 0 | I19: 628237
A20: 2017 | B20: 43618 | C20: 436 | E20: 18 | F20: Restricted Noncurrent Assets | G20: 0 | H20: 0 | I20: 0
A21: 2017 | B21: 43619 | C21: 436 | E21: 19 | F21: Long-Term Investments | G21: 0 | H21: 0 | I21: 0
A22: 2017 | B22: 43620 | C22: 436 | E22: 20 | F22: Building Acquisition / Financing Costs / Deferred Expenses | G22: 0 | H22: 0 | I22: 0
A23: 2017 | B23: 43621 | C23: 436 | E23: 21 | F23: Long-Term Grants / Contributions Receivable | G23: 0 | H23: 0 | I23: 0
A24: 2017 | B24: 43622 | C24: 436 | E24: 22 | F24: TOTAL NONCURRENT ASSETS | G24: 628237 | H24: 0 | I24: 628237
A25: 2017 | B25: 43623 | C25: 436 | E25: 23 | F25: TOTAL ASSETS | G25: 7932972 | H25: 0 | I25: 7932972
A26: 2017 | B26: 43624 | C26: 436 | E26: 24 | F26: Accounts Payable | G26: 28456 | H26: 0 | I26: 28456
A27: 2017 | B27: 43625 | C27: 436 | E27: 25 | F27: Accrued Expenses / Accrued Payroll | G27: 337815 | H27: 0 | I27: 337815
A28: 2017 | B28: 43626 | C28: 436 | E28: 26 | F28: Deferred Revenue | G28: 35158 | H28: 0 | I28: 35158
A29: 2017 | B29: 43627 | C29: 436 | E29: 27 | F29: Due to related parties | G29: 0 | H29: 0 | I29: 0
A30: 2017 | B30: 43628 | C30: 436 | E30: 28 | F30: Current Debt Payable | G30: 0 | H30: 0 | I30: 0
A31: 2017 | B31: 43629 | C31: 436 | E31: 29 | F31: Current Lease Obligations Payable | G31: 0 | H31: 0 | I31: 0
A32: 2017 | B32: 43630 | C32: 436 | E32: 30 | F32: TOTAL CURRENT LIABILITIES | G32: 401429 | H32: 0 | I32: 401429
A33: 2017 | B33: 43631 | C33: 436 | E33: 31 | F33: Noncurrent Lease Obligations | G33: 0 | H33: 0 | I33: 0
A34: 2017 | B34: 43632 | C34: 436 | E34: 32 | F34: Long-Term Debt | G34: 0 | H34: 0 | I34: 0
A35: 2017 | B35: 43633 | C35: 436 | E35: 33 | F35: Deferred Revenue | G35: 0 | H35: 0 | I35: 0
A36: 2017 | B36: 43634 | C36: 436 | E36: 34 | F36: TOTAL NONCURRENT LIABILITIES | G36: 0 | H36: 0 | I36: 0
A37: 2017 | B37: 43635 | C37: 436 | E37: 35 | F37: TOTAL LIABILITIES | G37: 401429 | H37: 0 | I37: 401429
A38: 2017 | B38: 43636 | C38: 436 | E38: 36 | F38: Investment in capital assets (net of related debt) | G38: 628237 | H38: 0 | I38: 628237
A39: 2017 | B39: 43637 | C39: 436 | E39: 37 | F39: Temporarily Restricted | G39: 3015000 | H39: 0 | I39: 3015000
A40: 2017 | B40: 43638 | C40: 436 | E40: 38 | F40: Permanently Restricted | G40: 0 | H40: 0 | I40: 0
A41: 2017 | B41: 43639 | C41: 436 | E41: 39 | F41: Unrestricted (non-capital) | G41: 3888306 | H41: 0 | I41: 3888306
A42: 2017 | B42: 43640 | C42: 436 | E42: 40 | F42: TOTAL NET ASSETS | G42: 7531543 | H42: 0 | I42: 7531543
A43: 2017 | B43: 43641 | C43: 436 | E43: 41 | F43: TOTAL LIABILITIES AND NET ASSETS | G43: 7932972 | H43: 0 | I43: 7932972
A44: 2017 | B44: 40701 | C44: 407 | E44: 01 | F44: Cash and Cash Equivalents | G44: 8988 | H44: 0 | I44: 8988
A45: 2017 | B45: 40702 | C45: 407 | E45: 02 | F45: Accounts Receivable net of doubtful accounts | G45: 0 | H45: 0 | I45: 0
A46: 2017 | B46: 40703 | C46: 407 | E46: 03 | F46: Grants Receivable - State | G46: 0 | H46: 0 | I46: 0
A47: 2017 | B47: 40704 | C47: 407 | E47: 04 | F47: Grants Receivable - Federal | G47: 247891 | H47: 0 | I47: 247891
A48: 2017 | B48: 40705 | C48: 407 | E48: 05 | F48: Grants Receivable - Private | G48: 0 | H48: 0 | I48: 0
A49: 2017 | B49: 40706 | C49: 407 | E49: 06 | F49: Contributions Receivable | G49: 0 | H49: 0 | I49: 0
A50: 2017 | B50: 40707 | C50: 407 | E50: 07 | F50: Due from related parties | G50: 0 | H50: 0 | I50: 0
A51: 2017 | B51: 40708 | C51: 407 | E51: 08 | F51: Prepaid Expenses / Inventory | G51: 2393 | H51: 0 | I51: 2393
A52: 2017 | B52: 40709 | C52: 407 | E52: 09 | F52: Short-Term Investments | G52: 0 | H52: 0 | I52: 0
A53: 2017 | B53: 40710 | C53: 407 | E53: 10 | F53: Deposit (Security, Other) | G53: 0 | H53: 0 | I53: 0
A54: 2017 | B54: 40711 | C54: 407 | E54: 11 | F54: Restricted Current Assets | G54: 0 | H54: 0 | I54: 0
A55: 2017 | B55: 40712 | C55: 407 | E55: 12 | F55: TOTAL CURRENT ASSETS | G55: 259272 | H55: 0 | I55: 259272
A56: 2017 | B56: 40713 | C56: 407 | E56: 13 | F56: - Land and Buildings | G56: 0 | H56: 0 | I56: 0
A57: 2017 | B57: 40714 | C57: 407 | E57: 14 | F57: - Building/Leasehold Improvement | G57: 0 | H57: 0 | I57: 0
A58: 2017 | B58: 40715 | C58: 407 | E58: 15 | F58: - Furniture and Equipment | G58: 0 | H58: 0 | I58: 0
A59: 2017 | B59: 40716 | C59: 407 | E59: 16 | F59: - Less Accumulated Depreciation | G59: 0 | H59: 0 | I59: 0
A60: 2017 | B60: 40717 | C60: 407 | E60: 17 | F60: Net Capital Assets | G60: 0 | H60: 0 | I60: 0
A61: 2017 | B61: 40718 | C61: 407 | E61: 18 | F61: Restricted Noncurrent Assets | G61: 0 | H61: 0 | I61: 0
A62: 2017 | B62: 40719 | C62: 407 | E62: 19 | F62: Long-Term Investments | G62: 0 | H62: 0 | I62: 0
A63: 2017 | B63: 40720 | C63: 407 | E63: 20 | F63: Building Acquisition / Financing Costs / Deferred Expenses | G63: 0 | H63: 0 | I63: 0
A64: 2017 | B64: 40721 | C64: 407 | E64: 21 | F64: Long-Term Grants / Contributions Receivable | G64: 0 | H64: 0 | I64: 0
A65: 2017 | B65: 40722 | C65: 407 | E65: 22 | F65: TOTAL NONCURRENT ASSETS | G65: 0 | H65: 0 | I65: 0
A66: 2017 | B66: 40723 | C66: 407 | E66: 23 | F66: TOTAL ASSETS | G66: 259272 | H66: 0 | I66: 259272
A67: 2017 | B67: 40724 | C67: 407 | E67: 24 | F67: Accounts Payable | G67: 59783 | H67: 0 | I67: 59783
A68: 2017 | B68: =C68&E68 -> 40725 | C68: 407 | E68: 25 | F68: Accrued Expenses / Accrued Payroll | G68: 357 | H68: 0 | I68: 357
A69: 2017 | B69: 40726 | C69: 407 | E69: 26 | F69: Deferred Revenue | G69: 0 | H69: 0 | I69: 0
A70: 2017 | B70: 40727 | C70: 407 | E70: 27 | F70: Due to related parties | G70: 0 | H70: 0 | I70: 0
A71: 2017 | B71: 40728 | C71: 407 | E71: 28 | F71: Current Debt Payable | G71: 0 | H71: 0 | I71: 0
A72: 2017 | B72: 40729 | C72: 407 | E72: 29 | F72: Current Lease Obligations Payable | G72: 0 | H72: 0 | I72: 0
A73: 2017 | B73: 40730 | C73: 407 | E73: 30 | F73: TOTAL CURRENT LIABILITIES | G73: 60140 | H73: 0 | I73: 60140
A74: 2017 | B74: 40731 | C74: 407 | E74: 31 | F74: Noncurrent Lease Obligations | G74: 0 | H74: 0 | I74: 0
A75: 2017 | B75: 40732 | C75: 407 | E75: 32 | F75: Long-Term Debt | G75: 0 | H75: 0 | I75: 0
A76: 2017 | B76: 40733 | C76: 407 | E76: 33 | F76: Deferred Revenue | G76: 0 | H76: 0 | I76: 0
A77: 2017 | B77: 40734 | C77: 407 | E77: 34 | F77: TOTAL NONCURRENT LIABILITIES | G77: 0 | H77: 0 | I77: 0
A78: 2017 | B78: 40735 | C78: 407 | E78: 35 | F78: TOTAL LIABILITIES | G78: 60140 | H78: 0 | I78: 60140
A79: 2017 | B79: 40736 | C79: 407 | E79: 36 | F79: Investment in capital assets (net of related debt) | G79: 0 | H79: 0 | I79: 0
A80: 2017 | B80: 40737 | C80: 407 | E80: 37 | F80: Temporarily Restricted | G80: 0 | H80: 0 | I80: 0
A81: 2017 | B81: 40738 | C81: 407 | E81: 38 | F81: Permanently Restricted | G81: 0 | H81: 0 | I81: 0
A82: 2017 | B82: 40739 | C82: 407 | E82: 39 | F82: Unrestricted (non-capital) | G82: 199132 | H82: 0 | I82: 199132
A83: 2017 | B83: 40740 | C83: 407 | E83: 40 | F83: TOTAL NET ASSETS | G83: 199132 | H83: 0 | I83: 199132
A84: 2017 | B84: 40741 | C84: 407 | E84: 41 | F84: TOTAL LIABILITIES AND NET ASSETS | G84: 259272 | H84: 0 | I84: 259272
A85: 2017 | B85: 40901 | C85: 409 | E85: 01 | F85: Cash and Cash Equivalents | G85: 1334488 | H85: 658501 | I85: 1992989
A86: 2017 | B86: 40902 | C86: 409 | E86: 02 | F86: Accounts Receivable net of doubtful accounts | G86: 37207 | H86: 7434 | I86: 44641
A87: 2017 | B87: 40903 | C87: 409 | E87: 03 | F87: Grants Receivable - State | G87: 0 | H87: 0 | I87: 0
A88: 2017 | B88: 40904 | C88: 409 | E88: 04 | F88: Grants Receivable - Federal | G88: 16388 | H88: 0 | I88: 16388
A89: 2017 | B89: 40905 | C89: 409 | E89: 05 | F89: Grants Receivable - Private | G89: 0 | H89: 0 | I89: 0
A90: 2017 | B90: 40906 | C90: 409 | E90: 06 | F90: Contributions Receivable | G90: 0 | H90: 110000 | I90: 110000
A91: 2017 | B91: 40907 | C91: 409 | E91: 07 | F91: Due from related parties | G91: 201689 | H91: -201689 | I91: 0
A92: 2017 | B92: 40908 | C92: 409 | E92: 08 | F92: Prepaid Expenses / Inventory | G92: 54638 | H92: 3253 | I92: 57891
A93: 2017 | B93: 40909 | C93: 409 | E93: 09 | F93: Short-Term Investments | G93: 0 | H93: 0 | I93: 0
A94: 2017 | B94: 40910 | C94: 409 | E94: 10 | F94: Deposit (Security, Other) | G94: 0 | H94: 0 | I94: 0
A95: 2017 | B95: 40911 | C95: 409 | E95: 11 | F95: Restricted Current Assets | G95: 0 | H95: 0 | I95: 0
A96: 2017 | B96: 40912 | C96: 409 | E96: 12 | F96: TOTAL CURRENT ASSETS | G96: 1644410 | H96: 577499 | I96: 2221909
A97: 2017 | B97: 40913 | C97: 409 | E97: 13 | F97: - Land and Buildings | G97: 0 | H97: 14752627 | I97: 14752627
A98: 2017 | B98: 40914 | C98: 409 | E98: 14 | F98: - Building/Leasehold Improvement | G98: 0 | H98: 0 | I98: 0
A99: 2017 | B99: 40915 | C99: 409 | E99: 15 | F99: - Furniture and Equipment | G99: 55649 | H99: 365929 | I99: 421578
A100: 2017 | B100: 40916 | C100: 409 | E100: 16 | F100: - Less Accumulated Depreciation | G100: -17360 | H100: -358536 | I100: -375896
A101: 2017 | B101: 40917 | C101: 409 | E101: 17 | F101: Net Capital Assets | G101: 38289 | H101: 14760020 | I101: 14798309
A102: 2017 | B102: 40918 | C102: 409 | E102: 18 | F102: Restricted Noncurrent Assets | G102: 0 | H102: 1034668 | I102: 1034668
A103: 2017 | B103: 40919 | C103: 409 | E103: 19 | F103: Long-Term Investments | G103: 0 | H103: 0 | I103: 0
A104: 2017 | B104: 40920 | C104: 409 | E104: 20 | F104: Building Acquisition / Financing Costs / Deferred Expenses | G104: 0 | H104: 0 | I104: 0
A105: 2017 | B105: 40921 | C105: 409 | E105: 21 | F105: Long-Term Grants / Contributions Receivable | G105: 0 | H105: 10082850 | I105: 10082850
A106: 2017 | B106: 40922 | C106: 409 | E106: 22 | F106: TOTAL NONCURRENT ASSETS | G106: 38289 | H106: 25877538 | I106: 25915827
A107: 2017 | B107: 40923 | C107: 409 | E107: 23 | F107: TOTAL ASSETS | G107: 1682699 | H107: 26455037 | I107: 28137736
A108: 2017 | B108: 40924 | C108: 409 | E108: 24 | F108: Accounts Payable | G108: 87451 | H108: 137950 | I108: 225401
A109: 2017 | B109: 40925 | C109: 409 | E109: 25 | F109: Accrued Expenses / Accrued Payroll | G109: 178297 | H109: 16426 | I109: 194723
A110: 2017 | B110: 40926 | C110: 409 | E110: 26 | F110: Deferred Revenue | G110: 0 | H110: 0 | I110: 0
A111: 2017 | B111: 40927 | C111: 409 | E111: 27 | F111: Due to related parties | G111: 0 | H111: 0 | I111: 0
A112: 2017 | B112: 40928 | C112: 409 | E112: 28 | F112: Current Debt Payable | G112: 0 | H112: 91332 | I112: 91332
A113: 2017 | B113: 40929 | C113: 409 | E113: 29 | F113: Current Lease Obligations Payable | G113: 243446 | H113: -243446 | I113: 0
A114: 2017 | B114: 40930 | C114: 409 | E114: 30 | F114: TOTAL CURRENT LIABILITIES | G114: 509194 | H114: 2262 | I114: 511456
A115: 2017 | B115: 40931 | C115: 409 | E115: 31 | F115: Noncurrent Lease Obligations | G115: 0 | H115: 0 | I115: 0
A116: 2017 | B116: 40932 | C116: 409 | E116: 32 | F116: Long-Term Debt | G116: 0 | H116: 23616164 | I116: 23616164
A117: 2017 | B117: 40933 | C117: 409 | E117: 33 | F117: Deferred Revenue | G117: 0 | H117: 0 | I117: 0
A118: 2017 | B118: 40934 | C118: 409 | E118: 34 | F118: TOTAL NONCURRENT LIABILITIES | G118: 0 | H118: 23616164 | I118: 23616164
A119: 2017 | B119: 40935 | C119: 409 | E119: 35 | F119: TOTAL LIABILITIES | G119: 509194 | H119: 23618426 | I119: 24127620
A120: 2017 | B120: 40936 | C120: 409 | E120: 36 | F120: Investment in capital assets (net of related debt) | G120: 38289 | H120: 1422674 | I120: 1460963
A121: 2017 | B121: 40937 | C121: 409 | E121: 37 | F121: Temporarily Restricted | G121: 0 | H121: 113681 | I121: 113681
A122: 2017 | B122: 40938 | C122: 409 | E122: 38 | F122: Permanently Restricted | G122: 0 | H122: 0 | I122: 0
A123: 2017 | B123: 40939 | C123: 409 | E123: 39 | F123: Unrestricted (non-capital) | G123: 1135216 | H123: 1300256 | I123: 2435472
A124: 2017 | B124: 40940 | C124: 409 | E124: 40 | F124: TOTAL NET ASSETS | G124: 1173505 | H124: 2836611 | I124: 4010116
A125: 2017 | B125: 40941 | C125: 409 | E125: 41 | F125: TOTAL LIABILITIES AND NET ASSETS | G125: 1682699 | H125: 26455037 | I125: 28137736
A126: 2017 | B126: 41001 | C126: 410 | E126: 01 | F126: Cash and Cash Equivalents | G126: 1643070 | H126: 3017311 | I126: 4660381
A127: 2017 | B127: 41002 | C127: 410 | E127: 02 | F127: Accounts Receivable net of doubtful accounts | G127: 11101 | H127: 0 | I127: 11101
A128: 2017 | B128: 41003 | C128: 410 | E128: 03 | F128: Grants Receivable - State | G128: 207887 | H128: 0 | I128: 207887
A129: 2017 | B129: 41004 | C129: 410 | E129: 04 | F129: Grants Receivable - Federal | G129: 429733 | H129: 0 | I129: 429733
A130: 2017 | B130: 41005 | C130: 410 | E130: 05 | F130: Grants Receivable - Private | G130: 0 | H130: 569833 | I130: 569833
A131: 2017 | B131: 41006 | C131: 410 | E131: 06 | F131: Contributions Receivable | G131: 0 | H131: 0 | I131: 0
A132: 2017 | B132: =C132&E132 -> 41007 | C132: 410 | E132: 07 | F132: Due from related parties | G132: -1863028 | H132: 1863028 | I132: 0
A133: 2017 | B133: 41008 | C133: 410 | E133: 08 | F133: Prepaid Expenses / Inventory | G133: 199900 | H133: 0 | I133: 199900
A134: 2017 | B134: 41009 | C134: 410 | E134: 09 | F134: Short-Term Investments | G134: 0 | H134: 0 | I134: 0
A135: 2017 | B135: 41010 | C135: 410 | E135: 10 | F135: Deposit (Security, Other) | G135: 0 | H135: 37050 | I135: 37050
A136: 2017 | B136: 41011 | C136: 410 | E136: 11 | F136: Restricted Current Assets | G136: 0 | H136: 0 | I136: 0
A137: 2017 | B137: 41012 | C137: 410 | E137: 12 | F137: TOTAL CURRENT ASSETS | G137: 628663 | H137: 5487222 | I137: 6115885
A138: 2017 | B138: 41013 | C138: 410 | E138: 13 | F138: - Land and Buildings | G138: 30567361 | H138: 108639 | I138: 30676000
A139: 2017 | B139: 41014 | C139: 410 | E139: 14 | F139: - Building/Leasehold Improvement | G139: 901735 | H139: 0 | I139: 901735
A140: 2017 | B140: 41015 | C140: 410 | E140: 15 | F140: - Furniture and Equipment | G140: 1361109 | H140: 0 | I140: 1361109
A141: 2017 | B141: 41016 | C141: 410 | E141: 16 | F141: - Less Accumulated Depreciation | G141: -2056262 | H141: 0 | I141: -2056262
A142: 2017 | B142: 41017 | C142: 410 | E142: 17 | F142: Net Capital Assets | G142: 30773943 | H142: 108639 | I142: 30882582
A143: 2017 | B143: 41018 | C143: 410 | E143: 18 | F143: Restricted Noncurrent Assets | G143: 996730 | H143: 1588616 | I143: 2585346
A144: 2017 | B144: 41019 | C144: 410 | E144: 19 | F144: Long-Term Investments | G144: 0 | H144: 0 | I144: 0
A145: 2017 | B145: 41020 | C145: 410 | E145: 20 | F145: Building Acquisition / Financing Costs / Deferred Expenses | G145: -9682900 | H145: 9682900 | I145: 0
A146: 2017 | B146: 41021 | C146: 410 | E146: 21 | F146: Long-Term Grants / Contributions Receivable | G146: 0 | H146: 7090944 | I146: 7090944
A147: 2017 | B147: 41022 | C147: 410 | E147: 22 | F147: TOTAL NONCURRENT ASSETS | G147: 22087773 | H147: 18471099 | I147: 40558872
A148: 2017 | B148: 41023 | C148: 410 | E148: 23 | F148: TOTAL ASSETS | G148: 22716436 | H148: 23958321 | I148: 46674757
A149: 2017 | B149: 41024 | C149: 410 | E149: 24 | F149: Accounts Payable | G149: 525495 | H149: 76958 | I149: 602453
A150: 2017 | B150: 41025 | C150: 410 | E150: 25 | F150: Accrued Expenses / Accrued Payroll | G150: 689059 | H150: 2701 | I150: 691760
A151: 2017 | B151: 41026 | C151: 410 | E151: 26 | F151: Deferred Revenue | G151: 6654 | H151: 0 | I151: 6654
A152: 2017 | B152: 41027 | C152: 410 | E152: 27 | F152: Due to related parties | G152: 0 | H152: 0 | I152: 0
A153: 2017 | B153: 41028 | C153: 410 | E153: 28 | F153: Current Debt Payable | G153: 54911 | H153: 147987 | I153: 202898
A154: 2017 | B154: 41029 | C154: 410 | E154: 29 | F154: Current Lease Obligations Payable | G154: 0 | H154: 0 | I154: 0
A155: 2017 | B155: 41030 | C155: 410 | E155: 30 | F155: TOTAL CURRENT LIABILITIES | G155: 1276119 | H155: 227646 | I155: 1503765
A156: 2017 | B156: 41031 | C156: 410 | E156: 31 | F156: Noncurrent Lease Obligations | G156: 151065 | H156: 0 | I156: 151065
A157: 2017 | B157: 41032 | C157: 410 | E157: 32 | F157: Long-Term Debt | G157: 22445089 | H157: 12698904 | I157: 35143993
A158: 2017 | B158: 41033 | C158: 410 | E158: 33 | F158: Deferred Revenue | G158: 0 | H158: 359000 | I158: 359000
A159: 2017 | B159: 41034 | C159: 410 | E159: 34 | F159: TOTAL NONCURRENT LIABILITIES | G159: 22596154 | H159: 13057904 | I159: 35654058
A160: 2017 | B160: 41035 | C160: 410 | E160: 35 | F160: TOTAL LIABILITIES | G160: 23872273 | H160: 13285550 | I160: 37157823
A161: 2017 | B161: 41036 | C161: 410 | E161: 36 | F161: Investment in capital assets (net of related debt) | G161: -1104902 | H161: 5368064 | I161: 4263162
A162: 2017 | B162: 41037 | C162: 410 | E162: 37 | F162: Temporarily Restricted | G162: 0 | H162: 1321595 | I162: 1321595
A163: 2017 | B163: 41038 | C163: 410 | E163: 38 | F163: Permanently Restricted | G163: 0 | H163: 0 | I163: 0
A164: 2017 | B164: 41039 | C164: 410 | E164: 39 | F164: Unrestricted (non-capital) | G164: -50935 | H164: 3983112 | I164: 3932177
A165: 2017 | B165: 41040 | C165: 410 | E165: 40 | F165: TOTAL NET ASSETS | G165: -1155837 | H165: 10672771 | I165: 9516934
A166: 2017 | B166: 41041 | C166: 410 | E166: 41 | F166: TOTAL LIABILITIES AND NET ASSETS | G166: 22716436 | H166: 23958321 | I166: 46674757
A167: 2017 | B167: 41101 | C167: 411 | E167: 01 | F167: Cash and Cash Equivalents | G167: 298498 | H167: 136265 | I167: 434763
A168: 2017 | B168: 41102 | C168: 411 | E168: 02 | F168: Accounts Receivable net of doubtful accounts | G168: 189575 | H168: 0 | I168: 189575
A169: 2017 | B169: 41103 | C169: 411 | E169: 03 | F169: Grants Receivable - State | G169: 0 | H169: 0 | I169: 0
A170: 2017 | B170: 41104 | C170: 411 | E170: 04 | F170: Grants Receivable - Federal | G170: 155871 | H170: 0 | I170: 155871
A171: 2017 | B171: 41105 | C171: 411 | E171: 05 | F171: Grants Receivable - Private | G171: 0 | H171: 0 | I171: 0
A172: 2017 | B172: 41106 | C172: 411 | E172: 06 | F172: Contributions Receivable | G172: 0 | H172: 0 | I172: 0
A173: 2017 | B173: 41107 | C173: 411 | E173: 07 | F173: Due from related parties | G173: -86008 | H173: 86008 | I173: 0
A174: 2017 | B174: 41108 | C174: 411 | E174: 08 | F174: Prepaid Expenses / Inventory | G174: 6215 | H174: 0 | I174: 6215
A175: 2017 | B175: 41109 | C175: 411 | E175: 09 | F175: Short-Term Investments | G175: 0 | H175: 0 | I175: 0
A176: 2017 | B176: 41110 | C176: 411 | E176: 10 | F176: Deposit (Security, Other) | G176: 0 | H176: 0 | I176: 0
A177: 2017 | B177: 41111 | C177: 411 | E177: 11 | F177: Restricted Current Assets | G177: 0 | H177: 0 | I177: 0
A178: 2017 | B178: 41112 | C178: 411 | E178: 12 | F178: TOTAL CURRENT ASSETS | G178: 564151 | H178: 222273 | I178: 786424
A179: 2017 | B179: 41113 | C179: 411 | E179: 13 | F179: - Land and Buildings | G179: 0 | H179: 0 | I179: 0
A180: 2017 | B180: 41114 | C180: 411 | E180: 14 | F180: - Building/Leasehold Improvement | G180: 0 | H180: 0 | I180: 0
A181: 2017 | B181: 41115 | C181: 411 | E181: 15 | F181: - Furniture and Equipment | G181: 73847 | H181: 0 | I181: 73847
A182: 2017 | B182: 41116 | C182: 411 | E182: 16 | F182: - Less Accumulated Depreciation | G182: -34100 | H182: 0 | I182: -34100
A183: 2017 | B183: 41117 | C183: 411 | E183: 17 | F183: Net Capital Assets | G183: 39747 | H183: 0 | I183: 39747
A184: 2017 | B184: 41118 | C184: 411 | E184: 18 | F184: Restricted Noncurrent Assets | G184: 0 | H184: 0 | I184: 0
A185: 2017 | B185: 41119 | C185: 411 | E185: 19 | F185: Long-Term Investments | G185: 0 | H185: 0 | I185: 0
A186: 2017 | B186: 41120 | C186: 411 | E186: 20 | F186: Building Acquisition / Financing Costs / Deferred Expenses | G186: 0 | H186: 0 | I186: 0
A187: 2017 | B187: 41121 | C187: 411 | E187: 21 | F187: Long-Term Grants / Contributions Receivable | G187: 0 | H187: 0 | I187: 0
A188: 2017 | B188: 41122 | C188: 411 | E188: 22 | F188: TOTAL NONCURRENT ASSETS | G188: 39747 | H188: 0 | I188: 39747
A189: 2017 | B189: 41123 | C189: 411 | E189: 23 | F189: TOTAL ASSETS | G189: 603898 | H189: 222273 | I189: 826171
A190: 2017 | B190: 41124 | C190: 411 | E190: 24 | F190: Accounts Payable | G190: 364395 | H190: 0 | I190: 364395
A191: 2017 | B191: 41125 | C191: 411 | E191: 25 | F191: Accrued Expenses / Accrued Payroll | G191: 6349 | H191: 0 | I191: 6349
A192: 2017 | B192: 41126 | C192: 411 | E192: 26 | F192: Deferred Revenue | G192: 0 | H192: 0 | I192: 0
A193: 2017 | B193: 41127 | C193: 411 | E193: 27 | F193: Due to related parties | G193: 0 | H193: 0 | I193: 0
A194: 2017 | B194: 41128 | C194: 411 | E194: 28 | F194: Current Debt Payable | G194: 0 | H194: 0 | I194: 0
A195: 2017 | B195: 41129 | C195: 411 | E195: 29 | F195: Current Lease Obligations Payable | G195: 0 | H195: 0 | I195: 0
A196: 2017 | B196: =C196&E196 -> 41130 | C196: 411 | E196: 30 | F196: TOTAL CURRENT LIABILITIES | G196: 370744 | H196: 0 | I196: 370744
A197: 2017 | B197: 41131 | C197: 411 | E197: 31 | F197: Noncurrent Lease Obligations | G197: 0 | H197: 0 | I197: 0
A198: 2017 | B198: 41132 | C198: 411 | E198: 32 | F198: Long-Term Debt | G198: 0 | H198: 0 | I198: 0
A199: 2017 | B199: 41133 | C199: 411 | E199: 33 | F199: Deferred Revenue | G199: 0 | H199: 0 | I199: 0
A200: 2017 | B200: 41134 | C200: 411 | E200: 34 | F200: TOTAL NONCURRENT LIABILITIES | G200: 0 | H200: 0 | I200: 0
... 3041 more rows

Sheet BAL16_RAW (hidden)
B1: 1 | C1: 2 | D1: 3 | E1: 4 | F1: 5 | G1: 6 | H1: 7 | I1: 8
A2: FY | B2: vlookup | C2: cha_code | D2: cha_type | E2: balance_id | F2: Line_Desc | G2: balance_sch | H2: balance_found | I2: balance_total
A3: 2016 | B3: =C3&E3 -> 40701 | C3: 407 | E3: 01 | F3: Cash and Cash Equivalents | G3: 40517 | H3: 0 | I3: 40517
A4: 2016 | B4: =C4&E4 -> 40702 | C4: 407 | E4: 02 | F4: Accounts Receivable net of doubtful accounts | G4: 0 | H4: 0 | I4: 0
A5: 2016 | B5: 40703 | C5: 407 | E5: 03 | F5: Grants Receivable - State | G5: 182812 | H5: 0 | I5: 182812
A6: 2016 | B6: 40704 | C6: 407 | E6: 04 | F6: Grants Receivable - Federal | G6: 0 | H6: 0 | I6: 0
A7: 2016 | B7: 40705 | C7: 407 | E7: 05 | F7: Grants Receivable - Private | G7: 0 | H7: 0 | I7: 0
A8: 2016 | B8: 40706 | C8: 407 | E8: 06 | F8: Contributions Receivable | G8: 0 | H8: 0 | I8: 0
A9: 2016 | B9: 40707 | C9: 407 | E9: 07 | F9: Due from related parties | G9: 0 | H9: 0 | I9: 0
A10: 2016 | B10: 40708 | C10: 407 | E10: 08 | F10: Prepaid Expenses / Inventory | G10: 2115 | H10: 0 | I10: 2115
A11: 2016 | B11: 40709 | C11: 407 | E11: 09 | F11: Short-Term Investments | G11: 0 | H11: 0 | I11: 0
A12: 2016 | B12: 40710 | C12: 407 | E12: 10 | F12: Deposit (Security, Other) | G12: 0 | H12: 0 | I12: 0
A13: 2016 | B13: 40711 | C13: 407 | E13: 11 | F13: Restricted Current Assets | G13: 0 | H13: 0 | I13: 0
A14: 2016 | B14: 40712 | C14: 407 | E14: 12 | F14: TOTAL CURRENT ASSETS | G14: 225444 | H14: 0 | I14: 225444
A15: 2016 | B15: 40713 | C15: 407 | E15: 13 | F15: - Land and Buildings | G15: 0 | H15: 0 | I15: 0
A16: 2016 | B16: 40714 | C16: 407 | E16: 14 | F16: - Building/Leasehold Improvement | G16: 0 | H16: 0 | I16: 0
A17: 2016 | B17: 40715 | C17: 407 | E17: 15 | F17: - Furniture and Equipment | G17: 2863 | H17: 0 | I17: 2863
A18: 2016 | B18: 40716 | C18: 407 | E18: 16 | F18: - Less Accumulated Depreciation | G18: 0 | H18: 0 | I18: 0
A19: 2016 | B19: 40717 | C19: 407 | E19: 17 | F19: Net Capital Assets | G19: 2863 | H19: 0 | I19: 2863
A20: 2016 | B20: 40718 | C20: 407 | E20: 18 | F20: Restricted Noncurrent Assets | G20: 0 | H20: 0 | I20: 0
A21: 2016 | B21: 40719 | C21: 407 | E21: 19 | F21: Long-Term Investments | G21: 0 | H21: 0 | I21: 0
A22: 2016 | B22: 40720 | C22: 407 | E22: 20 | F22: Building Acquisition / Financing Costs / Deferred Expenses | G22: 0 | H22: 0 | I22: 0
A23: 2016 | B23: 40721 | C23: 407 | E23: 21 | F23: Long-Term Grants / Contributions Receivable | G23: 0 | H23: 0 | I23: 0
A24: 2016 | B24: 40722 | C24: 407 | E24: 22 | F24: TOTAL NONCURRENT ASSETS | G24: 2863 | H24: 0 | I24: 2863
A25: 2016 | B25: 40723 | C25: 407 | E25: 23 | F25: TOTAL ASSETS | G25: 228307 | H25: 0 | I25: 228307
A26: 2016 | B26: 40724 | C26: 407 | E26: 24 | F26: Accounts Payable | G26: 13853 | H26: 0 | I26: 13853
A27: 2016 | B27: 40725 | C27: 407 | E27: 25 | F27: Accrued Expenses / Accrued Payroll | G27: 7642 | H27: 0 | I27: 7642
A28: 2016 | B28: 40726 | C28: 407 | E28: 26 | F28: Deferred Revenue | G28: 0 | H28: 0 | I28: 0
A29: 2016 | B29: 40727 | C29: 407 | E29: 27 | F29: Due to related parties | G29: 0 | H29: 0 | I29: 0
A30: 2016 | B30: 40728 | C30: 407 | E30: 28 | F30: Current Debt Payable | G30: 0 | H30: 0 | I30: 0
A31: 2016 | B31: 40729 | C31: 407 | E31: 29 | F31: Current Lease Obligations Payable | G31: 0 | H31: 0 | I31: 0
A32: 2016 | B32: 40730 | C32: 407 | E32: 30 | F32: TOTAL CURRENT LIABILITIES | G32: 21495 | H32: 0 | I32: 21495
A33: 2016 | B33: 40731 | C33: 407 | E33: 31 | F33: Noncurrent Lease Obligations | G33: 0 | H33: 0 | I33: 0
A34: 2016 | B34: 40732 | C34: 407 | E34: 32 | F34: Long-Term Debt | G34: 0 | H34: 0 | I34: 0
A35: 2016 | B35: 40733 | C35: 407 | E35: 33 | F35: Deferred Revenue | G35: 0 | H35: 0 | I35: 0
A36: 2016 | B36: 40734 | C36: 407 | E36: 34 | F36: TOTAL NONCURRENT LIABILITIES | G36: 0 | H36: 0 | I36: 0
A37: 2016 | B37: 40735 | C37: 407 | E37: 35 | F37: TOTAL LIABILITIES | G37: 21495 | H37: 0 | I37: 21495
A38: 2016 | B38: 40736 | C38: 407 | E38: 36 | F38: Investment in capital assets (net of related debt) | G38: 2863 | H38: 0 | I38: 2863
A39: 2016 | B39: 40737 | C39: 407 | E39: 37 | F39: Temporarily Restricted | G39: 203949 | H39: 0 | I39: 203949
A40: 2016 | B40: 40738 | C40: 407 | E40: 38 | F40: Permanently Restricted | G40: 0 | H40: 0 | I40: 0
A41: 2016 | B41: 40739 | C41: 407 | E41: 39 | F41: Unrestricted (non-capital) | G41: 0 | H41: 0 | I41: 0
A42: 2016 | B42: 40740 | C42: 407 | E42: 40 | F42: TOTAL NET ASSETS | G42: 206812 | H42: 0 | I42: 206812
A43: 2016 | B43: 40741 | C43: 407 | E43: 41 | F43: TOTAL LIABILITIES AND NET ASSETS | G43: 228307 | H43: 0 | I43: 228307
A44: 2016 | B44: 40901 | C44: 409 | E44: 01 | F44: Cash and Cash Equivalents | G44: 1176025 | H44: 6727536 | I44: 7903561
A45: 2016 | B45: 40902 | C45: 409 | E45: 02 | F45: Accounts Receivable net of doubtful accounts | G45: 70396 | H45: 0 | I45: 70396
A46: 2016 | B46: 40903 | C46: 409 | E46: 03 | F46: Grants Receivable - State | G46: 0 | H46: 0 | I46: 0
A47: 2016 | B47: 40904 | C47: 409 | E47: 04 | F47: Grants Receivable - Federal | G47: 0 | H47: 0 | I47: 0
A48: 2016 | B48: 40905 | C48: 409 | E48: 05 | F48: Grants Receivable - Private | G48: 0 | H48: 0 | I48: 0
A49: 2016 | B49: 40906 | C49: 409 | E49: 06 | F49: Contributions Receivable | G49: 0 | H49: 423511 | I49: 423511
A50: 2016 | B50: 40907 | C50: 409 | E50: 07 | F50: Due from related parties | G50: 45786.88 | H50: 0 | I50: 45786.88
A51: 2016 | B51: 40908 | C51: 409 | E51: 08 | F51: Prepaid Expenses / Inventory | G51: 29777.82 | H51: 0 | I51: 29777.82
A52: 2016 | B52: 40909 | C52: 409 | E52: 09 | F52: Short-Term Investments | G52: 0 | H52: 8369.04 | I52: 8369.04
A53: 2016 | B53: 40910 | C53: 409 | E53: 10 | F53: Deposit (Security, Other) | G53: 5000 | H53: 0 | I53: 5000
A54: 2016 | B54: 40911 | C54: 409 | E54: 11 | F54: Restricted Current Assets | G54: 0 | H54: 0 | I54: 0
A55: 2016 | B55: 40912 | C55: 409 | E55: 12 | F55: TOTAL CURRENT ASSETS | G55: 1326985.7 | H55: 7159416.04 | I55: 8486401.74
A56: 2016 | B56: 40913 | C56: 409 | E56: 13 | F56: - Land and Buildings | G56: 0 | H56: 0 | I56: 0
A57: 2016 | B57: 40914 | C57: 409 | E57: 14 | F57: - Building/Leasehold Improvement | G57: 218769.71 | H57: 0 | I57: 218769.71
A58: 2016 | B58: 40915 | C58: 409 | E58: 15 | F58: - Furniture and Equipment | G58: 48137.36 | H58: 0 | I58: 48137.36
A59: 2016 | B59: 40916 | C59: 409 | E59: 16 | F59: - Less Accumulated Depreciation | G59: -227443 | H59: 0 | I59: -227443
A60: 2016 | B60: 40917 | C60: 409 | E60: 17 | F60: Net Capital Assets | G60: 39464.07 | H60: 0 | I60: 39464.07
A61: 2016 | B61: 40918 | C61: 409 | E61: 18 | F61: Restricted Noncurrent Assets | G61: 0 | H61: 268116 | I61: 268116
A62: 2016 | B62: 40919 | C62: 409 | E62: 19 | F62: Long-Term Investments | G62: 0 | H62: 0 | I62: 0
A63: 2016 | B63: 40920 | C63: 409 | E63: 20 | F63: Building Acquisition / Financing Costs / Deferred Expenses | G63: 0 | H63: 20802711 | I63: 20802711
A64: 2016 | B64: 40921 | C64: 409 | E64: 21 | F64: Long-Term Grants / Contributions Receivable | G64: 0 | H64: 0 | I64: 0
A65: 2016 | B65: 40922 | C65: 409 | E65: 22 | F65: TOTAL NONCURRENT ASSETS | G65: 39464.07 | H65: 21070827 | I65: 21110291.07
A66: 2016 | B66: 40923 | C66: 409 | E66: 23 | F66: TOTAL ASSETS | G66: 1366450 | H66: 28230243 | I66: 29596693
A67: 2016 | B67: 40924 | C67: 409 | E67: 24 | F67: Accounts Payable | G67: 100642.46 | H67: 1186852 | I67: 1287494.46
A68: 2016 | B68: =C68&E68 -> 40925 | C68: 409 | E68: 25 | F68: Accrued Expenses / Accrued Payroll | G68: 223144.69 | H68: 23611 | I68: 246755.69
A69: 2016 | B69: 40926 | C69: 409 | E69: 26 | F69: Deferred Revenue | G69: 0 | H69: 0 | I69: 0
A70: 2016 | B70: 40927 | C70: 409 | E70: 27 | F70: Due to related parties | G70: 0 | H70: 45786.88 | I70: 45786.88
A71: 2016 | B71: 40928 | C71: 409 | E71: 28 | F71: Current Debt Payable | G71: 0 | H71: 0 | I71: 0
A72: 2016 | B72: 40929 | C72: 409 | E72: 29 | F72: Current Lease Obligations Payable | G72: 0 | H72: 0 | I72: 0
A73: 2016 | B73: 40930 | C73: 409 | E73: 30 | F73: TOTAL CURRENT LIABILITIES | G73: 323787.15 | H73: 1256249.88 | I73: 1580037.03
A74: 2016 | B74: 40931 | C74: 409 | E74: 31 | F74: Noncurrent Lease Obligations | G74: 0 | H74: 0 | I74: 0
A75: 2016 | B75: 40932 | C75: 409 | E75: 32 | F75: Long-Term Debt | G75: 0 | H75: 23823914 | I75: 23823914
A76: 2016 | B76: 40933 | C76: 409 | E76: 33 | F76: Deferred Revenue | G76: 0 | H76: 0 | I76: 0
A77: 2016 | B77: 40934 | C77: 409 | E77: 34 | F77: TOTAL NONCURRENT LIABILITIES | G77: 0 | H77: 23823914 | I77: 23823914
A78: 2016 | B78: 40935 | C78: 409 | E78: 35 | F78: TOTAL LIABILITIES | G78: 323787.15 | H78: 25080163.88 | I78: 25403951.03
A79: 2016 | B79: 40936 | C79: 409 | E79: 36 | F79: Investment in capital assets (net of related debt) | G79: 39464 | H79: 0 | I79: 39464
A80: 2016 | B80: 40937 | C80: 409 | E80: 37 | F80: Temporarily Restricted | G80: 0 | H80: 856208 | I80: 856208
A81: 2016 | B81: 40938 | C81: 409 | E81: 38 | F81: Permanently Restricted | G81: 0 | H81: 0 | I81: 0
A82: 2016 | B82: 40939 | C82: 409 | E82: 39 | F82: Unrestricted (non-capital) | G82: 1003199 | H82: 2293870.78 | I82: 3297069.78
A83: 2016 | B83: 40940 | C83: 409 | E83: 40 | F83: TOTAL NET ASSETS | G83: 1042663 | H83: 3150079 | I83: 4192742
A84: 2016 | B84: 40941 | C84: 409 | E84: 41 | F84: TOTAL LIABILITIES AND NET ASSETS | G84: 1366450 | H84: 28230243 | I84: 29596693
A85: 2016 | B85: 41001 | C85: 410 | E85: 01 | F85: Cash and Cash Equivalents | G85: 860308 | H85: 2454452 | I85: 3314760
A86: 2016 | B86: 41002 | C86: 410 | E86: 02 | F86: Accounts Receivable net of doubtful accounts | G86: 120139 | H86: 105522 | I86: 225661
A87: 2016 | B87: 41003 | C87: 410 | E87: 03 | F87: Grants Receivable - State | G87: 0 | H87: 0 | I87: 0
A88: 2016 | B88: 41004 | C88: 410 | E88: 04 | F88: Grants Receivable - Federal | G88: 13282 | H88: 0 | I88: 13282
A89: 2016 | B89: 41005 | C89: 410 | E89: 05 | F89: Grants Receivable - Private | G89: 0 | H89: 0 | I89: 0
A90: 2016 | B90: 41006 | C90: 410 | E90: 06 | F90: Contributions Receivable | G90: 0 | H90: 1101212 | I90: 1101212
A91: 2016 | B91: 41007 | C91: 410 | E91: 07 | F91: Due from related parties | G91: -1550743 | H91: 1550743 | I91: 0
A92: 2016 | B92: 41008 | C92: 410 | E92: 08 | F92: Prepaid Expenses / Inventory | G92: 125996 | H92: 0 | I92: 125996
A93: 2016 | B93: 41009 | C93: 410 | E93: 09 | F93: Short-Term Investments | G93: 0 | H93: 0 | I93: 0
A94: 2016 | B94: 41010 | C94: 410 | E94: 10 | F94: Deposit (Security, Other) | G94: 70917 | H94: 37050 | I94: 107967
A95: 2016 | B95: 41011 | C95: 410 | E95: 11 | F95: Restricted Current Assets | G95: 966444 | H95: 282382 | I95: 1248826
A96: 2016 | B96: 41012 | C96: 410 | E96: 12 | F96: TOTAL CURRENT ASSETS | G96: 606343 | H96: 5531361 | I96: 6137704
A97: 2016 | B97: 41013 | C97: 410 | E97: 13 | F97: - Land and Buildings | G97: 8151974 | H97: 21895926 | I97: 30047900
A98: 2016 | B98: 41014 | C98: 410 | E98: 14 | F98: - Building/Leasehold Improvement | G98: 706434 | H98: 0 | I98: 706434
A99: 2016 | B99: 41015 | C99: 410 | E99: 15 | F99: - Furniture and Equipment | G99: 439198 | H99: 673611 | I99: 1112809
A100: 2016 | B100: 41016 | C100: 410 | E100: 16 | F100: - Less Accumulated Depreciation | G100: -1466400 | H100: 0 | I100: -1466400
A101: 2016 | B101: 41017 | C101: 410 | E101: 17 | F101: Net Capital Assets | G101: 7831206 | H101: 22569537 | I101: 30400743
A102: 2016 | B102: 41018 | C102: 410 | E102: 18 | F102: Restricted Noncurrent Assets | G102: 0 | H102: 0 | I102: 0
A103: 2016 | B103: 41019 | C103: 410 | E103: 19 | F103: Long-Term Investments | G103: 18115224 | H103: 6283999 | I103: 24399223
A104: 2016 | B104: 41020 | C104: 410 | E104: 20 | F104: Building Acquisition / Financing Costs / Deferred Expenses | G104: 0 | H104: 8430075 | I104: 8430075
A105: 2016 | B105: 41021 | C105: 410 | E105: 21 | F105: Long-Term Grants / Contributions Receivable | G105: 0 | H105: 999214 | I105: 999214
A106: 2016 | B106: 41022 | C106: 410 | E106: 22 | F106: TOTAL NONCURRENT ASSETS | G106: 25946430 | H106: 38282825 | I106: 64229255
A107: 2016 | B107: 41023 | C107: 410 | E107: 23 | F107: TOTAL ASSETS | G107: 26552773 | H107: 43814186 | I107: 70366959
A108: 2016 | B108: 41024 | C108: 410 | E108: 24 | F108: Accounts Payable | G108: 392308 | H108: 2288139 | I108: 2680447
A109: 2016 | B109: 41025 | C109: 410 | E109: 25 | F109: Accrued Expenses / Accrued Payroll | G109: 647590 | H109: 92943 | I109: 740533
A110: 2016 | B110: 41026 | C110: 410 | E110: 26 | F110: Deferred Revenue | G110: 0 | H110: 0 | I110: 0
A111: 2016 | B111: 41027 | C111: 410 | E111: 27 | F111: Due to related parties | G111: 0 | H111: 0 | I111: 0
A112: 2016 | B112: 41028 | C112: 410 | E112: 28 | F112: Current Debt Payable | G112: 0 | H112: 121554 | I112: 121554
A113: 2016 | B113: 41029 | C113: 410 | E113: 29 | F113: Current Lease Obligations Payable | G113: 0 | H113: 0 | I113: 0
A114: 2016 | B114: 41030 | C114: 410 | E114: 30 | F114: TOTAL CURRENT LIABILITIES | G114: 1039898 | H114: 2502636 | I114: 3542534
A115: 2016 | B115: 41031 | C115: 410 | E115: 31 | F115: Noncurrent Lease Obligations | G115: 8556475 | H115: 0 | I115: 8556475
A116: 2016 | B116: 41032 | C116: 410 | E116: 32 | F116: Long-Term Debt | G116: 18115224 | H116: 30941563 | I116: 49056787
A117: 2016 | B117: 41033 | C117: 410 | E117: 33 | F117: Deferred Revenue | G117: 0 | H117: 361000 | I117: 361000
A118: 2016 | B118: 41034 | C118: 410 | E118: 34 | F118: TOTAL NONCURRENT LIABILITIES | G118: 26671699 | H118: 31302563 | I118: 57974262
A119: 2016 | B119: 41035 | C119: 410 | E119: 35 | F119: TOTAL LIABILITIES | G119: 27711597 | H119: 33805199 | I119: 61516796
A120: 2016 | B120: 41036 | C120: 410 | E120: 36 | F120: Investment in capital assets (net of related debt) | G120: -597003 | H120: 4859414 | I120: 4262411
A121: 2016 | B121: 41037 | C121: 410 | E121: 37 | F121: Temporarily Restricted | G121: 0 | H121: 1563389 | I121: 1563389
A122: 2016 | B122: 41038 | C122: 410 | E122: 38 | F122: Permanently Restricted | G122: 0 | H122: 0 | I122: 0
A123: 2016 | B123: 41039 | C123: 410 | E123: 39 | F123: Unrestricted (non-capital) | G123: -561821 | H123: 3586184 | I123: 3024363
A124: 2016 | B124: 41040 | C124: 410 | E124: 40 | F124: TOTAL NET ASSETS | G124: -1158824 | H124: 10008987 | I124: 8850163
A125: 2016 | B125: 41041 | C125: 410 | E125: 41 | F125: TOTAL LIABILITIES AND NET ASSETS | G125: 26552773 | H125: 43814186 | I125: 70366959
A126: 2016 | B126: 41101 | C126: 411 | E126: 01 | F126: Cash and Cash Equivalents | G126: 45005 | H126: 132014.71 | I126: 177019.71
A127: 2016 | B127: 41102 | C127: 411 | E127: 02 | F127: Accounts Receivable net of doubtful accounts | G127: 130867 | H127: 0 | I127: 130867
A128: 2016 | B128: 41103 | C128: 411 | E128: 03 | F128: Grants Receivable - State | G128: 0 | H128: 0 | I128: 0
A129: 2016 | B129: 41104 | C129: 411 | E129: 04 | F129: Grants Receivable - Federal | G129: 335169.82 | H129: 0 | I129: 335169.82
A130: 2016 | B130: 41105 | C130: 411 | E130: 05 | F130: Grants Receivable - Private | G130: 0 | H130: 0 | I130: 0
A131: 2016 | B131: 41106 | C131: 411 | E131: 06 | F131: Contributions Receivable | G131: 0 | H131: 0 | I131: 0
A132: 2016 | B132: =C132&E132 -> 41107 | C132: 411 | E132: 07 | F132: Due from related parties | G132: 3332 | H132: -3332 | I132: 0
A133: 2016 | B133: 41108 | C133: 411 | E133: 08 | F133: Prepaid Expenses / Inventory | G133: 2779.38 | H133: 0 | I133: 2779.38
A134: 2016 | B134: 41109 | C134: 411 | E134: 09 | F134: Short-Term Investments | G134: 0 | H134: 0 | I134: 0
A135: 2016 | B135: 41110 | C135: 411 | E135: 10 | F135: Deposit (Security, Other) | G135: 0 | H135: 0 | I135: 0
A136: 2016 | B136: 41111 | C136: 411 | E136: 11 | F136: Restricted Current Assets | G136: 0 | H136: 0 | I136: 0
A137: 2016 | B137: 41112 | C137: 411 | E137: 12 | F137: TOTAL CURRENT ASSETS | G137: 517153.2 | H137: 128682.71 | I137: 645835.91
A138: 2016 | B138: 41113 | C138: 411 | E138: 13 | F138: - Land and Buildings | G138: 0 | H138: 0 | I138: 0
A139: 2016 | B139: 41114 | C139: 411 | E139: 14 | F139: - Building/Leasehold Improvement | G139: 0 | H139: 0 | I139: 0
A140: 2016 | B140: 41115 | C140: 411 | E140: 15 | F140: - Furniture and Equipment | G140: 30844.49 | H140: 0 | I140: 30844.49
A141: 2016 | B141: 41116 | C141: 411 | E141: 16 | F141: - Less Accumulated Depreciation | G141: -15659.29 | H141: 0 | I141: -15659.29
A142: 2016 | B142: 41117 | C142: 411 | E142: 17 | F142: Net Capital Assets | G142: 15185.2 | H142: 0 | I142: 15185.2
A143: 2016 | B143: 41118 | C143: 411 | E143: 18 | F143: Restricted Noncurrent Assets | G143: 0 | H143: 0 | I143: 0
A144: 2016 | B144: 41119 | C144: 411 | E144: 19 | F144: Long-Term Investments | G144: 0 | H144: 0 | I144: 0
A145: 2016 | B145: 41120 | C145: 411 | E145: 20 | F145: Building Acquisition / Financing Costs / Deferred Expenses | G145: 0 | H145: 0 | I145: 0
A146: 2016 | B146: 41121 | C146: 411 | E146: 21 | F146: Long-Term Grants / Contributions Receivable | G146: 0 | H146: 0 | I146: 0
A147: 2016 | B147: 41122 | C147: 411 | E147: 22 | F147: TOTAL NONCURRENT ASSETS | G147: 15185.2 | H147: 0 | I147: 15185.2
A148: 2016 | B148: 41123 | C148: 411 | E148: 23 | F148: TOTAL ASSETS | G148: 532338 | H148: 128683 | I148: 661021
A149: 2016 | B149: 41124 | C149: 411 | E149: 24 | F149: Accounts Payable | G149: 392696 | H149: 0 | I149: 392696
A150: 2016 | B150: 41125 | C150: 411 | E150: 25 | F150: Accrued Expenses / Accrued Payroll | G150: 0 | H150: 0 | I150: 0
A151: 2016 | B151: 41126 | C151: 411 | E151: 26 | F151: Deferred Revenue | G151: 0 | H151: 0 | I151: 0
A152: 2016 | B152: 41127 | C152: 411 | E152: 27 | F152: Due to related parties | G152: 0 | H152: 0 | I152: 0
A153: 2016 | B153: 41128 | C153: 411 | E153: 28 | F153: Current Debt Payable | G153: 0 | H153: 0 | I153: 0
A154: 2016 | B154: 41129 | C154: 411 | E154: 29 | F154: Current Lease Obligations Payable | G154: 0 | H154: 0 | I154: 0
A155: 2016 | B155: 41130 | C155: 411 | E155: 30 | F155: TOTAL CURRENT LIABILITIES | G155: 392696 | H155: 0 | I155: 392696
A156: 2016 | B156: 41131 | C156: 411 | E156: 31 | F156: Noncurrent Lease Obligations | G156: 0 | H156: 0 | I156: 0
A157: 2016 | B157: 41132 | C157: 411 | E157: 32 | F157: Long-Term Debt | G157: 0 | H157: 0 | I157: 0
A158: 2016 | B158: 41133 | C158: 411 | E158: 33 | F158: Deferred Revenue | G158: 0 | H158: 0 | I158: 0
A159: 2016 | B159: 41134 | C159: 411 | E159: 34 | F159: TOTAL NONCURRENT LIABILITIES | G159: 0 | H159: 0 | I159: 0
A160: 2016 | B160: 41135 | C160: 411 | E160: 35 | F160: TOTAL LIABILITIES | G160: 392696 | H160: 0 | I160: 392696
A161: 2016 | B161: 41136 | C161: 411 | E161: 36 | F161: Investment in capital assets (net of related debt) | G161: 15185 | H161: 0 | I161: 15185
A162: 2016 | B162: 41137 | C162: 411 | E162: 37 | F162: Temporarily Restricted | G162: 12860 | H162: 18000 | I162: 30860
A163: 2016 | B163: 41138 | C163: 411 | E163: 38 | F163: Permanently Restricted | G163: 0 | H163: 0 | I163: 0
A164: 2016 | B164: 41139 | C164: 411 | E164: 39 | F164: Unrestricted (non-capital) | G164: 111597 | H164: 110682.71 | I164: 222279.71
A165: 2016 | B165: 41140 | C165: 411 | E165: 40 | F165: TOTAL NET ASSETS | G165: 139642 | H165: 128683 | I165: 268325
A166: 2016 | B166: 41141 | C166: 411 | E166: 41 | F166: TOTAL LIABILITIES AND NET ASSETS | G166: 532338 | H166: 128683 | I166: 661021
A167: 2016 | B167: 41201 | C167: 412 | E167: 01 | F167: Cash and Cash Equivalents | G167: 3331467 | H167: 244230 | I167: 3575697
A168: 2016 | B168: 41202 | C168: 412 | E168: 02 | F168: Accounts Receivable net of doubtful accounts | G168: 0 | H168: 0 | I168: 0
A169: 2016 | B169: 41203 | C169: 412 | E169: 03 | F169: Grants Receivable - State | G169: 0 | H169: 0 | I169: 0
A170: 2016 | B170: 41204 | C170: 412 | E170: 04 | F170: Grants Receivable - Federal | G170: 184044 | H170: 0 | I170: 184044
A171: 2016 | B171: 41205 | C171: 412 | E171: 05 | F171: Grants Receivable - Private | G171: 0 | H171: 0 | I171: 0
A172: 2016 | B172: 41206 | C172: 412 | E172: 06 | F172: Contributions Receivable | G172: 0 | H172: 0 | I172: 0
A173: 2016 | B173: 41207 | C173: 412 | E173: 07 | F173: Due from related parties | G173: 0 | H173: 0 | I173: 0
A174: 2016 | B174: 41208 | C174: 412 | E174: 08 | F174: Prepaid Expenses / Inventory | G174: 27796 | H174: 0 | I174: 27796
A175: 2016 | B175: 41209 | C175: 412 | E175: 09 | F175: Short-Term Investments | G175: 0 | H175: 13673 | I175: 13673
A176: 2016 | B176: 41210 | C176: 412 | E176: 10 | F176: Deposit (Security, Other) | G176: 22030 | H176: 0 | I176: 22030
A177: 2016 | B177: 41211 | C177: 412 | E177: 11 | F177: Restricted Current Assets | G177: 0 | H177: 0 | I177: 0
A178: 2016 | B178: 41212 | C178: 412 | E178: 12 | F178: TOTAL CURRENT ASSETS | G178: 3565337 | H178: 257903 | I178: 3823240
A179: 2016 | B179: 41213 | C179: 412 | E179: 13 | F179: - Land and Buildings | G179: 5000000 | H179: 0 | I179: 5000000
A180: 2016 | B180: 41214 | C180: 412 | E180: 14 | F180: - Building/Leasehold Improvement | G180: 10360446 | H180: 0 | I180: 10360446
A181: 2016 | B181: 41215 | C181: 412 | E181: 15 | F181: - Furniture and Equipment | G181: 1790246 | H181: 0 | I181: 1790246
A182: 2016 | B182: 41216 | C182: 412 | E182: 16 | F182: - Less Accumulated Depreciation | G182: -5740209 | H182: 0 | I182: -5740209
A183: 2016 | B183: 41217 | C183: 412 | E183: 17 | F183: Net Capital Assets | G183: 11410483 | H183: 0 | I183: 11410483
A184: 2016 | B184: 41218 | C184: 412 | E184: 18 | F184: Restricted Noncurrent Assets | G184: 7055002 | H184: 0 | I184: 7055002
A185: 2016 | B185: 41219 | C185: 412 | E185: 19 | F185: Long-Term Investments | G185: 0 | H185: 0 | I185: 0
A186: 2016 | B186: 41220 | C186: 412 | E186: 20 | F186: Building Acquisition / Financing Costs / Deferred Expenses | G186: 1110207 | H186: 0 | I186: 1110207
A187: 2016 | B187: 41221 | C187: 412 | E187: 21 | F187: Long-Term Grants / Contributions Receivable | G187: 0 | H187: 0 | I187: 0
A188: 2016 | B188: 41222 | C188: 412 | E188: 22 | F188: TOTAL NONCURRENT ASSETS | G188: 19575692 | H188: 0 | I188: 19575692
A189: 2016 | B189: 41223 | C189: 412 | E189: 23 | F189: TOTAL ASSETS | G189: 23141029 | H189: 257903 | I189: 23398932
A190: 2016 | B190: 41224 | C190: 412 | E190: 24 | F190: Accounts Payable | G190: 60701 | H190: 0 | I190: 60701
A191: 2016 | B191: 41225 | C191: 412 | E191: 25 | F191: Accrued Expenses / Accrued Payroll | G191: 550333 | H191: 0 | I191: 550333
A192: 2016 | B192: 41226 | C192: 412 | E192: 26 | F192: Deferred Revenue | G192: 0 | H192: 0 | I192: 0
A193: 2016 | B193: 41227 | C193: 412 | E193: 27 | F193: Due to related parties | G193: 0 | H193: 0 | I193: 0
A194: 2016 | B194: 41228 | C194: 412 | E194: 28 | F194: Current Debt Payable | G194: 355000 | H194: 0 | I194: 355000
A195: 2016 | B195: 41229 | C195: 412 | E195: 29 | F195: Current Lease Obligations Payable | G195: 0 | H195: 0 | I195: 0
A196: 2016 | B196: =C196&E196 -> 41230 | C196: 412 | E196: 30 | F196: TOTAL CURRENT LIABILITIES | G196: 966034 | H196: 0 | I196: 966034
A197: 2016 | B197: 41231 | C197: 412 | E197: 31 | F197: Noncurrent Lease Obligations | G197: 0 | H197: 0 | I197: 0
A198: 2016 | B198: 41232 | C198: 412 | E198: 32 | F198: Long-Term Debt | G198: 14795000 | H198: 0 | I198: 14795000
A199: 2016 | B199: 41233 | C199: 412 | E199: 33 | F199: Deferred Revenue | G199: 0 | H199: 0 | I199: 0
A200: 2016 | B200: 41234 | C200: 412 | E200: 34 | F200: TOTAL NONCURRENT LIABILITIES | G200: 14795000 | H200: 0 | I200: 14795000
... 3164 more rows

Sheet BAL15_RAW (hidden)
B1: 1 | C1: 2 | D1: 3 | E1: 4 | F1: 5 | G1: 6 | H1: 7 | I1: 8
A2: FY | B2: vlookup | C2: cha_code | D2: cha_type | E2: balance_id | F2: Line_Desc | G2: balance_sch | H2: balance_found | I2: balance_total
A3: 2015 | B3: =C3&E3 -> 40701 | C3: 407 | E3: 01 | F3: Cash and Cash Equivalents | G3: 5672.62 | H3: 0 | I3: 5672.62
A4: 2015 | B4: =C4&E4 -> 40702 | C4: 407 | E4: 02 | F4: Accounts Receivable net of doubtful accounts | G4: 27126.75 | H4: 0 | I4: 27126.75
A5: 2015 | B5: 40703 | C5: 407 | E5: 03 | F5: Grants Receivable - State | G5: 0 | H5: 0 | I5: 0
A6: 2015 | B6: 40704 | C6: 407 | E6: 04 | F6: Grants Receivable - Federal | G6: 0 | H6: 0 | I6: 0
A7: 2015 | B7: 40705 | C7: 407 | E7: 05 | F7: Grants Receivable - Private | G7: 0 | H7: 0 | I7: 0
A8: 2015 | B8: 40706 | C8: 407 | E8: 06 | F8: Contributions Receivable | G8: 0 | H8: 0 | I8: 0
A9: 2015 | B9: 40707 | C9: 407 | E9: 07 | F9: Due from related parties | G9: 0 | H9: 0 | I9: 0
A10: 2015 | B10: 40708 | C10: 407 | E10: 08 | F10: Prepaid Expenses / Inventory | G10: 3662.89 | H10: 0 | I10: 3662.89
A11: 2015 | B11: 40709 | C11: 407 | E11: 09 | F11: Short-Term Investments | G11: 0 | H11: 0 | I11: 0
A12: 2015 | B12: 40710 | C12: 407 | E12: 10 | F12: Deposit (Security, Other) | G12: 0 | H12: 0 | I12: 0
A13: 2015 | B13: 40711 | C13: 407 | E13: 11 | F13: Restricted Current Assets | G13: 0 | H13: 0 | I13: 0
A14: 2015 | B14: 40712 | C14: 407 | E14: 12 | F14: TOTAL CURRENT ASSETS | G14: 36462.26 | H14: 0 | I14: 36462.26
A15: 2015 | B15: 40713 | C15: 407 | E15: 13 | F15: - Land and Buildings | G15: 0 | H15: 0 | I15: 0
A16: 2015 | B16: 40714 | C16: 407 | E16: 14 | F16: - Building/Leasehold Improvement | G16: 0 | H16: 0 | I16: 0
A17: 2015 | B17: 40715 | C17: 407 | E17: 15 | F17: - Furniture and Equipment | G17: 97602.84 | H17: 0 | I17: 97602.84
A18: 2015 | B18: 40716 | C18: 407 | E18: 16 | F18: - Less Accumulated Depreciation | G18: -75406.52 | H18: 0 | I18: -75406.52
A19: 2015 | B19: 40717 | C19: 407 | E19: 17 | F19: Net Capital Assets | G19: 22196.32 | H19: 0 | I19: 22196.32
A20: 2015 | B20: 40718 | C20: 407 | E20: 18 | F20: Restricted Noncurrent Assets | G20: 0 | H20: 0 | I20: 0
A21: 2015 | B21: 40719 | C21: 407 | E21: 19 | F21: Long-Term Investments | G21: 0 | H21: 0 | I21: 0
A22: 2015 | B22: 40720 | C22: 407 | E22: 20 | F22: Building Acquisition / Financing Costs / Deferred Expenses | G22: 0 | H22: 0 | I22: 0
A23: 2015 | B23: 40721 | C23: 407 | E23: 21 | F23: Long-Term Grants / Contributions Receivable | G23: 0 | H23: 0 | I23: 0
A24: 2015 | B24: 40722 | C24: 407 | E24: 22 | F24: TOTAL NONCURRENT ASSETS | G24: 22196.32 | H24: 0 | I24: 22196.32
A25: 2015 | B25: 40723 | C25: 407 | E25: 23 | F25: TOTAL ASSETS | G25: 58659 | H25: 0 | I25: 58659
A26: 2015 | B26: 40724 | C26: 407 | E26: 24 | F26: Accounts Payable | G26: 6365 | H26: 0 | I26: 6365
A27: 2015 | B27: 40725 | C27: 407 | E27: 25 | F27: Accrued Expenses / Accrued Payroll | G27: 2106 | H27: 0 | I27: 2106
A28: 2015 | B28: 40726 | C28: 407 | E28: 26 | F28: Deferred Revenue | G28: 0 | H28: 0 | I28: 0
A29: 2015 | B29: 40727 | C29: 407 | E29: 27 | F29: Due to related parties | G29: 0 | H29: 0 | I29: 0
A30: 2015 | B30: 40728 | C30: 407 | E30: 28 | F30: Current Debt Payable | G30: 0 | H30: 0 | I30: 0
A31: 2015 | B31: 40729 | C31: 407 | E31: 29 | F31: Current Lease Obligations Payable | G31: 0 | H31: 0 | I31: 0
A32: 2015 | B32: 40730 | C32: 407 | E32: 30 | F32: TOTAL CURRENT LIABILITIES | G32: 8471 | H32: 0 | I32: 8471
A33: 2015 | B33: 40731 | C33: 407 | E33: 31 | F33: Noncurrent Lease Obligations | G33: 0 | H33: 0 | I33: 0
A34: 2015 | B34: 40732 | C34: 407 | E34: 32 | F34: Long-Term Debt | G34: 0 | H34: 0 | I34: 0
A35: 2015 | B35: 40733 | C35: 407 | E35: 33 | F35: Deferred Revenue | G35: 0 | H35: 0 | I35: 0
A36: 2015 | B36: 40734 | C36: 407 | E36: 34 | F36: TOTAL NONCURRENT LIABILITIES | G36: 0 | H36: 0 | I36: 0
A37: 2015 | B37: 40735 | C37: 407 | E37: 35 | F37: TOTAL LIABILITIES | G37: 8471 | H37: 0 | I37: 8471
A38: 2015 | B38: 40736 | C38: 407 | E38: 36 | F38: Investment in capital assets (net of related debt) | G38: 22197 | H38: 0 | I38: 22197
A39: 2015 | B39: 40737 | C39: 407 | E39: 37 | F39: Temporarily Restricted | G39: 0 | H39: 0 | I39: 0
A40: 2015 | B40: 40738 | C40: 407 | E40: 38 | F40: Permanently Restricted | G40: 0 | H40: 0 | I40: 0
A41: 2015 | B41: 40739 | C41: 407 | E41: 39 | F41: Unrestricted (non-capital) | G41: 27991.4 | H41: 0 | I41: 27991.4
A42: 2015 | B42: 40740 | C42: 407 | E42: 40 | F42: TOTAL NET ASSETS | G42: 50188 | H42: 0 | I42: 50188
A43: 2015 | B43: 40741 | C43: 407 | E43: 41 | F43: TOTAL LIABILITIES AND NET ASSETS | G43: 58659 | H43: 0 | I43: 58659
A44: 2015
A45: 2015
A46: 2015
A47: 2015 | B47: 40901 | C47: 409 | E47: 01 | F47: Cash and Cash Equivalents | G47: 518252.71 | H47: 1422065.74 | I47: 1940318.45
A48: 2015 | B48: 40902 | C48: 409 | E48: 02 | F48: Accounts Receivable net of doubtful accounts | G48: 49623.48 | H48: 852663.37 | I48: 902286.85
A49: 2015 | B49: 40903 | C49: 409 | E49: 03 | F49: Grants Receivable - State | G49: 0 | H49: 0 | I49: 0
A50: 2015 | B50: 40904 | C50: 409 | E50: 04 | F50: Grants Receivable - Federal | G50: 0 | H50: 0 | I50: 0
A51: 2015 | B51: 40905 | C51: 409 | E51: 05 | F51: Grants Receivable - Private | G51: 0 | H51: 0 | I51: 0
A52: 2015 | B52: 40906 | C52: 409 | E52: 06 | F52: Contributions Receivable | G52: 0 | H52: 0 | I52: 0
A53: 2015 | B53: 40907 | C53: 409 | E53: 07 | F53: Due from related parties | G53: 792593.23 | H53: 2725.95 | I53: 795319.18
A54: 2015 | B54: 40908 | C54: 409 | E54: 08 | F54: Prepaid Expenses / Inventory | G54: 35748.03 | H54: 0 | I54: 35748.03
A55: 2015 | B55: 40909 | C55: 409 | E55: 09 | F55: Short-Term Investments | G55: 0 | H55: 0 | I55: 0
A56: 2015 | B56: 40910 | C56: 409 | E56: 10 | F56: Deposit (Security, Other) | G56: 0 | H56: 0 | I56: 0
A57: 2015 | B57: 40911 | C57: 409 | E57: 11 | F57: Restricted Current Assets | G57: 0 | H57: 0 | I57: 0
A58: 2015 | B58: 40912 | C58: 409 | E58: 12 | F58: TOTAL CURRENT ASSETS | G58: 1396217.45 | H58: 2277455.06 | I58: 3673672.51
A59: 2015 | B59: 40913 | C59: 409 | E59: 13 | F59: - Land and Buildings | G59: 0 | H59: 1098308.45 | I59: 1098308.45
A60: 2015 | B60: 40914 | C60: 409 | E60: 14 | F60: - Building/Leasehold Improvement | G60: 218769.71 | H60: 0 | I60: 218769.71
A61: 2015 | B61: 40915 | C61: 409 | E61: 15 | F61: - Furniture and Equipment | G61: 48137.36 | H61: 0 | I61: 48137.36
A62: 2015 | B62: 40916 | C62: 409 | E62: 16 | F62: - Less Accumulated Depreciation | G62: -142053 | H62: 0 | I62: -142053
A63: 2015 | B63: 40917 | C63: 409 | E63: 17 | F63: Net Capital Assets | G63: 124854.07 | H63: 1098308.45 | I63: 1223162.52
A64: 2015 | B64: 40918 | C64: 409 | E64: 18 | F64: Restricted Noncurrent Assets | G64: 0 | H64: 0 | I64: 0
A65: 2015 | B65: 40919 | C65: 409 | E65: 19 | F65: Long-Term Investments | G65: 0 | H65: 0 | I65: 0
A66: 2015 | B66: 40920 | C66: 409 | E66: 20 | F66: Building Acquisition / Financing Costs / Deferred Expenses | G66: 0 | H66: 0 | I66: 0
A67: 2015 | B67: 40921 | C67: 409 | E67: 21 | F67: Long-Term Grants / Contributions Receivable | G67: 0 | H67: 0 | I67: 0
A68: 2015 | B68: =C68&E68 -> 40922 | C68: 409 | E68: 22 | F68: TOTAL NONCURRENT ASSETS | G68: 124854.07 | H68: 1098308.45 | I68: 1223162.52
A69: 2015 | B69: 40923 | C69: 409 | E69: 23 | F69: TOTAL ASSETS | G69: 1521072 | H69: 3375764 | I69: 4896835
A70: 2015 | B70: 40924 | C70: 409 | E70: 24 | F70: Accounts Payable | G70: 119277.17 | H70: 335729.84 | I70: 455007.01
A71: 2015 | B71: 40925 | C71: 409 | E71: 25 | F71: Accrued Expenses / Accrued Payroll | G71: 181840.3 | H71: 0 | I71: 181840.3
A72: 2015 | B72: 40926 | C72: 409 | E72: 26 | F72: Deferred Revenue | G72: 0 | H72: 0 | I72: 0
A73: 2015 | B73: 40927 | C73: 409 | E73: 27 | F73: Due to related parties | G73: 2725.95 | H73: 792593.23 | I73: 795319.18
A74: 2015 | B74: 40928 | C74: 409 | E74: 28 | F74: Current Debt Payable | G74: 0 | H74: 0 | I74: 0
A75: 2015 | B75: 40929 | C75: 409 | E75: 29 | F75: Current Lease Obligations Payable | G75: 0 | H75: 0 | I75: 0
A76: 2015 | B76: 40930 | C76: 409 | E76: 30 | F76: TOTAL CURRENT LIABILITIES | G76: 303843.42 | H76: 1128323.07 | I76: 1432166.49
A77: 2015 | B77: 40931 | C77: 409 | E77: 31 | F77: Noncurrent Lease Obligations | G77: 0 | H77: 0 | I77: 0
A78: 2015 | B78: 40932 | C78: 409 | E78: 32 | F78: Long-Term Debt | G78: 0 | H78: 0 | I78: 0
A79: 2015 | B79: 40933 | C79: 409 | E79: 33 | F79: Deferred Revenue | G79: 0 | H79: 0 | I79: 0
A80: 2015 | B80: 40934 | C80: 409 | E80: 34 | F80: TOTAL NONCURRENT LIABILITIES | G80: 0 | H80: 0 | I80: 0
A81: 2015 | B81: 40935 | C81: 409 | E81: 35 | F81: TOTAL LIABILITIES | G81: 303843.42 | H81: 1128323.07 | I81: 1432166.49
A82: 2015 | B82: 40936 | C82: 409 | E82: 36 | F82: Investment in capital assets (net of related debt) | G82: 124854.07 | H82: 0 | I82: 124854.07
A83: 2015 | B83: 40937 | C83: 409 | E83: 37 | F83: Temporarily Restricted | G83: 0 | H83: 877663.37 | I83: 877663.37
A84: 2015 | B84: 40938 | C84: 409 | E84: 38 | F84: Permanently Restricted | G84: 0 | H84: 0 | I84: 0
A85: 2015 | B85: 40939 | C85: 409 | E85: 39 | F85: Unrestricted (non-capital) | G85: 1092374.03 | H85: 1369777.07 | I85: 2462151.1
A86: 2015 | B86: 40940 | C86: 409 | E86: 40 | F86: TOTAL NET ASSETS | G86: 1217228 | H86: 2247440 | I86: 3464668
A87: 2015 | B87: 40941 | C87: 409 | E87: 41 | F87: TOTAL LIABILITIES AND NET ASSETS | G87: 1521071 | H87: 3375763 | I87: 4896834
A88: 2015
A89: 2015
A90: 2015
A91: 2015 | B91: 41001 | C91: 410 | E91: 01 | F91: Cash and Cash Equivalents | G91: 887237 | H91: 1444889 | I91: 2332126
A92: 2015 | B92: 41002 | C92: 410 | E92: 02 | F92: Accounts Receivable net of doubtful accounts | G92: 180814 | H92: 0 | I92: 180814
A93: 2015 | B93: 41003 | C93: 410 | E93: 03 | F93: Grants Receivable - State | G93: 0 | H93: 0 | I93: 0
A94: 2015 | B94: 41004 | C94: 410 | E94: 04 | F94: Grants Receivable - Federal | G94: 0 | H94: 0 | I94: 0
A95: 2015 | B95: 41005 | C95: 410 | E95: 05 | F95: Grants Receivable - Private | G95: 0 | H95: 1512930 | I95: 1512930
A96: 2015 | B96: 41006 | C96: 410 | E96: 06 | F96: Contributions Receivable | G96: 0 | H96: 0 | I96: 0
A97: 2015 | B97: 41007 | C97: 410 | E97: 07 | F97: Due from related parties | G97: -2043000 | H97: 2043000 | I97: 0
A98: 2015 | B98: 41008 | C98: 410 | E98: 08 | F98: Prepaid Expenses / Inventory | G98: 264597 | H98: 0 | I98: 264597
A99: 2015 | B99: 41009 | C99: 410 | E99: 09 | F99: Short-Term Investments | G99: 0 | H99: 0 | I99: 0
A100: 2015 | B100: 41010 | C100: 410 | E100: 10 | F100: Deposit (Security, Other) | G100: 70917 | H100: 37050 | I100: 107967
A101: 2015 | B101: 41011 | C101: 410 | E101: 11 | F101: Restricted Current Assets | G101: 0 | H101: 0 | I101: 0
A102: 2015 | B102: 41012 | C102: 410 | E102: 12 | F102: TOTAL CURRENT ASSETS | G102: -639435 | H102: 5037869 | I102: 4398434
A103: 2015 | B103: 41013 | C103: 410 | E103: 13 | F103: - Land and Buildings | G103: 8151974 | H103: 7184603.34 | I103: 15336577.34
A104: 2015 | B104: 41014 | C104: 410 | E104: 14 | F104: - Building/Leasehold Improvement | G104: 396344 | H104: 0 | I104: 396344
A105: 2015 | B105: 41015 | C105: 410 | E105: 15 | F105: - Furniture and Equipment | G105: 32122 | H105: 0 | I105: 32122
A106: 2015 | B106: 41016 | C106: 410 | E106: 16 | F106: - Less Accumulated Depreciation | G106: -574945 | H106: 0 | I106: -574945
A107: 2015 | B107: 41017 | C107: 410 | E107: 17 | F107: Net Capital Assets | G107: 8005495 | H107: 7184603.34 | I107: 15190098.34
A108: 2015 | B108: 41018 | C108: 410 | E108: 18 | F108: Restricted Noncurrent Assets | G108: 964680 | H108: 344484 | I108: 1309164
A109: 2015 | B109: 41019 | C109: 410 | E109: 19 | F109: Long-Term Investments | G109: 3723495 | H109: 14636398 | I109: 18359893
A110: 2015 | B110: 41020 | C110: 410 | E110: 20 | F110: Building Acquisition / Financing Costs / Deferred Expenses | G110: 0 | H110: 0 | I110: 0
A111: 2015 | B111: 41021 | C111: 410 | E111: 21 | F111: Long-Term Grants / Contributions Receivable | G111: 0 | H111: 1355316 | I111: 1355316
A112: 2015 | B112: 41022 | C112: 410 | E112: 22 | F112: TOTAL NONCURRENT ASSETS | G112: 12693670 | H112: 23520801.34 | I112: 36214471.34
A113: 2015 | B113: 41023 | C113: 410 | E113: 23 | F113: TOTAL ASSETS | G113: 12054235 | H113: 28558670 | I113: 40612905
A114: 2015 | B114: 41024 | C114: 410 | E114: 24 | F114: Accounts Payable | G114: 433933 | H114: 1422645 | I114: 1856578
A115: 2015 | B115: 41025 | C115: 410 | E115: 25 | F115: Accrued Expenses / Accrued Payroll | G115: 609072 | H115: 18773 | I115: 627845
A116: 2015 | B116: 41026 | C116: 410 | E116: 26 | F116: Deferred Revenue | G116: 0 | H116: 0 | I116: 0
A117: 2015 | B117: 41027 | C117: 410 | E117: 27 | F117: Due to related parties | G117: 0 | H117: 0 | I117: 0
A118: 2015 | B118: 41028 | C118: 410 | E118: 28 | F118: Current Debt Payable | G118: 0 | H118: 115813 | I118: 115813
A119: 2015 | B119: 41029 | C119: 410 | E119: 29 | F119: Current Lease Obligations Payable | G119: 128800 | H119: 0 | I119: 128800
A120: 2015 | B120: 41030 | C120: 410 | E120: 30 | F120: TOTAL CURRENT LIABILITIES | G120: 1171805 | H120: 1557231 | I120: 2729036
A121: 2015 | B121: 41031 | C121: 410 | E121: 31 | F121: Noncurrent Lease Obligations | G121: 8352399 | H121: 0 | I121: 8352399
A122: 2015 | B122: 41032 | C122: 410 | E122: 32 | F122: Long-Term Debt | G122: 3723495 | H122: 16670929 | I122: 20394424
A123: 2015 | B123: 41033 | C123: 410 | E123: 33 | F123: Deferred Revenue | G123: 0 | H123: 0 | I123: 0
A124: 2015 | B124: 41034 | C124: 410 | E124: 34 | F124: TOTAL NONCURRENT LIABILITIES | G124: 12075894 | H124: 16670929 | I124: 28746823
A125: 2015 | B125: 41035 | C125: 410 | E125: 35 | F125: TOTAL LIABILITIES | G125: 13247699 | H125: 18228160 | I125: 31475859
A126: 2015 | B126: 41036 | C126: 410 | E126: 36 | F126: Investment in capital assets (net of related debt) | G126: -346802 | H126: 4911366 | I126: 4564564
A127: 2015 | B127: 41037 | C127: 410 | E127: 37 | F127: Temporarily Restricted | G127: 0 | H127: 3077466 | I127: 3077466
A128: 2015 | B128: 41038 | C128: 410 | E128: 38 | F128: Permanently Restricted | G128: 0 | H128: 0 | I128: 0
A129: 2015 | B129: 41039 | C129: 410 | E129: 39 | F129: Unrestricted (non-capital) | G129: -846662 | H129: 2341678 | I129: 1495016
A130: 2015 | B130: 41040 | C130: 410 | E130: 40 | F130: TOTAL NET ASSETS | G130: -1193464 | H130: 10330510 | I130: 9137046
A131: 2015 | B131: 41041 | C131: 410 | E131: 41 | F131: TOTAL LIABILITIES AND NET ASSETS | G131: 12054235 | H131: 28558670 | I131: 40612905
A132: 2015 | B132: =C132&E132 -> 
A133: 2015
A134: 2015
A135: 2015 | B135: 41101 | C135: 411 | E135: 01 | F135: Cash and Cash Equivalents | G135: 366818 | H135: 56391 | I135: 423209
A136: 2015 | B136: 41102 | C136: 411 | E136: 02 | F136: Accounts Receivable net of doubtful accounts | G136: 189320 | H136: 0 | I136: 189320
A137: 2015 | B137: 41103 | C137: 411 | E137: 03 | F137: Grants Receivable - State | G137: 0 | H137: 0 | I137: 0
A138: 2015 | B138: 41104 | C138: 411 | E138: 04 | F138: Grants Receivable - Federal | G138: 0 | H138: 0 | I138: 0
A139: 2015 | B139: 41105 | C139: 411 | E139: 05 | F139: Grants Receivable - Private | G139: 0 | H139: 0 | I139: 0
A140: 2015 | B140: 41106 | C140: 411 | E140: 06 | F140: Contributions Receivable | G140: 0 | H140: 0 | I140: 0
A141: 2015 | B141: 41107 | C141: 411 | E141: 07 | F141: Due from related parties | G141: 7132 | H141: -7132 | I141: 0
A142: 2015 | B142: 41108 | C142: 411 | E142: 08 | F142: Prepaid Expenses / Inventory | G142: 8459 | H142: 0 | I142: 8459
A143: 2015 | B143: 41109 | C143: 411 | E143: 09 | F143: Short-Term Investments | G143: 0 | H143: 0 | I143: 0
A144: 2015 | B144: 41110 | C144: 411 | E144: 10 | F144: Deposit (Security, Other) | G144: 0 | H144: 0 | I144: 0
A145: 2015 | B145: 41111 | C145: 411 | E145: 11 | F145: Restricted Current Assets | G145: 0 | H145: 0 | I145: 0
A146: 2015 | B146: 41112 | C146: 411 | E146: 12 | F146: TOTAL CURRENT ASSETS | G146: 571729 | H146: 49259 | I146: 620988
A147: 2015 | B147: 41113 | C147: 411 | E147: 13 | F147: - Land and Buildings | G147: 0 | H147: 0 | I147: 0
A148: 2015 | B148: 41114 | C148: 411 | E148: 14 | F148: - Building/Leasehold Improvement | G148: 0 | H148: 0 | I148: 0
A149: 2015 | B149: 41115 | C149: 411 | E149: 15 | F149: - Furniture and Equipment | G149: 22665 | H149: 0 | I149: 22665
A150: 2015 | B150: 41116 | C150: 411 | E150: 16 | F150: - Less Accumulated Depreciation | G150: -8771 | H150: 0 | I150: -8771
A151: 2015 | B151: 41117 | C151: 411 | E151: 17 | F151: Net Capital Assets | G151: 13894 | H151: 0 | I151: 13894
A152: 2015 | B152: 41118 | C152: 411 | E152: 18 | F152: Restricted Noncurrent Assets | G152: 0 | H152: 0 | I152: 0
A153: 2015 | B153: 41119 | C153: 411 | E153: 19 | F153: Long-Term Investments | G153: 0 | H153: 0 | I153: 0
A154: 2015 | B154: 41120 | C154: 411 | E154: 20 | F154: Building Acquisition / Financing Costs / Deferred Expenses | G154: 0 | H154: 0 | I154: 0
A155: 2015 | B155: 41121 | C155: 411 | E155: 21 | F155: Long-Term Grants / Contributions Receivable | G155: 0 | H155: 0 | I155: 0
A156: 2015 | B156: 41122 | C156: 411 | E156: 22 | F156: TOTAL NONCURRENT ASSETS | G156: 13894 | H156: 0 | I156: 13894
A157: 2015 | B157: 41123 | C157: 411 | E157: 23 | F157: TOTAL ASSETS | G157: 585623 | H157: 49259 | I157: 634882
A158: 2015 | B158: 41124 | C158: 411 | E158: 24 | F158: Accounts Payable | G158: 501267 | H158: 0 | I158: 501267
A159: 2015 | B159: 41125 | C159: 411 | E159: 25 | F159: Accrued Expenses / Accrued Payroll | G159: 19500 | H159: 0 | I159: 19500
A160: 2015 | B160: 41126 | C160: 411 | E160: 26 | F160: Deferred Revenue | G160: 0 | H160: 0 | I160: 0
A161: 2015 | B161: 41127 | C161: 411 | E161: 27 | F161: Due to related parties | G161: 0 | H161: 0 | I161: 0
A162: 2015 | B162: 41128 | C162: 411 | E162: 28 | F162: Current Debt Payable | G162: 0 | H162: 0 | I162: 0
A163: 2015 | B163: 41129 | C163: 411 | E163: 29 | F163: Current Lease Obligations Payable | G163: 0 | H163: 0 | I163: 0
A164: 2015 | B164: 41130 | C164: 411 | E164: 30 | F164: TOTAL CURRENT LIABILITIES | G164: 520767 | H164: 0 | I164: 520767
A165: 2015 | B165: 41131 | C165: 411 | E165: 31 | F165: Noncurrent Lease Obligations | G165: 0 | H165: 0 | I165: 0
A166: 2015 | B166: 41132 | C166: 411 | E166: 32 | F166: Long-Term Debt | G166: 0 | H166: 0 | I166: 0
A167: 2015 | B167: 41133 | C167: 411 | E167: 33 | F167: Deferred Revenue | G167: 0 | H167: 0 | I167: 0
A168: 2015 | B168: 41134 | C168: 411 | E168: 34 | F168: TOTAL NONCURRENT LIABILITIES | G168: 0 | H168: 0 | I168: 0
A169: 2015 | B169: 41135 | C169: 411 | E169: 35 | F169: TOTAL LIABILITIES | G169: 520767 | H169: 0 | I169: 520767
A170: 2015 | B170: 41136 | C170: 411 | E170: 36 | F170: Investment in capital assets (net of related debt) | G170: 13894 | H170: 0 | I170: 13894
A171: 2015 | B171: 41137 | C171: 411 | E171: 37 | F171: Temporarily Restricted | G171: 18685 | H171: 18480 | I171: 37165
A172: 2015 | B172: 41138 | C172: 411 | E172: 38 | F172: Permanently Restricted | G172: 0 | H172: 0 | I172: 0
A173: 2015 | B173: 41139 | C173: 411 | E173: 39 | F173: Unrestricted (non-capital) | G173: 32277 | H173: 30779 | I173: 63056
A174: 2015 | B174: 41140 | C174: 411 | E174: 40 | F174: TOTAL NET ASSETS | G174: 64856 | H174: 49259 | I174: 114115
A175: 2015 | B175: 41141 | C175: 411 | E175: 41 | F175: TOTAL LIABILITIES AND NET ASSETS | G175: 585623 | H175: 49259 | I175: 634882
A176: 2015
A177: 2015
A178: 2015
A179: 2015 | B179: 41201 | C179: 412 | E179: 01 | F179: Cash and Cash Equivalents | G179: 3258978 | H179: 193047 | I179: 3452025
A180: 2015 | B180: 41202 | C180: 412 | E180: 02 | F180: Accounts Receivable net of doubtful accounts | G180: 0 | H180: 0 | I180: 0
A181: 2015 | B181: 41203 | C181: 412 | E181: 03 | F181: Grants Receivable - State | G181: 0 | H181: 0 | I181: 0
A182: 2015 | B182: 41204 | C182: 412 | E182: 04 | F182: Grants Receivable - Federal | G182: 39679 | H182: 0 | I182: 39679
A183: 2015 | B183: 41205 | C183: 412 | E183: 05 | F183: Grants Receivable - Private | G183: 0 | H183: 0 | I183: 0
A184: 2015 | B184: 41206 | C184: 412 | E184: 06 | F184: Contributions Receivable | G184: 0 | H184: 0 | I184: 0
A185: 2015 | B185: 41207 | C185: 412 | E185: 07 | F185: Due from related parties | G185: 0 | H185: 0 | I185: 0
A186: 2015 | B186: 41208 | C186: 412 | E186: 08 | F186: Prepaid Expenses / Inventory | G186: 20595 | H186: 0 | I186: 20595
A187: 2015 | B187: 41209 | C187: 412 | E187: 09 | F187: Short-Term Investments | G187: 0 | H187: 14057 | I187: 14057
A188: 2015 | B188: 41210 | C188: 412 | E188: 10 | F188: Deposit (Security, Other) | G188: 19000 | H188: 0 | I188: 19000
A189: 2015 | B189: 41211 | C189: 412 | E189: 11 | F189: Restricted Current Assets | G189: 0 | H189: 0 | I189: 0
A190: 2015 | B190: 41212 | C190: 412 | E190: 12 | F190: TOTAL CURRENT ASSETS | G190: 3338252 | H190: 207104 | I190: 3545356
A191: 2015 | B191: 41213 | C191: 412 | E191: 13 | F191: - Land and Buildings | G191: 5000000 | H191: 0 | I191: 5000000
A192: 2015 | B192: 41214 | C192: 412 | E192: 14 | F192: - Building/Leasehold Improvement | G192: 10149957 | H192: 0 | I192: 10149957
A193: 2015 | B193: 41215 | C193: 412 | E193: 15 | F193: - Furniture and Equipment | G193: 1623514 | H193: 0 | I193: 1623514
A194: 2015 | B194: 41216 | C194: 412 | E194: 16 | F194: - Less Accumulated Depreciation | G194: -5078747 | H194: 0 | I194: -5078747
A195: 2015 | B195: 41217 | C195: 412 | E195: 17 | F195: Net Capital Assets | G195: 11694724 | H195: 0 | I195: 11694724
A196: 2015 | B196: =C196&E196 -> 41218 | C196: 412 | E196: 18 | F196: Restricted Noncurrent Assets | G196: 6876165 | H196: 0 | I196: 6876165
A197: 2015 | B197: 41219 | C197: 412 | E197: 19 | F197: Long-Term Investments | G197: 0 | H197: 0 | I197: 0
A198: 2015 | B198: 41220 | C198: 412 | E198: 20 | F198: Building Acquisition / Financing Costs / Deferred Expenses | G198: 1251343 | H198: 0 | I198: 1251343
A199: 2015 | B199: 41221 | C199: 412 | E199: 21 | F199: Long-Term Grants / Contributions Receivable | G199: 0 | H199: 0 | I199: 0
A200: 2015 | B200: 41222 | C200: 412 | E200: 22 | F200: TOTAL NONCURRENT ASSETS | G200: 19822232 | H200: 0 | I200: 19822232
... 3316 more rows

Sheet BAL14_Raw (hidden)
B3: 1 | C3: 2 | D3: 3 | E3: 4 | F3: 5 | G3: 6 | H3: 7 | I3: 8
A4: FY | B4: vlookup | C4: cha_code | D4: cha_type | E4: balance_id | F4: Line_Desc | G4: balance_sch | H4: balance_found | I4: balance_total
A5: 2014 | B5: =C5&E5 -> 40701 | C5: 407 | E5: 01 | F5: Cash and Cash Equivalents | G5: 34063 | H5: 0 | I5: 34063
A6: 2014 | B6: =C6&E6 -> 40702 | C6: 407 | E6: 02 | F6: Accounts Receivable net of doubtful accounts | G6: 0 | H6: 0 | I6: 0
A7: 2014 | B7: 40703 | C7: 407 | E7: 03 | F7: Grants Receivable - State | G7: 0 | H7: 0 | I7: 0
A8: 2014 | B8: 40704 | C8: 407 | E8: 04 | F8: Grants Receivable - Federal | G8: 0 | H8: 0 | I8: 0
A9: 2014 | B9: 40705 | C9: 407 | E9: 05 | F9: Grants Receivable - Private | G9: 0 | H9: 0 | I9: 0
A10: 2014 | B10: 40706 | C10: 407 | E10: 06 | F10: Contributions Receivable | G10: 0 | H10: 0 | I10: 0
A11: 2014 | B11: 40707 | C11: 407 | E11: 07 | F11: Due from related parties | G11: 0 | H11: 0 | I11: 0
A12: 2014 | B12: 40708 | C12: 407 | E12: 08 | F12: Prepaid Expenses / Inventory | G12: 2337 | H12: 0 | I12: 2337
A13: 2014 | B13: 40709 | C13: 407 | E13: 09 | F13: Short-Term Investments | G13: 0 | H13: 0 | I13: 0
A14: 2014 | B14: 40710 | C14: 407 | E14: 10 | F14: Deposit (Security, Other) | G14: 0 | H14: 0 | I14: 0
A15: 2014 | B15: 40711 | C15: 407 | E15: 11 | F15: Restricted Current Assets | G15: 0 | H15: 0 | I15: 0
A16: 2014 | B16: 40712 | C16: 407 | E16: 12 | F16: TOTAL CURRENT ASSETS | G16: 36400 | H16: 0 | I16: 36400
A17: 2014 | B17: 40713 | C17: 407 | E17: 13 | F17: - Land and Buildings | G17: 0 | H17: 0 | I17: 0
A18: 2014 | B18: 40714 | C18: 407 | E18: 14 | F18: - Building/Leasehold Improvement | G18: 0 | H18: 0 | I18: 0
A19: 2014 | B19: 40715 | C19: 407 | E19: 15 | F19: - Furniture and Equipment | G19: 97603 | H19: 0 | I19: 97603
A20: 2014 | B20: 40716 | C20: 407 | E20: 16 | F20: - Less Accumulated Depreciation | G20: -42873 | H20: 0 | I20: -42873
A21: 2014 | B21: 40717 | C21: 407 | E21: 17 | F21: Net Capital Assets | G21: 54730 | H21: 0 | I21: 54730
A22: 2014 | B22: 40718 | C22: 407 | E22: 18 | F22: Restricted Noncurrent Assets | G22: 0 | H22: 0 | I22: 0
A23: 2014 | B23: 40719 | C23: 407 | E23: 19 | F23: Long-Term Investments | G23: 0 | H23: 0 | I23: 0
A24: 2014 | B24: 40720 | C24: 407 | E24: 20 | F24: Building Acquisition / Financing Costs / Deferred Expenses | G24: 0 | H24: 0 | I24: 0
A25: 2014 | B25: 40721 | C25: 407 | E25: 21 | F25: Long-Term Grants / Contributions Receivable | G25: 0 | H25: 0 | I25: 0
A26: 2014 | B26: 40722 | C26: 407 | E26: 22 | F26: TOTAL NONCURRENT ASSETS | G26: 54730 | H26: 0 | I26: 54730
A27: 2014 | B27: 40723 | C27: 407 | E27: 23 | F27: TOTAL ASSETS | G27: 91130 | H27: 0 | I27: 91130
A28: 2014 | B28: 40724 | C28: 407 | E28: 24 | F28: Accounts Payable | G28: 41224 | H28: 0 | I28: 41224
A29: 2014 | B29: 40725 | C29: 407 | E29: 25 | F29: Accrued Expenses / Accrued Payroll | G29: 1330 | H29: 0 | I29: 1330
A30: 2014 | B30: 40726 | C30: 407 | E30: 26 | F30: Deferred Revenue | G30: 0 | H30: 0 | I30: 0
A31: 2014 | B31: 40727 | C31: 407 | E31: 27 | F31: Due to related parties | G31: 0 | H31: 0 | I31: 0
A32: 2014 | B32: 40728 | C32: 407 | E32: 28 | F32: Current Debt Payable | G32: 0 | H32: 0 | I32: 0
A33: 2014 | B33: 40729 | C33: 407 | E33: 29 | F33: Current Lease Obligations Payable | G33: 0 | H33: 0 | I33: 0
A34: 2014 | B34: 40730 | C34: 407 | E34: 30 | F34: TOTAL CURRENT LIABILITIES | G34: 42554 | H34: 0 | I34: 42554
A35: 2014 | B35: 40731 | C35: 407 | E35: 31 | F35: Noncurrent Lease Obligations | G35: 0 | H35: 0 | I35: 0
A36: 2014 | B36: 40732 | C36: 407 | E36: 32 | F36: Long-Term Debt | G36: 0 | H36: 0 | I36: 0
A37: 2014 | B37: 40733 | C37: 407 | E37: 33 | F37: Deferred Revenue | G37: 0 | H37: 0 | I37: 0
A38: 2014 | B38: 40734 | C38: 407 | E38: 34 | F38: TOTAL NONCURRENT LIABILITIES | G38: 0 | H38: 0 | I38: 0
A39: 2014 | B39: 40735 | C39: 407 | E39: 35 | F39: TOTAL LIABILITIES | G39: 42554 | H39: 0 | I39: 42554
A40: 2014 | B40: 40736 | C40: 407 | E40: 36 | F40: Investment in capital assets (net of related debt) | G40: 54730 | H40: 0 | I40: 54730
A41: 2014 | B41: 40737 | C41: 407 | E41: 37 | F41: Temporarily Restricted | G41: 0 | H41: 0 | I41: 0
A42: 2014 | B42: 40738 | C42: 407 | E42: 38 | F42: Permanently Restricted | G42: 0 | H42: 0 | I42: 0
A43: 2014 | B43: 40739 | C43: 407 | E43: 39 | F43: Unrestricted (non-capital) | G43: -6154 | H43: 0 | I43: -6154
A44: 2014 | B44: 40740 | C44: 407 | E44: 40 | F44: TOTAL NET ASSETS | G44: 48576 | H44: 0 | I44: 48576
A45: 2014 | B45: 40741 | C45: 407 | E45: 41 | F45: TOTAL LIABILITIES AND NET ASSETS | G45: 91130 | H45: 0 | I45: 91130
A46: 2014
A47: 2014
A48: 2014
A49: 2014 | B49: 40901 | C49: 409 | E49: 01 | F49: Cash and Cash Equivalents | G49: 273225.04 | H49: 177277.64 | I49: 450502.68
A50: 2014 | B50: 40902 | C50: 409 | E50: 02 | F50: Accounts Receivable net of doubtful accounts | G50: 599255.8 | H50: 20000 | I50: 619255.8
A51: 2014 | B51: 40903 | C51: 409 | E51: 03 | F51: Grants Receivable - State | G51: 0 | H51: 0 | I51: 0
A52: 2014 | B52: 40904 | C52: 409 | E52: 04 | F52: Grants Receivable - Federal | G52: 0 | H52: 0 | I52: 0
A53: 2014 | B53: 40905 | C53: 409 | E53: 05 | F53: Grants Receivable - Private | G53: 0 | H53: 0 | I53: 0
A54: 2014 | B54: 40906 | C54: 409 | E54: 06 | F54: Contributions Receivable | G54: 0 | H54: 0 | I54: 0
A55: 2014 | B55: 40907 | C55: 409 | E55: 07 | F55: Due from related parties | G55: 5050 | H55: 0 | I55: 5050
A56: 2014 | B56: 40908 | C56: 409 | E56: 08 | F56: Prepaid Expenses / Inventory | G56: 2000 | H56: 0 | I56: 2000
A57: 2014 | B57: 40909 | C57: 409 | E57: 09 | F57: Short-Term Investments | G57: 0 | H57: 0 | I57: 0
A58: 2014 | B58: 40910 | C58: 409 | E58: 10 | F58: Deposit (Security, Other) | G58: 0 | H58: 0 | I58: 0
A59: 2014 | B59: 40911 | C59: 409 | E59: 11 | F59: Restricted Current Assets | G59: 0 | H59: 0 | I59: 0
A60: 2014 | B60: 40912 | C60: 409 | E60: 12 | F60: TOTAL CURRENT ASSETS | G60: 879530.84 | H60: 197277.64 | I60: 1076808.48
A61: 2014 | B61: 40913 | C61: 409 | E61: 13 | F61: - Land and Buildings | G61: 0 | H61: 0 | I61: 0
A62: 2014 | B62: 40914 | C62: 409 | E62: 14 | F62: - Building/Leasehold Improvement | G62: 200203.71 | H62: 0 | I62: 200203.71
A63: 2014 | B63: 40915 | C63: 409 | E63: 15 | F63: - Furniture and Equipment | G63: 48137.36 | H63: 0 | I63: 48137.36
A64: 2014 | B64: 40916 | C64: 409 | E64: 16 | F64: - Less Accumulated Depreciation | G64: -76188 | H64: 0 | I64: -76188
A65: 2014 | B65: 40917 | C65: 409 | E65: 17 | F65: Net Capital Assets | G65: 172153.07 | H65: 0 | I65: 172153.07
A66: 2014 | B66: 40918 | C66: 409 | E66: 18 | F66: Restricted Noncurrent Assets | G66: 0 | H66: 0 | I66: 0
A67: 2014 | B67: 40919 | C67: 409 | E67: 19 | F67: Long-Term Investments | G67: 0 | H67: 0 | I67: 0
A68: 2014 | B68: 40920 | C68: 409 | E68: 20 | F68: Building Acquisition / Financing Costs / Deferred Expenses | G68: 48259.38 | H68: 0 | I68: 48259.38
A69: 2014 | B69: 40921 | C69: 409 | E69: 21 | F69: Long-Term Grants / Contributions Receivable | G69: 0 | H69: 0 | I69: 0
A70: 2014 | B70: =C70&E70 -> 40922 | C70: 409 | E70: 22 | F70: TOTAL NONCURRENT ASSETS | G70: 220412.45 | H70: 0 | I70: 220412.45
A71: 2014 | B71: 40923 | C71: 409 | E71: 23 | F71: TOTAL ASSETS | G71: 1099943 | H71: 197278 | I71: 1297221
A72: 2014 | B72: 40924 | C72: 409 | E72: 24 | F72: Accounts Payable | G72: 68478.49 | H72: 0 | I72: 68478.49
A73: 2014 | B73: 40925 | C73: 409 | E73: 25 | F73: Accrued Expenses / Accrued Payroll | G73: 149954.65 | H73: 0 | I73: 149954.65
A74: 2014 | B74: 40926 | C74: 409 | E74: 26 | F74: Deferred Revenue | G74: 0 | H74: 0 | I74: 0
A75: 2014 | B75: 40927 | C75: 409 | E75: 27 | F75: Due to related parties | G75: 0 | H75: 5050 | I75: 5050
A76: 2014 | B76: 40928 | C76: 409 | E76: 28 | F76: Current Debt Payable | G76: 0 | H76: 0 | I76: 0
A77: 2014 | B77: 40929 | C77: 409 | E77: 29 | F77: Current Lease Obligations Payable | G77: 0 | H77: 0 | I77: 0
A78: 2014 | B78: 40930 | C78: 409 | E78: 30 | F78: TOTAL CURRENT LIABILITIES | G78: 218433.14 | H78: 5050 | I78: 223483.14
A79: 2014 | B79: 40931 | C79: 409 | E79: 31 | F79: Noncurrent Lease Obligations | G79: 0 | H79: 0 | I79: 0
A80: 2014 | B80: 40932 | C80: 409 | E80: 32 | F80: Long-Term Debt | G80: 0 | H80: 0 | I80: 0
A81: 2014 | B81: 40933 | C81: 409 | E81: 33 | F81: Deferred Revenue | G81: 45500 | H81: 0 | I81: 45500
A82: 2014 | B82: 40934 | C82: 409 | E82: 34 | F82: TOTAL NONCURRENT LIABILITIES | G82: 45500 | H82: 0 | I82: 45500
A83: 2014 | B83: 40935 | C83: 409 | E83: 35 | F83: TOTAL LIABILITIES | G83: 263933.14 | H83: 5050 | I83: 268983.14
A84: 2014 | B84: 40936 | C84: 409 | E84: 36 | F84: Investment in capital assets (net of related debt) | G84: 220412 | H84: 0 | I84: 220412
A85: 2014 | B85: 40937 | C85: 409 | E85: 37 | F85: Temporarily Restricted | G85: 0 | H85: 20000 | I85: 20000
A86: 2014 | B86: 40938 | C86: 409 | E86: 38 | F86: Permanently Restricted | G86: 0 | H86: 0 | I86: 0
A87: 2014 | B87: 40939 | C87: 409 | E87: 39 | F87: Unrestricted (non-capital) | G87: 615598 | H87: 172227 | I87: 787825
A88: 2014 | B88: 40940 | C88: 409 | E88: 40 | F88: TOTAL NET ASSETS | G88: 836010 | H88: 192227 | I88: 1028237
A89: 2014 | B89: 40941 | C89: 409 | E89: 41 | F89: TOTAL LIABILITIES AND NET ASSETS | G89: 1099943 | H89: 197277 | I89: 1297220
A90: 2014
A91: 2014
A92: 2014
A93: 2014 | B93: 41001 | C93: 410 | E93: 01 | F93: Cash and Cash Equivalents | G93: 58174.3 | H93: 1960972 | I93: 2019146.3
A94: 2014 | B94: 41002 | C94: 410 | E94: 02 | F94: Accounts Receivable net of doubtful accounts | G94: 3395.75 | H94: 245351 | I94: 248746.75
A95: 2014 | B95: 41003 | C95: 410 | E95: 03 | F95: Grants Receivable - State | G95: 161.17 | H95: 0 | I95: 161.17
A96: 2014 | B96: 41004 | C96: 410 | E96: 04 | F96: Grants Receivable - Federal | G96: 788239.94 | H96: 0 | I96: 788239.94
A97: 2014 | B97: 41005 | C97: 410 | E97: 05 | F97: Grants Receivable - Private | G97: 0 | H97: 0 | I97: 0
A98: 2014 | B98: 41006 | C98: 410 | E98: 06 | F98: Contributions Receivable | G98: 0 | H98: 0 | I98: 0
A99: 2014 | B99: 41007 | C99: 410 | E99: 07 | F99: Due from related parties | G99: 275412.43 | H99: 905303 | I99: 1180715.43
A100: 2014 | B100: 41008 | C100: 410 | E100: 08 | F100: Prepaid Expenses / Inventory | G100: 79828.71 | H100: 0 | I100: 79828.71
A101: 2014 | B101: 41009 | C101: 410 | E101: 09 | F101: Short-Term Investments | G101: 0 | H101: 0 | I101: 0
A102: 2014 | B102: 41010 | C102: 410 | E102: 10 | F102: Deposit (Security, Other) | G102: 8250 | H102: 99744 | I102: 107994
A103: 2014 | B103: 41011 | C103: 410 | E103: 11 | F103: Restricted Current Assets | G103: 0 | H103: 406729 | I103: 406729
A104: 2014 | B104: 41012 | C104: 410 | E104: 12 | F104: TOTAL CURRENT ASSETS | G104: 1213462.3 | H104: 3618099 | I104: 4831561.3
A105: 2014 | B105: 41013 | C105: 410 | E105: 13 | F105: - Land and Buildings | G105: 8151973 | H105: 808192 | I105: 8960165
A106: 2014 | B106: 41014 | C106: 410 | E106: 14 | F106: - Building/Leasehold Improvement | G106: 0 | H106: 0 | I106: 0
A107: 2014 | B107: 41015 | C107: 410 | E107: 15 | F107: - Furniture and Equipment | G107: 130565.48 | H107: 0 | I107: 130565.48
A108: 2014 | B108: 41016 | C108: 410 | E108: 16 | F108: - Less Accumulated Depreciation | G108: -484100.47 | H108: 0 | I108: -484100.47
A109: 2014 | B109: 41017 | C109: 410 | E109: 17 | F109: Net Capital Assets | G109: 7798438.01 | H109: 808192 | I109: 8606630.01
A110: 2014 | B110: 41018 | C110: 410 | E110: 18 | F110: Restricted Noncurrent Assets | G110: 0 | H110: 0 | I110: 0
A111: 2014 | B111: 41019 | C111: 410 | E111: 19 | F111: Long-Term Investments | G111: 0 | H111: 14560844 | I111: 14560844
A112: 2014 | B112: 41020 | C112: 410 | E112: 20 | F112: Building Acquisition / Financing Costs / Deferred Expenses | G112: 0 | H112: 0 | I112: 0
A113: 2014 | B113: 41021 | C113: 410 | E113: 21 | F113: Long-Term Grants / Contributions Receivable | G113: 0 | H113: 200000 | I113: 200000
A114: 2014 | B114: 41022 | C114: 410 | E114: 22 | F114: TOTAL NONCURRENT ASSETS | G114: 7798438.01 | H114: 15569036 | I114: 23367474.01
A115: 2014 | B115: 41023 | C115: 410 | E115: 23 | F115: TOTAL ASSETS | G115: 9011900 | H115: 19187135 | I115: 28199035
A116: 2014 | B116: 41024 | C116: 410 | E116: 24 | F116: Accounts Payable | G116: 82160 | H116: 19629 | I116: 101789
A117: 2014 | B117: 41025 | C117: 410 | E117: 25 | F117: Accrued Expenses / Accrued Payroll | G117: 251472.87 | H117: 50000 | I117: 301472.87
A118: 2014 | B118: 41026 | C118: 410 | E118: 26 | F118: Deferred Revenue | G118: 0 | H118: 0 | I118: 0
A119: 2014 | B119: 41027 | C119: 410 | E119: 27 | F119: Due to related parties | G119: 0 | H119: 0 | I119: 0
A120: 2014 | B120: 41028 | C120: 410 | E120: 28 | F120: Current Debt Payable | G120: 630000 | H120: 295465 | I120: 925465
A121: 2014 | B121: 41029 | C121: 410 | E121: 29 | F121: Current Lease Obligations Payable | G121: 0 | H121: 0 | I121: 0
A122: 2014 | B122: 41030 | C122: 410 | E122: 30 | F122: TOTAL CURRENT LIABILITIES | G122: 963632.87 | H122: 365094 | I122: 1328726.87
A123: 2014 | B123: 41031 | C123: 410 | E123: 31 | F123: Noncurrent Lease Obligations | G123: 8276844.71 | H123: 0 | I123: 8276844.71
A124: 2014 | B124: 41032 | C124: 410 | E124: 32 | F124: Long-Term Debt | G124: 0 | H124: 13062809 | I124: 13062809
A125: 2014 | B125: 41033 | C125: 410 | E125: 33 | F125: Deferred Revenue | G125: 0 | H125: 0 | I125: 0
A126: 2014 | B126: 41034 | C126: 410 | E126: 34 | F126: TOTAL NONCURRENT LIABILITIES | G126: 8276844.71 | H126: 13062809 | I126: 21339653.71
A127: 2014 | B127: 41035 | C127: 410 | E127: 35 | F127: TOTAL LIABILITIES | G127: 9240477.58 | H127: 13427903 | I127: 22668380.58
A128: 2014 | B128: 41036 | C128: 410 | E128: 36 | F128: Investment in capital assets (net of related debt) | G128: -478407 | H128: 2467235 | I128: 1988828
A129: 2014 | B129: 41037 | C129: 410 | E129: 37 | F129: Temporarily Restricted | G129: 0 | H129: 1168050 | I129: 1168050
A130: 2014 | B130: 41038 | C130: 410 | E130: 38 | F130: Permanently Restricted | G130: 0 | H130: 0 | I130: 0
A131: 2014 | B131: 41039 | C131: 410 | E131: 39 | F131: Unrestricted (non-capital) | G131: 249829 | H131: 2123947 | I131: 2373776
A132: 2014 | B132: 41040 | C132: 410 | E132: 40 | F132: TOTAL NET ASSETS | G132: -228578 | H132: 5759232 | I132: 5530654
A133: 2014 | B133: 41041 | C133: 410 | E133: 41 | F133: TOTAL LIABILITIES AND NET ASSETS | G133: 9011900 | H133: 19187135 | I133: 28199035
A134: 2014 | B134: =C134&E134 -> 
A135: 2014
A136: 2014
A137: 2014 | B137: 41101 | C137: 411 | E137: 01 | F137: Cash and Cash Equivalents | G137: 91565 | H137: 0 | I137: 91565
A138: 2014 | B138: 41102 | C138: 411 | E138: 02 | F138: Accounts Receivable net of doubtful accounts | G138: 130323 | H138: 0 | I138: 130323
A139: 2014 | B139: 41103 | C139: 411 | E139: 03 | F139: Grants Receivable - State | G139: 0 | H139: 0 | I139: 0
A140: 2014 | B140: 41104 | C140: 411 | E140: 04 | F140: Grants Receivable - Federal | G140: 0 | H140: 0 | I140: 0
A141: 2014 | B141: 41105 | C141: 411 | E141: 05 | F141: Grants Receivable - Private | G141: 0 | H141: 0 | I141: 0
A142: 2014 | B142: 41106 | C142: 411 | E142: 06 | F142: Contributions Receivable | G142: 0 | H142: 0 | I142: 0
A143: 2014 | B143: 41107 | C143: 411 | E143: 07 | F143: Due from related parties | G143: 0 | H143: 0 | I143: 0
A144: 2014 | B144: 41108 | C144: 411 | E144: 08 | F144: Prepaid Expenses / Inventory | G144: 34211 | H144: 0 | I144: 34211
A145: 2014 | B145: 41109 | C145: 411 | E145: 09 | F145: Short-Term Investments | G145: 0 | H145: 0 | I145: 0
A146: 2014 | B146: 41110 | C146: 411 | E146: 10 | F146: Deposit (Security, Other) | G146: 0 | H146: 0 | I146: 0
A147: 2014 | B147: 41111 | C147: 411 | E147: 11 | F147: Restricted Current Assets | G147: 1714 | H147: 0 | I147: 1714
A148: 2014 | B148: 41112 | C148: 411 | E148: 12 | F148: TOTAL CURRENT ASSETS | G148: 257813 | H148: 0 | I148: 257813
A149: 2014 | B149: 41113 | C149: 411 | E149: 13 | F149: - Land and Buildings | G149: 0 | H149: 0 | I149: 0
A150: 2014 | B150: 41114 | C150: 411 | E150: 14 | F150: - Building/Leasehold Improvement | G150: 0 | H150: 0 | I150: 0
A151: 2014 | B151: 41115 | C151: 411 | E151: 15 | F151: - Furniture and Equipment | G151: 897 | H151: 0 | I151: 897
A152: 2014 | B152: 41116 | C152: 411 | E152: 16 | F152: - Less Accumulated Depreciation | G152: 0 | H152: 0 | I152: 0
A153: 2014 | B153: 41117 | C153: 411 | E153: 17 | F153: Net Capital Assets | G153: 897 | H153: 0 | I153: 897
A154: 2014 | B154: 41118 | C154: 411 | E154: 18 | F154: Restricted Noncurrent Assets | G154: 0 | H154: 0 | I154: 0
A155: 2014 | B155: 41119 | C155: 411 | E155: 19 | F155: Long-Term Investments | G155: 0 | H155: 0 | I155: 0
A156: 2014 | B156: 41120 | C156: 411 | E156: 20 | F156: Building Acquisition / Financing Costs / Deferred Expenses | G156: 0 | H156: 0 | I156: 0
A157: 2014 | B157: 41121 | C157: 411 | E157: 21 | F157: Long-Term Grants / Contributions Receivable | G157: 0 | H157: 0 | I157: 0
A158: 2014 | B158: 41122 | C158: 411 | E158: 22 | F158: TOTAL NONCURRENT ASSETS | G158: 897 | H158: 0 | I158: 897
A159: 2014 | B159: 41123 | C159: 411 | E159: 23 | F159: TOTAL ASSETS | G159: 258710 | H159: 0 | I159: 258710
A160: 2014 | B160: 41124 | C160: 411 | E160: 24 | F160: Accounts Payable | G160: 29959 | H160: 0 | I160: 29959
A161: 2014 | B161: 41125 | C161: 411 | E161: 25 | F161: Accrued Expenses / Accrued Payroll | G161: 56500 | H161: 0 | I161: 56500
A162: 2014 | B162: 41126 | C162: 411 | E162: 26 | F162: Deferred Revenue | G162: 11704 | H162: 0 | I162: 11704
A163: 2014 | B163: 41127 | C163: 411 | E163: 27 | F163: Due to related parties | G163: 104774 | H163: 0 | I163: 104774
A164: 2014 | B164: 41128 | C164: 411 | E164: 28 | F164: Current Debt Payable | G164: 0 | H164: 0 | I164: 0
A165: 2014 | B165: 41129 | C165: 411 | E165: 29 | F165: Current Lease Obligations Payable | G165: 0 | H165: 0 | I165: 0
A166: 2014 | B166: 41130 | C166: 411 | E166: 30 | F166: TOTAL CURRENT LIABILITIES | G166: 202937 | H166: 0 | I166: 202937
A167: 2014 | B167: 41131 | C167: 411 | E167: 31 | F167: Noncurrent Lease Obligations | G167: 0 | H167: 0 | I167: 0
A168: 2014 | B168: 41132 | C168: 411 | E168: 32 | F168: Long-Term Debt | G168: 0 | H168: 0 | I168: 0
A169: 2014 | B169: 41133 | C169: 411 | E169: 33 | F169: Deferred Revenue | G169: 0 | H169: 0 | I169: 0
A170: 2014 | B170: 41134 | C170: 411 | E170: 34 | F170: TOTAL NONCURRENT LIABILITIES | G170: 0 | H170: 0 | I170: 0
A171: 2014 | B171: 41135 | C171: 411 | E171: 35 | F171: TOTAL LIABILITIES | G171: 202937 | H171: 0 | I171: 202937
A172: 2014 | B172: 41136 | C172: 411 | E172: 36 | F172: Investment in capital assets (net of related debt) | G172: 897 | H172: 0 | I172: 897
A173: 2014 | B173: 41137 | C173: 411 | E173: 37 | F173: Temporarily Restricted | G173: 52885 | H173: 0 | I173: 52885
A174: 2014 | B174: 41138 | C174: 411 | E174: 38 | F174: Permanently Restricted | G174: 0 | H174: 0 | I174: 0
A175: 2014 | B175: 41139 | C175: 411 | E175: 39 | F175: Unrestricted (non-capital) | G175: 1991 | H175: 0 | I175: 1991
A176: 2014 | B176: 41140 | C176: 411 | E176: 40 | F176: TOTAL NET ASSETS | G176: 55773 | H176: 0 | I176: 55773
A177: 2014 | B177: 41141 | C177: 411 | E177: 41 | F177: TOTAL LIABILITIES AND NET ASSETS | G177: 258710 | H177: 0 | I177: 258710
A178: 2014
A179: 2014
A180: 2014
A181: 2014 | B181: 41301 | C181: 413 | E181: 01 | F181: Cash and Cash Equivalents | G181: 38650 | H181: 23516 | I181: 62166
A182: 2014 | B182: 41302 | C182: 413 | E182: 02 | F182: Accounts Receivable net of doubtful accounts | G182: 724788 | H182: 0 | I182: 724788
A183: 2014 | B183: 41303 | C183: 413 | E183: 03 | F183: Grants Receivable - State | G183: 0 | H183: 0 | I183: 0
A184: 2014 | B184: 41304 | C184: 413 | E184: 04 | F184: Grants Receivable - Federal | G184: 1160 | H184: 0 | I184: 1160
A185: 2014 | B185: 41305 | C185: 413 | E185: 05 | F185: Grants Receivable - Private | G185: 0 | H185: 0 | I185: 0
A186: 2014 | B186: 41306 | C186: 413 | E186: 06 | F186: Contributions Receivable | G186: 0 | H186: 0 | I186: 0
A187: 2014 | B187: 41307 | C187: 413 | E187: 07 | F187: Due from related parties | G187: 0 | H187: 5233 | I187: 5233
A188: 2014 | B188: 41308 | C188: 413 | E188: 08 | F188: Prepaid Expenses / Inventory | G188: 24478 | H188: 1085 | I188: 25563
A189: 2014 | B189: 41309 | C189: 413 | E189: 09 | F189: Short-Term Investments | G189: 0 | H189: 0 | I189: 0
A190: 2014 | B190: 41310 | C190: 413 | E190: 10 | F190: Deposit (Security, Other) | G190: 0 | H190: 0 | I190: 0
A191: 2014 | B191: 41311 | C191: 413 | E191: 11 | F191: Restricted Current Assets | G191: 0 | H191: 0 | I191: 0
A192: 2014 | B192: 41312 | C192: 413 | E192: 12 | F192: TOTAL CURRENT ASSETS | G192: 789076 | H192: 29834 | I192: 818910
A193: 2014 | B193: 41313 | C193: 413 | E193: 13 | F193: - Land and Buildings | G193: 0 | H193: 5939836 | I193: 5939836
A194: 2014 | B194: 41314 | C194: 413 | E194: 14 | F194: - Building/Leasehold Improvement | G194: 104985 | H194: 0 | I194: 104985
A195: 2014 | B195: 41315 | C195: 413 | E195: 15 | F195: - Furniture and Equipment | G195: 120236 | H195: 0 | I195: 120236
A196: 2014 | B196: 41316 | C196: 413 | E196: 16 | F196: - Less Accumulated Depreciation | G196: -129876 | H196: -1043559 | I196: -1173435
A197: 2014 | B197: 41317 | C197: 413 | E197: 17 | F197: Net Capital Assets | G197: 95345 | H197: 4896277 | I197: 4991622
A198: 2014 | B198: =C198&E198 -> 41318 | C198: 413 | E198: 18 | F198: Restricted Noncurrent Assets | G198: 0 | H198: 0 | I198: 0
A199: 2014 | B199: 41319 | C199: 413 | E199: 19 | F199: Long-Term Investments | G199: 0 | H199: 0 | I199: 0
A200: 2014 | B200: 41320 | C200: 413 | E200: 20 | F200: Building Acquisition / Financing Costs / Deferred Expenses | G200: 0 | H200: 22600 | I200: 22600
A201: 2014 | B201: 41321 | C201: 413 | E201: 21 | F201: Long-Term Grants / Contributions Receivable | G201: 0 | H201: 0 | I201: 0
A202: 2014 | B202: 41322 | C202: 413 | E202: 22 | F202: TOTAL NONCURRENT ASSETS | G202: 95345 | H202: 4918877 | I202: 5014222
... 3360 more rows

Sheet BAL13_Raw (hidden)
B3: 1 | C3: 2 | D3: 3 | E3: 4 | F3: 5 | G3: 6 | H3: 7 | I3: 8
A4: FY | B4: vlookup | C4: cha_code | D4: cha_type | E4: balance_id | F4: Line_Desc | G4: balance_sch | H4: balance_found | I4: balance_total
A5: 2013 | B5: =C5&E5 -> 40701 | C5: 407 | E5: 01 | F5: Cash and Cash Equivalents | G5: 231815 | H5: 0 | I5: 231815
A6: 2013 | B6: =C6&E6 -> 40702 | C6: 407 | E6: 02 | F6: Accounts Receivable net of doubtful accounts | G6: 0 | H6: 0 | I6: 0
A7: 2013 | B7: 40703 | C7: 407 | E7: 03 | F7: Grants Receivable - State | G7: 0 | H7: 0 | I7: 0
A8: 2013 | B8: 40704 | C8: 407 | E8: 04 | F8: Grants Receivable - Federal | G8: 0 | H8: 0 | I8: 0
A9: 2013 | B9: 40705 | C9: 407 | E9: 05 | F9: Grants Receivable - Private | G9: 0 | H9: 0 | I9: 0
A10: 2013 | B10: 40706 | C10: 407 | E10: 06 | F10: Contributions Receivable | G10: 0 | H10: 0 | I10: 0
A11: 2013 | B11: 40707 | C11: 407 | E11: 07 | F11: Due from related parties | G11: 0 | H11: 0 | I11: 0
A12: 2013 | B12: 40708 | C12: 407 | E12: 08 | F12: Prepaid Expenses / Inventory | G12: 1134 | H12: 0 | I12: 1134
A13: 2013 | B13: 40709 | C13: 407 | E13: 09 | F13: Short-Term Investments | G13: 0 | H13: 0 | I13: 0
A14: 2013 | B14: 40710 | C14: 407 | E14: 10 | F14: Deposit (Security, Other) | G14: 0 | H14: 0 | I14: 0
A15: 2013 | B15: 40711 | C15: 407 | E15: 11 | F15: Restricted Current Assets | G15: 0 | H15: 0 | I15: 0
A16: 2013 | B16: 40712 | C16: 407 | E16: 12 | F16: TOTAL CURRENT ASSETS | G16: 232949 | H16: 0 | I16: 232949
A17: 2013 | B17: 40713 | C17: 407 | E17: 13 | F17: - Land and Buildings | G17: 0 | H17: 0 | I17: 0
A18: 2013 | B18: 40714 | C18: 407 | E18: 14 | F18: - Building/Leasehold Improvement | G18: 0 | H18: 0 | I18: 0
A19: 2013 | B19: 40715 | C19: 407 | E19: 15 | F19: - Furniture and Equipment | G19: 41670 | H19: 0 | I19: 41670
A20: 2013 | B20: 40716 | C20: 407 | E20: 16 | F20: - Less Accumulated Depreciation | G20: 0 | H20: 0 | I20: 0
A21: 2013 | B21: 40717 | C21: 407 | E21: 17 | F21: Net Capital Assets | G21: 41670 | H21: 0 | I21: 41670
A22: 2013 | B22: 40718 | C22: 407 | E22: 18 | F22: Restricted Noncurrent Assets | G22: 0 | H22: 0 | I22: 0
A23: 2013 | B23: 40719 | C23: 407 | E23: 19 | F23: Long-Term Investments | G23: 0 | H23: 0 | I23: 0
A24: 2013 | B24: 40720 | C24: 407 | E24: 20 | F24: Building Acquisition / Financing Costs / Deferred Expenses | G24: 0 | H24: 0 | I24: 0
A25: 2013 | B25: 40721 | C25: 407 | E25: 21 | F25: Long-Term Grants / Contributions Receivable | G25: 0 | H25: 0 | I25: 0
A26: 2013 | B26: 40722 | C26: 407 | E26: 22 | F26: TOTAL NONCURRENT ASSETS | G26: 41670 | H26: 0 | I26: 41670
A27: 2013 | B27: 40723 | C27: 407 | E27: 23 | F27: TOTAL ASSETS | G27: 274619 | H27: 0 | I27: 274619
A28: 2013 | B28: 40724 | C28: 407 | E28: 24 | F28: Accounts Payable | G28: 29510 | H28: 0 | I28: 29510
A29: 2013 | B29: 40725 | C29: 407 | E29: 25 | F29: Accrued Expenses / Accrued Payroll | G29: 0 | H29: 0 | I29: 0
A30: 2013 | B30: 40726 | C30: 407 | E30: 26 | F30: Deferred Revenue | G30: 184000 | H30: 0 | I30: 184000
A31: 2013 | B31: 40727 | C31: 407 | E31: 27 | F31: Due to related parties | G31: 0 | H31: 0 | I31: 0
A32: 2013 | B32: 40728 | C32: 407 | E32: 28 | F32: Current Debt Payable | G32: 0 | H32: 0 | I32: 0
A33: 2013 | B33: 40729 | C33: 407 | E33: 29 | F33: Current Lease Obligations Payable | G33: 0 | H33: 0 | I33: 0
A34: 2013 | B34: 40730 | C34: 407 | E34: 30 | F34: TOTAL CURRENT LIABILITIES | G34: 213510 | H34: 0 | I34: 213510
A35: 2013 | B35: 40731 | C35: 407 | E35: 31 | F35: Noncurrent Lease Obligations | G35: 0 | H35: 0 | I35: 0
A36: 2013 | B36: 40732 | C36: 407 | E36: 32 | F36: Long-Term Debt | G36: 0 | H36: 0 | I36: 0
A37: 2013 | B37: 40733 | C37: 407 | E37: 33 | F37: Deferred Revenue | G37: 0 | H37: 0 | I37: 0
A38: 2013 | B38: 40734 | C38: 407 | E38: 34 | F38: TOTAL NONCURRENT LIABILITIES | G38: 0 | H38: 0 | I38: 0
A39: 2013 | B39: 40735 | C39: 407 | E39: 35 | F39: TOTAL LIABILITIES | G39: 213510 | H39: 0 | I39: 213510
A40: 2013 | B40: 40736 | C40: 407 | E40: 36 | F40: Investment in capital assets (net of related debt) | G40: 41670 | H40: 0 | I40: 41670
A41: 2013 | B41: 40737 | C41: 407 | E41: 37 | F41: Temporarily Restricted | G41: 0 | H41: 0 | I41: 0
A42: 2013 | B42: 40738 | C42: 407 | E42: 38 | F42: Permanently Restricted | G42: 0 | H42: 0 | I42: 0
A43: 2013 | B43: 40739 | C43: 407 | E43: 39 | F43: Unrestricted (non-capital) | G43: 19439 | H43: 0 | I43: 19439
A44: 2013 | B44: 40740 | C44: 407 | E44: 40 | F44: TOTAL NET ASSETS | G44: 61109 | H44: 0 | I44: 61109
A45: 2013 | B45: 40741 | C45: 407 | E45: 41 | F45: TOTAL LIABILITIES AND NET ASSETS | G45: 274619 | H45: 0 | I45: 274619
A46: 2013
A47: 2013
A48: 2013
A49: 2013 | B49: 40901 | C49: 409 | E49: 01 | G49: 711613.77 | H49: 0 | I49: 711613.77
A50: 2013 | B50: 40902 | C50: 409 | E50: 02 | G50: 7881.91 | H50: 0 | I50: 7881.91
A51: 2013 | B51: 40903 | C51: 409 | E51: 03 | G51: 0 | H51: 0 | I51: 0
A52: 2013 | B52: 40904 | C52: 409 | E52: 04 | G52: 0 | H52: 0 | I52: 0
A53: 2013 | B53: 40905 | C53: 409 | E53: 05 | G53: 0 | H53: 0 | I53: 0
A54: 2013 | B54: 40906 | C54: 409 | E54: 06 | G54: 0 | H54: 0 | I54: 0
A55: 2013 | B55: 40907 | C55: 409 | E55: 07 | G55: 10750 | H55: 0 | I55: 10750
A56: 2013 | B56: 40908 | C56: 409 | E56: 08 | G56: 2000 | H56: 0 | I56: 2000
A57: 2013 | B57: 40909 | C57: 409 | E57: 09 | G57: 0 | H57: 0 | I57: 0
A58: 2013 | B58: 40910 | C58: 409 | E58: 10 | G58: 35650 | H58: 0 | I58: 35650
A59: 2013 | B59: 40911 | C59: 409 | E59: 11 | G59: 0 | H59: 0 | I59: 0
A60: 2013 | B60: 40912 | C60: 409 | E60: 12 | G60: 767895.68 | H60: 0 | I60: 767895.68
A61: 2013 | B61: 40913 | C61: 409 | E61: 13 | G61: 0 | H61: 0 | I61: 0
A62: 2013 | B62: 40914 | C62: 409 | E62: 14 | G62: 22500 | H62: 0 | I62: 22500
A63: 2013 | B63: 40915 | C63: 409 | E63: 15 | G63: 9269.86 | H63: 0 | I63: 9269.86
A64: 2013 | B64: 40916 | C64: 409 | E64: 16 | G64: -11649 | H64: 0 | I64: -11649
A65: 2013 | B65: 40917 | C65: 409 | E65: 17 | G65: 20120.86 | H65: 0 | I65: 20120.86
A66: 2013 | B66: 40918 | C66: 409 | E66: 18 | G66: 0 | H66: 0 | I66: 0
A67: 2013 | B67: 40919 | C67: 409 | E67: 19 | G67: 0 | H67: 0 | I67: 0
A68: 2013 | B68: 40920 | C68: 409 | E68: 20 | G68: 0 | H68: 0 | I68: 0
A69: 2013 | B69: 40921 | C69: 409 | E69: 21 | G69: 0 | H69: 0 | I69: 0
A70: 2013 | B70: =C70&E70 -> 40922 | C70: 409 | E70: 22 | G70: 20120.86 | H70: 0 | I70: 20120.86
A71: 2013 | B71: 40923 | C71: 409 | E71: 23 | G71: 788017 | H71: 0 | I71: 788017
A72: 2013 | B72: 40924 | C72: 409 | E72: 24 | G72: 59931.72 | H72: 0 | I72: 59931.72
A73: 2013 | B73: 40925 | C73: 409 | E73: 25 | G73: 131020.2 | H73: 0 | I73: 131020.2
A74: 2013 | B74: 40926 | C74: 409 | E74: 26 | G74: 112500 | H74: 0 | I74: 112500
A75: 2013 | B75: 40927 | C75: 409 | E75: 27 | G75: 0 | H75: 0 | I75: 0
A76: 2013 | B76: 40928 | C76: 409 | E76: 28 | G76: 0 | H76: 0 | I76: 0
A77: 2013 | B77: 40929 | C77: 409 | E77: 29 | G77: 0 | H77: 0 | I77: 0
A78: 2013 | B78: 40930 | C78: 409 | E78: 30 | G78: 303451.92 | H78: 0 | I78: 303451.92
A79: 2013 | B79: 40931 | C79: 409 | E79: 31 | G79: 0 | H79: 0 | I79: 0
A80: 2013 | B80: 40932 | C80: 409 | E80: 32 | G80: 0 | H80: 0 | I80: 0
A81: 2013 | B81: 40933 | C81: 409 | E81: 33 | G81: 0 | H81: 0 | I81: 0
A82: 2013 | B82: 40934 | C82: 409 | E82: 34 | G82: 0 | H82: 0 | I82: 0
A83: 2013 | B83: 40935 | C83: 409 | E83: 35 | G83: 303451.92 | H83: 0 | I83: 303451.92
A84: 2013 | B84: 40936 | C84: 409 | E84: 36 | G84: 20120.86 | H84: 0 | I84: 20120.86
A85: 2013 | B85: 40937 | C85: 409 | E85: 37 | G85: 0 | H85: 0 | I85: 0
A86: 2013 | B86: 40938 | C86: 409 | E86: 38 | G86: 0 | H86: 0 | I86: 0
A87: 2013 | B87: 40939 | C87: 409 | E87: 39 | G87: 464443.76 | H87: 0 | I87: 464443.76
A88: 2013 | B88: 40940 | C88: 409 | E88: 40 | G88: 484565 | H88: 0 | I88: 484565
A89: 2013 | B89: 40941 | C89: 409 | E89: 41 | G89: 788017 | H89: 0 | I89: 788017
A90: 2013
A91: 2013
A92: 2013
A93: 2013 | B93: 41001 | C93: 410 | E93: 01 | G93: 116459.17 | H93: 1255788 | I93: 1372247.17
A94: 2013 | B94: 41002 | C94: 410 | E94: 02 | G94: 21960 | H94: 356320 | I94: 378280
A95: 2013 | B95: 41003 | C95: 410 | E95: 03 | G95: 420.68 | H95: 0 | I95: 420.68
A96: 2013 | B96: 41004 | C96: 410 | E96: 04 | G96: 57232.87 | H96: 0 | I96: 57232.87
A97: 2013 | B97: 41005 | C97: 410 | E97: 05 | G97: 0 | H97: 200000 | I97: 200000
A98: 2013 | B98: 41006 | C98: 410 | E98: 06 | G98: 0 | H98: 0 | I98: 0
A99: 2013 | B99: 41007 | C99: 410 | E99: 07 | G99: 1254623 | H99: 227536 | I99: 1482159
A100: 2013 | B100: 41008 | C100: 410 | E100: 08 | G100: 0 | H100: 0 | I100: 0
A101: 2013 | B101: 41009 | C101: 410 | E101: 09 | G101: 0 | H101: 0 | I101: 0
A102: 2013 | B102: 41010 | C102: 410 | E102: 10 | G102: 8250 | H102: 0 | I102: 8250
A103: 2013 | B103: 41011 | C103: 410 | E103: 11 | G103: 41547.71 | H103: 630355 | I103: 671902.71
A104: 2013 | B104: 41012 | C104: 410 | E104: 12 | G104: 1500493.43 | H104: 2669999 | I104: 4170492.43
A105: 2013 | B105: 41013 | C105: 410 | E105: 13 | G105: 8077387 | H105: 0 | I105: 8077387
A106: 2013 | B106: 41014 | C106: 410 | E106: 14 | G106: 0 | H106: 0 | I106: 0
A107: 2013 | B107: 41015 | C107: 410 | E107: 15 | G107: 130567.08 | H107: 0 | I107: 130567.08
A108: 2013 | B108: 41016 | C108: 410 | E108: 16 | G108: -259171.12 | H108: 0 | I108: -259171.12
A109: 2013 | B109: 41017 | C109: 410 | E109: 17 | G109: 7948782.96 | H109: 0 | I109: 7948782.96
A110: 2013 | B110: 41018 | C110: 410 | E110: 18 | G110: 0 | H110: 0 | I110: 0
A111: 2013 | B111: 41019 | C111: 410 | E111: 19 | G111: 0 | H111: 14403950 | I111: 14403950
A112: 2013 | B112: 41020 | C112: 410 | E112: 20 | G112: 0 | H112: 606219 | I112: 606219
A113: 2013 | B113: 41021 | C113: 410 | E113: 21 | G113: 0 | H113: 0 | I113: 0
A114: 2013 | B114: 41022 | C114: 410 | E114: 22 | G114: 7948782.96 | H114: 15010169 | I114: 22958951.96
A115: 2013 | B115: 41023 | C115: 410 | E115: 23 | G115: 9449276 | H115: 17680168 | I115: 27129444
A116: 2013 | B116: 41024 | C116: 410 | E116: 24 | G116: 154905 | H116: 44429 | I116: 199334
A117: 2013 | B117: 41025 | C117: 410 | E117: 25 | G117: 232685 | H117: 0 | I117: 232685
A118: 2013 | B118: 41026 | C118: 410 | E118: 26 | G118: 0 | H118: 0 | I118: 0
A119: 2013 | B119: 41027 | C119: 410 | E119: 27 | G119: 0 | H119: 777911 | I119: 777911
A120: 2013 | B120: 41028 | C120: 410 | E120: 28 | G120: 0 | H120: 80418 | I120: 80418
A121: 2013 | B121: 41029 | C121: 410 | E121: 29 | G121: 0 | H121: 0 | I121: 0
A122: 2013 | B122: 41030 | C122: 410 | E122: 30 | G122: 387590 | H122: 902758 | I122: 1290348
A123: 2013 | B123: 41031 | C123: 410 | E123: 31 | G123: 0 | H123: 0 | I123: 0
A124: 2013 | B124: 41032 | C124: 410 | E124: 32 | G124: 8119951.03 | H124: 13164582 | I124: 21284533.03
A125: 2013 | B125: 41033 | C125: 410 | E125: 33 | G125: 0 | H125: 0 | I125: 0
A126: 2013 | B126: 41034 | C126: 410 | E126: 34 | G126: 8119951.03 | H126: 13164582 | I126: 21284533.03
A127: 2013 | B127: 41035 | C127: 410 | E127: 35 | G127: 8507541.03 | H127: 14067340 | I127: 22574881.03
A128: 2013 | B128: 41036 | C128: 410 | E128: 36 | G128: -171170 | H128: 2475942 | I128: 2304772
A129: 2013 | B129: 41037 | C129: 410 | E129: 37 | G129: 0 | H129: 420050 | I129: 420050
A130: 2013 | B130: 41038 | C130: 410 | E130: 38 | G130: 0 | H130: 0 | I130: 0
A131: 2013 | B131: 41039 | C131: 410 | E131: 39 | G131: 1112904 | H131: 716836 | I131: 1829740
A132: 2013 | B132: 41040 | C132: 410 | E132: 40 | G132: 941734 | H132: 3612828 | I132: 4554562
A133: 2013 | B133: 41041 | C133: 410 | E133: 41 | G133: 9449275 | H133: 17680168 | I133: 27129443
A134: 2013 | B134: =C134&E134 -> 
A135: 2013
A136: 2013
